Workbook

Sheet Report
D1: 季ROI | E1: 季ROI排名 | F1: 半年ROI | G1: 半年ROI排名 | H1: 一年ROI | I1: 一年ROI排名 | J1: 二年ROI | K1: 二年ROI排名 | L1: 三年ROI | M1: 三年ROI排名 | N1: 五年ROI | O1: 五年ROI排名 | P1: 自今年以來ROI | Q1: 自今年以來ROI排名 | R1: 年化標準差--24個月 | S1: beta--24個月 | T1: Sharpe Index-24個月 | U1: Jensen Index-24個月 | V1: Treynor Index-24個月 | W1: IR--24個月（大分類） | X1: IR--24個月（細分類） | Y1: 自成立以來ROI
B2: 2024/03/29
B4: Category | C4: Fund Name | D4: 3-Month | F4: 6-Month | H4: 1-Year | J4: 2-Year | L4: 3-Year | N4: 5-Year | P4: This Year To Date | R4: Annualized Standard Deviation | S4: Beta | T4: Sharpe | U4: Jensen | V4: Treynor | W4: Information Ratio | Y4: Est
D5: Return | E5: Rank | F5: Return | G5: Rank | H5: Return | I5: Rank | J5: Return | K5: Rank | L5: Return | M5: Rank | N5: Return | O5: Rank | P5: Return | Q5: Rank | R5: (24Mo) | S5: (24Mo) | T5: (24Mo) | U5: (24Mo) | V5: (24Mo) | W5: (24Mo)(broad) | X5: (24Mo)(narrow) | Y5: ROI
A6: 98764389 | B6: 國內指數-一般ETF | C6: =IFERROR(VLOOKUP(A6,Raw!A:C,3,0),"") -> 元大台灣卓越50證券投資信託基金 | D6: =IFERROR(IF(INDEX(ALL,MATCH($C6,FUND,0),MATCH(D$1,Name,0))="","",INDEX(ALL,MATCH($C6,FUND,0),MATCH(D$1,Name,0))),"") -> 19.34 | E6: 6 | F6: 32.6 | G6: 11 | H6: 35.54 | I6: 21 | J6: 23.81 | K6: 22 | L6: 30.52 | M6: 18 | N6: 136.35 | O6: 8 | P6: 19.34 | Q6: 6 | R6: =IFERROR(IF(INDEX(ALL,MATCH($C6,FUND,0),MATCH(R$1,Name,0))="","",INDEX(ALL,MATCH($C6,FUND,0),MATCH(R$1,Name,0))),"") -> 24.5143 | S6: =IFERROR(IF(INDEX(ALL,MATCH($C6,FUND,0),MATCH(S$1,Name,0))="","",INDEX(ALL,MATCH($C6,FUND,0),MATCH(S$1,Name,0))),"") -> 1.1629 | T6: =IFERROR(IF(INDEX(ALL,MATCH($C6,FUND,0),MATCH(T$1,Name,0))="","",INDEX(ALL,MATCH($C6,FUND,0),MATCH(T$1,Name,0))),"") -> 0.1486 | U6: =IFERROR(IF(INDEX(ALL,MATCH($C6,FUND,0),MATCH(U$1,Name,0))="","",INDEX(ALL,MATCH($C6,FUND,0),MATCH(U$1,Name,0))),"") -> -0.1311 | V6: 0.9044 | X6: -0.1071 | Y6: 751.83
A7: 48772770 | C7: =IFERROR(VLOOKUP(A7,Raw!A:C,3,0),"") -> 元大台灣中型 100證券投資信託基金 | D7: 6.01 | E7: 44 | F7: 16.81 | G7: 41 | H7: 40.81 | I7: 17 | J7: 41.52 | K7: 5 | L7: 74.37 | M7: 2 | N7: 190.28 | O7: 3 | P7: 6.01 | Q7: 44 | R7: 20.1454 | S7: 0.879 | T7: 0.2646 | U7: 0.6444 | V7: 1.7502 | X7: 0.1299 | Y7: 402.21
A8: 48790067 | C8: =IFERROR(VLOOKUP(A8,Raw!A:C,3,0),"") -> 富邦台灣科技指數證券投資信託基金 | D8: 23.69 | E8: 1 | F8: 41.49 | G8: 1 | H8: 51.92 | I8: 5 | J8: 43.22 | K8: 3 | L8: 46.47 | M8: 6 | N8: 261.24 | O8: 2 | P8: 23.69 | Q8: 1 | R8: 28.9063 | S8: 1.3643 | T8: 0.2109 | U8: 0.3723 | V8: 1.29 | X8: 0.2176 | Y8: 756.4
A9: 48903196 | C9: =IFERROR(VLOOKUP(A9,Raw!A:C,3,0),"") -> 元大台灣 ETF傘型證券投資信託基金之電子科技證券投資信託基金 | D9: 19.63 | E9: 3 | F9: 34.07 | G9: 7 | H9: 45.19 | I9: 10 | J9: 37.74 | K9: 8 | L9: 42.33 | M9: 10 | N9: 190.26 | O9: 4 | P9: 19.63 | Q9: 3 | R9: 26.1582 | S9: 1.2433 | T9: 0.2034 | U9: 0.2714 | V9: 1.2354 | X9: 0.1978 | Y9: 351.98
A10: 48903180 | C10: =IFERROR(VLOOKUP(A10,Raw!A:C,3,0),"") -> 
A11: 48903175 | C11: =IFERROR(VLOOKUP(A11,Raw!A:C,3,0),"") -> 元大台灣 ETF傘型證券投資信託基金之金融證券投資信託基金 | D11: 5.02 | E11: 45 | F11: 11.7 | G11: 42 | H11: 19.07 | I11: 39 | J11: 1.19 | K11: 30 | L11: 42.19 | M11: 11 | N11: 73.03 | O11: 17 | P11: 5.02 | Q11: 45 | R11: 16.8571 | S11: 0.691 | T11: 0.0169 | U11: -0.6208 | V11: 0.1187 | X11: -0.3395 | Y11: 162.88
A12: 48966213 | C12: =IFERROR(VLOOKUP(A12,Raw!A:C,3,0),"") -> 元大台灣高股息證券投資信託基金 | D12: 8.82 | E12: 40 | F12: 20.66 | G12: 33 | H12: 52.57 | I12: 4 | J12: 41.21 | K12: 6 | L12: 45.33 | M12: 8 | N12: 113.17 | O12: 12 | P12: 8.82 | Q12: 40 | R12: 21.2117 | S12: 0.8875 | T12: 0.2531 | U12: 0.6468 | V12: 1.7459 | X12: 0.1183 | Y12: 276.77
A13: 48975156 | C13: =IFERROR(VLOOKUP(A13,Raw!A:C,3,0),"") -> 富邦台灣 ETF傘型證券投資信託基金之富邦台灣摩根指數股票型基金 | D13: 17.21 | E13: 11 | F13: 30.23 | G13: 19 | H13: 33.01 | I13: 28 | J13: 20.66 | K13: 24 | L13: 28.58 | M13: 20 | N13: 132.15 | O13: 11 | P13: 17.21 | Q13: 11 | R13: 23.9238 | S13: 1.1414 | T13: 0.1351 | U13: -0.2277 | V13: 0.8176 | X13: -0.2399 | Y13: 308.32
A14: 48977083 | C14: =IFERROR(VLOOKUP(A14,Raw!A:C,3,0),"") -> 
A15: 48975162 | C15: =IFERROR(VLOOKUP(A15,Raw!A:C,3,0),"") -> 
A16: 26282102 | C16: =IFERROR(VLOOKUP(A16,Raw!A:C,3,0),"") -> 元大櫃買 ETF傘型證券投資信託基金之富櫃50證券投資信託基金 | D16: 10.05 | E16: 38 | F16: 23.79 | G16: 30 | H16: 23.86 | I16: 35 | J16: 12.15 | K16: 28 | L16: 24.43 | M16: 22 | N16: 106.59 | O16: 14 | P16: 10.05 | Q16: 38 | R16: 30.5438 | S16: 1.3335 | T16: 0.0889 | U16: -0.5729 | V16: 0.5875 | X16: -0.1078 | Y16: 109.28
A17: 26306553 | C17: =IFERROR(VLOOKUP(A17,Raw!A:C,3,0),"") -> 元大摩臺證券投資信託基金 | D17: 17.04 | E17: 13 | F17: 30.52 | G17: 18 | H17: 34.5 | I17: 25 | J17: 23.81 | K17: 21 | L17: 32.3 | M17: 15 | N17: 141 | O17: 6 | P17: 17.04 | Q17: 13 | R17: 23.9504 | S17: 1.143 | T17: 0.1507 | U17: =IFERROR(IF(INDEX(ALL,MATCH($C17,FUND,0),MATCH(U$1,Name,0))="","",INDEX(ALL,MATCH($C17,FUND,0),MATCH(U$1,Name,0))),"") -> -0.1207 | V17: =IFERROR(IF(INDEX(ALL,MATCH($C17,FUND,0),MATCH(V$1,Name,0))="","",INDEX(ALL,MATCH($C17,FUND,0),MATCH(V$1,Name,0))),"") -> 0.9115 | X17: -0.1507 | Y17: 280.98
A18: 26332314 | C18: =IFERROR(VLOOKUP(A18,Raw!A:C,3,0),"") -> 永豐臺灣加權 ETF證券投資信託基金 | D18: =IFERROR(IF(INDEX(ALL,MATCH($C18,FUND,0),MATCH(D$1,Name,0))="","",INDEX(ALL,MATCH($C18,FUND,0),MATCH(D$1,Name,0))),"") -> 13.36 | E18: 23 | F18: 24.17 | G18: 29 | H18: 33.33 | I18: 27 | J18: 24.9 | K18: 19 | L18: 42.95 | M18: 9 | N18: 132.45 | O18: 10 | P18: 13.36 | Q18: 23 | R18: 20.7297 | S18: 0.9922 | T18: =IFERROR(IF(INDEX(ALL,MATCH($C18,FUND,0),MATCH(T$1,Name,0))="","",INDEX(ALL,MATCH($C18,FUND,0),MATCH(T$1,Name,0))),"") -> 0.1708 | U18: 0.0128 | V18: 1.0301 | X18: -0.2541 | Y18: 309.9
A19: 31840182 | C19: =IFERROR(VLOOKUP(A19,Raw!A:C,3,0),"") -> 富邦台灣釆吉50 證券投資信託基金 | D19: 19.45 | E19: 5 | F19: 32.76 | G19: 10 | H19: 35.83 | I19: 20 | J19: 24.24 | K19: 20 | L19: 31.34 | M19: 17 | N19: 138.42 | O19: 7 | P19: 19.45 | Q19: 5 | R19: 24.5122 | S19: 1.1625 | T19: =IFERROR(IF(INDEX(ALL,MATCH($C19,FUND,0),MATCH(T$1,Name,0))="","",INDEX(ALL,MATCH($C19,FUND,0),MATCH(T$1,Name,0))),"") -> 0.1507 | U19: -0.1161 | V19: 0.9172 | X19: -0.0973 | Y19: 362.53
A20: 42482107 | C20: =IFERROR(VLOOKUP(A20,Raw!A:C,3,0),"") -> 兆豐臺灣藍籌30ETF傘型證券投資信託基金之兆豐臺灣藍籌30ETF證券投資信託基金 | D20: 12.67 | E20: 27 | F20: 27.66 | G20: 25 | H20: 28.9 | I20: 31 | J20: 20.02 | K20: 25 | L20: 27.78 | M20: 21 | N20: 102.62 | O20: 15 | P20: 12.67 | Q20: 27 | R20: 22.332 | S20: 1.0468 | T20: =IFERROR(IF(INDEX(ALL,MATCH($C20,FUND,0),MATCH(T$1,Name,0))="","",INDEX(ALL,MATCH($C20,FUND,0),MATCH(T$1,Name,0))),"") -> 0.1364 | U20: -0.1854 | V20: 0.84 | X20: -0.2161 | Y20: 135.76
A21: 42482423 | C21: =IFERROR(VLOOKUP(A21,Raw!A:C,3,0),"") -> 富邦臺灣公司治理100證券投資信託基金 | D21: 16.66 | E21: 15 | F21: 28.57 | G21: 22 | H21: 33.44 | I21: 26 | J21: 23.2 | K21: 23 | L21: 35.42 | M21: 14 | N21: 133.86 | O21: 9 | P21: 16.66 | Q21: 15 | R21: 22.5073 | S21: 1.0742 | T21: =IFERROR(IF(INDEX(ALL,MATCH($C21,FUND,0),MATCH(T$1,Name,0))="","",INDEX(ALL,MATCH($C21,FUND,0),MATCH(T$1,Name,0))),"") -> 0.1531 | U21: -0.0981 | V21: 0.9258 | X21: -0.2146 | Y21: 168.22
A22: 42530591 | C22: =IFERROR(VLOOKUP(A22,Raw!A:C,3,0),"") -> 國泰低波動 ETF傘型證券投資信託基金之臺灣低波動股利精選30證券投資信託基金 | D22: 4.26 | E22: 46 | F22: 8.34 | G22: 45 | H22: 21.76 | I22: 37 | J22: 6.84 | K22: 29 | L22: 35.59 | M22: 13 | N22: 59.45 | O22: 19 | P22: 4.26 | Q22: 46 | R22: 14.2505 | S22: 0.5729 | T22: =IFERROR(IF(INDEX(ALL,MATCH($C22,FUND,0),MATCH(T$1,Name,0))="","",INDEX(ALL,MATCH($C22,FUND,0),MATCH(T$1,Name,0))),"") -> 0.0677 | U22: -0.3043 | V22: 0.486 | X22: -0.2596 | Y22: 78.26
C23: AVERAGE | D23: =IFERROR(IF(INDEX(AVG_ALL,MATCH($B6,Category,0),MATCH(D$1,AVG,0))="","",INDEX(AVG_ALL,MATCH($B6,Category,0),MATCH(D$1,AVG,0))),"") -> 13.20875 | F23: 26.59244444 | H23: 38.1255 | J23: 29.653 | L23: 43.66217391 | N23: 140.7589474 | P23: 13.20875 | R23: =IFERROR(IF(INDEX(AVG_ALL,MATCH($B6,Category,0),MATCH(R$1,AVG,0))="","",INDEX(AVG_ALL,MATCH($B6,Category,0),MATCH(R$1,AVG,0))),"") -> 23.57416333 | S23: =IFERROR(IF(INDEX(AVG_ALL,MATCH($B6,Category,0),MATCH(S$1,AVG,0))="","",INDEX(AVG_ALL,MATCH($B6,Category,0),MATCH(S$1,AVG,0))),"") -> 1.062923333 | T23: =IFERROR(IF(INDEX(AVG_ALL,MATCH($B6,Category,0),MATCH(T$1,AVG,0))="","",INDEX(AVG_ALL,MATCH($B6,Category,0),MATCH(T$1,AVG,0))),"") -> 0.1811166667 | U23: =IFERROR(IF(INDEX(AVG_ALL,MATCH($B6,Category,0),MATCH(U$1,AVG,0))="","",INDEX(AVG_ALL,MATCH($B6,Category,0),MATCH(U$1,AVG,0))),"") -> 0.1379733333 | V23: 1.180596667 | X23: -0.02954333333 | Y23: =IFERROR(IF(INDEX(AVG_ALL,MATCH($B6,Category,0),MATCH(Y$1,AVG,0))="","",INDEX(AVG_ALL,MATCH($B6,Category,0),MATCH(Y$1,AVG,0))),"") -> 129.1302
C24: Funds in Category | E24: =IF(ISBLANK(VLOOKUP($B6,Rank!$B:$I,2,0)),"",VLOOKUP($B6,Rank!$B:$I,2,0)) -> 48 | G24: =IF(ISBLANK(VLOOKUP($B6,Rank!$B:$I,3,0)),"",VLOOKUP($B6,Rank!$B:$I,3,0)) -> 45 | I24: =IF(ISBLANK(VLOOKUP($B6,Rank!$B:$I,4,0)),"",VLOOKUP($B6,Rank!$B:$I,4,0)) -> 40 | K24: =IF(ISBLANK(VLOOKUP($B6,Rank!$B:$I,5,0)),"",VLOOKUP($B6,Rank!$B:$I,5,0)) -> 30 | M24: =IF(ISBLANK(VLOOKUP($B6,Rank!$B:$I,6,0)),"",VLOOKUP($B6,Rank!$B:$I,6,0)) -> 23 | O24: =IF(ISBLANK(VLOOKUP($B6,Rank!$B:$I,7,0)),"",VLOOKUP($B6,Rank!$B:$I,7,0)) -> 19 | Q24: =IF(ISBLANK(VLOOKUP($B6,Rank!$B:$I,8,0)),"",VLOOKUP($B6,Rank!$B:$I,8,0)) -> 48
A25: 25610486 | B25: 跨國-中國一般ETF | C25: =IFERROR(VLOOKUP(A25,Raw!A:C,3,0),"") -> 元大標智滬深300 證券投資信託基金 | D25: =IFERROR(IF(INDEX(ALL,MATCH($C25,FUND,0),MATCH(D$1,Name,0))="","",INDEX(ALL,MATCH($C25,FUND,0),MATCH(D$1,Name,0))),"") -> 5.01 | E25: 5 | F25: -4.23 | G25: 5 | H25: -12.93 | I25: 7 | J25: -17.5 | K25: 10 | L25: -27.51 | M25: 8 | N25: -8.17 | O25: 5 | P25: 5.01 | Q25: 5 | R25: =IFERROR(IF(INDEX(ALL,MATCH($C25,FUND,0),MATCH(R$1,Name,0))="","",INDEX(ALL,MATCH($C25,FUND,0),MATCH(R$1,Name,0))),"") -> 20.3934 | S25: =IFERROR(IF(INDEX(ALL,MATCH($C25,FUND,0),MATCH(S$1,Name,0))="","",INDEX(ALL,MATCH($C25,FUND,0),MATCH(S$1,Name,0))),"") -> 0.1403 | T25: =IFERROR(IF(INDEX(ALL,MATCH($C25,FUND,0),MATCH(T$1,Name,0))="","",INDEX(ALL,MATCH($C25,FUND,0),MATCH(T$1,Name,0))),"") -> -0.1213 | U25: =IFERROR(IF(INDEX(ALL,MATCH($C25,FUND,0),MATCH(U$1,Name,0))="","",INDEX(ALL,MATCH($C25,FUND,0),MATCH(U$1,Name,0))),"") -> -0.8058 | V25: =IFERROR(IF(INDEX(ALL,MATCH($C25,FUND,0),MATCH(V$1,Name,0))="","",INDEX(ALL,MATCH($C25,FUND,0),MATCH(V$1,Name,0))),"") -> -5.0919 | W25: =IFERROR(IF(INDEX(ALL,MATCH($C25,FUND,0),MATCH(W$1,Name,0))="","",INDEX(ALL,MATCH($C25,FUND,0),MATCH(W$1,Name,0))),"") ->  | X25: -0.0326 | Y25: -15.15
A26: 26334740 | C26: =IFERROR(VLOOKUP(A26,Raw!A:C,3,0),"") -> 富邦上証 180證券投資信託基金 | D26: 6.55 | E26: 2 | F26: -3.72 | G26: 3 | H26: -8.64 | I26: 4 | J26: -13.98 | K26: 4 | L26: -23.17 | M26: 4 | N26: -8.9 | O26: 6 | P26: 6.55 | Q26: 2 | R26: 19.9167 | S26: 0.1134 | T26: =IFERROR(IF(INDEX(ALL,MATCH($C26,FUND,0),MATCH(T$1,Name,0))="","",INDEX(ALL,MATCH($C26,FUND,0),MATCH(T$1,Name,0))),"") -> -0.0954 | U26: -0.6226 | V26: -4.8362 | X26: 0.0624 | Y26: 46.4
A27: 31830488 | C27: =IFERROR(VLOOKUP(A27,Raw!A:C,3,0),"") -> 元大中國傘型證券投資信託基金之上證50證券投資信託基金 | D27: 5.73 | E27: 3 | F27: -4.26 | G27: 6 | H27: -8.02 | I27: 3 | J27: -15.11 | K27: 5 | L27: -28.04 | M27: 9 | N27: -15 | O27: 9 | P27: 5.73 | Q27: 3 | R27: 21.9654 | S27: 0.0517 | T27: -0.0896 | U27: -0.6019 | V27: -10.9953 | X27: 0.04 | Y27: 39.35
A28: 31835478 | C28: =IFERROR(VLOOKUP(A28,Raw!A:C,3,0),"") -> 復華滬深300 A股證券投資信託基金 | D28: 5.38 | E28: 4 | F28: -4.7 | G28: 8 | H28: -12.58 | I28: 6 | J28: -16.29 | K28: 7 | L28: -27.04 | M28: 7 | N28: -7.77 | O28: 4 | P28: 5.38 | Q28: 4 | R28: 20.8954 | S28: 0.1298 | T28: -0.1071 | U28: -0.7305 | V28: -4.9745 | X28: 0.0186 | Y28: 48.73
A29: 42260528 | C29: =IFERROR(VLOOKUP(A29,Raw!A:C,3,0),"") -> 國泰富時中國 A50證券投資信託基金 | D29: 7.2 | E29: 1 | F29: -2.9 | G29: 2 | H29: -7.46 | I29: 2 | J29: -11.34 | K29: 2 | L29: -26.27 | M29: 6 | N29: -5.55 | O29: 3 | P29: 7.2 | Q29: 1 | R29: 22.7634 | S29: 0.0187 | T29: -0.0568 | U29: -0.3855 | V29: -19.9806 | X29: 0.1201 | Y29: 0.5
A30: 42302273 | C30: =IFERROR(VLOOKUP(A30,Raw!A:C,3,0),"") -> 富邦深証100 證券投資信託基金 | D30: 3.26 | E30: 8 | F30: -7.11 | G30: 11 | H30: -20.59 | I30: 12 | J30: -25.46 | K30: 12 | L30: -35.33 | M30: 11 | N30: -3.06 | O30: 2 | P30: 3.26 | Q30: 8 | R30: 24.5207 | S30: 0.1856 | T30: -0.15 | U30: -1.1832 | V30: -5.7234 | X30: -0.2016 | Y30: -30.33
A31: 42323777 | C31: =IFERROR(VLOOKUP(A31,Raw!A:C,3,0),"") -> 群益深証中小 100證券投資信託基金 | D31: -1.55 | E31: 13 | F31: -10.34 | G31: 13 | H31: -25.52 | I31: 13 | J31: -30.46 | K31: 13 | L31: -33.91 | M31: 10 | N31: -14.18 | O31: 8 | P31: -1.55 | Q31: 13 | R31: 23.9779 | S31: 0.2491 | T31: -0.1955 | U31: -1.5161 | V31: -5.4331 | X31: -0.2595 | Y31: -42.83
A32: 42528997 | C32: =IFERROR(VLOOKUP(A32,Raw!A:C,3,0),"") -> 台新MSCI新興市場國家傘型 ETF證券投資信託基金之台新MSCI中國證券投資信託基金 | D32: 0.79 | E32: 10 | F32: -6.18 | G32: 10 | H32: -15.03 | I32: 10 | J32: -16.71 | K32: 8 | L32: -45.28 | M32: 13 | N32: -33.68 | O32: 11 | P32: 0.79 | Q32: 10 | R32: 31.6713 | T32: -0.0492 | X32: 0.0492 | Y32: -30.2
C33: AVERAGE | D33: =IFERROR(IF(INDEX(AVG_ALL,MATCH($B25,Category,0),MATCH(D$1,AVG,0))="","",INDEX(AVG_ALL,MATCH($B25,Category,0),MATCH(D$1,AVG,0))),"") -> 2.708571429 | F33: -5.579285714 | H33: -14.31714286 | J33: -17.76285714 | L33: -29.13571429 | N33: -12.66181818 | P33: 2.708571429 | R33: 24.4525 | S33: 0.1540222222 | T33: -0.1011928571 | U33: -0.8442888889 | V33: -7.098588889 | X33: -0.01658571429 | Y33: -6.911428571
C34: Funds in Category | E34: =IF(ISBLANK(VLOOKUP($B25,Rank!$B:$I,2,0)),"",VLOOKUP($B25,Rank!$B:$I,2,0)) -> 14 | G34: =IF(ISBLANK(VLOOKUP($B25,Rank!$B:$I,3,0)),"",VLOOKUP($B25,Rank!$B:$I,3,0)) -> 14 | I34: =IF(ISBLANK(VLOOKUP($B25,Rank!$B:$I,4,0)),"",VLOOKUP($B25,Rank!$B:$I,4,0)) -> 14 | K34: =IF(ISBLANK(VLOOKUP($B25,Rank!$B:$I,5,0)),"",VLOOKUP($B25,Rank!$B:$I,5,0)) -> 14 | M34: =IF(ISBLANK(VLOOKUP($B25,Rank!$B:$I,6,0)),"",VLOOKUP($B25,Rank!$B:$I,6,0)) -> 14 | O34: =IF(ISBLANK(VLOOKUP($B25,Rank!$B:$I,7,0)),"",VLOOKUP($B25,Rank!$B:$I,7,0)) -> 11 | Q34: =IF(ISBLANK(VLOOKUP($B25,Rank!$B:$I,8,0)),"",VLOOKUP($B25,Rank!$B:$I,8,0)) -> 14
A35: 38619910 | B35: 國內指數-反向ETF | C35: =IFERROR(VLOOKUP(A35,Raw!A:C,3,0),"") -> 元大 ETF傘型證券投資信託基金之台灣50單日反向 1倍證券投資信託基金 | D35: =IFERROR(IF(INDEX(ALL,MATCH($C35,FUND,0),MATCH(D$1,Name,0))="","",INDEX(ALL,MATCH($C35,FUND,0),MATCH(D$1,Name,0))),"") -> -12.69 | E35: 4 | F35: -20.33 | G35: 4 | H35: -24.76 | I35: 3 | J35: -24.62 | K35: 2 | L35: -35.74 | M35: 2 | N35: -67.5 | O35: 3 | P35: -12.69 | Q35: 4 | R35: =IFERROR(IF(INDEX(ALL,MATCH($C35,FUND,0),MATCH(R$1,Name,0))="","",INDEX(ALL,MATCH($C35,FUND,0),MATCH(R$1,Name,0))),"") -> 20.1225 | S35: -0.9646 | T35: -0.1872 | U35: -0.106 | V35: =IFERROR(IF(INDEX(ALL,MATCH($C35,FUND,0),MATCH(V$1,Name,0))="","",INDEX(ALL,MATCH($C35,FUND,0),MATCH(V$1,Name,0))),"") -> 1.1271 | X35: -0.0467 | Y35: -80.4
A36: 42404258 | C36: =IFERROR(VLOOKUP(A36,Raw!A:C,3,0),"") -> 國泰臺指 ETF傘型證券投資信託基金之臺灣加權指數單日反向 1倍證券投資信託基金 | D36: -12.08 | E36: 1 | F36: -19.71 | G36: 2 | H36: -24.49 | I36: 2 | J36: -24.62 | K36: 3 | L36: -35.93 | M36: 4 | N36: -67.5 | O36: 4 | P36: -12.08 | Q36: 1 | R36: 19.9458 | S36: -0.9561 | T36: -0.1894 | U36: -0.1179 | V36: 1.1405 | X36: -0.0943 | Y36: -77.8
A37: 42450843 | C37: =IFERROR(VLOOKUP(A37,Raw!A:C,3,0),"") -> 富邦臺灣加權 ETF傘型證券投資信託基金之富邦臺灣加權單日反向一倍證券投資信託基金 | D37: -12.5 | E37: 3 | F37: -19.67 | G37: 1 | H37: -24.38 | I37: 1 | J37: -23.91 | K37: 1 | L37: -35.19 | M37: 1 | N37: -66.94 | O37: 1 | P37: -12.5 | Q37: 3 | R37: 19.9929 | S37: -0.9573 | T37: -0.1822 | U37: -0.0779 | V37: 1.0985 | X37: 0.2355 | Y37: -75.5
A38: 42481260 | C38: =IFERROR(VLOOKUP(A38,Raw!A:C,3,0),"") -> 群益臺灣加權指數 ETF傘型證券投資信託基金－群益臺灣加權指數單日反向1倍證券投資信託基金 | D38: -12.29 | E38: 2 | F38: -20 | G38: 3 | H38: -24.79 | I38: 4 | J38: -24.79 | K38: 4 | L38: -35.92 | M38: 3 | N38: -67.33 | O38: 2 | P38: -12.29 | Q38: 2 | R38: 20.041 | S38: -0.9594 | T38: =IFERROR(IF(INDEX(ALL,MATCH($C38,FUND,0),MATCH(T$1,Name,0))="","",INDEX(ALL,MATCH($C38,FUND,0),MATCH(T$1,Name,0))),"") -> -0.1899 | U38: -0.1225 | V38: 1.1449 | X38: -0.1477 | Y38: -73.6
A39: 42482113 | C39: =IFERROR(VLOOKUP(A39,Raw!A:C,3,0),"") -> 
A40: 42528960 | C40: =IFERROR(VLOOKUP(A40,Raw!A:C,3,0),"") -> 
C41: AVERAGE | D41: =IFERROR(IF(INDEX(AVG_ALL,MATCH($B35,Category,0),MATCH(D$1,AVG,0))="","",INDEX(AVG_ALL,MATCH($B35,Category,0),MATCH(D$1,AVG,0))),"") -> -12.39 | F41: -19.9275 | H41: -24.605 | J41: -24.485 | L41: -35.695 | N41: -67.3175 | P41: -12.39 | R41: =IFERROR(IF(INDEX(AVG_ALL,MATCH($B35,Category,0),MATCH(R$1,AVG,0))="","",INDEX(AVG_ALL,MATCH($B35,Category,0),MATCH(R$1,AVG,0))),"") -> 20.02555 | S41: =IFERROR(IF(INDEX(AVG_ALL,MATCH($B35,Category,0),MATCH(S$1,AVG,0))="","",INDEX(AVG_ALL,MATCH($B35,Category,0),MATCH(S$1,AVG,0))),"") -> -0.95935 | T41: =IFERROR(IF(INDEX(AVG_ALL,MATCH($B35,Category,0),MATCH(T$1,AVG,0))="","",INDEX(AVG_ALL,MATCH($B35,Category,0),MATCH(T$1,AVG,0))),"") -> -0.187175 | U41: =IFERROR(IF(INDEX(AVG_ALL,MATCH($B35,Category,0),MATCH(U$1,AVG,0))="","",INDEX(AVG_ALL,MATCH($B35,Category,0),MATCH(U$1,AVG,0))),"") -> -0.106075 | V41: 1.12775 | X41: -0.0133 | Y41: =IFERROR(IF(INDEX(AVG_ALL,MATCH($B35,Category,0),MATCH(Y$1,AVG,0))="","",INDEX(AVG_ALL,MATCH($B35,Category,0),MATCH(Y$1,AVG,0))),"") -> -76.825
C42: Funds in Category | E42: =IF(ISBLANK(VLOOKUP($B35,Rank!$B:$I,2,0)),"",VLOOKUP($B35,Rank!$B:$I,2,0)) -> 4 | G42: =IF(ISBLANK(VLOOKUP($B35,Rank!$B:$I,3,0)),"",VLOOKUP($B35,Rank!$B:$I,3,0)) -> 4 | I42: =IF(ISBLANK(VLOOKUP($B35,Rank!$B:$I,4,0)),"",VLOOKUP($B35,Rank!$B:$I,4,0)) -> 4 | K42: =IF(ISBLANK(VLOOKUP($B35,Rank!$B:$I,5,0)),"",VLOOKUP($B35,Rank!$B:$I,5,0)) -> 4 | M42: =IF(ISBLANK(VLOOKUP($B35,Rank!$B:$I,6,0)),"",VLOOKUP($B35,Rank!$B:$I,6,0)) -> 4 | O42: =IF(ISBLANK(VLOOKUP($B35,Rank!$B:$I,7,0)),"",VLOOKUP($B35,Rank!$B:$I,7,0)) -> 4 | Q42: =IF(ISBLANK(VLOOKUP($B35,Rank!$B:$I,8,0)),"",VLOOKUP($B35,Rank!$B:$I,8,0)) -> 4
A43: 42329884 | B43: 其他市場ETF | C43: =IFERROR(VLOOKUP(A43,Raw!A:C,3,0),"") ->  | D43: =IFERROR(IF(INDEX(ALL,MATCH($C43,FUND,0),MATCH(D$1,Name,0))="","",INDEX(ALL,MATCH($C43,FUND,0),MATCH(D$1,Name,0))),"") ->  | R43: =IFERROR(IF(INDEX(ALL,MATCH($C43,FUND,0),MATCH(R$1,Name,0))="","",INDEX(ALL,MATCH($C43,FUND,0),MATCH(R$1,Name,0))),"") ->  | S43: =IFERROR(IF(INDEX(ALL,MATCH($C43,FUND,0),MATCH(S$1,Name,0))="","",INDEX(ALL,MATCH($C43,FUND,0),MATCH(S$1,Name,0))),"") ->  | T43: =IFERROR(IF(INDEX(ALL,MATCH($C43,FUND,0),MATCH(T$1,Name,0))="","",INDEX(ALL,MATCH($C43,FUND,0),MATCH(T$1,Name,0))),"") ->  | U43: =IFERROR(IF(INDEX(ALL,MATCH($C43,FUND,0),MATCH(U$1,Name,0))="","",INDEX(ALL,MATCH($C43,FUND,0),MATCH(U$1,Name,0))),"") ->  | V43: =IFERROR(IF(INDEX(ALL,MATCH($C43,FUND,0),MATCH(V$1,Name,0))="","",INDEX(ALL,MATCH($C43,FUND,0),MATCH(V$1,Name,0))),"") -> 
A44: 42376963 | C44: =IFERROR(VLOOKUP(A44,Raw!A:C,3,0),"") -> 富邦印度 ETF傘型證券投資信託基金之富邦印度 NIFTY證券投資信託基金 | D44: 5.38 | E44: 3 | F44: 11.13 | G44: 2 | H44: 28.84 | I44: 1 | J44: 24.87 | K44: 2 | L44: 41.72 | M44: 1 | N44: 48.53 | O44: 1 | P44: 5.38 | Q44: 3 | R44: 13.1304 | S44: 0.3351 | T44: =IFERROR(IF(INDEX(ALL,MATCH($C44,FUND,0),MATCH(T$1,Name,0))="","",INDEX(ALL,MATCH($C44,FUND,0),MATCH(T$1,Name,0))),"") -> 0.2424 | U44: 0.6998 | V44: 2.7411 | X44: 0.1668 | Y44: 82.25
A45: 42441583 | C45: =IFERROR(VLOOKUP(A45,Raw!A:C,3,0),"") -> 
A46: 42464918 | C46: =IFERROR(VLOOKUP(A46,Raw!A:C,3,0),"") -> 富邦恒生國企ETF 證券投資信託基金 | D46: 3.63 | E46: 4 | F46: -5.22 | G46: 4 | H46: -13.54 | I46: 4 | J46: -15.33 | K46: 3 | L46: -42.48 | M46: 4 | N46: -46.54 | O46: 3 | P46: 3.63 | Q46: 4 | R46: 31.9638 | S46: 0.4095 | T46: -0.0407 | U46: -0.6425 | V46: -0.9164 | X46: -0.0761 | Y46: -42.85
A47: 42529243 | C47: =IFERROR(VLOOKUP(A47,Raw!A:C,3,0),"") -> 富邦富時歐洲 ETF證券投資信託基金 | D47: 9.58 | E47: 2 | F47: 16.67 | G47: 1 | H47: 18.57 | I47: 2 | J47: 26.21 | K47: 1 | L47: 29.92 | M47: 2 | N47: 45.17 | O47: 2 | P47: 9.58 | Q47: 2 | R47: 16.2395 | S47: 0.7763 | T47: 0.2134 | U47: 0.4937 | V47: 1.2888 | X47: 0.214 | Y47: 45.9
C48: AVERAGE | D48: =IFERROR(IF(INDEX(AVG_ALL,MATCH($B43,Category,0),MATCH(D$1,AVG,0))="","",INDEX(AVG_ALL,MATCH($B43,Category,0),MATCH(D$1,AVG,0))),"") -> 7.3525 | F48: 6.425 | H48: 11.8825 | J48: 2.92 | L48: 3.805 | N48: 15.72 | P48: 7.3525 | R48: 21.612825 | S48: 0.5069666667 | T48: 0.0706 | U48: 0.1836666667 | V48: 1.037833333 | X48: 0.013275 | Y48: 17.825
C49: Funds in Category | E49: =IF(ISBLANK(VLOOKUP($B43,Rank!$B:$I,2,0)),"",VLOOKUP($B43,Rank!$B:$I,2,0)) -> 4 | G49: =IF(ISBLANK(VLOOKUP($B43,Rank!$B:$I,3,0)),"",VLOOKUP($B43,Rank!$B:$I,3,0)) -> 4 | I49: =IF(ISBLANK(VLOOKUP($B43,Rank!$B:$I,4,0)),"",VLOOKUP($B43,Rank!$B:$I,4,0)) -> 4 | K49: =IF(ISBLANK(VLOOKUP($B43,Rank!$B:$I,5,0)),"",VLOOKUP($B43,Rank!$B:$I,5,0)) -> 4 | M49: =IF(ISBLANK(VLOOKUP($B43,Rank!$B:$I,6,0)),"",VLOOKUP($B43,Rank!$B:$I,6,0)) -> 4 | O49: =IF(ISBLANK(VLOOKUP($B43,Rank!$B:$I,7,0)),"",VLOOKUP($B43,Rank!$B:$I,7,0)) -> 3 | Q49: =IF(ISBLANK(VLOOKUP($B43,Rank!$B:$I,8,0)),"",VLOOKUP($B43,Rank!$B:$I,8,0)) -> 4
A50: 42333613 | B50: 美國ETF | C50: =IFERROR(VLOOKUP(A50,Raw!A:C,3,0),"") -> 元大標普 500傘型證券投資信託基金之標普 500證券投資信託基金 | D50: =IFERROR(IF(INDEX(ALL,MATCH($C50,FUND,0),MATCH(D$1,Name,0))="","",INDEX(ALL,MATCH($C50,FUND,0),MATCH(D$1,Name,0))),"") -> 15.34 | E50: 3 | F50: 21.45 | G50: 4 | H50: 34.72 | I50: 3 | J50: 31.23 | K50: 3 | L50: 50.89 | M50: 2 | N50: 97.54 | O50: 2 | P50: 15.34 | Q50: 3 | R50: =IFERROR(IF(INDEX(ALL,MATCH($C50,FUND,0),MATCH(R$1,Name,0))="","",INDEX(ALL,MATCH($C50,FUND,0),MATCH(R$1,Name,0))),"") -> 16.6834 | S50: =IFERROR(IF(INDEX(ALL,MATCH($C50,FUND,0),MATCH(S$1,Name,0))="","",INDEX(ALL,MATCH($C50,FUND,0),MATCH(S$1,Name,0))),"") -> 0.7684 | T50: =IFERROR(IF(INDEX(ALL,MATCH($C50,FUND,0),MATCH(T$1,Name,0))="","",INDEX(ALL,MATCH($C50,FUND,0),MATCH(T$1,Name,0))),"") -> 0.2428 | U50: =IFERROR(IF(INDEX(ALL,MATCH($C50,FUND,0),MATCH(U$1,Name,0))="","",INDEX(ALL,MATCH($C50,FUND,0),MATCH(U$1,Name,0))),"") -> 0.6679 | V50: =IFERROR(IF(INDEX(ALL,MATCH($C50,FUND,0),MATCH(V$1,Name,0))="","",INDEX(ALL,MATCH($C50,FUND,0),MATCH(V$1,Name,0))),"") -> 1.5219 | W50: =IFERROR(IF(INDEX(ALL,MATCH($C50,FUND,0),MATCH(W$1,Name,0))="","",INDEX(ALL,MATCH($C50,FUND,0),MATCH(W$1,Name,0))),"") ->  | X50: 0.2706 | Y50: 161.35
A51: 42399305 | C51: =IFERROR(VLOOKUP(A51,Raw!A:C,3,0),"") -> 富邦NASDAQ-100證券投資信託基金 | D51: 13.5 | E51: 4 | F51: 23.11 | G51: 2 | H51: 45.24 | I51: 1 | J51: 37.52 | K51: 1 | L51: 56.31 | M51: 1 | N51: 140.73 | O51: 1 | P51: 13.5 | Q51: 4 | R51: 21.8803 | S51: 0.9494 | T51: =IFERROR(IF(INDEX(ALL,MATCH($C51,FUND,0),MATCH(T$1,Name,0))="","",INDEX(ALL,MATCH($C51,FUND,0),MATCH(T$1,Name,0))),"") -> 0.2292 | U51: 0.8282 | V51: 1.5251 | X51: 0.1805 | Y51: 275.3
A52: 42443225 | C52: =IFERROR(VLOOKUP(A52,Raw!A:C,3,0),"") -> 國泰美國 ETF傘型證券投資信託基金之道瓊工業平均指數證券投資信託基金 | D52: 9.94 | E52: 6 | F52: 17.18 | G52: 5 | H52: 25.48 | I52: 5 | J52: 28.23 | K52: 4 | L52: 35.8 | M52: 4 | N52: 64.67 | O52: 3 | P52: 9.94 | Q52: 6 | R52: 16.1687 | S52: 0.6546 | T52: 0.2276 | U52: 0.635 | V52: 1.6229 | X52: 0.0907 | Y52: 131.2
A53: 42465424 | C53: =IFERROR(VLOOKUP(A53,Raw!A:C,3,0),"") -> 群益那斯達克生技證券投資信託基金 | D53: 5.37 | E53: 19 | F53: 9.87 | G53: 22 | H53: 11.56 | I53: 22 | J53: 16 | K53: 12 | L53: 2.2 | M53: 11 | N53: 23.93 | O53: 6 | P53: 5.37 | Q53: 19 | R53: 15.1433 | T53: 0.1444 | X53: -0.0275 | Y53: 41.4
A54: 42530608 | C54: =IFERROR(VLOOKUP(A54,Raw!A:C,3,0),"") -> 國泰低波動 ETF傘型證券投資信託基金之美國標普 500低波動高股息證券投資信託基金 | D54: 9.85 | E54: 7 | F54: 13.91 | G54: 7 | H54: 14.27 | I54: 8 | J54: 11.02 | K54: 5 | L54: 24.73 | M54: 5 | N54: 25.26 | O54: 4 | P54: 9.85 | Q54: 7 | R54: 15.1234 | T54: 0.1025 | X54: -0.1422 | Y54: 38.13
C55: AVERAGE | D55: =IFERROR(IF(INDEX(AVG_ALL,MATCH($B50,Category,0),MATCH(D$1,AVG,0))="","",INDEX(AVG_ALL,MATCH($B50,Category,0),MATCH(D$1,AVG,0))),"") -> 12.28777778 | F55: 17.52666667 | H55: 27.0725 | J55: 21.07375 | L55: 29.55 | N55: 65.784 | P55: 12.28777778 | R55: 16.5004125 | S55: 0.6448666667 | T55: 0.1652375 | U55: 0.53055 | V55: 1.408 | X55: 0.0315875 | Y55: 90.36
C56: Funds in Category | E56: =IF(ISBLANK(VLOOKUP($B50,Rank!$B:$I,2,0)),"",VLOOKUP($B50,Rank!$B:$I,2,0)) -> 9 | G56: =IF(ISBLANK(VLOOKUP($B50,Rank!$B:$I,3,0)),"",VLOOKUP($B50,Rank!$B:$I,3,0)) -> 9 | I56: =IF(ISBLANK(VLOOKUP($B50,Rank!$B:$I,4,0)),"",VLOOKUP($B50,Rank!$B:$I,4,0)) -> 8 | K56: =IF(ISBLANK(VLOOKUP($B50,Rank!$B:$I,5,0)),"",VLOOKUP($B50,Rank!$B:$I,5,0)) -> 8 | M56: =IF(ISBLANK(VLOOKUP($B50,Rank!$B:$I,6,0)),"",VLOOKUP($B50,Rank!$B:$I,6,0)) -> 8 | O56: =IF(ISBLANK(VLOOKUP($B50,Rank!$B:$I,7,0)),"",VLOOKUP($B50,Rank!$B:$I,7,0)) -> 5 | Q56: =IF(ISBLANK(VLOOKUP($B50,Rank!$B:$I,8,0)),"",VLOOKUP($B50,Rank!$B:$I,8,0)) -> 9
A57: 38619904 | B57: 國內指數-二倍ETF | C57: =IFERROR(VLOOKUP(A57,Raw!A:C,3,0),"") -> 元大 ETF傘型證券投資信託基金之台灣50單日正向 2倍證券投資信託基金 | D57: =IFERROR(IF(INDEX(ALL,MATCH($C57,FUND,0),MATCH(D$1,Name,0))="","",INDEX(ALL,MATCH($C57,FUND,0),MATCH(D$1,Name,0))),"") -> 28.67 | E57: 1 | F57: 52.35 | G57: 1 | H57: 66 | I57: 2 | J57: 42.4 | K57: 4 | L57: 70.31 | M57: 4 | N57: =IFERROR(IF(INDEX(ALL,MATCH($C57,FUND,0),MATCH(N$1,Name,0))="","",INDEX(ALL,MATCH($C57,FUND,0),MATCH(N$1,Name,0))),"") -> 419.34 | O57: 2 | P57: 28.67 | Q57: 1 | R57: =IFERROR(IF(INDEX(ALL,MATCH($C57,FUND,0),MATCH(R$1,Name,0))="","",INDEX(ALL,MATCH($C57,FUND,0),MATCH(R$1,Name,0))),"") -> 41.9983 | S57: =IFERROR(IF(INDEX(ALL,MATCH($C57,FUND,0),MATCH(S$1,Name,0))="","",INDEX(ALL,MATCH($C57,FUND,0),MATCH(S$1,Name,0))),"") -> 2.0115 | T57: =IFERROR(IF(INDEX(ALL,MATCH($C57,FUND,0),MATCH(T$1,Name,0))="","",INDEX(ALL,MATCH($C57,FUND,0),MATCH(T$1,Name,0))),"") -> 0.1727 | U57: =IFERROR(IF(INDEX(ALL,MATCH($C57,FUND,0),MATCH(U$1,Name,0))="","",INDEX(ALL,MATCH($C57,FUND,0),MATCH(U$1,Name,0))),"") -> 0.0482 | V57: 1.0411 | X57: -0.2091 | Y57: 873.5
A58: 42404264 | C58: =IFERROR(VLOOKUP(A58,Raw!A:C,3,0),"") -> 國泰臺指 ETF傘型證券投資信託基金之臺灣加權指數單日正向 2倍證券投資信託基金 | D58: 28.03 | E58: 2 | F58: 51.11 | G58: 3 | H58: 65.54 | I58: 4 | J58: 44.4 | K58: 3 | L58: 75.48 | M58: 3 | N58: 415.63 | O58: 4 | P58: 28.03 | Q58: 2 | R58: 41.3327 | S58: 1.9803 | T58: 0.1787 | U58: 0.1178 | V58: 1.0766 | X58: -0.1378 | Y58: 795.4
A59: 42450837 | C59: =IFERROR(VLOOKUP(A59,Raw!A:C,3,0),"") -> 富邦臺灣加權 ETF傘型證券投資信託基金之富邦臺灣加權單日正向兩倍證券投資信託基金 | D59: 27.75 | E59: 3 | F59: 51.05 | G59: 4 | H59: 65.54 | I59: 3 | J59: 46.17 | K59: 2 | L59: 78.55 | M59: 2 | N59: 419.06 | O59: 3 | P59: 27.75 | Q59: 3 | R59: 41.2676 | S59: 1.9773 | T59: 0.183 | U59: 0.1691 | V59: 1.1026 | X59: 0.294 | Y59: 681.7
A60: 42481276 | C60: =IFERROR(VLOOKUP(A60,Raw!A:C,3,0),"") -> 群益臺灣加權指數 ETF傘型證券投資信託基金之群益臺灣加權指數單日正向2倍證券投資信託基金 | D60: 27.73 | E60: 4 | F60: 51.25 | G60: 2 | H60: 66.05 | I60: 1 | J60: 46.81 | K60: 1 | L60: 80.44 | M60: 1 | N60: 425.38 | O60: 1 | P60: 27.73 | Q60: 4 | R60: 41.1718 | S60: 1.9729 | T60: 0.1848 | U60: 0.1891 | V60: 1.113 | X60: 0.3729 | Y60: 595.6
A61: 42528976 | C61: =IFERROR(VLOOKUP(A61,Raw!A:C,3,0),"") -> 
C62: AVERAGE | D62: =IFERROR(IF(INDEX(AVG_ALL,MATCH($B57,Category,0),MATCH(D$1,AVG,0))="","",INDEX(AVG_ALL,MATCH($B57,Category,0),MATCH(D$1,AVG,0))),"") -> 28.045 | F62: 51.44 | H62: 65.7825 | J62: 44.945 | L62: 76.195 | N62: 419.8525 | P62: 28.045 | R62: 41.4426 | S62: 1.9855 | T62: 0.1798 | U62: 0.13105 | V62: 1.083325 | X62: 0.08 | Y62: 736.55
C63: Funds in Category | E63: =IF(ISBLANK(VLOOKUP($B57,Rank!$B:$I,2,0)),"",VLOOKUP($B57,Rank!$B:$I,2,0)) -> 4 | G63: =IF(ISBLANK(VLOOKUP($B57,Rank!$B:$I,3,0)),"",VLOOKUP($B57,Rank!$B:$I,3,0)) -> 4 | I63: =IF(ISBLANK(VLOOKUP($B57,Rank!$B:$I,4,0)),"",VLOOKUP($B57,Rank!$B:$I,4,0)) -> 4 | K63: =IF(ISBLANK(VLOOKUP($B57,Rank!$B:$I,5,0)),"",VLOOKUP($B57,Rank!$B:$I,5,0)) -> 4 | M63: =IF(ISBLANK(VLOOKUP($B57,Rank!$B:$I,6,0)),"",VLOOKUP($B57,Rank!$B:$I,6,0)) -> 4 | O63: =IF(ISBLANK(VLOOKUP($B57,Rank!$B:$I,7,0)),"",VLOOKUP($B57,Rank!$B:$I,7,0)) -> 4 | Q63: =IF(ISBLANK(VLOOKUP($B57,Rank!$B:$I,8,0)),"",VLOOKUP($B57,Rank!$B:$I,8,0)) -> 4
A64: 42461573 | B64: 債券-一般ETF | C64: =IFERROR(VLOOKUP(A64,Raw!A:C,3,0),"") -> 元大美國政府20年期(以上)債券 ETF傘型基金之元大美國政府20年期(以上)債券證券投資信託基金 | D64: =IFERROR(IF(INDEX(ALL,MATCH($C64,FUND,0),MATCH(D$1,Name,0))="","",INDEX(ALL,MATCH($C64,FUND,0),MATCH(D$1,Name,0))),"") -> 0.77 | E64: 77 | F64: 7.85 | G64: 58 | H64: -3.2 | I64: 79 | J64: -15.36 | K64: 80 | L64: -15.67 | M64: 77 | N64: -13.97 | O64: 52 | P64: 0.77 | Q64: 77 | R64: =IFERROR(IF(INDEX(ALL,MATCH($C64,FUND,0),MATCH(R$1,Name,0))="","",INDEX(ALL,MATCH($C64,FUND,0),MATCH(R$1,Name,0))),"") -> 13.5396 | S64: =IFERROR(IF(INDEX(ALL,MATCH($C64,FUND,0),MATCH(S$1,Name,0))="","",INDEX(ALL,MATCH($C64,FUND,0),MATCH(S$1,Name,0))),"") ->  | T64: =IFERROR(IF(INDEX(ALL,MATCH($C64,FUND,0),MATCH(T$1,Name,0))="","",INDEX(ALL,MATCH($C64,FUND,0),MATCH(T$1,Name,0))),"") -> -0.1786 | U64: =IFERROR(IF(INDEX(ALL,MATCH($C64,FUND,0),MATCH(U$1,Name,0))="","",INDEX(ALL,MATCH($C64,FUND,0),MATCH(U$1,Name,0))),"") ->  | V64: =IFERROR(IF(INDEX(ALL,MATCH($C64,FUND,0),MATCH(V$1,Name,0))="","",INDEX(ALL,MATCH($C64,FUND,0),MATCH(V$1,Name,0))),"") ->  | W64: =IFERROR(IF(INDEX(ALL,MATCH($C64,FUND,0),MATCH(W$1,Name,0))="","",INDEX(ALL,MATCH($C64,FUND,0),MATCH(W$1,Name,0))),"") ->  | X64: -0.454 | Y64: -9.41
A65: 42482726 | C65: =IFERROR(VLOOKUP(A65,Raw!A:C,3,0),"") -> 國泰美國債券 ETF傘型證券投資信託基金之20年期(以上)美國公債指數證券投資信託基金 | D65: 0.25 | E65: 81 | F65: 7.78 | G65: 59 | H65: -3.04 | I65: 78 | J65: -15.17 | K65: 79 | L65: -15.95 | M65: 78 | N65: -13.29 | O65: 51 | P65: 0.25 | Q65: 81 | R65: 13.9598 | T65: =IFERROR(IF(INDEX(ALL,MATCH($C65,FUND,0),MATCH(T$1,Name,0))="","",INDEX(ALL,MATCH($C65,FUND,0),MATCH(T$1,Name,0))),"") -> -0.1698 | X65: -0.4319 | Y65: -5.97
A66: 42519239 | C66: =IFERROR(VLOOKUP(A66,Raw!A:C,3,0),"") -> 富邦美國政府債券 ETF傘型證券投資信託基金之富邦美國政府債券 1-3年期證券投資信託基金 | D66: 4.75 | E66: 17 | F66: 1.76 | G66: 78 | H66: 7.7 | I66: 41 | J66: 14.78 | K66: 12 | L66: 11.76 | M66: 14 | N66: 8.02 | O66: 17 | P66: 4.75 | Q66: 17 | R66: 5.8172 | T66: 0.304 | X66: 0.1133 | Y66: 13.28
A67: 42519245 | C67: =IFERROR(VLOOKUP(A67,Raw!A:C,3,0),"") -> 富邦美國政府債券 ETF傘型證券投資信託基金之富邦美國政府債券7-10年期證券投資信託基金 | D67: 3.09 | E67: 36 | F67: 3.98 | G67: 69 | H67: 2.93 | I67: 72 | J67: 2.91 | K67: 33 | L67: -1.08 | M67: 28 | N67: -1.11 | O67: 41 | P67: 3.09 | Q67: 36 | R67: 6.1902 | T67: 0.0312 | X67: -0.0075 | Y67: 2.77
A68: 42519250 | C68: =IFERROR(VLOOKUP(A68,Raw!A:C,3,0),"") -> 富邦美國政府債券 ETF傘型證券投資信託基金之富邦美國政府債券20年期以上證券投資信託基金 | D68: 0.62 | E68: 80 | F68: 7.99 | G68: 56 | H68: -3.01 | I68: 77 | J68: -14.67 | K68: 77 | L68: -14.96 | M68: 75 | N68: -12.93 | O68: 50 | P68: 0.62 | Q68: 80 | R68: 13.5862 | T68: -0.1694 | X68: -0.4215 | Y68: -5.46
C69: AVERAGE | D69: =IFERROR(IF(INDEX(AVG_ALL,MATCH($B64,Category,0),MATCH(D$1,AVG,0))="","",INDEX(AVG_ALL,MATCH($B64,Category,0),MATCH(D$1,AVG,0))),"") -> 2.940235294 | F69: 8.524939759 | H69: 6.964756098 | J69: 2.55097561 | L69: -1.060246914 | N69: 3.743518519 | P69: 2.940235294 | R69: =IFERROR(IF(INDEX(AVG_ALL,MATCH($B64,Category,0),MATCH(R$1,AVG,0))="","",INDEX(AVG_ALL,MATCH($B64,Category,0),MATCH(R$1,AVG,0))),"") -> 11.57887195 | S69: =IFERROR(IF(INDEX(AVG_ALL,MATCH($B64,Category,0),MATCH(S$1,AVG,0))="","",INDEX(AVG_ALL,MATCH($B64,Category,0),MATCH(S$1,AVG,0))),"") ->  | T69: =IFERROR(IF(INDEX(AVG_ALL,MATCH($B64,Category,0),MATCH(T$1,AVG,0))="","",INDEX(AVG_ALL,MATCH($B64,Category,0),MATCH(T$1,AVG,0))),"") -> 0.06120853659 | U69: =IFERROR(IF(INDEX(AVG_ALL,MATCH($B64,Category,0),MATCH(U$1,AVG,0))="","",INDEX(AVG_ALL,MATCH($B64,Category,0),MATCH(U$1,AVG,0))),"") ->  | X69: -0.02760731707 | Y69: =IFERROR(IF(INDEX(AVG_ALL,MATCH($B64,Category,0),MATCH(Y$1,AVG,0))="","",INDEX(AVG_ALL,MATCH($B64,Category,0),MATCH(Y$1,AVG,0))),"") -> 5.814470588
C70: Funds in Category | E70: =IF(ISBLANK(VLOOKUP($B64,Rank!$B:$I,2,0)),"",VLOOKUP($B64,Rank!$B:$I,2,0)) -> 85 | G70: =IF(ISBLANK(VLOOKUP($B64,Rank!$B:$I,3,0)),"",VLOOKUP($B64,Rank!$B:$I,3,0)) -> 83 | I70: =IF(ISBLANK(VLOOKUP($B64,Rank!$B:$I,4,0)),"",VLOOKUP($B64,Rank!$B:$I,4,0)) -> 82 | K70: =IF(ISBLANK(VLOOKUP($B64,Rank!$B:$I,5,0)),"",VLOOKUP($B64,Rank!$B:$I,5,0)) -> 82 | M70: =IF(ISBLANK(VLOOKUP($B64,Rank!$B:$I,6,0)),"",VLOOKUP($B64,Rank!$B:$I,6,0)) -> 81 | O70: =IF(ISBLANK(VLOOKUP($B64,Rank!$B:$I,7,0)),"",VLOOKUP($B64,Rank!$B:$I,7,0)) -> 54 | Q70: =IF(ISBLANK(VLOOKUP($B64,Rank!$B:$I,8,0)),"",VLOOKUP($B64,Rank!$B:$I,8,0)) -> 85
A71: 42328908 | B71: 日本ETF | C71: =IFERROR(VLOOKUP(A71,Raw!A:C,3,0),"") -> 富邦日本東証證券投資信託基金 | D71: =IFERROR(IF(INDEX(ALL,MATCH($C71,FUND,0),MATCH(D$1,Name,0))="","",INDEX(ALL,MATCH($C71,FUND,0),MATCH(D$1,Name,0))),"") -> 18.24 | E71: 3 | F71: 19.54 | G71: 3 | H71: 41.73 | I71: 3 | J71: 47.87 | K71: 1 | L71: 49.55 | M71: 1 | N71: =IFERROR(IF(INDEX(ALL,MATCH($C71,FUND,0),MATCH(N$1,Name,0))="","",INDEX(ALL,MATCH($C71,FUND,0),MATCH(N$1,Name,0))),"") -> 86.81 | O71: 2 | P71: 18.24 | Q71: 3 | R71: =IFERROR(IF(INDEX(ALL,MATCH($C71,FUND,0),MATCH(R$1,Name,0))="","",INDEX(ALL,MATCH($C71,FUND,0),MATCH(R$1,Name,0))),"") -> 12.6487 | S71: =IFERROR(IF(INDEX(ALL,MATCH($C71,FUND,0),MATCH(S$1,Name,0))="","",INDEX(ALL,MATCH($C71,FUND,0),MATCH(S$1,Name,0))),"") -> 0.4906 | T71: =IFERROR(IF(INDEX(ALL,MATCH($C71,FUND,0),MATCH(T$1,Name,0))="","",INDEX(ALL,MATCH($C71,FUND,0),MATCH(T$1,Name,0))),"") -> 0.4457 | U71: =IFERROR(IF(INDEX(ALL,MATCH($C71,FUND,0),MATCH(U$1,Name,0))="","",INDEX(ALL,MATCH($C71,FUND,0),MATCH(U$1,Name,0))),"") -> 1.3072 | V71: 3.3176 | X71: 0.018 | Y71: 91.2
A72: 42389475 | C72: =IFERROR(VLOOKUP(A72,Raw!A:C,3,0),"") -> 國泰日本 ETF傘型證券投資信託基金之日經 225證券投資信託基金 | D72: 20.21 | E72: 2 | F72: 26.29 | G72: 2 | H72: 42.03 | I72: 2 | J72: 43.14 | K72: 3 | L72: 32.99 | M72: 3 | N72: 81.25 | O72: 3 | P72: 20.21 | Q72: 2 | R72: 16.0422 | S72: 0.6942 | T72: 0.33 | U72: 1.0752 | V72: 2.2015 | X72: -0.1204 | Y72: 138.25
A73: 42398663 | C73: =IFERROR(VLOOKUP(A73,Raw!A:C,3,0),"") -> 元大已開發國家傘型證券投資信託基金之元大日經 225證券投資信託基金 | D73: 20.55 | E73: 1 | F73: 27.31 | G73: 1 | H73: 44.27 | I73: 1 | J73: 47.81 | K73: 2 | L73: 41.01 | M73: 2 | N73: 92.74 | O73: 1 | P73: 20.55 | Q73: 1 | R73: 16.1324 | T73: 0.3577 | X73: 0.0986 | Y73: 158.88
C74: AVERAGE | D74: =IFERROR(IF(INDEX(AVG_ALL,MATCH($B71,Category,0),MATCH(D$1,AVG,0))="","",INDEX(AVG_ALL,MATCH($B71,Category,0),MATCH(D$1,AVG,0))),"") -> 19.66666667 | F74: 24.38 | H74: 42.67666667 | J74: 46.27333333 | L74: 41.18333333 | N74: 86.93333333 | P74: 19.66666667 | R74: 14.9411 | S74: 0.5924 | T74: 0.3778 | U74: 1.1912 | V74: 2.75955 | X74: -0.001266666667 | Y74: 129.4433333
C75: Funds in Category | E75: =IF(ISBLANK(VLOOKUP($B71,Rank!$B:$I,2,0)),"",VLOOKUP($B71,Rank!$B:$I,2,0)) -> 3 | G75: =IF(ISBLANK(VLOOKUP($B71,Rank!$B:$I,3,0)),"",VLOOKUP($B71,Rank!$B:$I,3,0)) -> 3 | I75: =IF(ISBLANK(VLOOKUP($B71,Rank!$B:$I,4,0)),"",VLOOKUP($B71,Rank!$B:$I,4,0)) -> 3 | K75: =IF(ISBLANK(VLOOKUP($B71,Rank!$B:$I,5,0)),"",VLOOKUP($B71,Rank!$B:$I,5,0)) -> 3 | M75: =IF(ISBLANK(VLOOKUP($B71,Rank!$B:$I,6,0)),"",VLOOKUP($B71,Rank!$B:$I,6,0)) -> 3 | O75: =IF(ISBLANK(VLOOKUP($B71,Rank!$B:$I,7,0)),"",VLOOKUP($B71,Rank!$B:$I,7,0)) -> 3 | Q75: =IF(ISBLANK(VLOOKUP($B71,Rank!$B:$I,8,0)),"",VLOOKUP($B71,Rank!$B:$I,8,0)) -> 3
A76: 42329863 | B76: 其他市場二倍ETF | C76: =IFERROR(VLOOKUP(A76,Raw!A:C,3,0),"") -> 復華香港 ETF傘型證券投資信託基金之復華恒生單日正向二倍證券投資信託基金 | D76: =IFERROR(IF(INDEX(ALL,MATCH($C76,FUND,0),MATCH(D$1,Name,0))="","",INDEX(ALL,MATCH($C76,FUND,0),MATCH(D$1,Name,0))),"") -> -7.9 | E76: 3 | F76: -15.23 | G76: 3 | H76: -38.31 | I76: 3 | J76: -50.4 | K76: 3 | L76: -70.88 | M76: 2 | N76: =IFERROR(IF(INDEX(ALL,MATCH($C76,FUND,0),MATCH(N$1,Name,0))="","",INDEX(ALL,MATCH($C76,FUND,0),MATCH(N$1,Name,0))),"") -> -73.85 | O76: 2 | P76: -7.9 | Q76: 3 | R76: =IFERROR(IF(INDEX(ALL,MATCH($C76,FUND,0),MATCH(R$1,Name,0))="","",INDEX(ALL,MATCH($C76,FUND,0),MATCH(R$1,Name,0))),"") -> 60.157 | S76: 1.1494 | T76: -0.093 | U76: -2.3661 | V76: -1.4058 | X76: -0.1735 | Y76: -42.47
A77: 42376990 | C77: =IFERROR(VLOOKUP(A77,Raw!A:C,3,0),"") -> 富邦印度 ETF傘型證券投資信託基金－富邦印度 NIFTY單日正向兩倍證券投資信託基金 | D77: 2.34 | E77: 1 | F77: 18.66 | G77: 1 | H77: 42.74 | I77: 1 | J77: 30.45 | K77: 1 | L77: 65.4 | M77: 1 | N77: 82.95 | O77: 1 | P77: 2.34 | Q77: 1 | R77: 26.5349 | S77: 0.8945 | T77: 0.1706 | U77: 0.7225 | V77: 1.4605 | X77: 0.1379 | Y77: 187.05
A78: 42404573 | C78: =IFERROR(VLOOKUP(A78,Raw!A:C,3,0),"") -> 富邦恒生國企 ETF傘型證券投資信託基金之富邦恒生國企單日正向兩倍證券投資信託基金 | D78: -0.36 | E78: 2 | F78: -14.5 | G78: 2 | H78: -36.29 | I78: 2 | J78: -50.35 | K78: 2 | L78: -77.94 | M78: 3 | N78: -81.04 | O78: 3 | P78: -0.36 | Q78: 2 | R78: 65.2052 | S78: 1.138 | T78: -0.073 | U78: -2.1167 | V78: -1.2072 | X78: -0.1063 | Y78: -72
C79: AVERAGE | D79: =IFERROR(IF(INDEX(AVG_ALL,MATCH($B76,Category,0),MATCH(D$1,AVG,0))="","",INDEX(AVG_ALL,MATCH($B76,Category,0),MATCH(D$1,AVG,0))),"") -> -1.973333333 | F79: -3.69 | H79: -10.62 | J79: -23.43333333 | L79: -27.80666667 | N79: -23.98 | P79: -1.973333333 | R79: 50.63236667 | S79: 1.060633333 | T79: 0.001533333333 | U79: -1.253433333 | V79: -0.3841666667 | X79: -0.0473 | Y79: 24.19333333
C80: Funds in Category | E80: =IF(ISBLANK(VLOOKUP($B76,Rank!$B:$I,2,0)),"",VLOOKUP($B76,Rank!$B:$I,2,0)) -> 3 | G80: =IF(ISBLANK(VLOOKUP($B76,Rank!$B:$I,3,0)),"",VLOOKUP($B76,Rank!$B:$I,3,0)) -> 3 | I80: =IF(ISBLANK(VLOOKUP($B76,Rank!$B:$I,4,0)),"",VLOOKUP($B76,Rank!$B:$I,4,0)) -> 3 | K80: =IF(ISBLANK(VLOOKUP($B76,Rank!$B:$I,5,0)),"",VLOOKUP($B76,Rank!$B:$I,5,0)) -> 3 | M80: =IF(ISBLANK(VLOOKUP($B76,Rank!$B:$I,6,0)),"",VLOOKUP($B76,Rank!$B:$I,6,0)) -> 3 | O80: =IF(ISBLANK(VLOOKUP($B76,Rank!$B:$I,7,0)),"",VLOOKUP($B76,Rank!$B:$I,7,0)) -> 3 | Q80: =IF(ISBLANK(VLOOKUP($B76,Rank!$B:$I,8,0)),"",VLOOKUP($B76,Rank!$B:$I,8,0)) -> 3
A81: 42329879 | B81: 其他市場反向ETF | C81: =IFERROR(VLOOKUP(A81,Raw!A:C,3,0),"") -> 復華香港 ETF傘型證券投資信託基金之復華恒生單日反向一倍證券投資信託基金 | D81: =IFERROR(IF(INDEX(ALL,MATCH($C81,FUND,0),MATCH(D$1,Name,0))="","",INDEX(ALL,MATCH($C81,FUND,0),MATCH(D$1,Name,0))),"") -> 3.76 | E81: 1 | F81: 2.88 | G81: 1 | H81: 18.38 | I81: 1 | J81: 16.95 | K81: 1 | L81: 36.63 | M81: 2 | N81: =IFERROR(IF(INDEX(ALL,MATCH($C81,FUND,0),MATCH(N$1,Name,0))="","",INDEX(ALL,MATCH($C81,FUND,0),MATCH(N$1,Name,0))),"") -> 19.11 | O81: 2 | P81: 3.76 | Q81: 1 | R81: =IFERROR(IF(INDEX(ALL,MATCH($C81,FUND,0),MATCH(R$1,Name,0))="","",INDEX(ALL,MATCH($C81,FUND,0),MATCH(R$1,Name,0))),"") -> 30.9242 | T81: 0.1085 | X81: 0.2093 | Y81: -35.6
A82: 42376984 | C82: =IFERROR(VLOOKUP(A82,Raw!A:C,3,0),"") -> 富邦印度 ETF傘型證券投資信託基金－富邦印度 NIFTY單日反向一倍證券投資信託基金 | D82: -0.44 | E82: 3 | F82: -9.99 | G82: 3 | H82: -17.37 | I82: 3 | J82: -16.77 | K82: 3 | L82: -30.46 | M82: 3 | N82: -50.25 | O82: 3 | P82: -0.44 | Q82: 3 | R82: 13.4487 | S82: -0.5201 | T82: -0.1977 | U82: -0.428 | V82: 1.4757 | X82: -0.1705 | Y82: -65.75
A83: 42404567 | C83: =IFERROR(VLOOKUP(A83,Raw!A:C,3,0),"") -> 富邦恒生國企 ETF傘型證券投資信託基金之富邦恒生國企單日反向一倍證券投資信託基金 | D83: 0.49 | E83: 2 | F83: 1.55 | G83: 2 | H83: 3 | I83: 2 | J83: 13.07 | K83: 2 | L83: 46.24 | M83: 1 | N83: 25 | O83: 1 | P83: 0.49 | Q83: 2 | R83: 34.6719 | S83: -0.6814 | T83: 0.093 | U83: 1.3754 | V83: -1.3656 | X83: 0.14 | Y83: -18.25
C84: AVERAGE | D84: =IFERROR(IF(INDEX(AVG_ALL,MATCH($B81,Category,0),MATCH(D$1,AVG,0))="","",INDEX(AVG_ALL,MATCH($B81,Category,0),MATCH(D$1,AVG,0))),"") -> 1.27 | F84: -1.853333333 | H84: 5.656666667 | J84: 4.416666667 | L84: 17.47 | N84: -2.046666667 | P84: 1.27 | R84: 26.34826667 | S84: -0.60075 | T84: 0.001266666667 | U84: 0.4737 | V84: 0.05505 | X84: 0.0596 | Y84: -39.86666667
C85: Funds in Category | E85: =IF(ISBLANK(VLOOKUP($B81,Rank!$B:$I,2,0)),"",VLOOKUP($B81,Rank!$B:$I,2,0)) -> 3 | G85: =IF(ISBLANK(VLOOKUP($B81,Rank!$B:$I,3,0)),"",VLOOKUP($B81,Rank!$B:$I,3,0)) -> 3 | I85: =IF(ISBLANK(VLOOKUP($B81,Rank!$B:$I,4,0)),"",VLOOKUP($B81,Rank!$B:$I,4,0)) -> 3 | K85: =IF(ISBLANK(VLOOKUP($B81,Rank!$B:$I,5,0)),"",VLOOKUP($B81,Rank!$B:$I,5,0)) -> 3 | M85: =IF(ISBLANK(VLOOKUP($B81,Rank!$B:$I,6,0)),"",VLOOKUP($B81,Rank!$B:$I,6,0)) -> 3 | O85: =IF(ISBLANK(VLOOKUP($B81,Rank!$B:$I,7,0)),"",VLOOKUP($B81,Rank!$B:$I,7,0)) -> 3 | Q85: =IF(ISBLANK(VLOOKUP($B81,Rank!$B:$I,8,0)),"",VLOOKUP($B81,Rank!$B:$I,8,0)) -> 3
A86: 42333563 | B86: 美國反向ETF | C86: =IFERROR(VLOOKUP(A86,Raw!A:C,3,0),"") -> 元大標普 500傘型證券投資信託基金之標普 500單日反向 1倍證券投資信託基金 | D86: =IFERROR(IF(INDEX(ALL,MATCH($C86,FUND,0),MATCH(D$1,Name,0))="","",INDEX(ALL,MATCH($C86,FUND,0),MATCH(D$1,Name,0))),"") -> -7.62 | E86: 3 | F86: -17.51 | G86: 2 | H86: -19.49 | I86: 2 | J86: -13.77 | K86: 2 | L86: -27.3 | M86: 2 | N86: -55.43 | O86: 2 | P86: -7.62 | Q86: 3 | R86: =IFERROR(IF(INDEX(ALL,MATCH($C86,FUND,0),MATCH(R$1,Name,0))="","",INDEX(ALL,MATCH($C86,FUND,0),MATCH(R$1,Name,0))),"") -> 20.5567 | S86: -1.0853 | T86: -0.0888 | U86: 0.1813 | V86: =IFERROR(IF(INDEX(ALL,MATCH($C86,FUND,0),MATCH(V$1,Name,0))="","",INDEX(ALL,MATCH($C86,FUND,0),MATCH(V$1,Name,0))),"") -> 0.4858 | X86: 0.1409 | Y86: -71.5
A87: 42443203 | C87: =IFERROR(VLOOKUP(A87,Raw!A:C,3,0),"") -> 國泰美國 ETF傘型證券投資信託基金之道瓊工業平均指數單日反向 1倍證券投資信託基金 | D87: -2.93 | E87: 1 | F87: -14.91 | G87: 1 | H87: -13.11 | I87: 1 | J87: -10.77 | K87: 1 | L87: -18.21 | M87: 1 | N87: -45.71 | O87: 1 | P87: -2.93 | Q87: 1 | R87: 18.7647 | S87: -0.934 | T87: -0.0757 | U87: 0.1994 | V87: 0.4393 | X87: 0.092 | Y87: -65.2
A88: 42441704 | C88: =IFERROR(VLOOKUP(A88,Raw!A:C,3,0),"") -> 富邦NASDAQ-100 ETF傘型證券投資信託基金之富邦NASDAQ-100單日反向一倍證券投資信託基金 | D88: -7.34 | E88: 2 | F88: -18.88 | G88: 3 | H88: -26.55 | I88: 3 | J88: -22.61 | K88: 3 | L88: -35.36 | M88: 3 | N88: -69.39 | O88: 3 | P88: -7.34 | Q88: 2 | R88: 24.9225 | S88: -1.2045 | T88: -0.1245 | U88: -0.1096 | V88: 0.7438 | X88: -0.1205 | Y88: -79.8
C89: AVERAGE | D89: =IFERROR(IF(INDEX(AVG_ALL,MATCH($B86,Category,0),MATCH(D$1,AVG,0))="","",INDEX(AVG_ALL,MATCH($B86,Category,0),MATCH(D$1,AVG,0))),"") -> -5.963333333 | F89: -17.1 | H89: -19.71666667 | J89: -15.71666667 | L89: -26.95666667 | N89: -56.84333333 | P89: -5.963333333 | R89: 21.41463333 | S89: -1.0746 | T89: -0.09633333333 | U89: 0.09036666667 | V89: 0.5563 | X89: 0.03746666667 | Y89: -72.16666667
C90: Funds in Category | E90: =IF(ISBLANK(VLOOKUP($B86,Rank!$B:$I,2,0)),"",VLOOKUP($B86,Rank!$B:$I,2,0)) -> 3 | G90: =IF(ISBLANK(VLOOKUP($B86,Rank!$B:$I,3,0)),"",VLOOKUP($B86,Rank!$B:$I,3,0)) -> 3 | I90: =IF(ISBLANK(VLOOKUP($B86,Rank!$B:$I,4,0)),"",VLOOKUP($B86,Rank!$B:$I,4,0)) -> 3 | K90: =IF(ISBLANK(VLOOKUP($B86,Rank!$B:$I,5,0)),"",VLOOKUP($B86,Rank!$B:$I,5,0)) -> 3 | M90: =IF(ISBLANK(VLOOKUP($B86,Rank!$B:$I,6,0)),"",VLOOKUP($B86,Rank!$B:$I,6,0)) -> 3 | O90: =IF(ISBLANK(VLOOKUP($B86,Rank!$B:$I,7,0)),"",VLOOKUP($B86,Rank!$B:$I,7,0)) -> 3 | Q90: =IF(ISBLANK(VLOOKUP($B86,Rank!$B:$I,8,0)),"",VLOOKUP($B86,Rank!$B:$I,8,0)) -> 3
A91: 42469744 | B91: 海外債-一般ETF | C91: =IFERROR(VLOOKUP(A91,Raw!A:C,3,0),"") -> 元大美國政府 7至10年期債券 ETF傘型證券投資信託基金之元大美國政府 7至10年期債券證券投資信託基金 | D91: =IFERROR(IF(INDEX(ALL,MATCH($C91,FUND,0),MATCH(D$1,Name,0))="","",INDEX(ALL,MATCH($C91,FUND,0),MATCH(D$1,Name,0))),"") -> 3.1 | E91: 35 | F91: 3.97 | G91: 70 | H91: 2.85 | I91: 73 | J91: 2.63 | K91: 38 | L91: -1.55 | M91: 31 | N91: -1.62 | O91: 42 | P91: 3.1 | Q91: 35 | R91: =IFERROR(IF(INDEX(ALL,MATCH($C91,FUND,0),MATCH(R$1,Name,0))="","",INDEX(ALL,MATCH($C91,FUND,0),MATCH(R$1,Name,0))),"") -> 5.9439 | S91: =IFERROR(IF(INDEX(ALL,MATCH($C91,FUND,0),MATCH(S$1,Name,0))="","",INDEX(ALL,MATCH($C91,FUND,0),MATCH(S$1,Name,0))),"") ->  | T91: =IFERROR(IF(INDEX(ALL,MATCH($C91,FUND,0),MATCH(T$1,Name,0))="","",INDEX(ALL,MATCH($C91,FUND,0),MATCH(T$1,Name,0))),"") -> 0.0251 | U91: =IFERROR(IF(INDEX(ALL,MATCH($C91,FUND,0),MATCH(U$1,Name,0))="","",INDEX(ALL,MATCH($C91,FUND,0),MATCH(U$1,Name,0))),"") ->  | V91: =IFERROR(IF(INDEX(ALL,MATCH($C91,FUND,0),MATCH(V$1,Name,0))="","",INDEX(ALL,MATCH($C91,FUND,0),MATCH(V$1,Name,0))),"") ->  | X91: -0.0139 | Y91: 2.09
A92: 42529932 | C92: =IFERROR(VLOOKUP(A92,Raw!A:C,3,0),"") -> 復華全球收益 ETF傘型證券投資信託基金之復華 1至 5年期非投資等級債券證券投資信託基金 | D92: 6.04 | E92: 1 | F92: 5.78 | G92: 65 | H92: 14.63 | I92: 1 | J92: 21.32 | K92: 1 | L92: 21.85 | M92: 1 | N92: 23.35 | O92: 2 | P92: 6.04 | Q92: 1 | R92: 6.7873 | T92: =IFERROR(IF(INDEX(ALL,MATCH($C92,FUND,0),MATCH(T$1,Name,0))="","",INDEX(ALL,MATCH($C92,FUND,0),MATCH(T$1,Name,0))),"") -> 0.3815 | U92: =IFERROR(IF(INDEX(ALL,MATCH($C92,FUND,0),MATCH(U$1,Name,0))="","",INDEX(ALL,MATCH($C92,FUND,0),MATCH(U$1,Name,0))),"") ->  | X92: 0.2187 | Y92: 34.85
A93: 42529953 | C93: =IFERROR(VLOOKUP(A93,Raw!A:C,3,0),"") -> 復華全球收益 ETF傘型證券投資信託基金之復華新興市場10年期以上債券證券投資信託基金 | D93: 2.82 | E93: 43 | F93: 9.38 | G93: 45 | H93: 7.19 | I93: 45 | J93: 1.26 | K93: 45 | L93: -6.67 | M93: 61 | N93: -0.17 | O93: 39 | P93: 2.82 | Q93: 43 | R93: 11.9179 | T93: =IFERROR(IF(INDEX(ALL,MATCH($C93,FUND,0),MATCH(T$1,Name,0))="","",INDEX(ALL,MATCH($C93,FUND,0),MATCH(T$1,Name,0))),"") -> 0.0086 | U93: =IFERROR(IF(INDEX(ALL,MATCH($C93,FUND,0),MATCH(U$1,Name,0))="","",INDEX(ALL,MATCH($C93,FUND,0),MATCH(U$1,Name,0))),"") ->  | X93: -0.0312 | Y93: 8.18
C94: AVERAGE | D94: =IFERROR(IF(INDEX(AVG_ALL,MATCH($B91,Category,0),MATCH(D$1,AVG,0))="","",INDEX(AVG_ALL,MATCH($B91,Category,0),MATCH(D$1,AVG,0))),"") -> 
C95: Funds in Category | E95: =IF(ISBLANK(VLOOKUP($B91,Rank!$B:$I,2,0)),"",VLOOKUP($B91,Rank!$B:$I,2,0)) ->  | G95: =IF(ISBLANK(VLOOKUP($B91,Rank!$B:$I,3,0)),"",VLOOKUP($B91,Rank!$B:$I,3,0)) ->  | I95: =IF(ISBLANK(VLOOKUP($B91,Rank!$B:$I,4,0)),"",VLOOKUP($B91,Rank!$B:$I,4,0)) ->  | K95: =IF(ISBLANK(VLOOKUP($B91,Rank!$B:$I,5,0)),"",VLOOKUP($B91,Rank!$B:$I,5,0)) ->  | M95: =IF(ISBLANK(VLOOKUP($B91,Rank!$B:$I,6,0)),"",VLOOKUP($B91,Rank!$B:$I,6,0)) ->  | O95: =IF(ISBLANK(VLOOKUP($B91,Rank!$B:$I,7,0)),"",VLOOKUP($B91,Rank!$B:$I,7,0)) ->  | Q95: =IF(ISBLANK(VLOOKUP($B91,Rank!$B:$I,8,0)),"",VLOOKUP($B91,Rank!$B:$I,8,0)) -> 
A96: 38633027 | B96: 跨國-中國反向ETF | C96: =IFERROR(VLOOKUP(A96,Raw!A:C,3,0),"") -> 富邦中國 ETF傘型證券投資信託基金之富邦上証 180單日反向一倍證券投資信託基金 | D96: =IFERROR(IF(INDEX(ALL,MATCH($C96,FUND,0),MATCH(D$1,Name,0))="","",INDEX(ALL,MATCH($C96,FUND,0),MATCH(D$1,Name,0))),"") -> -4.66 | E96: 3 | F96: 0.64 | G96: 1 | H96: 6.8 | I96: 1 | J96: 6.56 | K96: 1 | L96: 18.64 | M96: 3 | N96: -26.98 | O96: 3 | P96: -4.66 | Q96: 3 | R96: =IFERROR(IF(INDEX(ALL,MATCH($C96,FUND,0),MATCH(R$1,Name,0))="","",INDEX(ALL,MATCH($C96,FUND,0),MATCH(R$1,Name,0))),"") -> 22.2268 | S96: =IFERROR(IF(INDEX(ALL,MATCH($C96,FUND,0),MATCH(S$1,Name,0))="","",INDEX(ALL,MATCH($C96,FUND,0),MATCH(S$1,Name,0))),"") -> -0.1755 | T96: =IFERROR(IF(INDEX(ALL,MATCH($C96,FUND,0),MATCH(T$1,Name,0))="","",INDEX(ALL,MATCH($C96,FUND,0),MATCH(T$1,Name,0))),"") -> 0.0598 | U96: =IFERROR(IF(INDEX(ALL,MATCH($C96,FUND,0),MATCH(U$1,Name,0))="","",INDEX(ALL,MATCH($C96,FUND,0),MATCH(U$1,Name,0))),"") -> 0.4986 | V96: =IFERROR(IF(INDEX(ALL,MATCH($C96,FUND,0),MATCH(V$1,Name,0))="","",INDEX(ALL,MATCH($C96,FUND,0),MATCH(V$1,Name,0))),"") -> -2.1876 | W96: =IFERROR(IF(INDEX(ALL,MATCH($C96,FUND,0),MATCH(W$1,Name,0))="","",INDEX(ALL,MATCH($C96,FUND,0),MATCH(W$1,Name,0))),"") ->  | X96: 0.0507 | Y96: -76.45
A97: 42300232 | C97: =IFERROR(VLOOKUP(A97,Raw!A:C,3,0),"") -> 元大滬深 300傘型證券投資信託基金之滬深 300單日反向 1倍證券投資信託基金 | D97: -4.47 | E97: 1 | F97: -1.11 | G97: 3 | H97: 6.27 | I97: 3 | J97: 6.04 | K97: 2 | L97: 22.88 | M97: 1 | N97: -25.13 | O97: 1 | P97: -4.47 | Q97: 1 | R97: 23.1831 | S97: -0.239 | T97: =IFERROR(IF(INDEX(ALL,MATCH($C97,FUND,0),MATCH(T$1,Name,0))="","",INDEX(ALL,MATCH($C97,FUND,0),MATCH(T$1,Name,0))),"") -> 0.057 | U97: =IFERROR(IF(INDEX(ALL,MATCH($C97,FUND,0),MATCH(U$1,Name,0))="","",INDEX(ALL,MATCH($C97,FUND,0),MATCH(U$1,Name,0))),"") -> 0.5378 | V97: -1.5975 | X97: 0.037 | Y97: -50.83
A98: 42385127 | C98: =IFERROR(VLOOKUP(A98,Raw!A:C,3,0),"") -> 國泰 A50傘型證券投資信託基金之富時中國 A50單日反向 1倍證券投資信託基金 | D98: -4.64 | E98: 2 | F98: -0.11 | G98: 2 | H98: 6.76 | I98: 2 | J98: 5.36 | K98: 3 | L98: 20.6 | M98: 2 | N98: -26.52 | O98: 2 | P98: -4.64 | Q98: 2 | R98: 22.595 | S98: -0.1884 | T98: =IFERROR(IF(INDEX(ALL,MATCH($C98,FUND,0),MATCH(T$1,Name,0))="","",INDEX(ALL,MATCH($C98,FUND,0),MATCH(T$1,Name,0))),"") -> 0.0527 | U98: =IFERROR(IF(INDEX(ALL,MATCH($C98,FUND,0),MATCH(U$1,Name,0))="","",INDEX(ALL,MATCH($C98,FUND,0),MATCH(U$1,Name,0))),"") -> 0.467 | V98: -1.8254 | X98: -0.1693 | Y98: -55.8
C99: AVERAGE | D99: =IFERROR(IF(INDEX(AVG_ALL,MATCH($B96,Category,0),MATCH(D$1,AVG,0))="","",INDEX(AVG_ALL,MATCH($B96,Category,0),MATCH(D$1,AVG,0))),"") -> -4.59 | F99: -0.1933333333 | H99: 6.61 | J99: 5.986666667 | L99: 20.70666667 | N99: -26.21 | P99: -4.59 | R99: =IFERROR(IF(INDEX(AVG_ALL,MATCH($B96,Category,0),MATCH(R$1,AVG,0))="","",INDEX(AVG_ALL,MATCH($B96,Category,0),MATCH(R$1,AVG,0))),"") -> 22.6683 | S99: =IFERROR(IF(INDEX(AVG_ALL,MATCH($B96,Category,0),MATCH(S$1,AVG,0))="","",INDEX(AVG_ALL,MATCH($B96,Category,0),MATCH(S$1,AVG,0))),"") -> -0.2009666667 | T99: =IFERROR(IF(INDEX(AVG_ALL,MATCH($B96,Category,0),MATCH(T$1,AVG,0))="","",INDEX(AVG_ALL,MATCH($B96,Category,0),MATCH(T$1,AVG,0))),"") -> 0.0565 | U99: =IFERROR(IF(INDEX(AVG_ALL,MATCH($B96,Category,0),MATCH(U$1,AVG,0))="","",INDEX(AVG_ALL,MATCH($B96,Category,0),MATCH(U$1,AVG,0))),"") -> 0.5011333333 | V99: -1.870166667 | X99: -0.0272 | Y99: =IFERROR(IF(INDEX(AVG_ALL,MATCH($B96,Category,0),MATCH(Y$1,AVG,0))="","",INDEX(AVG_ALL,MATCH($B96,Category,0),MATCH(Y$1,AVG,0))),"") -> -61.02666667
C100: Funds in Category | E100: =IF(ISBLANK(VLOOKUP($B96,Rank!$B:$I,2,0)),"",VLOOKUP($B96,Rank!$B:$I,2,0)) -> 3 | G100: =IF(ISBLANK(VLOOKUP($B96,Rank!$B:$I,3,0)),"",VLOOKUP($B96,Rank!$B:$I,3,0)) -> 3 | I100: =IF(ISBLANK(VLOOKUP($B96,Rank!$B:$I,4,0)),"",VLOOKUP($B96,Rank!$B:$I,4,0)) -> 3 | K100: =IF(ISBLANK(VLOOKUP($B96,Rank!$B:$I,5,0)),"",VLOOKUP($B96,Rank!$B:$I,5,0)) -> 3 | M100: =IF(ISBLANK(VLOOKUP($B96,Rank!$B:$I,6,0)),"",VLOOKUP($B96,Rank!$B:$I,6,0)) -> 3 | O100: =IF(ISBLANK(VLOOKUP($B96,Rank!$B:$I,7,0)),"",VLOOKUP($B96,Rank!$B:$I,7,0)) -> 3 | Q100: =IF(ISBLANK(VLOOKUP($B96,Rank!$B:$I,8,0)),"",VLOOKUP($B96,Rank!$B:$I,8,0)) -> 3
A101: 38633011 | B101: 跨國-中國二倍ETF | C101: =IFERROR(VLOOKUP(A101,Raw!A:C,3,0),"") -> 富邦中國 ETF傘型證券投資信託基金之富邦上証 180單日正向兩倍證券投資信託基金 | D101: =IFERROR(IF(INDEX(ALL,MATCH($C101,FUND,0),MATCH(D$1,Name,0))="","",INDEX(ALL,MATCH($C101,FUND,0),MATCH(D$1,Name,0))),"") -> 12.92 | E101: 2 | F101: -6.8 | G101: 1 | H101: -16.5 | I101: 2 | J101: -21.24 | K101: 2 | L101: -50.94 | M101: 2 | N101: -24.17 | O101: 2 | P101: 12.92 | Q101: 2 | R101: =IFERROR(IF(INDEX(ALL,MATCH($C101,FUND,0),MATCH(R$1,Name,0))="","",INDEX(ALL,MATCH($C101,FUND,0),MATCH(R$1,Name,0))),"") -> 41.3954 | S101: 0.0758 | T101: -0.0331 | U101: -0.4447 | V101: =IFERROR(IF(INDEX(ALL,MATCH($C101,FUND,0),MATCH(V$1,Name,0))="","",INDEX(ALL,MATCH($C101,FUND,0),MATCH(V$1,Name,0))),"") -> -5.2133 | W101: =IFERROR(IF(INDEX(ALL,MATCH($C101,FUND,0),MATCH(W$1,Name,0))="","",INDEX(ALL,MATCH($C101,FUND,0),MATCH(W$1,Name,0))),"") ->  | X101: 0.1063 | Y101: 65.2
A102: 42300253 | C102: =IFERROR(VLOOKUP(A102,Raw!A:C,3,0),"") -> 元大滬深 300傘型證券投資信託基金之滬深 300單日正向 2倍證券投資信託基金 | D102: 13.93 | E102: 1 | F102: -6.86 | G102: 2 | H102: -15.52 | I102: 1 | J102: -20.81 | K102: 1 | L102: -50.25 | M102: 1 | N102: -20.42 | O102: 1 | P102: 13.93 | Q102: 1 | R102: 41.8349 | S102: 0.0724 | T102: -0.0297 | U102: -0.4058 | V102: -4.9556 | X102: 0.1194 | Y102: -34.15
A103: 42385148 | C103: =IFERROR(VLOOKUP(A103,Raw!A:C,3,0),"") -> 國泰 A50傘型證券投資信託基金之富時中國 A50單日正向 2倍證券投資信託基金 | D103: 10.56 | E103: 3 | F103: -7.53 | G103: 3 | H103: -18.71 | I103: 3 | J103: -26.35 | K103: 3 | L103: -54.51 | M103: 3 | N103: -27.34 | O103: 3 | P103: 10.56 | Q103: 3 | R103: 42.2098 | S103: 0.1767 | T103: -0.0529 | U103: -0.7593 | V103: -3.6448 | X103: 0.0271 | Y103: 13.6
C104: AVERAGE | D104: =IFERROR(IF(INDEX(AVG_ALL,MATCH($B101,Category,0),MATCH(D$1,AVG,0))="","",INDEX(AVG_ALL,MATCH($B101,Category,0),MATCH(D$1,AVG,0))),"") -> 8.1 | F104: -9.45 | H104: -22.9 | J104: -30.4125 | L104: -59.4275 | N104: -36.7125 | P104: 8.1 | R104: 48.608275 | S104: 0.403 | T104: -0.046725 | U104: -0.967175 | V104: -3.728975 | X104: 0.040775 | Y104: -5.3
C105: Funds in Category | E105: =IF(ISBLANK(VLOOKUP($B101,Rank!$B:$I,2,0)),"",VLOOKUP($B101,Rank!$B:$I,2,0)) -> 4 | G105: =IF(ISBLANK(VLOOKUP($B101,Rank!$B:$I,3,0)),"",VLOOKUP($B101,Rank!$B:$I,3,0)) -> 4 | I105: =IF(ISBLANK(VLOOKUP($B101,Rank!$B:$I,4,0)),"",VLOOKUP($B101,Rank!$B:$I,4,0)) -> 4 | K105: =IF(ISBLANK(VLOOKUP($B101,Rank!$B:$I,5,0)),"",VLOOKUP($B101,Rank!$B:$I,5,0)) -> 4 | M105: =IF(ISBLANK(VLOOKUP($B101,Rank!$B:$I,6,0)),"",VLOOKUP($B101,Rank!$B:$I,6,0)) -> 4 | O105: =IF(ISBLANK(VLOOKUP($B101,Rank!$B:$I,7,0)),"",VLOOKUP($B101,Rank!$B:$I,7,0)) -> 4 | Q105: =IF(ISBLANK(VLOOKUP($B101,Rank!$B:$I,8,0)),"",VLOOKUP($B101,Rank!$B:$I,8,0)) -> 4
A106: 42319561 | B106: 日本二倍ETF | C106: =IFERROR(VLOOKUP(A106,Raw!A:C,3,0),"") -> 富邦日本 ETF傘型證券投資信託基金之富邦日本東証單日正向兩倍證券投資信託基金 | D106: =IFERROR(IF(INDEX(ALL,MATCH($C106,FUND,0),MATCH(D$1,Name,0))="","",INDEX(ALL,MATCH($C106,FUND,0),MATCH(D$1,Name,0))),"") -> 38.47 | E106: 1 | F106: 40.52 | G106: 1 | H106: 92.64 | I106: 1 | J106: 105.98 | K106: 1 | L106: 102.37 | M106: 1 | N106: 202.47 | O106: 1 | P106: 38.47 | Q106: 1 | R106: =IFERROR(IF(INDEX(ALL,MATCH($C106,FUND,0),MATCH(R$1,Name,0))="","",INDEX(ALL,MATCH($C106,FUND,0),MATCH(R$1,Name,0))),"") -> 25.0614 | S106: 0.9774 | T106: 0.4456 | U106: 2.5859 | V106: =IFERROR(IF(INDEX(ALL,MATCH($C106,FUND,0),MATCH(V$1,Name,0))="","",INDEX(ALL,MATCH($C106,FUND,0),MATCH(V$1,Name,0))),"") -> 3.2984 | W106: =IFERROR(IF(INDEX(ALL,MATCH($C106,FUND,0),MATCH(W$1,Name,0))="","",INDEX(ALL,MATCH($C106,FUND,0),MATCH(W$1,Name,0))),"") ->  | Y106: 194.45
A107: 42389496 | C107: =IFERROR(VLOOKUP(A107,Raw!A:C,3,0),"") -> 
C108: AVERAGE | D108: =IFERROR(IF(INDEX(AVG_ALL,MATCH($B106,Category,0),MATCH(D$1,AVG,0))="","",INDEX(AVG_ALL,MATCH($B106,Category,0),MATCH(D$1,AVG,0))),"") -> 38.47 | F108: 40.52 | H108: 92.64 | J108: 105.98 | L108: 102.37 | N108: 202.47 | P108: 38.47 | R108: =IFERROR(IF(INDEX(AVG_ALL,MATCH($B106,Category,0),MATCH(R$1,AVG,0))="","",INDEX(AVG_ALL,MATCH($B106,Category,0),MATCH(R$1,AVG,0))),"") -> 25.0614 | S108: =IFERROR(IF(INDEX(AVG_ALL,MATCH($B106,Category,0),MATCH(S$1,AVG,0))="","",INDEX(AVG_ALL,MATCH($B106,Category,0),MATCH(S$1,AVG,0))),"") -> 0.9774 | T108: =IFERROR(IF(INDEX(AVG_ALL,MATCH($B106,Category,0),MATCH(T$1,AVG,0))="","",INDEX(AVG_ALL,MATCH($B106,Category,0),MATCH(T$1,AVG,0))),"") -> 0.4456 | U108: =IFERROR(IF(INDEX(AVG_ALL,MATCH($B106,Category,0),MATCH(U$1,AVG,0))="","",INDEX(AVG_ALL,MATCH($B106,Category,0),MATCH(U$1,AVG,0))),"") -> 2.5859 | V108: 3.2984 | Y108: =IFERROR(IF(INDEX(AVG_ALL,MATCH($B106,Category,0),MATCH(Y$1,AVG,0))="","",INDEX(AVG_ALL,MATCH($B106,Category,0),MATCH(Y$1,AVG,0))),"") -> 194.45
C109: Funds in Category | E109: =IF(ISBLANK(VLOOKUP($B106,Rank!$B:$I,2,0)),"",VLOOKUP($B106,Rank!$B:$I,2,0)) -> 1 | G109: =IF(ISBLANK(VLOOKUP($B106,Rank!$B:$I,3,0)),"",VLOOKUP($B106,Rank!$B:$I,3,0)) -> 1 | I109: =IF(ISBLANK(VLOOKUP($B106,Rank!$B:$I,4,0)),"",VLOOKUP($B106,Rank!$B:$I,4,0)) -> 1 | K109: =IF(ISBLANK(VLOOKUP($B106,Rank!$B:$I,5,0)),"",VLOOKUP($B106,Rank!$B:$I,5,0)) -> 1 | M109: =IF(ISBLANK(VLOOKUP($B106,Rank!$B:$I,6,0)),"",VLOOKUP($B106,Rank!$B:$I,6,0)) -> 1 | O109: =IF(ISBLANK(VLOOKUP($B106,Rank!$B:$I,7,0)),"",VLOOKUP($B106,Rank!$B:$I,7,0)) -> 1 | Q109: =IF(ISBLANK(VLOOKUP($B106,Rank!$B:$I,8,0)),"",VLOOKUP($B106,Rank!$B:$I,8,0)) -> 1
A110: 42319582 | B110: 日本反向ETF | C110: =IFERROR(VLOOKUP(A110,Raw!A:C,3,0),"") -> 富邦日本 ETF傘型證券投資信託基金之富邦日本東証單日反向一倍證券投資信託基金 | D110: =IFERROR(IF(INDEX(ALL,MATCH($C110,FUND,0),MATCH(D$1,Name,0))="","",INDEX(ALL,MATCH($C110,FUND,0),MATCH(D$1,Name,0))),"") -> -15.66 | E110: 1 | F110: -17.29 | G110: 1 | H110: -30.48 | I110: 1 | J110: -36.16 | K110: 1 | L110: -39.98 | M110: 1 | N110: -57.58 | O110: 1 | P110: -15.66 | Q110: 1 | R110: =IFERROR(IF(INDEX(ALL,MATCH($C110,FUND,0),MATCH(R$1,Name,0))="","",INDEX(ALL,MATCH($C110,FUND,0),MATCH(R$1,Name,0))),"") -> 12.0546 | S110: =IFERROR(IF(INDEX(ALL,MATCH($C110,FUND,0),MATCH(S$1,Name,0))="","",INDEX(ALL,MATCH($C110,FUND,0),MATCH(S$1,Name,0))),"") -> -0.4804 | T110: -0.5382 | U110: -1.5593 | V110: 3.8983 | Y110: -67.95
A111: 42389480 | C111: =IFERROR(VLOOKUP(A111,Raw!A:C,3,0),"") ->  | R111: =IFERROR(IF(INDEX(ALL,MATCH($C111,FUND,0),MATCH(R$1,Name,0))="","",INDEX(ALL,MATCH($C111,FUND,0),MATCH(R$1,Name,0))),"") -> 
C112: AVERAGE | D112: =IFERROR(IF(INDEX(AVG_ALL,MATCH($B110,Category,0),MATCH(D$1,AVG,0))="","",INDEX(AVG_ALL,MATCH($B110,Category,0),MATCH(D$1,AVG,0))),"") -> -15.66 | F112: -17.29 | H112: -30.48 | J112: -36.16 | L112: -39.98 | N112: -57.58 | P112: -15.66 | R112: =IFERROR(IF(INDEX(AVG_ALL,MATCH($B110,Category,0),MATCH(R$1,AVG,0))="","",INDEX(AVG_ALL,MATCH($B110,Category,0),MATCH(R$1,AVG,0))),"") -> 12.0546 | S112: =IFERROR(IF(INDEX(AVG_ALL,MATCH($B110,Category,0),MATCH(S$1,AVG,0))="","",INDEX(AVG_ALL,MATCH($B110,Category,0),MATCH(S$1,AVG,0))),"") -> -0.4804 | T112: =IFERROR(IF(INDEX(AVG_ALL,MATCH($B110,Category,0),MATCH(T$1,AVG,0))="","",INDEX(AVG_ALL,MATCH($B110,Category,0),MATCH(T$1,AVG,0))),"") -> -0.5382 | U112: =IFERROR(IF(INDEX(AVG_ALL,MATCH($B110,Category,0),MATCH(U$1,AVG,0))="","",INDEX(AVG_ALL,MATCH($B110,Category,0),MATCH(U$1,AVG,0))),"") -> -1.5593 | V112: 3.8983 | Y112: -67.95
C113: Funds in Category | E113: =IF(ISBLANK(VLOOKUP($B110,Rank!$B:$I,2,0)),"",VLOOKUP($B110,Rank!$B:$I,2,0)) -> 1 | G113: =IF(ISBLANK(VLOOKUP($B110,Rank!$B:$I,3,0)),"",VLOOKUP($B110,Rank!$B:$I,3,0)) -> 1 | I113: =IF(ISBLANK(VLOOKUP($B110,Rank!$B:$I,4,0)),"",VLOOKUP($B110,Rank!$B:$I,4,0)) -> 1 | K113: =IF(ISBLANK(VLOOKUP($B110,Rank!$B:$I,5,0)),"",VLOOKUP($B110,Rank!$B:$I,5,0)) -> 1 | M113: =IF(ISBLANK(VLOOKUP($B110,Rank!$B:$I,6,0)),"",VLOOKUP($B110,Rank!$B:$I,6,0)) -> 1 | O113: =IF(ISBLANK(VLOOKUP($B110,Rank!$B:$I,7,0)),"",VLOOKUP($B110,Rank!$B:$I,7,0)) -> 1 | Q113: =IF(ISBLANK(VLOOKUP($B110,Rank!$B:$I,8,0)),"",VLOOKUP($B110,Rank!$B:$I,8,0)) -> 1
A114: 42333579 | B114: 美國二倍ETF | C114: =IFERROR(VLOOKUP(A114,Raw!A:C,3,0),"") -> 元大標普 500傘型證券投資信託基金之標普 500單日正向 2倍證券投資信託基金 | D114: =IFERROR(IF(INDEX(ALL,MATCH($C114,FUND,0),MATCH(D$1,Name,0))="","",INDEX(ALL,MATCH($C114,FUND,0),MATCH(D$1,Name,0))),"") -> 21.05 | E114: 1 | F114: 41.4 | G114: 2 | H114: 51.68 | I114: 2 | J114: 16.49 | K114: 2 | L114: 48.81 | M114: 1 | N114: 151 | O114: 2 | P114: 21.05 | Q114: 1 | R114: =IFERROR(IF(INDEX(ALL,MATCH($C114,FUND,0),MATCH(R$1,Name,0))="","",INDEX(ALL,MATCH($C114,FUND,0),MATCH(R$1,Name,0))),"") -> 37.2675 | S114: =IFERROR(IF(INDEX(ALL,MATCH($C114,FUND,0),MATCH(S$1,Name,0))="","",INDEX(ALL,MATCH($C114,FUND,0),MATCH(S$1,Name,0))),"") -> 1.9228 | T114: 0.1041 | U114: -0.1354 | V114: =IFERROR(IF(INDEX(ALL,MATCH($C114,FUND,0),MATCH(V$1,Name,0))="","",INDEX(ALL,MATCH($C114,FUND,0),MATCH(V$1,Name,0))),"") -> 0.5824 | X114: -0.0599 | Y114: 320.51
A115: 42441710 | C115: =IFERROR(VLOOKUP(A115,Raw!A:C,3,0),"") -> 富邦NASDAQ-100 ETF傘型證券投資信託基金之富邦NASDAQ-100單日正向兩倍證券投資信託基金 | D115: 13.51 | E115: 2 | F115: 43.07 | G115: 1 | H115: 66.59 | I115: 1 | J115: 11.13 | K115: 3 | L115: 35.41 | M115: 2 | N115: 237.92 | O115: 1 | P115: 13.51 | Q115: 2 | R115: =IFERROR(IF(INDEX(ALL,MATCH($C115,FUND,0),MATCH(R$1,Name,0))="","",INDEX(ALL,MATCH($C115,FUND,0),MATCH(R$1,Name,0))),"") -> 49.6848 | S115: 2.3686 | T115: 0.0954 | U115: -0.1784 | V115: 0.5775 | X115: 0.0308 | Y115: 465
C116: AVERAGE | D116: =IFERROR(IF(INDEX(AVG_ALL,MATCH($B114,Category,0),MATCH(D$1,AVG,0))="","",INDEX(AVG_ALL,MATCH($B114,Category,0),MATCH(D$1,AVG,0))),"") -> 15.46 | F116: 39.12 | H116: 50.71666667 | J116: 15.45 | L116: 38.16666667 | N116: 194.46 | P116: 15.46 | R116: =IFERROR(IF(INDEX(AVG_ALL,MATCH($B114,Category,0),MATCH(R$1,AVG,0))="","",INDEX(AVG_ALL,MATCH($B114,Category,0),MATCH(R$1,AVG,0))),"") -> 40.77733333 | S116: =IFERROR(IF(INDEX(AVG_ALL,MATCH($B114,Category,0),MATCH(S$1,AVG,0))="","",INDEX(AVG_ALL,MATCH($B114,Category,0),MATCH(S$1,AVG,0))),"") -> 2.1457 | T116: =IFERROR(IF(INDEX(AVG_ALL,MATCH($B114,Category,0),MATCH(T$1,AVG,0))="","",INDEX(AVG_ALL,MATCH($B114,Category,0),MATCH(T$1,AVG,0))),"") -> 0.1029666667 | U116: =IFERROR(IF(INDEX(AVG_ALL,MATCH($B114,Category,0),MATCH(U$1,AVG,0))="","",INDEX(AVG_ALL,MATCH($B114,Category,0),MATCH(U$1,AVG,0))),"") -> -0.1569 | V116: =IFERROR(IF(INDEX(AVG_ALL,MATCH($B114,Category,0),MATCH(V$1,AVG,0))="","",INDEX(AVG_ALL,MATCH($B114,Category,0),MATCH(V$1,AVG,0))),"") -> 0.57995 | X116: -0.01553333333 | Y116: 284.4366667
C117: Funds in Category | E117: =IF(ISBLANK(VLOOKUP($B114,Rank!$B:$I,2,0)),"",VLOOKUP($B114,Rank!$B:$I,2,0)) -> 3 | G117: =IF(ISBLANK(VLOOKUP($B114,Rank!$B:$I,3,0)),"",VLOOKUP($B114,Rank!$B:$I,3,0)) -> 3 | I117: =IF(ISBLANK(VLOOKUP($B114,Rank!$B:$I,4,0)),"",VLOOKUP($B114,Rank!$B:$I,4,0)) -> 3 | K117: =IF(ISBLANK(VLOOKUP($B114,Rank!$B:$I,5,0)),"",VLOOKUP($B114,Rank!$B:$I,5,0)) -> 3 | M117: =IF(ISBLANK(VLOOKUP($B114,Rank!$B:$I,6,0)),"",VLOOKUP($B114,Rank!$B:$I,6,0)) -> 3 | O117: =IF(ISBLANK(VLOOKUP($B114,Rank!$B:$I,7,0)),"",VLOOKUP($B114,Rank!$B:$I,7,0)) -> 2 | Q117: =IF(ISBLANK(VLOOKUP($B114,Rank!$B:$I,8,0)),"",VLOOKUP($B114,Rank!$B:$I,8,0)) -> 3
A118: 42461567 | B118: 債券-二倍ETF | C118: =IFERROR(VLOOKUP(A118,Raw!A:C,3,0),"") -> 元大美國政府20年期(以上)債券 ETF傘型基金之元大美國政府20年期(以上)債券單日正向 2倍證券投資信託基金 | D118: =IFERROR(IF(INDEX(ALL,MATCH($C118,FUND,0),MATCH(D$1,Name,0))="","",INDEX(ALL,MATCH($C118,FUND,0),MATCH(D$1,Name,0))),"") -> -8.85 | E118: 1 | F118: 11.04 | G118: 2 | H118: -24.14 | I118: 2 | J118: -54.69 | K118: 1 | L118: -57.19 | M118: 1 | N118: -56.09 | O118: 1 | P118: -8.85 | Q118: 1 | R118: =IFERROR(IF(INDEX(ALL,MATCH($C118,FUND,0),MATCH(R$1,Name,0))="","",INDEX(ALL,MATCH($C118,FUND,0),MATCH(R$1,Name,0))),"") -> 34.3196 | S118: =IFERROR(IF(INDEX(ALL,MATCH($C118,FUND,0),MATCH(S$1,Name,0))="","",INDEX(ALL,MATCH($C118,FUND,0),MATCH(S$1,Name,0))),"") ->  | T118: -0.2878 | V118: =IFERROR(IF(INDEX(ALL,MATCH($C118,FUND,0),MATCH(V$1,Name,0))="","",INDEX(ALL,MATCH($C118,FUND,0),MATCH(V$1,Name,0))),"") ->  | X118: -0.0119 | Y118: -54.42
A119: 42482747 | C119: =IFERROR(VLOOKUP(A119,Raw!A:C,3,0),"") -> 國泰美國債券 ETF傘型證券投資信託基金之20年期(以上)美國公債指數單日正向2倍證券投資信託基金 | D119: -8.91 | E119: 2 | F119: 11.24 | G119: 1 | H119: -24.02 | I119: 1 | J119: -54.76 | K119: 2 | L119: -57.42 | M119: 2 | N119: -57.1 | O119: 2 | P119: -8.91 | Q119: 2 | R119: =IFERROR(IF(INDEX(ALL,MATCH($C119,FUND,0),MATCH(R$1,Name,0))="","",INDEX(ALL,MATCH($C119,FUND,0),MATCH(R$1,Name,0))),"") -> 34.6104 | T119: -0.2851 | X119: 0.0119 | Y119: -54.71
C120: AVERAGE | D120: =IFERROR(IF(INDEX(AVG_ALL,MATCH($B118,Category,0),MATCH(D$1,AVG,0))="","",INDEX(AVG_ALL,MATCH($B118,Category,0),MATCH(D$1,AVG,0))),"") -> -8.88 | F120: 11.14 | H120: -24.08 | J120: -54.725 | L120: -57.305 | N120: -56.595 | P120: -8.88 | R120: =IFERROR(IF(INDEX(AVG_ALL,MATCH($B118,Category,0),MATCH(R$1,AVG,0))="","",INDEX(AVG_ALL,MATCH($B118,Category,0),MATCH(R$1,AVG,0))),"") -> 34.465 | S120: =IFERROR(IF(INDEX(AVG_ALL,MATCH($B118,Category,0),MATCH(S$1,AVG,0))="","",INDEX(AVG_ALL,MATCH($B118,Category,0),MATCH(S$1,AVG,0))),"") ->  | T120: =IFERROR(IF(INDEX(AVG_ALL,MATCH($B118,Category,0),MATCH(T$1,AVG,0))="","",INDEX(AVG_ALL,MATCH($B118,Category,0),MATCH(T$1,AVG,0))),"") -> -0.28645 | U120: =IFERROR(IF(INDEX(AVG_ALL,MATCH($B118,Category,0),MATCH(U$1,AVG,0))="","",INDEX(AVG_ALL,MATCH($B118,Category,0),MATCH(U$1,AVG,0))),"") ->  | V120: =IFERROR(IF(INDEX(AVG_ALL,MATCH($B118,Category,0),MATCH(V$1,AVG,0))="","",INDEX(AVG_ALL,MATCH($B118,Category,0),MATCH(V$1,AVG,0))),"") ->  | X120: 0 | Y120: -54.565
C121: Funds in Category | E121: =IF(ISBLANK(VLOOKUP($B118,Rank!$B:$I,2,0)),"",VLOOKUP($B118,Rank!$B:$I,2,0)) -> 2 | G121: =IF(ISBLANK(VLOOKUP($B118,Rank!$B:$I,3,0)),"",VLOOKUP($B118,Rank!$B:$I,3,0)) -> 2 | I121: =IF(ISBLANK(VLOOKUP($B118,Rank!$B:$I,4,0)),"",VLOOKUP($B118,Rank!$B:$I,4,0)) -> 2 | K121: =IF(ISBLANK(VLOOKUP($B118,Rank!$B:$I,5,0)),"",VLOOKUP($B118,Rank!$B:$I,5,0)) -> 2 | M121: =IF(ISBLANK(VLOOKUP($B118,Rank!$B:$I,6,0)),"",VLOOKUP($B118,Rank!$B:$I,6,0)) -> 2 | O121: =IF(ISBLANK(VLOOKUP($B118,Rank!$B:$I,7,0)),"",VLOOKUP($B118,Rank!$B:$I,7,0)) -> 2 | Q121: =IF(ISBLANK(VLOOKUP($B118,Rank!$B:$I,8,0)),"",VLOOKUP($B118,Rank!$B:$I,8,0)) -> 2
A122: 42461588 | B122: 債券-反向ETF | C122: =IFERROR(VLOOKUP(A122,Raw!A:C,3,0),"") -> 元大美國政府20年期(以上)債券 ETF傘型基金之元大美國政府20年期(以上)債券單日反向 1倍證券投資信託基金 | D122: =IFERROR(IF(INDEX(ALL,MATCH($C122,FUND,0),MATCH(D$1,Name,0))="","",INDEX(ALL,MATCH($C122,FUND,0),MATCH(D$1,Name,0))),"") -> 5.26 | E122: 1 | F122: -7.94 | G122: 1 | H122: 11.41 | I122: 1 | J122: 37.07 | K122: 1 | L122: 35.02 | M122: 1 | N122: 10.99 | O122: 2 | P122: 5.26 | Q122: 1 | R122: =IFERROR(IF(INDEX(ALL,MATCH($C122,FUND,0),MATCH(R$1,Name,0))="","",INDEX(ALL,MATCH($C122,FUND,0),MATCH(R$1,Name,0))),"") -> 19.2938 | S122: =IFERROR(IF(INDEX(ALL,MATCH($C122,FUND,0),MATCH(S$1,Name,0))="","",INDEX(ALL,MATCH($C122,FUND,0),MATCH(S$1,Name,0))),"") ->  | T122: 0.2499 | X122: 0.2603 | Y122: -0.57
A123: 42482731 | C123: =IFERROR(VLOOKUP(A123,Raw!A:C,3,0),"") -> 國泰美國債券 ETF傘型證券投資信託基金之20年期(以上)美國公債指數單日反向1倍證券投資信託基金 | D123: =IFERROR(IF(INDEX(ALL,MATCH($C123,FUND,0),MATCH(D$1,Name,0))="","",INDEX(ALL,MATCH($C123,FUND,0),MATCH(D$1,Name,0))),"") -> 5.14 | E123: 2 | F123: -8.2 | G123: 2 | H123: 11.37 | I123: 2 | J123: 35.45 | K123: 2 | L123: 32.96 | M123: 2 | N123: 12.75 | O123: 1 | P123: 5.14 | Q123: 2 | R123: =IFERROR(IF(INDEX(ALL,MATCH($C123,FUND,0),MATCH(R$1,Name,0))="","",INDEX(ALL,MATCH($C123,FUND,0),MATCH(R$1,Name,0))),"") -> 19.4012 | S123: =IFERROR(IF(INDEX(ALL,MATCH($C123,FUND,0),MATCH(S$1,Name,0))="","",INDEX(ALL,MATCH($C123,FUND,0),MATCH(S$1,Name,0))),"") ->  | T123: 0.2398 | V123: =IFERROR(IF(INDEX(ALL,MATCH($C123,FUND,0),MATCH(V$1,Name,0))="","",INDEX(ALL,MATCH($C123,FUND,0),MATCH(V$1,Name,0))),"") ->  | X123: -0.2603 | Y123: 2.96
C124: AVERAGE | D124: =IFERROR(IF(INDEX(AVG_ALL,MATCH($B122,Category,0),MATCH(D$1,AVG,0))="","",INDEX(AVG_ALL,MATCH($B122,Category,0),MATCH(D$1,AVG,0))),"") -> 5.2 | F124: -8.07 | H124: 11.39 | J124: 36.26 | L124: 33.99 | N124: 11.87 | P124: 5.2 | R124: =IFERROR(IF(INDEX(AVG_ALL,MATCH($B122,Category,0),MATCH(R$1,AVG,0))="","",INDEX(AVG_ALL,MATCH($B122,Category,0),MATCH(R$1,AVG,0))),"") -> 19.3475 | S124: =IFERROR(IF(INDEX(AVG_ALL,MATCH($B122,Category,0),MATCH(S$1,AVG,0))="","",INDEX(AVG_ALL,MATCH($B122,Category,0),MATCH(S$1,AVG,0))),"") ->  | T124: =IFERROR(IF(INDEX(AVG_ALL,MATCH($B122,Category,0),MATCH(T$1,AVG,0))="","",INDEX(AVG_ALL,MATCH($B122,Category,0),MATCH(T$1,AVG,0))),"") -> 0.24485 | U124: =IFERROR(IF(INDEX(AVG_ALL,MATCH($B122,Category,0),MATCH(U$1,AVG,0))="","",INDEX(AVG_ALL,MATCH($B122,Category,0),MATCH(U$1,AVG,0))),"") ->  | V124: =IFERROR(IF(INDEX(AVG_ALL,MATCH($B122,Category,0),MATCH(V$1,AVG,0))="","",INDEX(AVG_ALL,MATCH($B122,Category,0),MATCH(V$1,AVG,0))),"") ->  | X124: 0 | Y124: 1.195
C125: Funds in Category | E125: =IF(ISBLANK(VLOOKUP($B122,Rank!$B:$I,2,0)),"",VLOOKUP($B122,Rank!$B:$I,2,0)) -> 2 | G125: =IF(ISBLANK(VLOOKUP($B122,Rank!$B:$I,3,0)),"",VLOOKUP($B122,Rank!$B:$I,3,0)) -> 2 | I125: =IF(ISBLANK(VLOOKUP($B122,Rank!$B:$I,4,0)),"",VLOOKUP($B122,Rank!$B:$I,4,0)) -> 2 | K125: =IF(ISBLANK(VLOOKUP($B122,Rank!$B:$I,5,0)),"",VLOOKUP($B122,Rank!$B:$I,5,0)) -> 2 | M125: =IF(ISBLANK(VLOOKUP($B122,Rank!$B:$I,6,0)),"",VLOOKUP($B122,Rank!$B:$I,6,0)) -> 2 | O125: =IF(ISBLANK(VLOOKUP($B122,Rank!$B:$I,7,0)),"",VLOOKUP($B122,Rank!$B:$I,7,0)) -> 2 | Q125: =IF(ISBLANK(VLOOKUP($B122,Rank!$B:$I,8,0)),"",VLOOKUP($B122,Rank!$B:$I,8,0)) -> 2
A126: 42529948 | B126: 不動產證券化 | C126: =IFERROR(VLOOKUP(A126,Raw!A:C,3,0),"") -> 復華全球收益 ETF傘型證券投資信託基金之復華富時不動產證券化證券投資信託基金 | D126: =IFERROR(IF(INDEX(ALL,MATCH($C126,FUND,0),MATCH(D$1,Name,0))="","",INDEX(ALL,MATCH($C126,FUND,0),MATCH(D$1,Name,0))),"") -> 2.53 | E126: 23 | F126: 5.83 | G126: 24 | H126: 18.67 | I126: 17 | J126: -8.94 | K126: 17 | L126: -12.15 | M126: 13 | N126: -21.59 | O126: 8 | P126: 2.53 | Q126: 23 | R126: =IFERROR(IF(INDEX(ALL,MATCH($C126,FUND,0),MATCH(R$1,Name,0))="","",INDEX(ALL,MATCH($C126,FUND,0),MATCH(R$1,Name,0))),"") -> 31.3577 | S126: =IFERROR(IF(INDEX(ALL,MATCH($C126,FUND,0),MATCH(S$1,Name,0))="","",INDEX(ALL,MATCH($C126,FUND,0),MATCH(S$1,Name,0))),"") -> 1.4054 | T126: =IFERROR(IF(INDEX(ALL,MATCH($C126,FUND,0),MATCH(T$1,Name,0))="","",INDEX(ALL,MATCH($C126,FUND,0),MATCH(T$1,Name,0))),"") -> -0.0076 | U126: =IFERROR(IF(INDEX(ALL,MATCH($C126,FUND,0),MATCH(U$1,Name,0))="","",INDEX(ALL,MATCH($C126,FUND,0),MATCH(U$1,Name,0))),"") -> -0.9866 | V126: =IFERROR(IF(INDEX(ALL,MATCH($C126,FUND,0),MATCH(V$1,Name,0))="","",INDEX(ALL,MATCH($C126,FUND,0),MATCH(V$1,Name,0))),"") -> -0.0493 | X126: -0.1523 | Y126: -18.43
C127: AVERAGE | D127: =IFERROR(IF(INDEX(AVG_ALL,MATCH($B126,Category,0),MATCH(D$1,AVG,0))="","",INDEX(AVG_ALL,MATCH($B126,Category,0),MATCH(D$1,AVG,0))),"") -> -0.05985294118 | F127: 9.522647059 | H127: 6.071764706 | J127: -8.001607143 | L127: 0.1308510638 | N127: 6.479642857 | P127: -0.05985294118 | R127: 17.0204375 | T127: -0.06276071429 | X127: 0.01269107143 | Y127: 9.616176471
C128: Funds in Category | E128: =IF(ISBLANK(VLOOKUP($B126,Rank!$B:$I,2,0)),"",VLOOKUP($B126,Rank!$B:$I,2,0)) -> 68 | G128: =IF(ISBLANK(VLOOKUP($B126,Rank!$B:$I,3,0)),"",VLOOKUP($B126,Rank!$B:$I,3,0)) -> 68 | I128: =IF(ISBLANK(VLOOKUP($B126,Rank!$B:$I,4,0)),"",VLOOKUP($B126,Rank!$B:$I,4,0)) -> 68 | K128: =IF(ISBLANK(VLOOKUP($B126,Rank!$B:$I,5,0)),"",VLOOKUP($B126,Rank!$B:$I,5,0)) -> 56 | M128: =IF(ISBLANK(VLOOKUP($B126,Rank!$B:$I,6,0)),"",VLOOKUP($B126,Rank!$B:$I,6,0)) -> 47 | O128: =IF(ISBLANK(VLOOKUP($B126,Rank!$B:$I,7,0)),"",VLOOKUP($B126,Rank!$B:$I,7,0)) -> 28 | Q128: =IF(ISBLANK(VLOOKUP($B126,Rank!$B:$I,8,0)),"",VLOOKUP($B126,Rank!$B:$I,8,0)) -> 68
A129: 42469759 | B129: 海外債-二倍ETF | C129: =IFERROR(VLOOKUP(A129,Raw!A:C,3,0),"") ->  | D129: =IFERROR(IF(INDEX(ALL,MATCH($C129,FUND,0),MATCH(D$1,Name,0))="","",INDEX(ALL,MATCH($C129,FUND,0),MATCH(D$1,Name,0))),"") ->  | R129: =IFERROR(IF(INDEX(ALL,MATCH($C129,FUND,0),MATCH(R$1,Name,0))="","",INDEX(ALL,MATCH($C129,FUND,0),MATCH(R$1,Name,0))),"") ->  | S129: =IFERROR(IF(INDEX(ALL,MATCH($C129,FUND,0),MATCH(S$1,Name,0))="","",INDEX(ALL,MATCH($C129,FUND,0),MATCH(S$1,Name,0))),"") ->  | T129: =IFERROR(IF(INDEX(ALL,MATCH($C129,FUND,0),MATCH(T$1,Name,0))="","",INDEX(ALL,MATCH($C129,FUND,0),MATCH(T$1,Name,0))),"") ->  | U129: =IFERROR(IF(INDEX(ALL,MATCH($C129,FUND,0),MATCH(U$1,Name,0))="","",INDEX(ALL,MATCH($C129,FUND,0),MATCH(U$1,Name,0))),"") ->  | V129: =IFERROR(IF(INDEX(ALL,MATCH($C129,FUND,0),MATCH(V$1,Name,0))="","",INDEX(ALL,MATCH($C129,FUND,0),MATCH(V$1,Name,0))),"") -> 
C130: AVERAGE | D130: =IFERROR(IF(INDEX(AVG_ALL,MATCH($B129,Category,0),MATCH(D$1,AVG,0))="","",INDEX(AVG_ALL,MATCH($B129,Category,0),MATCH(D$1,AVG,0))),"") -> 
C131: Funds in Category | E131: =IF(ISBLANK(VLOOKUP($B129,Rank!$B:$I,2,0)),"",VLOOKUP($B129,Rank!$B:$I,2,0)) ->  | G131: =IF(ISBLANK(VLOOKUP($B129,Rank!$B:$I,3,0)),"",VLOOKUP($B129,Rank!$B:$I,3,0)) ->  | I131: =IF(ISBLANK(VLOOKUP($B129,Rank!$B:$I,4,0)),"",VLOOKUP($B129,Rank!$B:$I,4,0)) ->  | K131: =IF(ISBLANK(VLOOKUP($B129,Rank!$B:$I,5,0)),"",VLOOKUP($B129,Rank!$B:$I,5,0)) ->  | M131: =IF(ISBLANK(VLOOKUP($B129,Rank!$B:$I,6,0)),"",VLOOKUP($B129,Rank!$B:$I,6,0)) ->  | O131: =IF(ISBLANK(VLOOKUP($B129,Rank!$B:$I,7,0)),"",VLOOKUP($B129,Rank!$B:$I,7,0)) ->  | Q131: =IF(ISBLANK(VLOOKUP($B129,Rank!$B:$I,8,0)),"",VLOOKUP($B129,Rank!$B:$I,8,0)) -> 
A132: 42469765 | B132: 海外債-反向ETF | C132: =IFERROR(VLOOKUP(A132,Raw!A:C,3,0),"") ->  | D132: =IFERROR(IF(INDEX(ALL,MATCH($C132,FUND,0),MATCH(D$1,Name,0))="","",INDEX(ALL,MATCH($C132,FUND,0),MATCH(D$1,Name,0))),"") ->  | R132: =IFERROR(IF(INDEX(ALL,MATCH($C132,FUND,0),MATCH(R$1,Name,0))="","",INDEX(ALL,MATCH($C132,FUND,0),MATCH(R$1,Name,0))),"") ->  | S132: =IFERROR(IF(INDEX(ALL,MATCH($C132,FUND,0),MATCH(S$1,Name,0))="","",INDEX(ALL,MATCH($C132,FUND,0),MATCH(S$1,Name,0))),"") ->  | T132: =IFERROR(IF(INDEX(ALL,MATCH($C132,FUND,0),MATCH(T$1,Name,0))="","",INDEX(ALL,MATCH($C132,FUND,0),MATCH(T$1,Name,0))),"") ->  | U132: =IFERROR(IF(INDEX(ALL,MATCH($C132,FUND,0),MATCH(U$1,Name,0))="","",INDEX(ALL,MATCH($C132,FUND,0),MATCH(U$1,Name,0))),"") ->  | V132: =IFERROR(IF(INDEX(ALL,MATCH($C132,FUND,0),MATCH(V$1,Name,0))="","",INDEX(ALL,MATCH($C132,FUND,0),MATCH(V$1,Name,0))),"") -> 
C133: AVERAGE | D133: =IFERROR(IF(INDEX(AVG_ALL,MATCH($B132,Category,0),MATCH(D$1,AVG,0))="","",INDEX(AVG_ALL,MATCH($B132,Category,0),MATCH(D$1,AVG,0))),"") -> 
C134: Funds in Category | E134: =IF(ISBLANK(VLOOKUP($B132,Rank!$B:$I,2,0)),"",VLOOKUP($B132,Rank!$B:$I,2,0)) ->  | G134: =IF(ISBLANK(VLOOKUP($B132,Rank!$B:$I,3,0)),"",VLOOKUP($B132,Rank!$B:$I,3,0)) ->  | I134: =IF(ISBLANK(VLOOKUP($B132,Rank!$B:$I,4,0)),"",VLOOKUP($B132,Rank!$B:$I,4,0)) ->  | K134: =IF(ISBLANK(VLOOKUP($B132,Rank!$B:$I,5,0)),"",VLOOKUP($B132,Rank!$B:$I,5,0)) ->  | M134: =IF(ISBLANK(VLOOKUP($B132,Rank!$B:$I,6,0)),"",VLOOKUP($B132,Rank!$B:$I,6,0)) ->  | O134: =IF(ISBLANK(VLOOKUP($B132,Rank!$B:$I,7,0)),"",VLOOKUP($B132,Rank!$B:$I,7,0)) ->  | Q134: =IF(ISBLANK(VLOOKUP($B132,Rank!$B:$I,8,0)),"",VLOOKUP($B132,Rank!$B:$I,8,0)) -> 
A135: 42398684 | B135: 跨國投資--歐洲 | C135: =IFERROR(VLOOKUP(A135,Raw!A:C,3,0),"") -> 元大已開發國家傘型證券投資信託基金之元大歐洲50證券投資信託基金 | D135: =IFERROR(IF(INDEX(ALL,MATCH($C135,FUND,0),MATCH(D$1,Name,0))="","",INDEX(ALL,MATCH($C135,FUND,0),MATCH(D$1,Name,0))),"") -> 11.54 | E135: 1 | F135: 20.66 | G135: 1 | H135: 16.97 | I135: 1 | J135: 31.98 | K135: 1 | L135: 33.12 | M135: 1 | N135: 60.8 | O135: 1 | P135: 11.54 | Q135: 1 | R135: =IFERROR(IF(INDEX(ALL,MATCH($C135,FUND,0),MATCH(R$1,Name,0))="","",INDEX(ALL,MATCH($C135,FUND,0),MATCH(R$1,Name,0))),"") -> 18.5705 | S135: =IFERROR(IF(INDEX(ALL,MATCH($C135,FUND,0),MATCH(S$1,Name,0))="","",INDEX(ALL,MATCH($C135,FUND,0),MATCH(S$1,Name,0))),"") -> 0.9161 | T135: =IFERROR(IF(INDEX(ALL,MATCH($C135,FUND,0),MATCH(T$1,Name,0))="","",INDEX(ALL,MATCH($C135,FUND,0),MATCH(T$1,Name,0))),"") -> 0.2275 | U135: =IFERROR(IF(INDEX(ALL,MATCH($C135,FUND,0),MATCH(U$1,Name,0))="","",INDEX(ALL,MATCH($C135,FUND,0),MATCH(U$1,Name,0))),"") -> 0.6215 | V135: =IFERROR(IF(INDEX(ALL,MATCH($C135,FUND,0),MATCH(V$1,Name,0))="","",INDEX(ALL,MATCH($C135,FUND,0),MATCH(V$1,Name,0))),"") -> 1.3312 | X135: 0.2277 | Y135: 93.88
C136: AVERAGE | D136: =IFERROR(IF(INDEX(AVG_ALL,MATCH($B135,Category,0),MATCH(D$1,AVG,0))="","",INDEX(AVG_ALL,MATCH($B135,Category,0),MATCH(D$1,AVG,0))),"") -> 10.67333333 | F136: 16.66666667 | H136: 19.87 | J136: 30.505 | L136: 29.62 | N136: 43.95 | P136: 10.67333333 | R136: =IFERROR(IF(INDEX(AVG_ALL,MATCH($B135,Category,0),MATCH(R$1,AVG,0))="","",INDEX(AVG_ALL,MATCH($B135,Category,0),MATCH(R$1,AVG,0))),"") -> 15.99985 | S136: =IFERROR(IF(INDEX(AVG_ALL,MATCH($B135,Category,0),MATCH(S$1,AVG,0))="","",INDEX(AVG_ALL,MATCH($B135,Category,0),MATCH(S$1,AVG,0))),"") -> 0.7369 | T136: =IFERROR(IF(INDEX(AVG_ALL,MATCH($B135,Category,0),MATCH(T$1,AVG,0))="","",INDEX(AVG_ALL,MATCH($B135,Category,0),MATCH(T$1,AVG,0))),"") -> 0.24545 | U136: =IFERROR(IF(INDEX(AVG_ALL,MATCH($B135,Category,0),MATCH(U$1,AVG,0))="","",INDEX(AVG_ALL,MATCH($B135,Category,0),MATCH(U$1,AVG,0))),"") -> 0.655 | V136: =IFERROR(IF(INDEX(AVG_ALL,MATCH($B135,Category,0),MATCH(V$1,AVG,0))="","",INDEX(AVG_ALL,MATCH($B135,Category,0),MATCH(V$1,AVG,0))),"") -> 1.5372 | X136: -0.041 | Y136: 71.17666667
C137: Funds in Category | E137: =IF(ISBLANK(VLOOKUP($B135,Rank!$B:$I,2,0)),"",VLOOKUP($B135,Rank!$B:$I,2,0)) -> 3 | G137: =IF(ISBLANK(VLOOKUP($B135,Rank!$B:$I,3,0)),"",VLOOKUP($B135,Rank!$B:$I,3,0)) -> 3 | I137: =IF(ISBLANK(VLOOKUP($B135,Rank!$B:$I,4,0)),"",VLOOKUP($B135,Rank!$B:$I,4,0)) -> 2 | K137: =IF(ISBLANK(VLOOKUP($B135,Rank!$B:$I,5,0)),"",VLOOKUP($B135,Rank!$B:$I,5,0)) -> 2 | M137: =IF(ISBLANK(VLOOKUP($B135,Rank!$B:$I,6,0)),"",VLOOKUP($B135,Rank!$B:$I,6,0)) -> 2 | O137: =IF(ISBLANK(VLOOKUP($B135,Rank!$B:$I,7,0)),"",VLOOKUP($B135,Rank!$B:$I,7,0)) -> 2 | Q137: =IF(ISBLANK(VLOOKUP($B135,Rank!$B:$I,8,0)),"",VLOOKUP($B135,Rank!$B:$I,8,0)) -> 3

Sheet Avg_all
A1: 基金類型 | B1: Category | C1: 季ROI | D1: 半年ROI | E1: 一年ROI | F1: 二年ROI | G1: 三年ROI | H1: 五年ROI | I1: 十年ROI | J1: 自今年以來ROI | K1: 最佳三個月ROI | L1: 最差三個月ROI | M1: 自成立以來ROI | N1: 年化標準差--24個月 | O1: beta--24個月 | P1: Sharpe Index-24個月 | Q1: Jensen Index-24個月 | R1: Treynor Index-24個月 | S1: IR--24個月（大分類） | T1: IR--24個月（細分類） | U1: 年化標準差--12個月 | V1: beta--12個月 | W1: Sharpe Index-12個月 | X1: Jensen Index-12個月 | Y1: Treynor Index-12個月 | Z1: IR--12個月（大分類） | AA1: IR--12個月（細分類）
A2: 不動產證券化 | B2: 不動產證券化 | C2: =IFERROR(AVERAGEIF(Raw!$D:$D,Avg_all!$A2,Raw!E:E),"") -> -0.05985294118 | D2: =IFERROR(AVERAGEIF(Raw!$D:$D,Avg_all!$A2,Raw!G:G),"") -> 9.522647059 | E2: =IFERROR(AVERAGEIF(Raw!$D:$D,Avg_all!$A2,Raw!I:I),"") -> 6.071764706 | F2: =IFERROR(AVERAGEIF(Raw!$D:$D,Avg_all!$A2,Raw!K:K),"") -> -8.001607143 | G2: =IFERROR(AVERAGEIF(Raw!$D:$D,Avg_all!$A2,Raw!M:M),"") -> 0.1308510638 | H2: =IFERROR(AVERAGEIF(Raw!$D:$D,Avg_all!$A2,Raw!O:O),"") -> 6.479642857 | I2: =IFERROR(AVERAGEIF(Raw!$D:$D,Avg_all!$A2,Raw!Q:Q),"") -> 37.614 | J2: =IFERROR(AVERAGEIF(Raw!$D:$D,Avg_all!$A2,Raw!S:S),"") -> -0.05985294118 | K2: =IFERROR(AVERAGEIF(Raw!$D:$D,Avg_all!$A2,Raw!U:U),"") -> 12.68941176 | L2: =IFERROR(AVERAGEIF(Raw!$D:$D,Avg_all!$A2,Raw!V:V),"") -> -14.34661765 | M2: =IFERROR(AVERAGEIF(Raw!$D:$D,Avg_all!$A2,Raw!W:W),"") -> 9.616176471 | N2: =IFERROR(AVERAGEIF(Raw!$D:$D,Avg_all!$A2,Raw!X:X),"") -> 17.0204375 | O2: =IFERROR(AVERAGEIF(Raw!$D:$D,Avg_all!$A2,Raw!Y:Y),"") ->  | P2: =IFERROR(AVERAGEIF(Raw!$D:$D,Avg_all!$A2,Raw!Z:Z),"") -> -0.06276071429 | Q2: =IFERROR(AVERAGEIF(Raw!$D:$D,Avg_all!$A2,Raw!AA:AA),"") ->  | R2: =IFERROR(AVERAGEIF(Raw!$D:$D,Avg_all!$A2,Raw!AB:AB),"") ->  | S2: =IFERROR(AVERAGEIF(Raw!$D:$D,Avg_all!$A2,Raw!AC:AC),"") ->  | T2: =IFERROR(AVERAGEIF(Raw!$D:$D,Avg_all!$A2,Raw!AD:AD),"") -> 0.01269107143 | U2: =IFERROR(AVERAGEIF(Raw!$D:$D,Avg_all!$A2,Raw!AE:AE),"") -> 14.95437647 | V2: =IFERROR(AVERAGEIF(Raw!$D:$D,Avg_all!$A2,Raw!AF:AF),"") ->  | W2: =IFERROR(AVERAGEIF(Raw!$D:$D,Avg_all!$A2,Raw!AG:AG),"") -> 0.1280544118 | X2: =IFERROR(AVERAGEIF(Raw!$D:$D,Avg_all!$A2,Raw!AH:AH),"") ->  | Y2: =IFERROR(AVERAGEIF(Raw!$D:$D,Avg_all!$A2,Raw!AI:AI),"") ->  | Z2: =IFERROR(AVERAGEIF(Raw!$D:$D,Avg_all!$A2,Raw!AJ:AJ),"") ->  | AA2: =IFERROR(AVERAGEIF(Raw!$D:$D,Avg_all!$A2,Raw!AK:AK),"") -> -0.01853529412
A3: 平衡--一般股票型 | B3: 平衡--一般股票型 | C3: =IFERROR(AVERAGEIF(Raw!$D:$D,Avg_all!$A3,Raw!E:E),"") -> 9.222 | D3: =IFERROR(AVERAGEIF(Raw!$D:$D,Avg_all!$A3,Raw!G:G),"") -> 17.025 | E3: =IFERROR(AVERAGEIF(Raw!$D:$D,Avg_all!$A3,Raw!I:I),"") -> 29.89631579 | F3: =IFERROR(AVERAGEIF(Raw!$D:$D,Avg_all!$A3,Raw!K:K),"") -> 22.89555556 | G3: =IFERROR(AVERAGEIF(Raw!$D:$D,Avg_all!$A3,Raw!M:M),"") -> 30.55533333 | H3: =IFERROR(AVERAGEIF(Raw!$D:$D,Avg_all!$A3,Raw!O:O),"") -> 98.57066667 | I3: =IFERROR(AVERAGEIF(Raw!$D:$D,Avg_all!$A3,Raw!Q:Q),"") -> 170.5686667 | J3: =IFERROR(AVERAGEIF(Raw!$D:$D,Avg_all!$A3,Raw!S:S),"") -> 9.222 | K3: =IFERROR(AVERAGEIF(Raw!$D:$D,Avg_all!$A3,Raw!U:U),"") -> 20.5955 | L3: =IFERROR(AVERAGEIF(Raw!$D:$D,Avg_all!$A3,Raw!V:V),"") -> -14.5565 | M3: =IFERROR(AVERAGEIF(Raw!$D:$D,Avg_all!$A3,Raw!W:W),"") -> 365.716 | N3: =IFERROR(AVERAGEIF(Raw!$D:$D,Avg_all!$A3,Raw!X:X),"") -> 19.14017778 | O3: =IFERROR(AVERAGEIF(Raw!$D:$D,Avg_all!$A3,Raw!Y:Y),"") -> 0.8110944444 | P3: =IFERROR(AVERAGEIF(Raw!$D:$D,Avg_all!$A3,Raw!Z:Z),"") -> 0.1609555556 | Q3: =IFERROR(AVERAGEIF(Raw!$D:$D,Avg_all!$A3,Raw!AA:AA),"") -> 0.07753888889 | R3: =IFERROR(AVERAGEIF(Raw!$D:$D,Avg_all!$A3,Raw!AB:AB),"") -> 1.103855556 | S3: =IFERROR(AVERAGEIF(Raw!$D:$D,Avg_all!$A3,Raw!AC:AC),"") -> -0.01427222222 | T3: =IFERROR(AVERAGEIF(Raw!$D:$D,Avg_all!$A3,Raw!AD:AD),"") -> -0.009738888889 | U3: =IFERROR(AVERAGEIF(Raw!$D:$D,Avg_all!$A3,Raw!AE:AE),"") -> 14.48929474 | V3: =IFERROR(AVERAGEIF(Raw!$D:$D,Avg_all!$A3,Raw!AF:AF),"") -> 0.7864578947 | W3: =IFERROR(AVERAGEIF(Raw!$D:$D,Avg_all!$A3,Raw!AG:AG),"") -> 0.5107842105 | X3: =IFERROR(AVERAGEIF(Raw!$D:$D,Avg_all!$A3,Raw!AH:AH),"") -> 0.3040421053 | Y3: =IFERROR(AVERAGEIF(Raw!$D:$D,Avg_all!$A3,Raw!AI:AI),"") -> 2.706610526 | Z3: =IFERROR(AVERAGEIF(Raw!$D:$D,Avg_all!$A3,Raw!AJ:AJ),"") -> -0.06107368421 | AA3: =IFERROR(AVERAGEIF(Raw!$D:$D,Avg_all!$A3,Raw!AK:AK),"") -> -0.06573684211
A4: 平衡--價值股票型 | B4: 平衡--價值股票型 | C4: =IFERROR(AVERAGEIF(Raw!$D:$D,Avg_all!$A4,Raw!E:E),"") -> 10.825 | D4: =IFERROR(AVERAGEIF(Raw!$D:$D,Avg_all!$A4,Raw!G:G),"") -> 17.2 | E4: =IFERROR(AVERAGEIF(Raw!$D:$D,Avg_all!$A4,Raw!I:I),"") -> 27.59 | F4: =IFERROR(AVERAGEIF(Raw!$D:$D,Avg_all!$A4,Raw!K:K),"") -> 22.9875 | G4: =IFERROR(AVERAGEIF(Raw!$D:$D,Avg_all!$A4,Raw!M:M),"") -> 34.77666667 | H4: =IFERROR(AVERAGEIF(Raw!$D:$D,Avg_all!$A4,Raw!O:O),"") -> 89.38 | I4: =IFERROR(AVERAGEIF(Raw!$D:$D,Avg_all!$A4,Raw!Q:Q),"") -> 114.13 | J4: =IFERROR(AVERAGEIF(Raw!$D:$D,Avg_all!$A4,Raw!S:S),"") -> 10.825 | K4: =IFERROR(AVERAGEIF(Raw!$D:$D,Avg_all!$A4,Raw!U:U),"") -> 16.035 | L4: =IFERROR(AVERAGEIF(Raw!$D:$D,Avg_all!$A4,Raw!V:V),"") -> -12.0775 | M4: =IFERROR(AVERAGEIF(Raw!$D:$D,Avg_all!$A4,Raw!W:W),"") -> 293.8075 | N4: =IFERROR(AVERAGEIF(Raw!$D:$D,Avg_all!$A4,Raw!X:X),"") -> 16.20175 | O4: =IFERROR(AVERAGEIF(Raw!$D:$D,Avg_all!$A4,Raw!Y:Y),"") -> 0.72465 | P4: =IFERROR(AVERAGEIF(Raw!$D:$D,Avg_all!$A4,Raw!Z:Z),"") -> 0.18725 | Q4: =IFERROR(AVERAGEIF(Raw!$D:$D,Avg_all!$A4,Raw!AA:AA),"") -> 0.147225 | R4: =IFERROR(AVERAGEIF(Raw!$D:$D,Avg_all!$A4,Raw!AB:AB),"") -> 1.2094 | S4: =IFERROR(AVERAGEIF(Raw!$D:$D,Avg_all!$A4,Raw!AC:AC),"") -> -0.00375 | T4: =IFERROR(AVERAGEIF(Raw!$D:$D,Avg_all!$A4,Raw!AD:AD),"") -> -0.045775 | U4: =IFERROR(AVERAGEIF(Raw!$D:$D,Avg_all!$A4,Raw!AE:AE),"") -> 12.20105 | V4: =IFERROR(AVERAGEIF(Raw!$D:$D,Avg_all!$A4,Raw!AF:AF),"") -> 0.723225 | W4: =IFERROR(AVERAGEIF(Raw!$D:$D,Avg_all!$A4,Raw!AG:AG),"") -> 0.573975 | X4: =IFERROR(AVERAGEIF(Raw!$D:$D,Avg_all!$A4,Raw!AH:AH),"") -> 0.301875 | Y4: =IFERROR(AVERAGEIF(Raw!$D:$D,Avg_all!$A4,Raw!AI:AI),"") -> 2.792875 | Z4: =IFERROR(AVERAGEIF(Raw!$D:$D,Avg_all!$A4,Raw!AJ:AJ),"") -> -0.1431 | AA4: =IFERROR(AVERAGEIF(Raw!$D:$D,Avg_all!$A4,Raw!AK:AK),"") -> -0.047325
A5: 平衡--模組操作型 | B5: 平衡--模組操作型 | C5: =IFERROR(AVERAGEIF(Raw!$D:$D,Avg_all!$A5,Raw!E:E),"") ->  | D5: =IFERROR(AVERAGEIF(Raw!$D:$D,Avg_all!$A5,Raw!G:G),"") ->  | E5: =IFERROR(AVERAGEIF(Raw!$D:$D,Avg_all!$A5,Raw!I:I),"") ->  | F5: =IFERROR(AVERAGEIF(Raw!$D:$D,Avg_all!$A5,Raw!K:K),"") ->  | G5: =IFERROR(AVERAGEIF(Raw!$D:$D,Avg_all!$A5,Raw!M:M),"") ->  | H5: =IFERROR(AVERAGEIF(Raw!$D:$D,Avg_all!$A5,Raw!O:O),"") ->  | I5: =IFERROR(AVERAGEIF(Raw!$D:$D,Avg_all!$A5,Raw!Q:Q),"") ->  | J5: =IFERROR(AVERAGEIF(Raw!$D:$D,Avg_all!$A5,Raw!S:S),"") ->  | K5: =IFERROR(AVERAGEIF(Raw!$D:$D,Avg_all!$A5,Raw!U:U),"") ->  | L5: =IFERROR(AVERAGEIF(Raw!$D:$D,Avg_all!$A5,Raw!V:V),"") ->  | M5: =IFERROR(AVERAGEIF(Raw!$D:$D,Avg_all!$A5,Raw!W:W),"") ->  | N5: =IFERROR(AVERAGEIF(Raw!$D:$D,Avg_all!$A5,Raw!X:X),"") ->  | O5: =IFERROR(AVERAGEIF(Raw!$D:$D,Avg_all!$A5,Raw!Y:Y),"") ->  | P5: =IFERROR(AVERAGEIF(Raw!$D:$D,Avg_all!$A5,Raw!Z:Z),"") ->  | Q5: =IFERROR(AVERAGEIF(Raw!$D:$D,Avg_all!$A5,Raw!AA:AA),"") ->  | R5: =IFERROR(AVERAGEIF(Raw!$D:$D,Avg_all!$A5,Raw!AB:AB),"") ->  | S5: =IFERROR(AVERAGEIF(Raw!$D:$D,Avg_all!$A5,Raw!AC:AC),"") ->  | T5: =IFERROR(AVERAGEIF(Raw!$D:$D,Avg_all!$A5,Raw!AD:AD),"") ->  | U5: =IFERROR(AVERAGEIF(Raw!$D:$D,Avg_all!$A5,Raw!AE:AE),"") ->  | V5: =IFERROR(AVERAGEIF(Raw!$D:$D,Avg_all!$A5,Raw!AF:AF),"") ->  | W5: =IFERROR(AVERAGEIF(Raw!$D:$D,Avg_all!$A5,Raw!AG:AG),"") ->  | X5: =IFERROR(AVERAGEIF(Raw!$D:$D,Avg_all!$A5,Raw!AH:AH),"") ->  | Y5: =IFERROR(AVERAGEIF(Raw!$D:$D,Avg_all!$A5,Raw!AI:AI),"") ->  | Z5: =IFERROR(AVERAGEIF(Raw!$D:$D,Avg_all!$A5,Raw!AJ:AJ),"") ->  | AA5: =IFERROR(AVERAGEIF(Raw!$D:$D,Avg_all!$A5,Raw!AK:AK),"") -> 
A6: 投資債--中國大陸 | B6: 投資債--中國大陸 | C6: =IFERROR(AVERAGEIF(Raw!$D:$D,Avg_all!$A6,Raw!E:E),"") -> 0.36875 | D6: =IFERROR(AVERAGEIF(Raw!$D:$D,Avg_all!$A6,Raw!G:G),"") -> 2.845 | E6: =IFERROR(AVERAGEIF(Raw!$D:$D,Avg_all!$A6,Raw!I:I),"") -> 1.85 | F6: =IFERROR(AVERAGEIF(Raw!$D:$D,Avg_all!$A6,Raw!K:K),"") -> 0.02375 | G6: =IFERROR(AVERAGEIF(Raw!$D:$D,Avg_all!$A6,Raw!M:M),"") -> -1.815 | H6: =IFERROR(AVERAGEIF(Raw!$D:$D,Avg_all!$A6,Raw!O:O),"") -> 2.51875 | I6: =IFERROR(AVERAGEIF(Raw!$D:$D,Avg_all!$A6,Raw!Q:Q),"") -> 16.35625 | J6: =IFERROR(AVERAGEIF(Raw!$D:$D,Avg_all!$A6,Raw!S:S),"") -> 0.36875 | K6: =IFERROR(AVERAGEIF(Raw!$D:$D,Avg_all!$A6,Raw!U:U),"") -> 2.855 | L6: =IFERROR(AVERAGEIF(Raw!$D:$D,Avg_all!$A6,Raw!V:V),"") -> -3.6375 | M6: =IFERROR(AVERAGEIF(Raw!$D:$D,Avg_all!$A6,Raw!W:W),"") -> 17.89 | N6: =IFERROR(AVERAGEIF(Raw!$D:$D,Avg_all!$A6,Raw!X:X),"") -> 3.02445 | O6: =IFERROR(AVERAGEIF(Raw!$D:$D,Avg_all!$A6,Raw!Y:Y),"") ->  | P6: =IFERROR(AVERAGEIF(Raw!$D:$D,Avg_all!$A6,Raw!Z:Z),"") -> -0.1364625 | Q6: =IFERROR(AVERAGEIF(Raw!$D:$D,Avg_all!$A6,Raw!AA:AA),"") ->  | R6: =IFERROR(AVERAGEIF(Raw!$D:$D,Avg_all!$A6,Raw!AB:AB),"") ->  | S6: =IFERROR(AVERAGEIF(Raw!$D:$D,Avg_all!$A6,Raw!AC:AC),"") ->  | T6: =IFERROR(AVERAGEIF(Raw!$D:$D,Avg_all!$A6,Raw!AD:AD),"") -> 0.018225 | U6: =IFERROR(AVERAGEIF(Raw!$D:$D,Avg_all!$A6,Raw!AE:AE),"") -> 2.456375 | V6: =IFERROR(AVERAGEIF(Raw!$D:$D,Avg_all!$A6,Raw!AF:AF),"") ->  | W6: =IFERROR(AVERAGEIF(Raw!$D:$D,Avg_all!$A6,Raw!AG:AG),"") -> 0.0802125 | X6: =IFERROR(AVERAGEIF(Raw!$D:$D,Avg_all!$A6,Raw!AH:AH),"") ->  | Y6: =IFERROR(AVERAGEIF(Raw!$D:$D,Avg_all!$A6,Raw!AI:AI),"") ->  | Z6: =IFERROR(AVERAGEIF(Raw!$D:$D,Avg_all!$A6,Raw!AJ:AJ),"") ->  | AA6: =IFERROR(AVERAGEIF(Raw!$D:$D,Avg_all!$A6,Raw!AK:AK),"") -> 0.1426
A7: 投資債--全球 | B7: 投資債--全球 | C7: =IFERROR(AVERAGEIF(Raw!$D:$D,Avg_all!$A7,Raw!E:E),"") -> 0.8598739496 | D7: =IFERROR(AVERAGEIF(Raw!$D:$D,Avg_all!$A7,Raw!G:G),"") -> 6.160090498 | E7: =IFERROR(AVERAGEIF(Raw!$D:$D,Avg_all!$A7,Raw!I:I),"") -> 5.007586207 | F7: =IFERROR(AVERAGEIF(Raw!$D:$D,Avg_all!$A7,Raw!K:K),"") -> 0.2541666667 | G7: =IFERROR(AVERAGEIF(Raw!$D:$D,Avg_all!$A7,Raw!M:M),"") -> -4.941515152 | H7: =IFERROR(AVERAGEIF(Raw!$D:$D,Avg_all!$A7,Raw!O:O),"") -> 0.9979166667 | I7: =IFERROR(AVERAGEIF(Raw!$D:$D,Avg_all!$A7,Raw!Q:Q),"") -> -3.011428571 | J7: =IFERROR(AVERAGEIF(Raw!$D:$D,Avg_all!$A7,Raw!S:S),"") -> 0.8598739496 | K7: =IFERROR(AVERAGEIF(Raw!$D:$D,Avg_all!$A7,Raw!U:U),"") -> 6.934033613 | L7: =IFERROR(AVERAGEIF(Raw!$D:$D,Avg_all!$A7,Raw!V:V),"") -> -6.521218487 | M7: =IFERROR(AVERAGEIF(Raw!$D:$D,Avg_all!$A7,Raw!W:W),"") -> -0.1139043825 | N7: =IFERROR(AVERAGEIF(Raw!$D:$D,Avg_all!$A7,Raw!X:X),"") -> 7.517672396 | O7: =IFERROR(AVERAGEIF(Raw!$D:$D,Avg_all!$A7,Raw!Y:Y),"") ->  | P7: =IFERROR(AVERAGEIF(Raw!$D:$D,Avg_all!$A7,Raw!Z:Z),"") -> -0.03911666667 | Q7: =IFERROR(AVERAGEIF(Raw!$D:$D,Avg_all!$A7,Raw!AA:AA),"") ->  | R7: =IFERROR(AVERAGEIF(Raw!$D:$D,Avg_all!$A7,Raw!AB:AB),"") ->  | S7: =IFERROR(AVERAGEIF(Raw!$D:$D,Avg_all!$A7,Raw!AC:AC),"") ->  | T7: =IFERROR(AVERAGEIF(Raw!$D:$D,Avg_all!$A7,Raw!AD:AD),"") -> -0.05926197917 | U7: =IFERROR(AVERAGEIF(Raw!$D:$D,Avg_all!$A7,Raw!AE:AE),"") -> 5.916101478 | V7: =IFERROR(AVERAGEIF(Raw!$D:$D,Avg_all!$A7,Raw!AF:AF),"") ->  | W7: =IFERROR(AVERAGEIF(Raw!$D:$D,Avg_all!$A7,Raw!AG:AG),"") -> 0.1934802956 | X7: =IFERROR(AVERAGEIF(Raw!$D:$D,Avg_all!$A7,Raw!AH:AH),"") ->  | Y7: =IFERROR(AVERAGEIF(Raw!$D:$D,Avg_all!$A7,Raw!AI:AI),"") ->  | Z7: =IFERROR(AVERAGEIF(Raw!$D:$D,Avg_all!$A7,Raw!AJ:AJ),"") ->  | AA7: =IFERROR(AVERAGEIF(Raw!$D:$D,Avg_all!$A7,Raw!AK:AK),"") -> -0.06664334975
A8: 投資債--全球新興 | B8: 投資債--全球新興 | C8: =IFERROR(AVERAGEIF(Raw!$D:$D,Avg_all!$A8,Raw!E:E),"") -> 2.364869565 | D8: =IFERROR(AVERAGEIF(Raw!$D:$D,Avg_all!$A8,Raw!G:G),"") -> 7.335478261 | E8: =IFERROR(AVERAGEIF(Raw!$D:$D,Avg_all!$A8,Raw!I:I),"") -> 7.844649123 | F8: =IFERROR(AVERAGEIF(Raw!$D:$D,Avg_all!$A8,Raw!K:K),"") -> 1.801382979 | G8: =IFERROR(AVERAGEIF(Raw!$D:$D,Avg_all!$A8,Raw!M:M),"") -> -5.156447368 | H8: =IFERROR(AVERAGEIF(Raw!$D:$D,Avg_all!$A8,Raw!O:O),"") -> 5.203214286 | I8: =IFERROR(AVERAGEIF(Raw!$D:$D,Avg_all!$A8,Raw!Q:Q),"") -> 31.61214286 | J8: =IFERROR(AVERAGEIF(Raw!$D:$D,Avg_all!$A8,Raw!S:S),"") -> 2.364869565 | K8: =IFERROR(AVERAGEIF(Raw!$D:$D,Avg_all!$A8,Raw!U:U),"") -> 8.448086957 | L8: =IFERROR(AVERAGEIF(Raw!$D:$D,Avg_all!$A8,Raw!V:V),"") -> -8.413652174 | M8: =IFERROR(AVERAGEIF(Raw!$D:$D,Avg_all!$A8,Raw!W:W),"") -> 2.043217391 | N8: =IFERROR(AVERAGEIF(Raw!$D:$D,Avg_all!$A8,Raw!X:X),"") -> 8.73633617 | O8: =IFERROR(AVERAGEIF(Raw!$D:$D,Avg_all!$A8,Raw!Y:Y),"") ->  | P8: =IFERROR(AVERAGEIF(Raw!$D:$D,Avg_all!$A8,Raw!Z:Z),"") -> -0.01275 | Q8: =IFERROR(AVERAGEIF(Raw!$D:$D,Avg_all!$A8,Raw!AA:AA),"") ->  | R8: =IFERROR(AVERAGEIF(Raw!$D:$D,Avg_all!$A8,Raw!AB:AB),"") ->  | S8: =IFERROR(AVERAGEIF(Raw!$D:$D,Avg_all!$A8,Raw!AC:AC),"") ->  | T8: =IFERROR(AVERAGEIF(Raw!$D:$D,Avg_all!$A8,Raw!AD:AD),"") -> 0.006689361702 | U8: =IFERROR(AVERAGEIF(Raw!$D:$D,Avg_all!$A8,Raw!AE:AE),"") -> 6.158035088 | V8: =IFERROR(AVERAGEIF(Raw!$D:$D,Avg_all!$A8,Raw!AF:AF),"") ->  | W8: =IFERROR(AVERAGEIF(Raw!$D:$D,Avg_all!$A8,Raw!AG:AG),"") -> 0.2876763158 | X8: =IFERROR(AVERAGEIF(Raw!$D:$D,Avg_all!$A8,Raw!AH:AH),"") ->  | Y8: =IFERROR(AVERAGEIF(Raw!$D:$D,Avg_all!$A8,Raw!AI:AI),"") ->  | Z8: =IFERROR(AVERAGEIF(Raw!$D:$D,Avg_all!$A8,Raw!AJ:AJ),"") ->  | AA8: =IFERROR(AVERAGEIF(Raw!$D:$D,Avg_all!$A8,Raw!AK:AK),"") -> -0.1096192982
A9: 投資債--其他 | B9: 投資債--其他 | C9: =IFERROR(AVERAGEIF(Raw!$D:$D,Avg_all!$A9,Raw!E:E),"") -> -0.4852631579 | D9: =IFERROR(AVERAGEIF(Raw!$D:$D,Avg_all!$A9,Raw!G:G),"") -> 5.947894737 | E9: =IFERROR(AVERAGEIF(Raw!$D:$D,Avg_all!$A9,Raw!I:I),"") -> 1.013157895 | F9: =IFERROR(AVERAGEIF(Raw!$D:$D,Avg_all!$A9,Raw!K:K),"") -> -7.358421053 | G9: =IFERROR(AVERAGEIF(Raw!$D:$D,Avg_all!$A9,Raw!M:M),"") -> -3.642857143 | H9: =IFERROR(AVERAGEIF(Raw!$D:$D,Avg_all!$A9,Raw!O:O),"") -> 2.416 | I9: =IFERROR(AVERAGEIF(Raw!$D:$D,Avg_all!$A9,Raw!Q:Q),"") -> 7.62 | J9: =IFERROR(AVERAGEIF(Raw!$D:$D,Avg_all!$A9,Raw!S:S),"") -> -0.4852631579 | K9: =IFERROR(AVERAGEIF(Raw!$D:$D,Avg_all!$A9,Raw!U:U),"") -> 9.259473684 | L9: =IFERROR(AVERAGEIF(Raw!$D:$D,Avg_all!$A9,Raw!V:V),"") -> -10.80736842 | M9: =IFERROR(AVERAGEIF(Raw!$D:$D,Avg_all!$A9,Raw!W:W),"") -> -6.894736842 | N9: =IFERROR(AVERAGEIF(Raw!$D:$D,Avg_all!$A9,Raw!X:X),"") -> 11.14952105 | O9: =IFERROR(AVERAGEIF(Raw!$D:$D,Avg_all!$A9,Raw!Y:Y),"") ->  | P9: =IFERROR(AVERAGEIF(Raw!$D:$D,Avg_all!$A9,Raw!Z:Z),"") -> -0.09910526316 | Q9: =IFERROR(AVERAGEIF(Raw!$D:$D,Avg_all!$A9,Raw!AA:AA),"") ->  | R9: =IFERROR(AVERAGEIF(Raw!$D:$D,Avg_all!$A9,Raw!AB:AB),"") ->  | S9: =IFERROR(AVERAGEIF(Raw!$D:$D,Avg_all!$A9,Raw!AC:AC),"") ->  | T9: =IFERROR(AVERAGEIF(Raw!$D:$D,Avg_all!$A9,Raw!AD:AD),"") -> -0.09671578947 | U9: =IFERROR(AVERAGEIF(Raw!$D:$D,Avg_all!$A9,Raw!AE:AE),"") -> 9.142547368 | V9: =IFERROR(AVERAGEIF(Raw!$D:$D,Avg_all!$A9,Raw!AF:AF),"") ->  | W9: =IFERROR(AVERAGEIF(Raw!$D:$D,Avg_all!$A9,Raw!AG:AG),"") -> 0.01685263158 | X9: =IFERROR(AVERAGEIF(Raw!$D:$D,Avg_all!$A9,Raw!AH:AH),"") ->  | Y9: =IFERROR(AVERAGEIF(Raw!$D:$D,Avg_all!$A9,Raw!AI:AI),"") ->  | Z9: =IFERROR(AVERAGEIF(Raw!$D:$D,Avg_all!$A9,Raw!AJ:AJ),"") ->  | AA9: =IFERROR(AVERAGEIF(Raw!$D:$D,Avg_all!$A9,Raw!AK:AK),"") -> -0.08976315789
A10: 投資債--美國 | B10: 投資債--美國 | C10: =IFERROR(AVERAGEIF(Raw!$D:$D,Avg_all!$A10,Raw!E:E),"") -> 0.895 | D10: =IFERROR(AVERAGEIF(Raw!$D:$D,Avg_all!$A10,Raw!G:G),"") -> 5.653666667 | E10: =IFERROR(AVERAGEIF(Raw!$D:$D,Avg_all!$A10,Raw!I:I),"") -> 3.115172414 | F10: =IFERROR(AVERAGEIF(Raw!$D:$D,Avg_all!$A10,Raw!K:K),"") -> -1.6755 | G10: =IFERROR(AVERAGEIF(Raw!$D:$D,Avg_all!$A10,Raw!M:M),"") -> -5.765789474 | H10: =IFERROR(AVERAGEIF(Raw!$D:$D,Avg_all!$A10,Raw!O:O),"") -> -3.23 | I10: =IFERROR(AVERAGEIF(Raw!$D:$D,Avg_all!$A10,Raw!Q:Q),"") -> 0.705 | J10: =IFERROR(AVERAGEIF(Raw!$D:$D,Avg_all!$A10,Raw!S:S),"") -> 0.895 | K10: =IFERROR(AVERAGEIF(Raw!$D:$D,Avg_all!$A10,Raw!U:U),"") -> 7.306 | L10: =IFERROR(AVERAGEIF(Raw!$D:$D,Avg_all!$A10,Raw!V:V),"") -> -6.406666667 | M10: =IFERROR(AVERAGEIF(Raw!$D:$D,Avg_all!$A10,Raw!W:W),"") -> 0.442 | N10: =IFERROR(AVERAGEIF(Raw!$D:$D,Avg_all!$A10,Raw!X:X),"") -> 8.629675 | O10: =IFERROR(AVERAGEIF(Raw!$D:$D,Avg_all!$A10,Raw!Y:Y),"") ->  | P10: =IFERROR(AVERAGEIF(Raw!$D:$D,Avg_all!$A10,Raw!Z:Z),"") -> -0.03374 | Q10: =IFERROR(AVERAGEIF(Raw!$D:$D,Avg_all!$A10,Raw!AA:AA),"") ->  | R10: =IFERROR(AVERAGEIF(Raw!$D:$D,Avg_all!$A10,Raw!AB:AB),"") ->  | S10: =IFERROR(AVERAGEIF(Raw!$D:$D,Avg_all!$A10,Raw!AC:AC),"") ->  | T10: =IFERROR(AVERAGEIF(Raw!$D:$D,Avg_all!$A10,Raw!AD:AD),"") -> 0.006345 | U10: =IFERROR(AVERAGEIF(Raw!$D:$D,Avg_all!$A10,Raw!AE:AE),"") -> 6.602544828 | V10: =IFERROR(AVERAGEIF(Raw!$D:$D,Avg_all!$A10,Raw!AF:AF),"") ->  | W10: =IFERROR(AVERAGEIF(Raw!$D:$D,Avg_all!$A10,Raw!AG:AG),"") -> 0.126462069 | X10: =IFERROR(AVERAGEIF(Raw!$D:$D,Avg_all!$A10,Raw!AH:AH),"") ->  | Y10: =IFERROR(AVERAGEIF(Raw!$D:$D,Avg_all!$A10,Raw!AI:AI),"") ->  | Z10: =IFERROR(AVERAGEIF(Raw!$D:$D,Avg_all!$A10,Raw!AJ:AJ),"") ->  | AA10: =IFERROR(AVERAGEIF(Raw!$D:$D,Avg_all!$A10,Raw!AK:AK),"") -> 0.04546206897
A11: 投資債--短期 | B11: 投資債--短期 | C11: =IFERROR(AVERAGEIF(Raw!$D:$D,Avg_all!$A11,Raw!E:E),"") -> 1.717777778 | D11: =IFERROR(AVERAGEIF(Raw!$D:$D,Avg_all!$A11,Raw!G:G),"") -> 3.47 | E11: =IFERROR(AVERAGEIF(Raw!$D:$D,Avg_all!$A11,Raw!I:I),"") -> 3.5925 | F11: =IFERROR(AVERAGEIF(Raw!$D:$D,Avg_all!$A11,Raw!K:K),"") -> 4.827142857 | G11: =IFERROR(AVERAGEIF(Raw!$D:$D,Avg_all!$A11,Raw!M:M),"") -> 4.014285714 | H11: =IFERROR(AVERAGEIF(Raw!$D:$D,Avg_all!$A11,Raw!O:O),"") -> 13.19428571 | I11: =IFERROR(AVERAGEIF(Raw!$D:$D,Avg_all!$A11,Raw!Q:Q),"") -> 47.9425 | J11: =IFERROR(AVERAGEIF(Raw!$D:$D,Avg_all!$A11,Raw!S:S),"") -> 1.717777778 | K11: =IFERROR(AVERAGEIF(Raw!$D:$D,Avg_all!$A11,Raw!U:U),"") -> 3.553888889 | L11: =IFERROR(AVERAGEIF(Raw!$D:$D,Avg_all!$A11,Raw!V:V),"") -> -1.048333333 | M11: =IFERROR(AVERAGEIF(Raw!$D:$D,Avg_all!$A11,Raw!W:W),"") -> 14.3145 | N11: =IFERROR(AVERAGEIF(Raw!$D:$D,Avg_all!$A11,Raw!X:X),"") -> 3.102085714 | O11: =IFERROR(AVERAGEIF(Raw!$D:$D,Avg_all!$A11,Raw!Y:Y),"") ->  | P11: =IFERROR(AVERAGEIF(Raw!$D:$D,Avg_all!$A11,Raw!Z:Z),"") -> 0.1151428571 | Q11: =IFERROR(AVERAGEIF(Raw!$D:$D,Avg_all!$A11,Raw!AA:AA),"") ->  | R11: =IFERROR(AVERAGEIF(Raw!$D:$D,Avg_all!$A11,Raw!AB:AB),"") ->  | S11: =IFERROR(AVERAGEIF(Raw!$D:$D,Avg_all!$A11,Raw!AC:AC),"") ->  | T11: =IFERROR(AVERAGEIF(Raw!$D:$D,Avg_all!$A11,Raw!AD:AD),"") -> 0.08665714286 | U11: =IFERROR(AVERAGEIF(Raw!$D:$D,Avg_all!$A11,Raw!AE:AE),"") -> 3.19015 | V11: =IFERROR(AVERAGEIF(Raw!$D:$D,Avg_all!$A11,Raw!AF:AF),"") ->  | W11: =IFERROR(AVERAGEIF(Raw!$D:$D,Avg_all!$A11,Raw!AG:AG),"") -> 0.2475375 | X11: =IFERROR(AVERAGEIF(Raw!$D:$D,Avg_all!$A11,Raw!AH:AH),"") ->  | Y11: =IFERROR(AVERAGEIF(Raw!$D:$D,Avg_all!$A11,Raw!AI:AI),"") ->  | Z11: =IFERROR(AVERAGEIF(Raw!$D:$D,Avg_all!$A11,Raw!AJ:AJ),"") ->  | AA11: =IFERROR(AVERAGEIF(Raw!$D:$D,Avg_all!$A11,Raw!AK:AK),"") -> 0.091775
A12: 投資債--新興亞洲 | B12: 投資債--新興亞洲 | C12: =IFERROR(AVERAGEIF(Raw!$D:$D,Avg_all!$A12,Raw!E:E),"") -> 2.61046875 | D12: =IFERROR(AVERAGEIF(Raw!$D:$D,Avg_all!$A12,Raw!G:G),"") -> 5.4728125 | E12: =IFERROR(AVERAGEIF(Raw!$D:$D,Avg_all!$A12,Raw!I:I),"") -> 5.2384375 | F12: =IFERROR(AVERAGEIF(Raw!$D:$D,Avg_all!$A12,Raw!K:K),"") -> 2.721428571 | G12: =IFERROR(AVERAGEIF(Raw!$D:$D,Avg_all!$A12,Raw!M:M),"") -> -4.584603175 | H12: =IFERROR(AVERAGEIF(Raw!$D:$D,Avg_all!$A12,Raw!O:O),"") -> 1.452222222 | I12: =IFERROR(AVERAGEIF(Raw!$D:$D,Avg_all!$A12,Raw!Q:Q),"") -> 18.52 | J12: =IFERROR(AVERAGEIF(Raw!$D:$D,Avg_all!$A12,Raw!S:S),"") -> 2.61046875 | K12: =IFERROR(AVERAGEIF(Raw!$D:$D,Avg_all!$A12,Raw!U:U),"") -> 9.43265625 | L12: =IFERROR(AVERAGEIF(Raw!$D:$D,Avg_all!$A12,Raw!V:V),"") -> -6.90046875 | M12: =IFERROR(AVERAGEIF(Raw!$D:$D,Avg_all!$A12,Raw!W:W),"") -> 3.5971875 | N12: =IFERROR(AVERAGEIF(Raw!$D:$D,Avg_all!$A12,Raw!X:X),"") -> 7.071587302 | O12: =IFERROR(AVERAGEIF(Raw!$D:$D,Avg_all!$A12,Raw!Y:Y),"") ->  | P12: =IFERROR(AVERAGEIF(Raw!$D:$D,Avg_all!$A12,Raw!Z:Z),"") -> -0.002507936508 | Q12: =IFERROR(AVERAGEIF(Raw!$D:$D,Avg_all!$A12,Raw!AA:AA),"") ->  | R12: =IFERROR(AVERAGEIF(Raw!$D:$D,Avg_all!$A12,Raw!AB:AB),"") ->  | S12: =IFERROR(AVERAGEIF(Raw!$D:$D,Avg_all!$A12,Raw!AC:AC),"") ->  | T12: =IFERROR(AVERAGEIF(Raw!$D:$D,Avg_all!$A12,Raw!AD:AD),"") -> -0.05404603175 | U12: =IFERROR(AVERAGEIF(Raw!$D:$D,Avg_all!$A12,Raw!AE:AE),"") -> 4.722573437 | V12: =IFERROR(AVERAGEIF(Raw!$D:$D,Avg_all!$A12,Raw!AF:AF),"") ->  | W12: =IFERROR(AVERAGEIF(Raw!$D:$D,Avg_all!$A12,Raw!AG:AG),"") -> 0.22915625 | X12: =IFERROR(AVERAGEIF(Raw!$D:$D,Avg_all!$A12,Raw!AH:AH),"") ->  | Y12: =IFERROR(AVERAGEIF(Raw!$D:$D,Avg_all!$A12,Raw!AI:AI),"") ->  | Z12: =IFERROR(AVERAGEIF(Raw!$D:$D,Avg_all!$A12,Raw!AJ:AJ),"") ->  | AA12: =IFERROR(AVERAGEIF(Raw!$D:$D,Avg_all!$A12,Raw!AK:AK),"") -> -0.0745796875
A13: 固定收益 | B13: 固定收益 | C13: =IFERROR(AVERAGEIF(Raw!$D:$D,Avg_all!$A13,Raw!E:E),"") -> 0.19 | D13: =IFERROR(AVERAGEIF(Raw!$D:$D,Avg_all!$A13,Raw!G:G),"") -> 0.55 | E13: =IFERROR(AVERAGEIF(Raw!$D:$D,Avg_all!$A13,Raw!I:I),"") -> 1.75 | F13: =IFERROR(AVERAGEIF(Raw!$D:$D,Avg_all!$A13,Raw!K:K),"") -> 1.26 | G13: =IFERROR(AVERAGEIF(Raw!$D:$D,Avg_all!$A13,Raw!M:M),"") -> 0.75 | H13: =IFERROR(AVERAGEIF(Raw!$D:$D,Avg_all!$A13,Raw!O:O),"") -> 1.96 | I13: =IFERROR(AVERAGEIF(Raw!$D:$D,Avg_all!$A13,Raw!Q:Q),"") -> 5.01 | J13: =IFERROR(AVERAGEIF(Raw!$D:$D,Avg_all!$A13,Raw!S:S),"") -> 0.19 | K13: =IFERROR(AVERAGEIF(Raw!$D:$D,Avg_all!$A13,Raw!U:U),"") -> 0.95 | L13: =IFERROR(AVERAGEIF(Raw!$D:$D,Avg_all!$A13,Raw!V:V),"") -> -1.16 | M13: =IFERROR(AVERAGEIF(Raw!$D:$D,Avg_all!$A13,Raw!W:W),"") -> 59.04 | N13: =IFERROR(AVERAGEIF(Raw!$D:$D,Avg_all!$A13,Raw!X:X),"") -> 0.7017 | O13: =IFERROR(AVERAGEIF(Raw!$D:$D,Avg_all!$A13,Raw!Y:Y),"") ->  | P13: =IFERROR(AVERAGEIF(Raw!$D:$D,Avg_all!$A13,Raw!Z:Z),"") -> -0.1323 | Q13: =IFERROR(AVERAGEIF(Raw!$D:$D,Avg_all!$A13,Raw!AA:AA),"") ->  | R13: =IFERROR(AVERAGEIF(Raw!$D:$D,Avg_all!$A13,Raw!AB:AB),"") ->  | S13: =IFERROR(AVERAGEIF(Raw!$D:$D,Avg_all!$A13,Raw!AC:AC),"") ->  | T13: =IFERROR(AVERAGEIF(Raw!$D:$D,Avg_all!$A13,Raw!AD:AD),"") ->  | U13: =IFERROR(AVERAGEIF(Raw!$D:$D,Avg_all!$A13,Raw!AE:AE),"") -> 0.4926 | V13: =IFERROR(AVERAGEIF(Raw!$D:$D,Avg_all!$A13,Raw!AF:AF),"") ->  | W13: =IFERROR(AVERAGEIF(Raw!$D:$D,Avg_all!$A13,Raw!AG:AG),"") -> 0.3727 | X13: =IFERROR(AVERAGEIF(Raw!$D:$D,Avg_all!$A13,Raw!AH:AH),"") ->  | Y13: =IFERROR(AVERAGEIF(Raw!$D:$D,Avg_all!$A13,Raw!AI:AI),"") ->  | Z13: =IFERROR(AVERAGEIF(Raw!$D:$D,Avg_all!$A13,Raw!AJ:AJ),"") ->  | AA13: =IFERROR(AVERAGEIF(Raw!$D:$D,Avg_all!$A13,Raw!AK:AK),"") -> 
A14: 保本型 | B14: 保本型 | C14: =IFERROR(AVERAGEIF(Raw!$D:$D,Avg_all!$A14,Raw!E:E),"") -> 0.588 | D14: =IFERROR(AVERAGEIF(Raw!$D:$D,Avg_all!$A14,Raw!G:G),"") -> 6.574 | E14: =IFERROR(AVERAGEIF(Raw!$D:$D,Avg_all!$A14,Raw!I:I),"") -> 6.276 | F14: =IFERROR(AVERAGEIF(Raw!$D:$D,Avg_all!$A14,Raw!K:K),"") -> 2.4475 | G14: =IFERROR(AVERAGEIF(Raw!$D:$D,Avg_all!$A14,Raw!M:M),"") -> 3.42 | H14: =IFERROR(AVERAGEIF(Raw!$D:$D,Avg_all!$A14,Raw!O:O),"") -> 9.34 | I14: =IFERROR(AVERAGEIF(Raw!$D:$D,Avg_all!$A14,Raw!Q:Q),"") ->  | J14: =IFERROR(AVERAGEIF(Raw!$D:$D,Avg_all!$A14,Raw!S:S),"") -> 0.588 | K14: =IFERROR(AVERAGEIF(Raw!$D:$D,Avg_all!$A14,Raw!U:U),"") -> 6.604 | L14: =IFERROR(AVERAGEIF(Raw!$D:$D,Avg_all!$A14,Raw!V:V),"") -> -7.046 | M14: =IFERROR(AVERAGEIF(Raw!$D:$D,Avg_all!$A14,Raw!W:W),"") -> 15.896 | N14: =IFERROR(AVERAGEIF(Raw!$D:$D,Avg_all!$A14,Raw!X:X),"") -> 7.571325 | O14: =IFERROR(AVERAGEIF(Raw!$D:$D,Avg_all!$A14,Raw!Y:Y),"") -> 0.330075 | P14: =IFERROR(AVERAGEIF(Raw!$D:$D,Avg_all!$A14,Raw!Z:Z),"") -> -0.0018 | Q14: =IFERROR(AVERAGEIF(Raw!$D:$D,Avg_all!$A14,Raw!AA:AA),"") -> -0.220525 | R14: =IFERROR(AVERAGEIF(Raw!$D:$D,Avg_all!$A14,Raw!AB:AB),"") -> 0.039 | S14: =IFERROR(AVERAGEIF(Raw!$D:$D,Avg_all!$A14,Raw!AC:AC),"") ->  | T14: =IFERROR(AVERAGEIF(Raw!$D:$D,Avg_all!$A14,Raw!AD:AD),"") -> -0.032975 | U14: =IFERROR(AVERAGEIF(Raw!$D:$D,Avg_all!$A14,Raw!AE:AE),"") -> 5.16466 | V14: =IFERROR(AVERAGEIF(Raw!$D:$D,Avg_all!$A14,Raw!AF:AF),"") -> 0.27616 | W14: =IFERROR(AVERAGEIF(Raw!$D:$D,Avg_all!$A14,Raw!AG:AG),"") -> 0.63978 | X14: =IFERROR(AVERAGEIF(Raw!$D:$D,Avg_all!$A14,Raw!AH:AH),"") -> -0.12176 | Y14: =IFERROR(AVERAGEIF(Raw!$D:$D,Avg_all!$A14,Raw!AI:AI),"") -> -126.26412 | Z14: =IFERROR(AVERAGEIF(Raw!$D:$D,Avg_all!$A14,Raw!AJ:AJ),"") ->  | AA14: =IFERROR(AVERAGEIF(Raw!$D:$D,Avg_all!$A14,Raw!AK:AK),"") -> -0.00246
A15: 海外貨幣市場 | B15: 海外貨幣市場 | C15: =IFERROR(AVERAGEIF(Raw!$D:$D,Avg_all!$A15,Raw!E:E),"") -> 1.685384615 | D15: =IFERROR(AVERAGEIF(Raw!$D:$D,Avg_all!$A15,Raw!G:G),"") -> 1.307692308 | E15: =IFERROR(AVERAGEIF(Raw!$D:$D,Avg_all!$A15,Raw!I:I),"") -> 3.110769231 | F15: =IFERROR(AVERAGEIF(Raw!$D:$D,Avg_all!$A15,Raw!K:K),"") -> 5.355384615 | G15: =IFERROR(AVERAGEIF(Raw!$D:$D,Avg_all!$A15,Raw!M:M),"") -> 7.833076923 | H15: =IFERROR(AVERAGEIF(Raw!$D:$D,Avg_all!$A15,Raw!O:O),"") -> 9.367692308 | I15: =IFERROR(AVERAGEIF(Raw!$D:$D,Avg_all!$A15,Raw!Q:Q),"") -> 23.22333333 | J15: =IFERROR(AVERAGEIF(Raw!$D:$D,Avg_all!$A15,Raw!S:S),"") -> 1.685384615 | K15: =IFERROR(AVERAGEIF(Raw!$D:$D,Avg_all!$A15,Raw!U:U),"") -> 3.263846154 | L15: =IFERROR(AVERAGEIF(Raw!$D:$D,Avg_all!$A15,Raw!V:V),"") -> -1.971538462 | M15: =IFERROR(AVERAGEIF(Raw!$D:$D,Avg_all!$A15,Raw!W:W),"") -> 18.96076923 | N15: =IFERROR(AVERAGEIF(Raw!$D:$D,Avg_all!$A15,Raw!X:X),"") -> 2.730046154 | O15: =IFERROR(AVERAGEIF(Raw!$D:$D,Avg_all!$A15,Raw!Y:Y),"") ->  | P15: =IFERROR(AVERAGEIF(Raw!$D:$D,Avg_all!$A15,Raw!Z:Z),"") -> -0.4079692308 | Q15: =IFERROR(AVERAGEIF(Raw!$D:$D,Avg_all!$A15,Raw!AA:AA),"") ->  | R15: =IFERROR(AVERAGEIF(Raw!$D:$D,Avg_all!$A15,Raw!AB:AB),"") ->  | S15: =IFERROR(AVERAGEIF(Raw!$D:$D,Avg_all!$A15,Raw!AC:AC),"") ->  | T15: =IFERROR(AVERAGEIF(Raw!$D:$D,Avg_all!$A15,Raw!AD:AD),"") -> -0.04792307692 | U15: =IFERROR(AVERAGEIF(Raw!$D:$D,Avg_all!$A15,Raw!AE:AE),"") -> 2.348861538 | V15: =IFERROR(AVERAGEIF(Raw!$D:$D,Avg_all!$A15,Raw!AF:AF),"") ->  | W15: =IFERROR(AVERAGEIF(Raw!$D:$D,Avg_all!$A15,Raw!AG:AG),"") -> 0.9043230769 | X15: =IFERROR(AVERAGEIF(Raw!$D:$D,Avg_all!$A15,Raw!AH:AH),"") ->  | Y15: =IFERROR(AVERAGEIF(Raw!$D:$D,Avg_all!$A15,Raw!AI:AI),"") ->  | Z15: =IFERROR(AVERAGEIF(Raw!$D:$D,Avg_all!$A15,Raw!AJ:AJ),"") ->  | AA15: =IFERROR(AVERAGEIF(Raw!$D:$D,Avg_all!$A15,Raw!AK:AK),"") -> -0.07688461538
A16: 高收債--中國大陸 | B16: 高收債--中國大陸 | C16: =IFERROR(AVERAGEIF(Raw!$D:$D,Avg_all!$A16,Raw!E:E),"") ->  | D16: =IFERROR(AVERAGEIF(Raw!$D:$D,Avg_all!$A16,Raw!G:G),"") ->  | E16: =IFERROR(AVERAGEIF(Raw!$D:$D,Avg_all!$A16,Raw!I:I),"") ->  | F16: =IFERROR(AVERAGEIF(Raw!$D:$D,Avg_all!$A16,Raw!K:K),"") ->  | G16: =IFERROR(AVERAGEIF(Raw!$D:$D,Avg_all!$A16,Raw!M:M),"") ->  | H16: =IFERROR(AVERAGEIF(Raw!$D:$D,Avg_all!$A16,Raw!O:O),"") ->  | I16: =IFERROR(AVERAGEIF(Raw!$D:$D,Avg_all!$A16,Raw!Q:Q),"") ->  | J16: =IFERROR(AVERAGEIF(Raw!$D:$D,Avg_all!$A16,Raw!S:S),"") ->  | K16: =IFERROR(AVERAGEIF(Raw!$D:$D,Avg_all!$A16,Raw!U:U),"") ->  | L16: =IFERROR(AVERAGEIF(Raw!$D:$D,Avg_all!$A16,Raw!V:V),"") ->  | M16: =IFERROR(AVERAGEIF(Raw!$D:$D,Avg_all!$A16,Raw!W:W),"") ->  | N16: =IFERROR(AVERAGEIF(Raw!$D:$D,Avg_all!$A16,Raw!X:X),"") ->  | O16: =IFERROR(AVERAGEIF(Raw!$D:$D,Avg_all!$A16,Raw!Y:Y),"") ->  | P16: =IFERROR(AVERAGEIF(Raw!$D:$D,Avg_all!$A16,Raw!Z:Z),"") ->  | Q16: =IFERROR(AVERAGEIF(Raw!$D:$D,Avg_all!$A16,Raw!AA:AA),"") ->  | R16: =IFERROR(AVERAGEIF(Raw!$D:$D,Avg_all!$A16,Raw!AB:AB),"") ->  | S16: =IFERROR(AVERAGEIF(Raw!$D:$D,Avg_all!$A16,Raw!AC:AC),"") ->  | T16: =IFERROR(AVERAGEIF(Raw!$D:$D,Avg_all!$A16,Raw!AD:AD),"") ->  | U16: =IFERROR(AVERAGEIF(Raw!$D:$D,Avg_all!$A16,Raw!AE:AE),"") ->  | V16: =IFERROR(AVERAGEIF(Raw!$D:$D,Avg_all!$A16,Raw!AF:AF),"") ->  | W16: =IFERROR(AVERAGEIF(Raw!$D:$D,Avg_all!$A16,Raw!AG:AG),"") ->  | X16: =IFERROR(AVERAGEIF(Raw!$D:$D,Avg_all!$A16,Raw!AH:AH),"") ->  | Y16: =IFERROR(AVERAGEIF(Raw!$D:$D,Avg_all!$A16,Raw!AI:AI),"") ->  | Z16: =IFERROR(AVERAGEIF(Raw!$D:$D,Avg_all!$A16,Raw!AJ:AJ),"") ->  | AA16: =IFERROR(AVERAGEIF(Raw!$D:$D,Avg_all!$A16,Raw!AK:AK),"") -> 
A17: 高收債--全球 | B17: 高收債--全球 | C17: =IFERROR(AVERAGEIF(Raw!$D:$D,Avg_all!$A17,Raw!E:E),"") ->  | D17: =IFERROR(AVERAGEIF(Raw!$D:$D,Avg_all!$A17,Raw!G:G),"") ->  | E17: =IFERROR(AVERAGEIF(Raw!$D:$D,Avg_all!$A17,Raw!I:I),"") ->  | F17: =IFERROR(AVERAGEIF(Raw!$D:$D,Avg_all!$A17,Raw!K:K),"") ->  | G17: =IFERROR(AVERAGEIF(Raw!$D:$D,Avg_all!$A17,Raw!M:M),"") ->  | H17: =IFERROR(AVERAGEIF(Raw!$D:$D,Avg_all!$A17,Raw!O:O),"") ->  | I17: =IFERROR(AVERAGEIF(Raw!$D:$D,Avg_all!$A17,Raw!Q:Q),"") ->  | J17: =IFERROR(AVERAGEIF(Raw!$D:$D,Avg_all!$A17,Raw!S:S),"") ->  | K17: =IFERROR(AVERAGEIF(Raw!$D:$D,Avg_all!$A17,Raw!U:U),"") ->  | L17: =IFERROR(AVERAGEIF(Raw!$D:$D,Avg_all!$A17,Raw!V:V),"") ->  | M17: =IFERROR(AVERAGEIF(Raw!$D:$D,Avg_all!$A17,Raw!W:W),"") ->  | N17: =IFERROR(AVERAGEIF(Raw!$D:$D,Avg_all!$A17,Raw!X:X),"") ->  | O17: =IFERROR(AVERAGEIF(Raw!$D:$D,Avg_all!$A17,Raw!Y:Y),"") ->  | P17: =IFERROR(AVERAGEIF(Raw!$D:$D,Avg_all!$A17,Raw!Z:Z),"") ->  | Q17: =IFERROR(AVERAGEIF(Raw!$D:$D,Avg_all!$A17,Raw!AA:AA),"") ->  | R17: =IFERROR(AVERAGEIF(Raw!$D:$D,Avg_all!$A17,Raw!AB:AB),"") ->  | S17: =IFERROR(AVERAGEIF(Raw!$D:$D,Avg_all!$A17,Raw!AC:AC),"") ->  | T17: =IFERROR(AVERAGEIF(Raw!$D:$D,Avg_all!$A17,Raw!AD:AD),"") ->  | U17: =IFERROR(AVERAGEIF(Raw!$D:$D,Avg_all!$A17,Raw!AE:AE),"") ->  | V17: =IFERROR(AVERAGEIF(Raw!$D:$D,Avg_all!$A17,Raw!AF:AF),"") ->  | W17: =IFERROR(AVERAGEIF(Raw!$D:$D,Avg_all!$A17,Raw!AG:AG),"") ->  | X17: =IFERROR(AVERAGEIF(Raw!$D:$D,Avg_all!$A17,Raw!AH:AH),"") ->  | Y17: =IFERROR(AVERAGEIF(Raw!$D:$D,Avg_all!$A17,Raw!AI:AI),"") ->  | Z17: =IFERROR(AVERAGEIF(Raw!$D:$D,Avg_all!$A17,Raw!AJ:AJ),"") ->  | AA17: =IFERROR(AVERAGEIF(Raw!$D:$D,Avg_all!$A17,Raw!AK:AK),"") -> 
A18: 高收債--亞洲 | B18: 高收債--亞洲 | C18: =IFERROR(AVERAGEIF(Raw!$D:$D,Avg_all!$A18,Raw!E:E),"") ->  | D18: =IFERROR(AVERAGEIF(Raw!$D:$D,Avg_all!$A18,Raw!G:G),"") ->  | E18: =IFERROR(AVERAGEIF(Raw!$D:$D,Avg_all!$A18,Raw!I:I),"") ->  | F18: =IFERROR(AVERAGEIF(Raw!$D:$D,Avg_all!$A18,Raw!K:K),"") ->  | G18: =IFERROR(AVERAGEIF(Raw!$D:$D,Avg_all!$A18,Raw!M:M),"") ->  | H18: =IFERROR(AVERAGEIF(Raw!$D:$D,Avg_all!$A18,Raw!O:O),"") ->  | I18: =IFERROR(AVERAGEIF(Raw!$D:$D,Avg_all!$A18,Raw!Q:Q),"") ->  | J18: =IFERROR(AVERAGEIF(Raw!$D:$D,Avg_all!$A18,Raw!S:S),"") ->  | K18: =IFERROR(AVERAGEIF(Raw!$D:$D,Avg_all!$A18,Raw!U:U),"") ->  | L18: =IFERROR(AVERAGEIF(Raw!$D:$D,Avg_all!$A18,Raw!V:V),"") ->  | M18: =IFERROR(AVERAGEIF(Raw!$D:$D,Avg_all!$A18,Raw!W:W),"") ->  | N18: =IFERROR(AVERAGEIF(Raw!$D:$D,Avg_all!$A18,Raw!X:X),"") ->  | O18: =IFERROR(AVERAGEIF(Raw!$D:$D,Avg_all!$A18,Raw!Y:Y),"") ->  | P18: =IFERROR(AVERAGEIF(Raw!$D:$D,Avg_all!$A18,Raw!Z:Z),"") ->  | Q18: =IFERROR(AVERAGEIF(Raw!$D:$D,Avg_all!$A18,Raw!AA:AA),"") ->  | R18: =IFERROR(AVERAGEIF(Raw!$D:$D,Avg_all!$A18,Raw!AB:AB),"") ->  | S18: =IFERROR(AVERAGEIF(Raw!$D:$D,Avg_all!$A18,Raw!AC:AC),"") ->  | T18: =IFERROR(AVERAGEIF(Raw!$D:$D,Avg_all!$A18,Raw!AD:AD),"") ->  | U18: =IFERROR(AVERAGEIF(Raw!$D:$D,Avg_all!$A18,Raw!AE:AE),"") ->  | V18: =IFERROR(AVERAGEIF(Raw!$D:$D,Avg_all!$A18,Raw!AF:AF),"") ->  | W18: =IFERROR(AVERAGEIF(Raw!$D:$D,Avg_all!$A18,Raw!AG:AG),"") ->  | X18: =IFERROR(AVERAGEIF(Raw!$D:$D,Avg_all!$A18,Raw!AH:AH),"") ->  | Y18: =IFERROR(AVERAGEIF(Raw!$D:$D,Avg_all!$A18,Raw!AI:AI),"") ->  | Z18: =IFERROR(AVERAGEIF(Raw!$D:$D,Avg_all!$A18,Raw!AJ:AJ),"") ->  | AA18: =IFERROR(AVERAGEIF(Raw!$D:$D,Avg_all!$A18,Raw!AK:AK),"") -> 
A19: 高收債--新興市場 | B19: 高收債--新興市場 | C19: =IFERROR(AVERAGEIF(Raw!$D:$D,Avg_all!$A19,Raw!E:E),"") ->  | D19: =IFERROR(AVERAGEIF(Raw!$D:$D,Avg_all!$A19,Raw!G:G),"") ->  | E19: =IFERROR(AVERAGEIF(Raw!$D:$D,Avg_all!$A19,Raw!I:I),"") ->  | F19: =IFERROR(AVERAGEIF(Raw!$D:$D,Avg_all!$A19,Raw!K:K),"") ->  | G19: =IFERROR(AVERAGEIF(Raw!$D:$D,Avg_all!$A19,Raw!M:M),"") ->  | H19: =IFERROR(AVERAGEIF(Raw!$D:$D,Avg_all!$A19,Raw!O:O),"") ->  | I19: =IFERROR(AVERAGEIF(Raw!$D:$D,Avg_all!$A19,Raw!Q:Q),"") ->  | J19: =IFERROR(AVERAGEIF(Raw!$D:$D,Avg_all!$A19,Raw!S:S),"") ->  | K19: =IFERROR(AVERAGEIF(Raw!$D:$D,Avg_all!$A19,Raw!U:U),"") ->  | L19: =IFERROR(AVERAGEIF(Raw!$D:$D,Avg_all!$A19,Raw!V:V),"") ->  | M19: =IFERROR(AVERAGEIF(Raw!$D:$D,Avg_all!$A19,Raw!W:W),"") ->  | N19: =IFERROR(AVERAGEIF(Raw!$D:$D,Avg_all!$A19,Raw!X:X),"") ->  | O19: =IFERROR(AVERAGEIF(Raw!$D:$D,Avg_all!$A19,Raw!Y:Y),"") ->  | P19: =IFERROR(AVERAGEIF(Raw!$D:$D,Avg_all!$A19,Raw!Z:Z),"") ->  | Q19: =IFERROR(AVERAGEIF(Raw!$D:$D,Avg_all!$A19,Raw!AA:AA),"") ->  | R19: =IFERROR(AVERAGEIF(Raw!$D:$D,Avg_all!$A19,Raw!AB:AB),"") ->  | S19: =IFERROR(AVERAGEIF(Raw!$D:$D,Avg_all!$A19,Raw!AC:AC),"") ->  | T19: =IFERROR(AVERAGEIF(Raw!$D:$D,Avg_all!$A19,Raw!AD:AD),"") ->  | U19: =IFERROR(AVERAGEIF(Raw!$D:$D,Avg_all!$A19,Raw!AE:AE),"") ->  | V19: =IFERROR(AVERAGEIF(Raw!$D:$D,Avg_all!$A19,Raw!AF:AF),"") ->  | W19: =IFERROR(AVERAGEIF(Raw!$D:$D,Avg_all!$A19,Raw!AG:AG),"") ->  | X19: =IFERROR(AVERAGEIF(Raw!$D:$D,Avg_all!$A19,Raw!AH:AH),"") ->  | Y19: =IFERROR(AVERAGEIF(Raw!$D:$D,Avg_all!$A19,Raw!AI:AI),"") ->  | Z19: =IFERROR(AVERAGEIF(Raw!$D:$D,Avg_all!$A19,Raw!AJ:AJ),"") ->  | AA19: =IFERROR(AVERAGEIF(Raw!$D:$D,Avg_all!$A19,Raw!AK:AK),"") -> 
A20: 國內指數-一般ETF | B20: 國內指數-一般ETF | C20: =IFERROR(AVERAGEIF(Raw!$D:$D,Avg_all!$A20,Raw!E:E),"") -> 13.20875 | D20: =IFERROR(AVERAGEIF(Raw!$D:$D,Avg_all!$A20,Raw!G:G),"") -> 26.59244444 | E20: =IFERROR(AVERAGEIF(Raw!$D:$D,Avg_all!$A20,Raw!I:I),"") -> 38.1255 | F20: =IFERROR(AVERAGEIF(Raw!$D:$D,Avg_all!$A20,Raw!K:K),"") -> 29.653 | G20: =IFERROR(AVERAGEIF(Raw!$D:$D,Avg_all!$A20,Raw!M:M),"") -> 43.66217391 | H20: =IFERROR(AVERAGEIF(Raw!$D:$D,Avg_all!$A20,Raw!O:O),"") -> 140.7589474 | I20: =IFERROR(AVERAGEIF(Raw!$D:$D,Avg_all!$A20,Raw!Q:Q),"") -> 258.7863636 | J20: =IFERROR(AVERAGEIF(Raw!$D:$D,Avg_all!$A20,Raw!S:S),"") -> 13.20875 | K20: =IFERROR(AVERAGEIF(Raw!$D:$D,Avg_all!$A20,Raw!U:U),"") -> 21.889375 | L20: =IFERROR(AVERAGEIF(Raw!$D:$D,Avg_all!$A20,Raw!V:V),"") -> -11.080625 | M20: =IFERROR(AVERAGEIF(Raw!$D:$D,Avg_all!$A20,Raw!W:W),"") -> 129.1302 | N20: =IFERROR(AVERAGEIF(Raw!$D:$D,Avg_all!$A20,Raw!X:X),"") -> 23.57416333 | O20: =IFERROR(AVERAGEIF(Raw!$D:$D,Avg_all!$A20,Raw!Y:Y),"") -> 1.062923333 | P20: =IFERROR(AVERAGEIF(Raw!$D:$D,Avg_all!$A20,Raw!Z:Z),"") -> 0.1811166667 | Q20: =IFERROR(AVERAGEIF(Raw!$D:$D,Avg_all!$A20,Raw!AA:AA),"") -> 0.1379733333 | R20: =IFERROR(AVERAGEIF(Raw!$D:$D,Avg_all!$A20,Raw!AB:AB),"") -> 1.180596667 | S20: =IFERROR(AVERAGEIF(Raw!$D:$D,Avg_all!$A20,Raw!AC:AC),"") ->  | T20: =IFERROR(AVERAGEIF(Raw!$D:$D,Avg_all!$A20,Raw!AD:AD),"") -> -0.02954333333 | U20: =IFERROR(AVERAGEIF(Raw!$D:$D,Avg_all!$A20,Raw!AE:AE),"") -> 16.62964 | V20: =IFERROR(AVERAGEIF(Raw!$D:$D,Avg_all!$A20,Raw!AF:AF),"") -> 1.0384075 | W20: =IFERROR(AVERAGEIF(Raw!$D:$D,Avg_all!$A20,Raw!AG:AG),"") -> 0.5601025 | X20: =IFERROR(AVERAGEIF(Raw!$D:$D,Avg_all!$A20,Raw!AH:AH),"") -> 0.254225 | Y20: =IFERROR(AVERAGEIF(Raw!$D:$D,Avg_all!$A20,Raw!AI:AI),"") -> 2.6146975 | Z20: =IFERROR(AVERAGEIF(Raw!$D:$D,Avg_all!$A20,Raw!AJ:AJ),"") ->  | AA20: =IFERROR(AVERAGEIF(Raw!$D:$D,Avg_all!$A20,Raw!AK:AK),"") -> -0.0764825
A21: 國內指數-二倍ETF | B21: 國內指數-二倍ETF | C21: =IFERROR(AVERAGEIF(Raw!$D:$D,Avg_all!$A21,Raw!E:E),"") -> 28.045 | D21: =IFERROR(AVERAGEIF(Raw!$D:$D,Avg_all!$A21,Raw!G:G),"") -> 51.44 | E21: =IFERROR(AVERAGEIF(Raw!$D:$D,Avg_all!$A21,Raw!I:I),"") -> 65.7825 | F21: =IFERROR(AVERAGEIF(Raw!$D:$D,Avg_all!$A21,Raw!K:K),"") -> 44.945 | G21: =IFERROR(AVERAGEIF(Raw!$D:$D,Avg_all!$A21,Raw!M:M),"") -> 76.195 | H21: =IFERROR(AVERAGEIF(Raw!$D:$D,Avg_all!$A21,Raw!O:O),"") -> 419.8525 | I21: =IFERROR(AVERAGEIF(Raw!$D:$D,Avg_all!$A21,Raw!Q:Q),"") ->  | J21: =IFERROR(AVERAGEIF(Raw!$D:$D,Avg_all!$A21,Raw!S:S),"") -> 28.045 | K21: =IFERROR(AVERAGEIF(Raw!$D:$D,Avg_all!$A21,Raw!U:U),"") -> 40.6475 | L21: =IFERROR(AVERAGEIF(Raw!$D:$D,Avg_all!$A21,Raw!V:V),"") -> -27.6425 | M21: =IFERROR(AVERAGEIF(Raw!$D:$D,Avg_all!$A21,Raw!W:W),"") -> 736.55 | N21: =IFERROR(AVERAGEIF(Raw!$D:$D,Avg_all!$A21,Raw!X:X),"") -> 41.4426 | O21: =IFERROR(AVERAGEIF(Raw!$D:$D,Avg_all!$A21,Raw!Y:Y),"") -> 1.9855 | P21: =IFERROR(AVERAGEIF(Raw!$D:$D,Avg_all!$A21,Raw!Z:Z),"") -> 0.1798 | Q21: =IFERROR(AVERAGEIF(Raw!$D:$D,Avg_all!$A21,Raw!AA:AA),"") -> 0.13105 | R21: =IFERROR(AVERAGEIF(Raw!$D:$D,Avg_all!$A21,Raw!AB:AB),"") -> 1.083325 | S21: =IFERROR(AVERAGEIF(Raw!$D:$D,Avg_all!$A21,Raw!AC:AC),"") ->  | T21: =IFERROR(AVERAGEIF(Raw!$D:$D,Avg_all!$A21,Raw!AD:AD),"") -> 0.08 | U21: =IFERROR(AVERAGEIF(Raw!$D:$D,Avg_all!$A21,Raw!AE:AE),"") -> 28.184525 | V21: =IFERROR(AVERAGEIF(Raw!$D:$D,Avg_all!$A21,Raw!AF:AF),"") -> 2.00085 | W21: =IFERROR(AVERAGEIF(Raw!$D:$D,Avg_all!$A21,Raw!AG:AG),"") -> 0.55295 | X21: =IFERROR(AVERAGEIF(Raw!$D:$D,Avg_all!$A21,Raw!AH:AH),"") -> -0.230225 | Y21: =IFERROR(AVERAGEIF(Raw!$D:$D,Avg_all!$A21,Raw!AI:AI),"") -> 2.248525 | Z21: =IFERROR(AVERAGEIF(Raw!$D:$D,Avg_all!$A21,Raw!AJ:AJ),"") ->  | AA21: =IFERROR(AVERAGEIF(Raw!$D:$D,Avg_all!$A21,Raw!AK:AK),"") -> -0.02965
A22: 國內指數-反向ETF | B22: 國內指數-反向ETF | C22: =IFERROR(AVERAGEIF(Raw!$D:$D,Avg_all!$A22,Raw!E:E),"") -> -12.39 | D22: =IFERROR(AVERAGEIF(Raw!$D:$D,Avg_all!$A22,Raw!G:G),"") -> -19.9275 | E22: =IFERROR(AVERAGEIF(Raw!$D:$D,Avg_all!$A22,Raw!I:I),"") -> -24.605 | F22: =IFERROR(AVERAGEIF(Raw!$D:$D,Avg_all!$A22,Raw!K:K),"") -> -24.485 | G22: =IFERROR(AVERAGEIF(Raw!$D:$D,Avg_all!$A22,Raw!M:M),"") -> -35.695 | H22: =IFERROR(AVERAGEIF(Raw!$D:$D,Avg_all!$A22,Raw!O:O),"") -> -67.3175 | I22: =IFERROR(AVERAGEIF(Raw!$D:$D,Avg_all!$A22,Raw!Q:Q),"") ->  | J22: =IFERROR(AVERAGEIF(Raw!$D:$D,Avg_all!$A22,Raw!S:S),"") -> -12.39 | K22: =IFERROR(AVERAGEIF(Raw!$D:$D,Avg_all!$A22,Raw!U:U),"") -> 15.485 | L22: =IFERROR(AVERAGEIF(Raw!$D:$D,Avg_all!$A22,Raw!V:V),"") -> -16.8225 | M22: =IFERROR(AVERAGEIF(Raw!$D:$D,Avg_all!$A22,Raw!W:W),"") -> -76.825 | N22: =IFERROR(AVERAGEIF(Raw!$D:$D,Avg_all!$A22,Raw!X:X),"") -> 20.02555 | O22: =IFERROR(AVERAGEIF(Raw!$D:$D,Avg_all!$A22,Raw!Y:Y),"") -> -0.95935 | P22: =IFERROR(AVERAGEIF(Raw!$D:$D,Avg_all!$A22,Raw!Z:Z),"") -> -0.187175 | Q22: =IFERROR(AVERAGEIF(Raw!$D:$D,Avg_all!$A22,Raw!AA:AA),"") -> -0.106075 | R22: =IFERROR(AVERAGEIF(Raw!$D:$D,Avg_all!$A22,Raw!AB:AB),"") -> 1.12775 | S22: =IFERROR(AVERAGEIF(Raw!$D:$D,Avg_all!$A22,Raw!AC:AC),"") ->  | T22: =IFERROR(AVERAGEIF(Raw!$D:$D,Avg_all!$A22,Raw!AD:AD),"") -> -0.0133 | U22: =IFERROR(AVERAGEIF(Raw!$D:$D,Avg_all!$A22,Raw!AE:AE),"") -> 13.0308 | V22: =IFERROR(AVERAGEIF(Raw!$D:$D,Avg_all!$A22,Raw!AF:AF),"") -> -0.92405 | W22: =IFERROR(AVERAGEIF(Raw!$D:$D,Avg_all!$A22,Raw!AG:AG),"") -> -0.6251 | X22: =IFERROR(AVERAGEIF(Raw!$D:$D,Avg_all!$A22,Raw!AH:AH),"") -> -0.16735 | Y22: =IFERROR(AVERAGEIF(Raw!$D:$D,Avg_all!$A22,Raw!AI:AI),"") -> 2.544625 | Z22: =IFERROR(AVERAGEIF(Raw!$D:$D,Avg_all!$A22,Raw!AJ:AJ),"") ->  | AA22: =IFERROR(AVERAGEIF(Raw!$D:$D,Avg_all!$A22,Raw!AK:AK),"") -> -0.021225
A23: 國內指數-非ETF | B23: 國內指數-非ETF | C23: =IFERROR(AVERAGEIF(Raw!$D:$D,Avg_all!$A23,Raw!E:E),"") -> 11.809 | D23: =IFERROR(AVERAGEIF(Raw!$D:$D,Avg_all!$A23,Raw!G:G),"") -> 25.507 | E23: =IFERROR(AVERAGEIF(Raw!$D:$D,Avg_all!$A23,Raw!I:I),"") -> 40.624 | F23: =IFERROR(AVERAGEIF(Raw!$D:$D,Avg_all!$A23,Raw!K:K),"") -> 24.49714286 | G23: =IFERROR(AVERAGEIF(Raw!$D:$D,Avg_all!$A23,Raw!M:M),"") -> 32.67714286 | H23: =IFERROR(AVERAGEIF(Raw!$D:$D,Avg_all!$A23,Raw!O:O),"") -> 125.71 | I23: =IFERROR(AVERAGEIF(Raw!$D:$D,Avg_all!$A23,Raw!Q:Q),"") -> 223.76 | J23: =IFERROR(AVERAGEIF(Raw!$D:$D,Avg_all!$A23,Raw!S:S),"") -> 11.809 | K23: =IFERROR(AVERAGEIF(Raw!$D:$D,Avg_all!$A23,Raw!U:U),"") -> 23.118 | L23: =IFERROR(AVERAGEIF(Raw!$D:$D,Avg_all!$A23,Raw!V:V),"") -> -14.239 | M23: =IFERROR(AVERAGEIF(Raw!$D:$D,Avg_all!$A23,Raw!W:W),"") -> 102.9014286 | N23: =IFERROR(AVERAGEIF(Raw!$D:$D,Avg_all!$A23,Raw!X:X),"") -> 24.57954286 | O23: =IFERROR(AVERAGEIF(Raw!$D:$D,Avg_all!$A23,Raw!Y:Y),"") -> 1.103671429 | P23: =IFERROR(AVERAGEIF(Raw!$D:$D,Avg_all!$A23,Raw!Z:Z),"") -> 0.1598714286 | Q23: =IFERROR(AVERAGEIF(Raw!$D:$D,Avg_all!$A23,Raw!AA:AA),"") -> -0.04934285714 | R23: =IFERROR(AVERAGEIF(Raw!$D:$D,Avg_all!$A23,Raw!AB:AB),"") -> 1.037557143 | S23: =IFERROR(AVERAGEIF(Raw!$D:$D,Avg_all!$A23,Raw!AC:AC),"") ->  | T23: =IFERROR(AVERAGEIF(Raw!$D:$D,Avg_all!$A23,Raw!AD:AD),"") -> -0.0611 | U23: =IFERROR(AVERAGEIF(Raw!$D:$D,Avg_all!$A23,Raw!AE:AE),"") -> 15.00903 | V23: =IFERROR(AVERAGEIF(Raw!$D:$D,Avg_all!$A23,Raw!AF:AF),"") -> 0.87792 | W23: =IFERROR(AVERAGEIF(Raw!$D:$D,Avg_all!$A23,Raw!AG:AG),"") -> 0.66878 | X23: =IFERROR(AVERAGEIF(Raw!$D:$D,Avg_all!$A23,Raw!AH:AH),"") -> 0.76218 | Y23: =IFERROR(AVERAGEIF(Raw!$D:$D,Avg_all!$A23,Raw!AI:AI),"") -> 3.80138 | Z23: =IFERROR(AVERAGEIF(Raw!$D:$D,Avg_all!$A23,Raw!AJ:AJ),"") ->  | AA23: =IFERROR(AVERAGEIF(Raw!$D:$D,Avg_all!$A23,Raw!AK:AK),"") -> -0.10165
A24: 國內貨幣市場 | B24: 國內貨幣市場 | C24: =IFERROR(AVERAGEIF(Raw!$D:$D,Avg_all!$A24,Raw!E:E),"") -> 0.3086111111 | D24: =IFERROR(AVERAGEIF(Raw!$D:$D,Avg_all!$A24,Raw!G:G),"") -> 0.6144444444 | E24: =IFERROR(AVERAGEIF(Raw!$D:$D,Avg_all!$A24,Raw!I:I),"") -> 1.196666667 | F24: =IFERROR(AVERAGEIF(Raw!$D:$D,Avg_all!$A24,Raw!K:K),"") -> 1.934166667 | G24: =IFERROR(AVERAGEIF(Raw!$D:$D,Avg_all!$A24,Raw!M:M),"") -> 2.115 | H24: =IFERROR(AVERAGEIF(Raw!$D:$D,Avg_all!$A24,Raw!O:O),"") -> 2.963611111 | I24: =IFERROR(AVERAGEIF(Raw!$D:$D,Avg_all!$A24,Raw!Q:Q),"") -> 5.108285714 | J24: =IFERROR(AVERAGEIF(Raw!$D:$D,Avg_all!$A24,Raw!S:S),"") -> 0.3086111111 | K24: =IFERROR(AVERAGEIF(Raw!$D:$D,Avg_all!$A24,Raw!U:U),"") -> 0.3102777778 | L24: =IFERROR(AVERAGEIF(Raw!$D:$D,Avg_all!$A24,Raw!V:V),"") -> 0.03833333333 | M24: =IFERROR(AVERAGEIF(Raw!$D:$D,Avg_all!$A24,Raw!W:W),"") -> 42.555 | N24: =IFERROR(AVERAGEIF(Raw!$D:$D,Avg_all!$A24,Raw!X:X),"") -> 0.09498333333 | O24: =IFERROR(AVERAGEIF(Raw!$D:$D,Avg_all!$A24,Raw!Y:Y),"") ->  | P24: =IFERROR(AVERAGEIF(Raw!$D:$D,Avg_all!$A24,Raw!Z:Z),"") -> 0.01049722222 | Q24: =IFERROR(AVERAGEIF(Raw!$D:$D,Avg_all!$A24,Raw!AA:AA),"") ->  | R24: =IFERROR(AVERAGEIF(Raw!$D:$D,Avg_all!$A24,Raw!AB:AB),"") ->  | S24: =IFERROR(AVERAGEIF(Raw!$D:$D,Avg_all!$A24,Raw!AC:AC),"") ->  | T24: =IFERROR(AVERAGEIF(Raw!$D:$D,Avg_all!$A24,Raw!AD:AD),"") -> 0.1405444444 | U24: =IFERROR(AVERAGEIF(Raw!$D:$D,Avg_all!$A24,Raw!AE:AE),"") -> 0.02359444444 | V24: =IFERROR(AVERAGEIF(Raw!$D:$D,Avg_all!$A24,Raw!AF:AF),"") ->  | W24: =IFERROR(AVERAGEIF(Raw!$D:$D,Avg_all!$A24,Raw!AG:AG),"") -> 1.013244444 | X24: =IFERROR(AVERAGEIF(Raw!$D:$D,Avg_all!$A24,Raw!AH:AH),"") ->  | Y24: =IFERROR(AVERAGEIF(Raw!$D:$D,Avg_all!$A24,Raw!AI:AI),"") ->  | Z24: =IFERROR(AVERAGEIF(Raw!$D:$D,Avg_all!$A24,Raw!AJ:AJ),"") ->  | AA24: =IFERROR(AVERAGEIF(Raw!$D:$D,Avg_all!$A24,Raw!AK:AK),"") -> 0.3369527778
A25: 開放式一般型 | B25: 開放式一般型 | C25: =IFERROR(AVERAGEIF(Raw!$D:$D,Avg_all!$A25,Raw!E:E),"") -> 12.41412281 | D25: =IFERROR(AVERAGEIF(Raw!$D:$D,Avg_all!$A25,Raw!G:G),"") -> 20.0522807 | E25: =IFERROR(AVERAGEIF(Raw!$D:$D,Avg_all!$A25,Raw!I:I),"") -> 43.69616071 | F25: =IFERROR(AVERAGEIF(Raw!$D:$D,Avg_all!$A25,Raw!K:K),"") -> 30.0531 | G25: =IFERROR(AVERAGEIF(Raw!$D:$D,Avg_all!$A25,Raw!M:M),"") -> 48.49022472 | H25: =IFERROR(AVERAGEIF(Raw!$D:$D,Avg_all!$A25,Raw!O:O),"") -> 157.5030263 | I25: =IFERROR(AVERAGEIF(Raw!$D:$D,Avg_all!$A25,Raw!Q:Q),"") -> 246.1977465 | J25: =IFERROR(AVERAGEIF(Raw!$D:$D,Avg_all!$A25,Raw!S:S),"") -> 12.41412281 | K25: =IFERROR(AVERAGEIF(Raw!$D:$D,Avg_all!$A25,Raw!U:U),"") -> 28.29078947 | L25: =IFERROR(AVERAGEIF(Raw!$D:$D,Avg_all!$A25,Raw!V:V),"") -> -18.69105263 | M25: =IFERROR(AVERAGEIF(Raw!$D:$D,Avg_all!$A25,Raw!W:W),"") -> 566.0930435 | N25: =IFERROR(AVERAGEIF(Raw!$D:$D,Avg_all!$A25,Raw!X:X),"") -> 25.39151 | O25: =IFERROR(AVERAGEIF(Raw!$D:$D,Avg_all!$A25,Raw!Y:Y),"") -> 1.061259 | P25: =IFERROR(AVERAGEIF(Raw!$D:$D,Avg_all!$A25,Raw!Z:Z),"") -> 0.166799 | Q25: =IFERROR(AVERAGEIF(Raw!$D:$D,Avg_all!$A25,Raw!AA:AA),"") -> 0.167753 | R25: =IFERROR(AVERAGEIF(Raw!$D:$D,Avg_all!$A25,Raw!AB:AB),"") -> 1.156471 | S25: =IFERROR(AVERAGEIF(Raw!$D:$D,Avg_all!$A25,Raw!AC:AC),"") -> -0.006217 | T25: =IFERROR(AVERAGEIF(Raw!$D:$D,Avg_all!$A25,Raw!AD:AD),"") -> -0.014079 | U25: =IFERROR(AVERAGEIF(Raw!$D:$D,Avg_all!$A25,Raw!AE:AE),"") -> 19.80818214 | V25: =IFERROR(AVERAGEIF(Raw!$D:$D,Avg_all!$A25,Raw!AF:AF),"") -> 1.000220536 | W25: =IFERROR(AVERAGEIF(Raw!$D:$D,Avg_all!$A25,Raw!AG:AG),"") -> 0.5322410714 | X25: =IFERROR(AVERAGEIF(Raw!$D:$D,Avg_all!$A25,Raw!AH:AH),"") -> 0.7124705357 | Y25: =IFERROR(AVERAGEIF(Raw!$D:$D,Avg_all!$A25,Raw!AI:AI),"") -> 3.094091964 | Z25: =IFERROR(AVERAGEIF(Raw!$D:$D,Avg_all!$A25,Raw!AJ:AJ),"") -> 0.0184625 | AA25: =IFERROR(AVERAGEIF(Raw!$D:$D,Avg_all!$A25,Raw!AK:AK),"") -> -0.02044375
A26: 開放式中小型 | B26: 開放式中小型 | C26: =IFERROR(AVERAGEIF(Raw!$D:$D,Avg_all!$A26,Raw!E:E),"") -> 12.10388889 | D26: =IFERROR(AVERAGEIF(Raw!$D:$D,Avg_all!$A26,Raw!G:G),"") -> 17.05555556 | E26: =IFERROR(AVERAGEIF(Raw!$D:$D,Avg_all!$A26,Raw!I:I),"") -> 41.25166667 | F26: =IFERROR(AVERAGEIF(Raw!$D:$D,Avg_all!$A26,Raw!K:K),"") -> 27.45611111 | G26: =IFERROR(AVERAGEIF(Raw!$D:$D,Avg_all!$A26,Raw!M:M),"") -> 45.76222222 | H26: =IFERROR(AVERAGEIF(Raw!$D:$D,Avg_all!$A26,Raw!O:O),"") -> 150.3629412 | I26: =IFERROR(AVERAGEIF(Raw!$D:$D,Avg_all!$A26,Raw!Q:Q),"") -> 228.96375 | J26: =IFERROR(AVERAGEIF(Raw!$D:$D,Avg_all!$A26,Raw!S:S),"") -> 12.10388889 | K26: =IFERROR(AVERAGEIF(Raw!$D:$D,Avg_all!$A26,Raw!U:U),"") -> 29.31 | L26: =IFERROR(AVERAGEIF(Raw!$D:$D,Avg_all!$A26,Raw!V:V),"") -> -21.51833333 | M26: =IFERROR(AVERAGEIF(Raw!$D:$D,Avg_all!$A26,Raw!W:W),"") -> 722.3444444 | N26: =IFERROR(AVERAGEIF(Raw!$D:$D,Avg_all!$A26,Raw!X:X),"") -> 26.42718333 | O26: =IFERROR(AVERAGEIF(Raw!$D:$D,Avg_all!$A26,Raw!Y:Y),"") -> 1.073805556 | P26: =IFERROR(AVERAGEIF(Raw!$D:$D,Avg_all!$A26,Raw!Z:Z),"") -> 0.1590666667 | Q26: =IFERROR(AVERAGEIF(Raw!$D:$D,Avg_all!$A26,Raw!AA:AA),"") -> 0.1075111111 | R26: =IFERROR(AVERAGEIF(Raw!$D:$D,Avg_all!$A26,Raw!AB:AB),"") -> 1.150283333 | S26: =IFERROR(AVERAGEIF(Raw!$D:$D,Avg_all!$A26,Raw!AC:AC),"") -> -0.02561666667 | T26: =IFERROR(AVERAGEIF(Raw!$D:$D,Avg_all!$A26,Raw!AD:AD),"") -> -0.02247222222 | U26: =IFERROR(AVERAGEIF(Raw!$D:$D,Avg_all!$A26,Raw!AE:AE),"") -> 21.44196111 | V26: =IFERROR(AVERAGEIF(Raw!$D:$D,Avg_all!$A26,Raw!AF:AF),"") -> 0.9722333333 | W26: =IFERROR(AVERAGEIF(Raw!$D:$D,Avg_all!$A26,Raw!AG:AG),"") -> 0.48115 | X26: =IFERROR(AVERAGEIF(Raw!$D:$D,Avg_all!$A26,Raw!AH:AH),"") -> 0.6793 | Y26: =IFERROR(AVERAGEIF(Raw!$D:$D,Avg_all!$A26,Raw!AI:AI),"") -> 3.105816667 | Z26: =IFERROR(AVERAGEIF(Raw!$D:$D,Avg_all!$A26,Raw!AJ:AJ),"") -> -0.01534444444 | AA26: =IFERROR(AVERAGEIF(Raw!$D:$D,Avg_all!$A26,Raw!AK:AK),"") -> 0.001694444444
A27: 開放式中概股 | B27: 開放式中概股 | C27: =IFERROR(AVERAGEIF(Raw!$D:$D,Avg_all!$A27,Raw!E:E),"") -> 14.125 | D27: =IFERROR(AVERAGEIF(Raw!$D:$D,Avg_all!$A27,Raw!G:G),"") -> 21.4375 | E27: =IFERROR(AVERAGEIF(Raw!$D:$D,Avg_all!$A27,Raw!I:I),"") -> 50.85 | F27: =IFERROR(AVERAGEIF(Raw!$D:$D,Avg_all!$A27,Raw!K:K),"") -> 31.3225 | G27: =IFERROR(AVERAGEIF(Raw!$D:$D,Avg_all!$A27,Raw!M:M),"") -> 57.735 | H27: =IFERROR(AVERAGEIF(Raw!$D:$D,Avg_all!$A27,Raw!O:O),"") -> 176.3625 | I27: =IFERROR(AVERAGEIF(Raw!$D:$D,Avg_all!$A27,Raw!Q:Q),"") -> 297.4975 | J27: =IFERROR(AVERAGEIF(Raw!$D:$D,Avg_all!$A27,Raw!S:S),"") -> 14.125 | K27: =IFERROR(AVERAGEIF(Raw!$D:$D,Avg_all!$A27,Raw!U:U),"") -> 34.825 | L27: =IFERROR(AVERAGEIF(Raw!$D:$D,Avg_all!$A27,Raw!V:V),"") -> -23.8025 | M27: =IFERROR(AVERAGEIF(Raw!$D:$D,Avg_all!$A27,Raw!W:W),"") -> 805.325 | N27: =IFERROR(AVERAGEIF(Raw!$D:$D,Avg_all!$A27,Raw!X:X),"") -> 28.358125 | O27: =IFERROR(AVERAGEIF(Raw!$D:$D,Avg_all!$A27,Raw!Y:Y),"") -> 1.2055 | P27: =IFERROR(AVERAGEIF(Raw!$D:$D,Avg_all!$A27,Raw!Z:Z),"") -> 0.157425 | Q27: =IFERROR(AVERAGEIF(Raw!$D:$D,Avg_all!$A27,Raw!AA:AA),"") -> 0.114 | R27: =IFERROR(AVERAGEIF(Raw!$D:$D,Avg_all!$A27,Raw!AB:AB),"") -> 1.081325 | S27: =IFERROR(AVERAGEIF(Raw!$D:$D,Avg_all!$A27,Raw!AC:AC),"") -> -0.010075 | T27: =IFERROR(AVERAGEIF(Raw!$D:$D,Avg_all!$A27,Raw!AD:AD),"") -> -0.05885 | U27: =IFERROR(AVERAGEIF(Raw!$D:$D,Avg_all!$A27,Raw!AE:AE),"") -> 20.649975 | V27: =IFERROR(AVERAGEIF(Raw!$D:$D,Avg_all!$A27,Raw!AF:AF),"") -> 1.0423 | W27: =IFERROR(AVERAGEIF(Raw!$D:$D,Avg_all!$A27,Raw!AG:AG),"") -> 0.57095 | X27: =IFERROR(AVERAGEIF(Raw!$D:$D,Avg_all!$A27,Raw!AH:AH),"") -> 1.021225 | Y27: =IFERROR(AVERAGEIF(Raw!$D:$D,Avg_all!$A27,Raw!AI:AI),"") -> 3.271825 | Z27: =IFERROR(AVERAGEIF(Raw!$D:$D,Avg_all!$A27,Raw!AJ:AJ),"") -> 0.1211 | AA27: =IFERROR(AVERAGEIF(Raw!$D:$D,Avg_all!$A27,Raw!AK:AK),"") -> -0.127325
A28: 開放式科技類 | B28: 開放式科技類 | C28: =IFERROR(AVERAGEIF(Raw!$D:$D,Avg_all!$A28,Raw!E:E),"") -> 12.12241379 | D28: =IFERROR(AVERAGEIF(Raw!$D:$D,Avg_all!$A28,Raw!G:G),"") -> 20.59535714 | E28: =IFERROR(AVERAGEIF(Raw!$D:$D,Avg_all!$A28,Raw!I:I),"") -> 45.165 | F28: =IFERROR(AVERAGEIF(Raw!$D:$D,Avg_all!$A28,Raw!K:K),"") -> 30.16962963 | G28: =IFERROR(AVERAGEIF(Raw!$D:$D,Avg_all!$A28,Raw!M:M),"") -> 52.58769231 | H28: =IFERROR(AVERAGEIF(Raw!$D:$D,Avg_all!$A28,Raw!O:O),"") -> 175.1308696 | I28: =IFERROR(AVERAGEIF(Raw!$D:$D,Avg_all!$A28,Raw!Q:Q),"") -> 302.5034783 | J28: =IFERROR(AVERAGEIF(Raw!$D:$D,Avg_all!$A28,Raw!S:S),"") -> 12.12241379 | K28: =IFERROR(AVERAGEIF(Raw!$D:$D,Avg_all!$A28,Raw!U:U),"") -> 28.88965517 | L28: =IFERROR(AVERAGEIF(Raw!$D:$D,Avg_all!$A28,Raw!V:V),"") -> -20.9937931 | M28: =IFERROR(AVERAGEIF(Raw!$D:$D,Avg_all!$A28,Raw!W:W),"") -> 630.8975862 | N28: =IFERROR(AVERAGEIF(Raw!$D:$D,Avg_all!$A28,Raw!X:X),"") -> 27.82532222 | O28: =IFERROR(AVERAGEIF(Raw!$D:$D,Avg_all!$A28,Raw!Y:Y),"") -> 1.161437037 | P28: =IFERROR(AVERAGEIF(Raw!$D:$D,Avg_all!$A28,Raw!Z:Z),"") -> 0.1641407407 | Q28: =IFERROR(AVERAGEIF(Raw!$D:$D,Avg_all!$A28,Raw!AA:AA),"") -> 0.1259962963 | R28: =IFERROR(AVERAGEIF(Raw!$D:$D,Avg_all!$A28,Raw!AB:AB),"") -> 1.145107407 | S28: =IFERROR(AVERAGEIF(Raw!$D:$D,Avg_all!$A28,Raw!AC:AC),"") -> 0.01591481481 | T28: =IFERROR(AVERAGEIF(Raw!$D:$D,Avg_all!$A28,Raw!AD:AD),"") -> -0.03397037037 | U28: =IFERROR(AVERAGEIF(Raw!$D:$D,Avg_all!$A28,Raw!AE:AE),"") -> 21.964225 | V28: =IFERROR(AVERAGEIF(Raw!$D:$D,Avg_all!$A28,Raw!AF:AF),"") -> 1.080021429 | W28: =IFERROR(AVERAGEIF(Raw!$D:$D,Avg_all!$A28,Raw!AG:AG),"") -> 0.5114357143 | X28: =IFERROR(AVERAGEIF(Raw!$D:$D,Avg_all!$A28,Raw!AH:AH),"") -> 0.6645321429 | Y28: =IFERROR(AVERAGEIF(Raw!$D:$D,Avg_all!$A28,Raw!AI:AI),"") -> 3.022925 | Z28: =IFERROR(AVERAGEIF(Raw!$D:$D,Avg_all!$A28,Raw!AJ:AJ),"") -> 0.09532857143 | AA28: =IFERROR(AVERAGEIF(Raw!$D:$D,Avg_all!$A28,Raw!AK:AK),"") -> 0.003935714286
A29: 開放式價值型 | B29: 開放式價值型 | C29: =IFERROR(AVERAGEIF(Raw!$D:$D,Avg_all!$A29,Raw!E:E),"") -> 12.75 | D29: =IFERROR(AVERAGEIF(Raw!$D:$D,Avg_all!$A29,Raw!G:G),"") -> 25.59 | E29: =IFERROR(AVERAGEIF(Raw!$D:$D,Avg_all!$A29,Raw!I:I),"") -> 58.81 | F29: =IFERROR(AVERAGEIF(Raw!$D:$D,Avg_all!$A29,Raw!K:K),"") -> 50.03333333 | G29: =IFERROR(AVERAGEIF(Raw!$D:$D,Avg_all!$A29,Raw!M:M),"") -> 65.73666667 | H29: =IFERROR(AVERAGEIF(Raw!$D:$D,Avg_all!$A29,Raw!O:O),"") -> 153.9733333 | I29: =IFERROR(AVERAGEIF(Raw!$D:$D,Avg_all!$A29,Raw!Q:Q),"") -> 224.83 | J29: =IFERROR(AVERAGEIF(Raw!$D:$D,Avg_all!$A29,Raw!S:S),"") -> 12.75 | K29: =IFERROR(AVERAGEIF(Raw!$D:$D,Avg_all!$A29,Raw!U:U),"") -> 32.22666667 | L29: =IFERROR(AVERAGEIF(Raw!$D:$D,Avg_all!$A29,Raw!V:V),"") -> -15.51666667 | M29: =IFERROR(AVERAGEIF(Raw!$D:$D,Avg_all!$A29,Raw!W:W),"") -> 572.9833333 | N29: =IFERROR(AVERAGEIF(Raw!$D:$D,Avg_all!$A29,Raw!X:X),"") -> 21.81496667 | O29: =IFERROR(AVERAGEIF(Raw!$D:$D,Avg_all!$A29,Raw!Y:Y),"") -> 0.9163 | P29: =IFERROR(AVERAGEIF(Raw!$D:$D,Avg_all!$A29,Raw!Z:Z),"") -> 0.2890333333 | Q29: =IFERROR(AVERAGEIF(Raw!$D:$D,Avg_all!$A29,Raw!AA:AA),"") -> 0.8771333333 | R29: =IFERROR(AVERAGEIF(Raw!$D:$D,Avg_all!$A29,Raw!AB:AB),"") -> 1.9774 | S29: =IFERROR(AVERAGEIF(Raw!$D:$D,Avg_all!$A29,Raw!AC:AC),"") -> 0.2822666667 | T29: =IFERROR(AVERAGEIF(Raw!$D:$D,Avg_all!$A29,Raw!AD:AD),"") -> -0.01946666667 | U29: =IFERROR(AVERAGEIF(Raw!$D:$D,Avg_all!$A29,Raw!AE:AE),"") -> 19.55556667 | V29: =IFERROR(AVERAGEIF(Raw!$D:$D,Avg_all!$A29,Raw!AF:AF),"") -> 1.0666 | W29: =IFERROR(AVERAGEIF(Raw!$D:$D,Avg_all!$A29,Raw!AG:AG),"") -> 0.7292666667 | X29: =IFERROR(AVERAGEIF(Raw!$D:$D,Avg_all!$A29,Raw!AH:AH),"") -> 1.459766667 | Y29: =IFERROR(AVERAGEIF(Raw!$D:$D,Avg_all!$A29,Raw!AI:AI),"") -> 3.7956 | Z29: =IFERROR(AVERAGEIF(Raw!$D:$D,Avg_all!$A29,Raw!AJ:AJ),"") -> 0.5428666667 | AA29: =IFERROR(AVERAGEIF(Raw!$D:$D,Avg_all!$A29,Raw!AK:AK),"") -> -0.01306666667
A30: 債券組合--投資級 | B30: 債券組合--投資級 | C30: =IFERROR(AVERAGEIF(Raw!$D:$D,Avg_all!$A30,Raw!E:E),"") -> 1.685882353 | D30: =IFERROR(AVERAGEIF(Raw!$D:$D,Avg_all!$A30,Raw!G:G),"") -> 6.507647059 | E30: =IFERROR(AVERAGEIF(Raw!$D:$D,Avg_all!$A30,Raw!I:I),"") -> 5.738125 | F30: =IFERROR(AVERAGEIF(Raw!$D:$D,Avg_all!$A30,Raw!K:K),"") -> 0.660625 | G30: =IFERROR(AVERAGEIF(Raw!$D:$D,Avg_all!$A30,Raw!M:M),"") -> -3.38875 | H30: =IFERROR(AVERAGEIF(Raw!$D:$D,Avg_all!$A30,Raw!O:O),"") -> 1.058888889 | I30: =IFERROR(AVERAGEIF(Raw!$D:$D,Avg_all!$A30,Raw!Q:Q),"") -> 4.606666667 | J30: =IFERROR(AVERAGEIF(Raw!$D:$D,Avg_all!$A30,Raw!S:S),"") -> 1.685882353 | K30: =IFERROR(AVERAGEIF(Raw!$D:$D,Avg_all!$A30,Raw!U:U),"") -> 6.752352941 | L30: =IFERROR(AVERAGEIF(Raw!$D:$D,Avg_all!$A30,Raw!V:V),"") -> -5.937058824 | M30: =IFERROR(AVERAGEIF(Raw!$D:$D,Avg_all!$A30,Raw!W:W),"") -> 14.36764706 | N30: =IFERROR(AVERAGEIF(Raw!$D:$D,Avg_all!$A30,Raw!X:X),"") -> 6.87073125 | O30: =IFERROR(AVERAGEIF(Raw!$D:$D,Avg_all!$A30,Raw!Y:Y),"") ->  | P30: =IFERROR(AVERAGEIF(Raw!$D:$D,Avg_all!$A30,Raw!Z:Z),"") -> -0.00346875 | Q30: =IFERROR(AVERAGEIF(Raw!$D:$D,Avg_all!$A30,Raw!AA:AA),"") ->  | R30: =IFERROR(AVERAGEIF(Raw!$D:$D,Avg_all!$A30,Raw!AB:AB),"") ->  | S30: =IFERROR(AVERAGEIF(Raw!$D:$D,Avg_all!$A30,Raw!AC:AC),"") ->  | T30: =IFERROR(AVERAGEIF(Raw!$D:$D,Avg_all!$A30,Raw!AD:AD),"") -> -0.0904875 | U30: =IFERROR(AVERAGEIF(Raw!$D:$D,Avg_all!$A30,Raw!AE:AE),"") -> 5.726925 | V30: =IFERROR(AVERAGEIF(Raw!$D:$D,Avg_all!$A30,Raw!AF:AF),"") ->  | W30: =IFERROR(AVERAGEIF(Raw!$D:$D,Avg_all!$A30,Raw!AG:AG),"") -> 0.2649875 | X30: =IFERROR(AVERAGEIF(Raw!$D:$D,Avg_all!$A30,Raw!AH:AH),"") ->  | Y30: =IFERROR(AVERAGEIF(Raw!$D:$D,Avg_all!$A30,Raw!AI:AI),"") ->  | Z30: =IFERROR(AVERAGEIF(Raw!$D:$D,Avg_all!$A30,Raw!AJ:AJ),"") ->  | AA30: =IFERROR(AVERAGEIF(Raw!$D:$D,Avg_all!$A30,Raw!AK:AK),"") -> -0.12175
A31: 債券組合--複合式 | B31: 債券組合--複合式 | C31: =IFERROR(AVERAGEIF(Raw!$D:$D,Avg_all!$A31,Raw!E:E),"") -> 1.832191781 | D31: =IFERROR(AVERAGEIF(Raw!$D:$D,Avg_all!$A31,Raw!G:G),"") -> 6.952608696 | E31: =IFERROR(AVERAGEIF(Raw!$D:$D,Avg_all!$A31,Raw!I:I),"") -> 6.591594203 | F31: =IFERROR(AVERAGEIF(Raw!$D:$D,Avg_all!$A31,Raw!K:K),"") -> -0.2775757576 | G31: =IFERROR(AVERAGEIF(Raw!$D:$D,Avg_all!$A31,Raw!M:M),"") -> -6.66984127 | H31: =IFERROR(AVERAGEIF(Raw!$D:$D,Avg_all!$A31,Raw!O:O),"") -> -3.348837209 | I31: =IFERROR(AVERAGEIF(Raw!$D:$D,Avg_all!$A31,Raw!Q:Q),"") -> 0.5461904762 | J31: =IFERROR(AVERAGEIF(Raw!$D:$D,Avg_all!$A31,Raw!S:S),"") -> 1.832191781 | K31: =IFERROR(AVERAGEIF(Raw!$D:$D,Avg_all!$A31,Raw!U:U),"") -> 6.637945205 | L31: =IFERROR(AVERAGEIF(Raw!$D:$D,Avg_all!$A31,Raw!V:V),"") -> -7.679315068 | M31: =IFERROR(AVERAGEIF(Raw!$D:$D,Avg_all!$A31,Raw!W:W),"") -> 6.462297297 | N31: =IFERROR(AVERAGEIF(Raw!$D:$D,Avg_all!$A31,Raw!X:X),"") -> 7.022221212 | O31: =IFERROR(AVERAGEIF(Raw!$D:$D,Avg_all!$A31,Raw!Y:Y),"") ->  | P31: =IFERROR(AVERAGEIF(Raw!$D:$D,Avg_all!$A31,Raw!Z:Z),"") -> -0.01716969697 | Q31: =IFERROR(AVERAGEIF(Raw!$D:$D,Avg_all!$A31,Raw!AA:AA),"") ->  | R31: =IFERROR(AVERAGEIF(Raw!$D:$D,Avg_all!$A31,Raw!AB:AB),"") ->  | S31: =IFERROR(AVERAGEIF(Raw!$D:$D,Avg_all!$A31,Raw!AC:AC),"") ->  | T31: =IFERROR(AVERAGEIF(Raw!$D:$D,Avg_all!$A31,Raw!AD:AD),"") -> 0.05263787879 | U31: =IFERROR(AVERAGEIF(Raw!$D:$D,Avg_all!$A31,Raw!AE:AE),"") -> 5.487495652 | V31: =IFERROR(AVERAGEIF(Raw!$D:$D,Avg_all!$A31,Raw!AF:AF),"") ->  | W31: =IFERROR(AVERAGEIF(Raw!$D:$D,Avg_all!$A31,Raw!AG:AG),"") -> 0.3086797101 | X31: =IFERROR(AVERAGEIF(Raw!$D:$D,Avg_all!$A31,Raw!AH:AH),"") ->  | Y31: =IFERROR(AVERAGEIF(Raw!$D:$D,Avg_all!$A31,Raw!AI:AI),"") ->  | Z31: =IFERROR(AVERAGEIF(Raw!$D:$D,Avg_all!$A31,Raw!AJ:AJ),"") ->  | AA31: =IFERROR(AVERAGEIF(Raw!$D:$D,Avg_all!$A31,Raw!AK:AK),"") -> 0.0342826087
A32: 跨國--大中華區 | B32: 跨國--大中華區 | C32: =IFERROR(AVERAGEIF(Raw!$D:$D,Avg_all!$A32,Raw!E:E),"") -> 3.936938776 | D32: =IFERROR(AVERAGEIF(Raw!$D:$D,Avg_all!$A32,Raw!G:G),"") -> 1.014183673 | E32: =IFERROR(AVERAGEIF(Raw!$D:$D,Avg_all!$A32,Raw!I:I),"") -> -9.670612245 | F32: =IFERROR(AVERAGEIF(Raw!$D:$D,Avg_all!$A32,Raw!K:K),"") -> -23.6828125 | G32: =IFERROR(AVERAGEIF(Raw!$D:$D,Avg_all!$A32,Raw!M:M),"") -> -32.74081395 | H32: =IFERROR(AVERAGEIF(Raw!$D:$D,Avg_all!$A32,Raw!O:O),"") -> 5.490617284 | I32: =IFERROR(AVERAGEIF(Raw!$D:$D,Avg_all!$A32,Raw!Q:Q),"") -> 31.44933333 | J32: =IFERROR(AVERAGEIF(Raw!$D:$D,Avg_all!$A32,Raw!S:S),"") -> 3.936938776 | K32: =IFERROR(AVERAGEIF(Raw!$D:$D,Avg_all!$A32,Raw!U:U),"") -> 18.69622449 | L32: =IFERROR(AVERAGEIF(Raw!$D:$D,Avg_all!$A32,Raw!V:V),"") -> -21.05163265 | M32: =IFERROR(AVERAGEIF(Raw!$D:$D,Avg_all!$A32,Raw!W:W),"") -> 16.73606061 | N32: =IFERROR(AVERAGEIF(Raw!$D:$D,Avg_all!$A32,Raw!X:X),"") -> 20.20273021 | O32: =IFERROR(AVERAGEIF(Raw!$D:$D,Avg_all!$A32,Raw!Y:Y),"") -> 0.3788270833 | P32: =IFERROR(AVERAGEIF(Raw!$D:$D,Avg_all!$A32,Raw!Z:Z),"") -> -0.1977947917 | Q32: =IFERROR(AVERAGEIF(Raw!$D:$D,Avg_all!$A32,Raw!AA:AA),"") -> -1.361658333 | R32: =IFERROR(AVERAGEIF(Raw!$D:$D,Avg_all!$A32,Raw!AB:AB),"") -> -4.131175 | S32: =IFERROR(AVERAGEIF(Raw!$D:$D,Avg_all!$A32,Raw!AC:AC),"") ->  | T32: =IFERROR(AVERAGEIF(Raw!$D:$D,Avg_all!$A32,Raw!AD:AD),"") -> -0.065190625 | U32: =IFERROR(AVERAGEIF(Raw!$D:$D,Avg_all!$A32,Raw!AE:AE),"") -> 17.86875816 | V32: =IFERROR(AVERAGEIF(Raw!$D:$D,Avg_all!$A32,Raw!AF:AF),"") -> 0.7417 | W32: =IFERROR(AVERAGEIF(Raw!$D:$D,Avg_all!$A32,Raw!AG:AG),"") -> -0.1906204082 | X32: =IFERROR(AVERAGEIF(Raw!$D:$D,Avg_all!$A32,Raw!AH:AH),"") -> -2.247681633 | Y32: =IFERROR(AVERAGEIF(Raw!$D:$D,Avg_all!$A32,Raw!AI:AI),"") -> -1.398052041 | Z32: =IFERROR(AVERAGEIF(Raw!$D:$D,Avg_all!$A32,Raw!AJ:AJ),"") ->  | AA32: =IFERROR(AVERAGEIF(Raw!$D:$D,Avg_all!$A32,Raw!AK:AK),"") -> -0.103194898
A33: 跨國-中國A股 | B33: 跨國-中國A股 | C33: =IFERROR(AVERAGEIF(Raw!$D:$D,Avg_all!$A33,Raw!E:E),"") -> 2.736666667 | D33: =IFERROR(AVERAGEIF(Raw!$D:$D,Avg_all!$A33,Raw!G:G),"") -> -2.681904762 | E33: =IFERROR(AVERAGEIF(Raw!$D:$D,Avg_all!$A33,Raw!I:I),"") -> -14.424 | F33: =IFERROR(AVERAGEIF(Raw!$D:$D,Avg_all!$A33,Raw!K:K),"") -> -21.38131579 | G33: =IFERROR(AVERAGEIF(Raw!$D:$D,Avg_all!$A33,Raw!M:M),"") -> -33.61657895 | H33: =IFERROR(AVERAGEIF(Raw!$D:$D,Avg_all!$A33,Raw!O:O),"") -> -3.615833333 | I33: =IFERROR(AVERAGEIF(Raw!$D:$D,Avg_all!$A33,Raw!Q:Q),"") -> 56.86333333 | J33: =IFERROR(AVERAGEIF(Raw!$D:$D,Avg_all!$A33,Raw!S:S),"") -> 2.736666667 | K33: =IFERROR(AVERAGEIF(Raw!$D:$D,Avg_all!$A33,Raw!U:U),"") -> 15.96238095 | L33: =IFERROR(AVERAGEIF(Raw!$D:$D,Avg_all!$A33,Raw!V:V),"") -> -18.48642857 | M33: =IFERROR(AVERAGEIF(Raw!$D:$D,Avg_all!$A33,Raw!W:W),"") -> 5.272380952 | N33: =IFERROR(AVERAGEIF(Raw!$D:$D,Avg_all!$A33,Raw!X:X),"") -> 19.76447368 | O33: =IFERROR(AVERAGEIF(Raw!$D:$D,Avg_all!$A33,Raw!Y:Y),"") -> 0.2647368421 | P33: =IFERROR(AVERAGEIF(Raw!$D:$D,Avg_all!$A33,Raw!Z:Z),"") -> -0.1682263158 | Q33: =IFERROR(AVERAGEIF(Raw!$D:$D,Avg_all!$A33,Raw!AA:AA),"") -> -1.143910526 | R33: =IFERROR(AVERAGEIF(Raw!$D:$D,Avg_all!$A33,Raw!AB:AB),"") -> -5.509618421 | S33: =IFERROR(AVERAGEIF(Raw!$D:$D,Avg_all!$A33,Raw!AC:AC),"") ->  | T33: =IFERROR(AVERAGEIF(Raw!$D:$D,Avg_all!$A33,Raw!AD:AD),"") -> 0.0003973684211 | U33: =IFERROR(AVERAGEIF(Raw!$D:$D,Avg_all!$A33,Raw!AE:AE),"") -> 17.851635 | V33: =IFERROR(AVERAGEIF(Raw!$D:$D,Avg_all!$A33,Raw!AF:AF),"") -> 0.6711725 | W33: =IFERROR(AVERAGEIF(Raw!$D:$D,Avg_all!$A33,Raw!AG:AG),"") -> -0.24682 | X33: =IFERROR(AVERAGEIF(Raw!$D:$D,Avg_all!$A33,Raw!AH:AH),"") -> -2.4782725 | Y33: =IFERROR(AVERAGEIF(Raw!$D:$D,Avg_all!$A33,Raw!AI:AI),"") -> -1.9142925 | Z33: =IFERROR(AVERAGEIF(Raw!$D:$D,Avg_all!$A33,Raw!AJ:AJ),"") ->  | AA33: =IFERROR(AVERAGEIF(Raw!$D:$D,Avg_all!$A33,Raw!AK:AK),"") -> 0.0097325
A34: 跨國-中國一般ETF | B34: 跨國-中國一般ETF | C34: =IFERROR(AVERAGEIF(Raw!$D:$D,Avg_all!$A34,Raw!E:E),"") -> 2.708571429 | D34: =IFERROR(AVERAGEIF(Raw!$D:$D,Avg_all!$A34,Raw!G:G),"") -> -5.579285714 | E34: =IFERROR(AVERAGEIF(Raw!$D:$D,Avg_all!$A34,Raw!I:I),"") -> -14.31714286 | F34: =IFERROR(AVERAGEIF(Raw!$D:$D,Avg_all!$A34,Raw!K:K),"") -> -17.76285714 | G34: =IFERROR(AVERAGEIF(Raw!$D:$D,Avg_all!$A34,Raw!M:M),"") -> -29.13571429 | H34: =IFERROR(AVERAGEIF(Raw!$D:$D,Avg_all!$A34,Raw!O:O),"") -> -12.66181818 | I34: =IFERROR(AVERAGEIF(Raw!$D:$D,Avg_all!$A34,Raw!Q:Q),"") -> 61.455 | J34: =IFERROR(AVERAGEIF(Raw!$D:$D,Avg_all!$A34,Raw!S:S),"") -> 2.708571429 | K34: =IFERROR(AVERAGEIF(Raw!$D:$D,Avg_all!$A34,Raw!U:U),"") -> 23.66 | L34: =IFERROR(AVERAGEIF(Raw!$D:$D,Avg_all!$A34,Raw!V:V),"") -> -19.42071429 | M34: =IFERROR(AVERAGEIF(Raw!$D:$D,Avg_all!$A34,Raw!W:W),"") -> -6.911428571 | N34: =IFERROR(AVERAGEIF(Raw!$D:$D,Avg_all!$A34,Raw!X:X),"") -> 24.4525 | O34: =IFERROR(AVERAGEIF(Raw!$D:$D,Avg_all!$A34,Raw!Y:Y),"") -> 0.1540222222 | P34: =IFERROR(AVERAGEIF(Raw!$D:$D,Avg_all!$A34,Raw!Z:Z),"") -> -0.1011928571 | Q34: =IFERROR(AVERAGEIF(Raw!$D:$D,Avg_all!$A34,Raw!AA:AA),"") -> -0.8442888889 | R34: =IFERROR(AVERAGEIF(Raw!$D:$D,Avg_all!$A34,Raw!AB:AB),"") -> -7.098588889 | S34: =IFERROR(AVERAGEIF(Raw!$D:$D,Avg_all!$A34,Raw!AC:AC),"") ->  | T34: =IFERROR(AVERAGEIF(Raw!$D:$D,Avg_all!$A34,Raw!AD:AD),"") -> -0.01658571429 | U34: =IFERROR(AVERAGEIF(Raw!$D:$D,Avg_all!$A34,Raw!AE:AE),"") -> 22.2589 | V34: =IFERROR(AVERAGEIF(Raw!$D:$D,Avg_all!$A34,Raw!AF:AF),"") -> 0.5594333333 | W34: =IFERROR(AVERAGEIF(Raw!$D:$D,Avg_all!$A34,Raw!AG:AG),"") -> -0.1894285714 | X34: =IFERROR(AVERAGEIF(Raw!$D:$D,Avg_all!$A34,Raw!AH:AH),"") -> -2.192611111 | Y34: =IFERROR(AVERAGEIF(Raw!$D:$D,Avg_all!$A34,Raw!AI:AI),"") -> -2.0675 | Z34: =IFERROR(AVERAGEIF(Raw!$D:$D,Avg_all!$A34,Raw!AJ:AJ),"") ->  | AA34: =IFERROR(AVERAGEIF(Raw!$D:$D,Avg_all!$A34,Raw!AK:AK),"") -> -0.03407857143
A35: 跨國-中國反向ETF | B35: 跨國-中國反向ETF | C35: =IFERROR(AVERAGEIF(Raw!$D:$D,Avg_all!$A35,Raw!E:E),"") -> -4.59 | D35: =IFERROR(AVERAGEIF(Raw!$D:$D,Avg_all!$A35,Raw!G:G),"") -> -0.1933333333 | E35: =IFERROR(AVERAGEIF(Raw!$D:$D,Avg_all!$A35,Raw!I:I),"") -> 6.61 | F35: =IFERROR(AVERAGEIF(Raw!$D:$D,Avg_all!$A35,Raw!K:K),"") -> 5.986666667 | G35: =IFERROR(AVERAGEIF(Raw!$D:$D,Avg_all!$A35,Raw!M:M),"") -> 20.70666667 | H35: =IFERROR(AVERAGEIF(Raw!$D:$D,Avg_all!$A35,Raw!O:O),"") -> -26.21 | I35: =IFERROR(AVERAGEIF(Raw!$D:$D,Avg_all!$A35,Raw!Q:Q),"") ->  | J35: =IFERROR(AVERAGEIF(Raw!$D:$D,Avg_all!$A35,Raw!S:S),"") -> -4.59 | K35: =IFERROR(AVERAGEIF(Raw!$D:$D,Avg_all!$A35,Raw!U:U),"") -> 24.69 | L35: =IFERROR(AVERAGEIF(Raw!$D:$D,Avg_all!$A35,Raw!V:V),"") -> -23.25333333 | M35: =IFERROR(AVERAGEIF(Raw!$D:$D,Avg_all!$A35,Raw!W:W),"") -> -61.02666667 | N35: =IFERROR(AVERAGEIF(Raw!$D:$D,Avg_all!$A35,Raw!X:X),"") -> 22.6683 | O35: =IFERROR(AVERAGEIF(Raw!$D:$D,Avg_all!$A35,Raw!Y:Y),"") -> -0.2009666667 | P35: =IFERROR(AVERAGEIF(Raw!$D:$D,Avg_all!$A35,Raw!Z:Z),"") -> 0.0565 | Q35: =IFERROR(AVERAGEIF(Raw!$D:$D,Avg_all!$A35,Raw!AA:AA),"") -> 0.5011333333 | R35: =IFERROR(AVERAGEIF(Raw!$D:$D,Avg_all!$A35,Raw!AB:AB),"") -> -1.870166667 | S35: =IFERROR(AVERAGEIF(Raw!$D:$D,Avg_all!$A35,Raw!AC:AC),"") ->  | T35: =IFERROR(AVERAGEIF(Raw!$D:$D,Avg_all!$A35,Raw!AD:AD),"") -> -0.0272 | U35: =IFERROR(AVERAGEIF(Raw!$D:$D,Avg_all!$A35,Raw!AE:AE),"") -> 15.6012 | V35: =IFERROR(AVERAGEIF(Raw!$D:$D,Avg_all!$A35,Raw!AF:AF),"") -> -0.6698333333 | W35: =IFERROR(AVERAGEIF(Raw!$D:$D,Avg_all!$A35,Raw!AG:AG),"") -> 0.1192 | X35: =IFERROR(AVERAGEIF(Raw!$D:$D,Avg_all!$A35,Raw!AH:AH),"") -> 1.7262 | Y35: =IFERROR(AVERAGEIF(Raw!$D:$D,Avg_all!$A35,Raw!AI:AI),"") -> -0.8043333333 | Z35: =IFERROR(AVERAGEIF(Raw!$D:$D,Avg_all!$A35,Raw!AJ:AJ),"") ->  | AA35: =IFERROR(AVERAGEIF(Raw!$D:$D,Avg_all!$A35,Raw!AK:AK),"") -> 0.01433333333
A36: 跨國-中國兩倍ETF | B36: 跨國-中國兩倍ETF | C36: =IFERROR(AVERAGEIF(Raw!$D:$D,Avg_all!$A36,Raw!E:E),"") ->  | D36: =IFERROR(AVERAGEIF(Raw!$D:$D,Avg_all!$A36,Raw!G:G),"") ->  | E36: =IFERROR(AVERAGEIF(Raw!$D:$D,Avg_all!$A36,Raw!I:I),"") ->  | F36: =IFERROR(AVERAGEIF(Raw!$D:$D,Avg_all!$A36,Raw!K:K),"") ->  | G36: =IFERROR(AVERAGEIF(Raw!$D:$D,Avg_all!$A36,Raw!M:M),"") ->  | H36: =IFERROR(AVERAGEIF(Raw!$D:$D,Avg_all!$A36,Raw!O:O),"") ->  | I36: =IFERROR(AVERAGEIF(Raw!$D:$D,Avg_all!$A36,Raw!Q:Q),"") ->  | J36: =IFERROR(AVERAGEIF(Raw!$D:$D,Avg_all!$A36,Raw!S:S),"") ->  | K36: =IFERROR(AVERAGEIF(Raw!$D:$D,Avg_all!$A36,Raw!U:U),"") ->  | L36: =IFERROR(AVERAGEIF(Raw!$D:$D,Avg_all!$A36,Raw!V:V),"") ->  | M36: =IFERROR(AVERAGEIF(Raw!$D:$D,Avg_all!$A36,Raw!W:W),"") ->  | N36: =IFERROR(AVERAGEIF(Raw!$D:$D,Avg_all!$A36,Raw!X:X),"") ->  | O36: =IFERROR(AVERAGEIF(Raw!$D:$D,Avg_all!$A36,Raw!Y:Y),"") ->  | P36: =IFERROR(AVERAGEIF(Raw!$D:$D,Avg_all!$A36,Raw!Z:Z),"") ->  | Q36: =IFERROR(AVERAGEIF(Raw!$D:$D,Avg_all!$A36,Raw!AA:AA),"") ->  | R36: =IFERROR(AVERAGEIF(Raw!$D:$D,Avg_all!$A36,Raw!AB:AB),"") ->  | S36: =IFERROR(AVERAGEIF(Raw!$D:$D,Avg_all!$A36,Raw!AC:AC),"") ->  | T36: =IFERROR(AVERAGEIF(Raw!$D:$D,Avg_all!$A36,Raw!AD:AD),"") ->  | U36: =IFERROR(AVERAGEIF(Raw!$D:$D,Avg_all!$A36,Raw!AE:AE),"") ->  | V36: =IFERROR(AVERAGEIF(Raw!$D:$D,Avg_all!$A36,Raw!AF:AF),"") ->  | W36: =IFERROR(AVERAGEIF(Raw!$D:$D,Avg_all!$A36,Raw!AG:AG),"") ->  | X36: =IFERROR(AVERAGEIF(Raw!$D:$D,Avg_all!$A36,Raw!AH:AH),"") ->  | Y36: =IFERROR(AVERAGEIF(Raw!$D:$D,Avg_all!$A36,Raw!AI:AI),"") ->  | Z36: =IFERROR(AVERAGEIF(Raw!$D:$D,Avg_all!$A36,Raw!AJ:AJ),"") ->  | AA36: =IFERROR(AVERAGEIF(Raw!$D:$D,Avg_all!$A36,Raw!AK:AK),"") -> 
A37: 跨國平衡-全球型 | B37: 跨國平衡-全球型 | C37: =IFERROR(AVERAGEIF(Raw!$D:$D,Avg_all!$A37,Raw!E:E),"") -> 8.158372093 | D37: =IFERROR(AVERAGEIF(Raw!$D:$D,Avg_all!$A37,Raw!G:G),"") -> 14.08904762 | E37: =IFERROR(AVERAGEIF(Raw!$D:$D,Avg_all!$A37,Raw!I:I),"") -> 18.41833333 | F37: =IFERROR(AVERAGEIF(Raw!$D:$D,Avg_all!$A37,Raw!K:K),"") -> 8.031333333 | G37: =IFERROR(AVERAGEIF(Raw!$D:$D,Avg_all!$A37,Raw!M:M),"") -> 6.381851852 | H37: =IFERROR(AVERAGEIF(Raw!$D:$D,Avg_all!$A37,Raw!O:O),"") -> 27.57407407 | I37: =IFERROR(AVERAGEIF(Raw!$D:$D,Avg_all!$A37,Raw!Q:Q),"") -> 38.57 | J37: =IFERROR(AVERAGEIF(Raw!$D:$D,Avg_all!$A37,Raw!S:S),"") -> 8.158372093 | K37: =IFERROR(AVERAGEIF(Raw!$D:$D,Avg_all!$A37,Raw!U:U),"") -> 10.55209302 | L37: =IFERROR(AVERAGEIF(Raw!$D:$D,Avg_all!$A37,Raw!V:V),"") -> -8.452093023 | M37: =IFERROR(AVERAGEIF(Raw!$D:$D,Avg_all!$A37,Raw!W:W),"") -> 33.78882353 | N37: =IFERROR(AVERAGEIF(Raw!$D:$D,Avg_all!$A37,Raw!X:X),"") -> 11.20913 | O37: =IFERROR(AVERAGEIF(Raw!$D:$D,Avg_all!$A37,Raw!Y:Y),"") -> 0.5335172414 | P37: =IFERROR(AVERAGEIF(Raw!$D:$D,Avg_all!$A37,Raw!Z:Z),"") -> 0.10667 | Q37: =IFERROR(AVERAGEIF(Raw!$D:$D,Avg_all!$A37,Raw!AA:AA),"") -> -0.06148275862 | R37: =IFERROR(AVERAGEIF(Raw!$D:$D,Avg_all!$A37,Raw!AB:AB),"") -> 0.6963586207 | S37: =IFERROR(AVERAGEIF(Raw!$D:$D,Avg_all!$A37,Raw!AC:AC),"") ->  | T37: =IFERROR(AVERAGEIF(Raw!$D:$D,Avg_all!$A37,Raw!AD:AD),"") -> -0.1095566667 | U37: =IFERROR(AVERAGEIF(Raw!$D:$D,Avg_all!$A37,Raw!AE:AE),"") -> 8.51697619 | V37: =IFERROR(AVERAGEIF(Raw!$D:$D,Avg_all!$A37,Raw!AF:AF),"") -> 0.4932689655 | W37: =IFERROR(AVERAGEIF(Raw!$D:$D,Avg_all!$A37,Raw!AG:AG),"") -> 0.581652381 | X37: =IFERROR(AVERAGEIF(Raw!$D:$D,Avg_all!$A37,Raw!AH:AH),"") -> 0.3840103448 | Y37: =IFERROR(AVERAGEIF(Raw!$D:$D,Avg_all!$A37,Raw!AI:AI),"") -> 3.027748276 | Z37: =IFERROR(AVERAGEIF(Raw!$D:$D,Avg_all!$A37,Raw!AJ:AJ),"") ->  | AA37: =IFERROR(AVERAGEIF(Raw!$D:$D,Avg_all!$A37,Raw!AK:AK),"") -> -0.04275238095
A38: 跨國平衡-亞洲 | B38: 跨國平衡-亞洲 | C38: =IFERROR(AVERAGEIF(Raw!$D:$D,Avg_all!$A38,Raw!E:E),"") -> 6.538947368 | D38: =IFERROR(AVERAGEIF(Raw!$D:$D,Avg_all!$A38,Raw!G:G),"") -> 11.12526316 | E38: =IFERROR(AVERAGEIF(Raw!$D:$D,Avg_all!$A38,Raw!I:I),"") -> 11.20405405 | F38: =IFERROR(AVERAGEIF(Raw!$D:$D,Avg_all!$A38,Raw!K:K),"") -> 3.264324324 | G38: =IFERROR(AVERAGEIF(Raw!$D:$D,Avg_all!$A38,Raw!M:M),"") -> -5.159393939 | H38: =IFERROR(AVERAGEIF(Raw!$D:$D,Avg_all!$A38,Raw!O:O),"") -> 11.43033333 | I38: =IFERROR(AVERAGEIF(Raw!$D:$D,Avg_all!$A38,Raw!Q:Q),"") -> 27.015 | J38: =IFERROR(AVERAGEIF(Raw!$D:$D,Avg_all!$A38,Raw!S:S),"") -> 6.538947368 | K38: =IFERROR(AVERAGEIF(Raw!$D:$D,Avg_all!$A38,Raw!U:U),"") -> 10.42921053 | L38: =IFERROR(AVERAGEIF(Raw!$D:$D,Avg_all!$A38,Raw!V:V),"") -> -11.54394737 | M38: =IFERROR(AVERAGEIF(Raw!$D:$D,Avg_all!$A38,Raw!W:W),"") -> 30.23131579 | N38: =IFERROR(AVERAGEIF(Raw!$D:$D,Avg_all!$A38,Raw!X:X),"") -> 11.65531081 | O38: =IFERROR(AVERAGEIF(Raw!$D:$D,Avg_all!$A38,Raw!Y:Y),"") -> 0.4823972973 | P38: =IFERROR(AVERAGEIF(Raw!$D:$D,Avg_all!$A38,Raw!Z:Z),"") -> 0.02163243243 | Q38: =IFERROR(AVERAGEIF(Raw!$D:$D,Avg_all!$A38,Raw!AA:AA),"") -> -0.2417027027 | R38: =IFERROR(AVERAGEIF(Raw!$D:$D,Avg_all!$A38,Raw!AB:AB),"") -> 0.3136783784 | S38: =IFERROR(AVERAGEIF(Raw!$D:$D,Avg_all!$A38,Raw!AC:AC),"") ->  | T38: =IFERROR(AVERAGEIF(Raw!$D:$D,Avg_all!$A38,Raw!AD:AD),"") -> -0.02106216216 | U38: =IFERROR(AVERAGEIF(Raw!$D:$D,Avg_all!$A38,Raw!AE:AE),"") -> 9.768205405 | V38: =IFERROR(AVERAGEIF(Raw!$D:$D,Avg_all!$A38,Raw!AF:AF),"") -> 0.550672973 | W38: =IFERROR(AVERAGEIF(Raw!$D:$D,Avg_all!$A38,Raw!AG:AG),"") -> 0.2940837838 | X38: =IFERROR(AVERAGEIF(Raw!$D:$D,Avg_all!$A38,Raw!AH:AH),"") -> -0.1764027027 | Y38: =IFERROR(AVERAGEIF(Raw!$D:$D,Avg_all!$A38,Raw!AI:AI),"") -> 1.702418919 | Z38: =IFERROR(AVERAGEIF(Raw!$D:$D,Avg_all!$A38,Raw!AJ:AJ),"") ->  | AA38: =IFERROR(AVERAGEIF(Raw!$D:$D,Avg_all!$A38,Raw!AK:AK),"") -> -0.03135405405
A39: 跨國平衡-單一國 | B39: 跨國平衡-單一國 | C39: =IFERROR(AVERAGEIF(Raw!$D:$D,Avg_all!$A39,Raw!E:E),"") -> 4.123809524 | D39: =IFERROR(AVERAGEIF(Raw!$D:$D,Avg_all!$A39,Raw!G:G),"") -> 9.366666667 | E39: =IFERROR(AVERAGEIF(Raw!$D:$D,Avg_all!$A39,Raw!I:I),"") -> 13.1647619 | F39: =IFERROR(AVERAGEIF(Raw!$D:$D,Avg_all!$A39,Raw!K:K),"") -> 8.016666667 | G39: =IFERROR(AVERAGEIF(Raw!$D:$D,Avg_all!$A39,Raw!M:M),"") -> 10.63952381 | H39: =IFERROR(AVERAGEIF(Raw!$D:$D,Avg_all!$A39,Raw!O:O),"") -> 15.55363636 | I39: =IFERROR(AVERAGEIF(Raw!$D:$D,Avg_all!$A39,Raw!Q:Q),"") ->  | J39: =IFERROR(AVERAGEIF(Raw!$D:$D,Avg_all!$A39,Raw!S:S),"") -> 4.123809524 | K39: =IFERROR(AVERAGEIF(Raw!$D:$D,Avg_all!$A39,Raw!U:U),"") -> 8.447142857 | L39: =IFERROR(AVERAGEIF(Raw!$D:$D,Avg_all!$A39,Raw!V:V),"") -> -7.57952381 | M39: =IFERROR(AVERAGEIF(Raw!$D:$D,Avg_all!$A39,Raw!W:W),"") -> 20.42238095 | N39: =IFERROR(AVERAGEIF(Raw!$D:$D,Avg_all!$A39,Raw!X:X),"") -> 8.968752381 | O39: =IFERROR(AVERAGEIF(Raw!$D:$D,Avg_all!$A39,Raw!Y:Y),"") -> 0.3806428571 | P39: =IFERROR(AVERAGEIF(Raw!$D:$D,Avg_all!$A39,Raw!Z:Z),"") -> 0.1141285714 | Q39: =IFERROR(AVERAGEIF(Raw!$D:$D,Avg_all!$A39,Raw!AA:AA),"") -> 0.01265714286 | R39: =IFERROR(AVERAGEIF(Raw!$D:$D,Avg_all!$A39,Raw!AB:AB),"") -> 1.580971429 | S39: =IFERROR(AVERAGEIF(Raw!$D:$D,Avg_all!$A39,Raw!AC:AC),"") ->  | T39: =IFERROR(AVERAGEIF(Raw!$D:$D,Avg_all!$A39,Raw!AD:AD),"") -> -0.01078571429 | U39: =IFERROR(AVERAGEIF(Raw!$D:$D,Avg_all!$A39,Raw!AE:AE),"") -> 6.597519048 | V39: =IFERROR(AVERAGEIF(Raw!$D:$D,Avg_all!$A39,Raw!AF:AF),"") -> 0.3575142857 | W39: =IFERROR(AVERAGEIF(Raw!$D:$D,Avg_all!$A39,Raw!AG:AG),"") -> 0.5527380952 | X39: =IFERROR(AVERAGEIF(Raw!$D:$D,Avg_all!$A39,Raw!AH:AH),"") -> 0.3037142857 | Y39: =IFERROR(AVERAGEIF(Raw!$D:$D,Avg_all!$A39,Raw!AI:AI),"") -> 3.592047619 | Z39: =IFERROR(AVERAGEIF(Raw!$D:$D,Avg_all!$A39,Raw!AJ:AJ),"") ->  | AA39: =IFERROR(AVERAGEIF(Raw!$D:$D,Avg_all!$A39,Raw!AK:AK),"") -> -0.01757142857
A40: 跨國--全球股票 | B40: 跨國--全球股票 | C40: =IFERROR(AVERAGEIF(Raw!$D:$D,Avg_all!$A40,Raw!E:E),"") -> 10.14168605 | D40: =IFERROR(AVERAGEIF(Raw!$D:$D,Avg_all!$A40,Raw!G:G),"") -> 19.34070796 | E40: =IFERROR(AVERAGEIF(Raw!$D:$D,Avg_all!$A40,Raw!I:I),"") -> 20.63287425 | F40: =IFERROR(AVERAGEIF(Raw!$D:$D,Avg_all!$A40,Raw!K:K),"") -> 10.6902449 | G40: =IFERROR(AVERAGEIF(Raw!$D:$D,Avg_all!$A40,Raw!M:M),"") -> 13.64363095 | H40: =IFERROR(AVERAGEIF(Raw!$D:$D,Avg_all!$A40,Raw!O:O),"") -> 52.6327193 | I40: =IFERROR(AVERAGEIF(Raw!$D:$D,Avg_all!$A40,Raw!Q:Q),"") -> 93.85935484 | J40: =IFERROR(AVERAGEIF(Raw!$D:$D,Avg_all!$A40,Raw!S:S),"") -> 10.14168605 | K40: =IFERROR(AVERAGEIF(Raw!$D:$D,Avg_all!$A40,Raw!U:U),"") -> 17.19372093 | L40: =IFERROR(AVERAGEIF(Raw!$D:$D,Avg_all!$A40,Raw!V:V),"") -> -15.07331395 | M40: =IFERROR(AVERAGEIF(Raw!$D:$D,Avg_all!$A40,Raw!W:W),"") -> 43.79545198 | N40: =IFERROR(AVERAGEIF(Raw!$D:$D,Avg_all!$A40,Raw!X:X),"") -> 19.70849061 | O40: =IFERROR(AVERAGEIF(Raw!$D:$D,Avg_all!$A40,Raw!Y:Y),"") -> 0.8821102041 | P40: =IFERROR(AVERAGEIF(Raw!$D:$D,Avg_all!$A40,Raw!Z:Z),"") -> 0.08746857143 | Q40: =IFERROR(AVERAGEIF(Raw!$D:$D,Avg_all!$A40,Raw!AA:AA),"") -> -0.09357061224 | R40: =IFERROR(AVERAGEIF(Raw!$D:$D,Avg_all!$A40,Raw!AB:AB),"") -> 0.6087440816 | S40: =IFERROR(AVERAGEIF(Raw!$D:$D,Avg_all!$A40,Raw!AC:AC),"") ->  | T40: =IFERROR(AVERAGEIF(Raw!$D:$D,Avg_all!$A40,Raw!AD:AD),"") -> 0.02437836735 | U40: =IFERROR(AVERAGEIF(Raw!$D:$D,Avg_all!$A40,Raw!AE:AE),"") -> 16.43665269 | V40: =IFERROR(AVERAGEIF(Raw!$D:$D,Avg_all!$A40,Raw!AF:AF),"") -> 0.9223853293 | W40: =IFERROR(AVERAGEIF(Raw!$D:$D,Avg_all!$A40,Raw!AG:AG),"") -> 0.3291353293 | X40: =IFERROR(AVERAGEIF(Raw!$D:$D,Avg_all!$A40,Raw!AH:AH),"") -> -0.1134368263 | Y40: =IFERROR(AVERAGEIF(Raw!$D:$D,Avg_all!$A40,Raw!AI:AI),"") -> 1.817097006 | Z40: =IFERROR(AVERAGEIF(Raw!$D:$D,Avg_all!$A40,Raw!AJ:AJ),"") ->  | AA40: =IFERROR(AVERAGEIF(Raw!$D:$D,Avg_all!$A40,Raw!AK:AK),"") -> 0.0006425149701
A41: 跨國--全球資源 | B41: 跨國--全球資源 | C41: =IFERROR(AVERAGEIF(Raw!$D:$D,Avg_all!$A41,Raw!E:E),"") -> 3.623 | D41: =IFERROR(AVERAGEIF(Raw!$D:$D,Avg_all!$A41,Raw!G:G),"") -> 4.454444444 | E41: =IFERROR(AVERAGEIF(Raw!$D:$D,Avg_all!$A41,Raw!I:I),"") -> 7.21 | F41: =IFERROR(AVERAGEIF(Raw!$D:$D,Avg_all!$A41,Raw!K:K),"") -> 6.001111111 | G41: =IFERROR(AVERAGEIF(Raw!$D:$D,Avg_all!$A41,Raw!M:M),"") -> 24.96111111 | H41: =IFERROR(AVERAGEIF(Raw!$D:$D,Avg_all!$A41,Raw!O:O),"") -> 32.39111111 | I41: =IFERROR(AVERAGEIF(Raw!$D:$D,Avg_all!$A41,Raw!Q:Q),"") -> 16.19875 | J41: =IFERROR(AVERAGEIF(Raw!$D:$D,Avg_all!$A41,Raw!S:S),"") -> 3.623 | K41: =IFERROR(AVERAGEIF(Raw!$D:$D,Avg_all!$A41,Raw!U:U),"") -> 14.1 | L41: =IFERROR(AVERAGEIF(Raw!$D:$D,Avg_all!$A41,Raw!V:V),"") -> -12.38 | M41: =IFERROR(AVERAGEIF(Raw!$D:$D,Avg_all!$A41,Raw!W:W),"") -> 30.913 | N41: =IFERROR(AVERAGEIF(Raw!$D:$D,Avg_all!$A41,Raw!X:X),"") -> 19.37218889 | O41: =IFERROR(AVERAGEIF(Raw!$D:$D,Avg_all!$A41,Raw!Y:Y),"") -> 0.7137111111 | P41: =IFERROR(AVERAGEIF(Raw!$D:$D,Avg_all!$A41,Raw!Z:Z),"") -> 0.04715555556 | Q41: =IFERROR(AVERAGEIF(Raw!$D:$D,Avg_all!$A41,Raw!AA:AA),"") -> -0.1788555556 | R41: =IFERROR(AVERAGEIF(Raw!$D:$D,Avg_all!$A41,Raw!AB:AB),"") -> 0.4185666667 | S41: =IFERROR(AVERAGEIF(Raw!$D:$D,Avg_all!$A41,Raw!AC:AC),"") ->  | T41: =IFERROR(AVERAGEIF(Raw!$D:$D,Avg_all!$A41,Raw!AD:AD),"") -> 0.0475 | U41: =IFERROR(AVERAGEIF(Raw!$D:$D,Avg_all!$A41,Raw!AE:AE),"") -> 17.88615556 | V41: =IFERROR(AVERAGEIF(Raw!$D:$D,Avg_all!$A41,Raw!AF:AF),"") -> 0.7882111111 | W41: =IFERROR(AVERAGEIF(Raw!$D:$D,Avg_all!$A41,Raw!AG:AG),"") -> 0.1190444444 | X41: =IFERROR(AVERAGEIF(Raw!$D:$D,Avg_all!$A41,Raw!AH:AH),"") -> -0.7980222222 | Y41: =IFERROR(AVERAGEIF(Raw!$D:$D,Avg_all!$A41,Raw!AI:AI),"") -> 0.9854666667 | Z41: =IFERROR(AVERAGEIF(Raw!$D:$D,Avg_all!$A41,Raw!AJ:AJ),"") ->  | AA41: =IFERROR(AVERAGEIF(Raw!$D:$D,Avg_all!$A41,Raw!AK:AK),"") -> 0.08642222222
A42: 跨國投資--日本 | B42: 跨國投資--日本 | C42: =IFERROR(AVERAGEIF(Raw!$D:$D,Avg_all!$A42,Raw!E:E),"") ->  | D42: =IFERROR(AVERAGEIF(Raw!$D:$D,Avg_all!$A42,Raw!G:G),"") ->  | E42: =IFERROR(AVERAGEIF(Raw!$D:$D,Avg_all!$A42,Raw!I:I),"") ->  | F42: =IFERROR(AVERAGEIF(Raw!$D:$D,Avg_all!$A42,Raw!K:K),"") ->  | G42: =IFERROR(AVERAGEIF(Raw!$D:$D,Avg_all!$A42,Raw!M:M),"") ->  | H42: =IFERROR(AVERAGEIF(Raw!$D:$D,Avg_all!$A42,Raw!O:O),"") ->  | I42: =IFERROR(AVERAGEIF(Raw!$D:$D,Avg_all!$A42,Raw!Q:Q),"") ->  | J42: =IFERROR(AVERAGEIF(Raw!$D:$D,Avg_all!$A42,Raw!S:S),"") ->  | K42: =IFERROR(AVERAGEIF(Raw!$D:$D,Avg_all!$A42,Raw!U:U),"") ->  | L42: =IFERROR(AVERAGEIF(Raw!$D:$D,Avg_all!$A42,Raw!V:V),"") ->  | M42: =IFERROR(AVERAGEIF(Raw!$D:$D,Avg_all!$A42,Raw!W:W),"") ->  | N42: =IFERROR(AVERAGEIF(Raw!$D:$D,Avg_all!$A42,Raw!X:X),"") ->  | O42: =IFERROR(AVERAGEIF(Raw!$D:$D,Avg_all!$A42,Raw!Y:Y),"") ->  | P42: =IFERROR(AVERAGEIF(Raw!$D:$D,Avg_all!$A42,Raw!Z:Z),"") ->  | Q42: =IFERROR(AVERAGEIF(Raw!$D:$D,Avg_all!$A42,Raw!AA:AA),"") ->  | R42: =IFERROR(AVERAGEIF(Raw!$D:$D,Avg_all!$A42,Raw!AB:AB),"") ->  | S42: =IFERROR(AVERAGEIF(Raw!$D:$D,Avg_all!$A42,Raw!AC:AC),"") ->  | T42: =IFERROR(AVERAGEIF(Raw!$D:$D,Avg_all!$A42,Raw!AD:AD),"") ->  | U42: =IFERROR(AVERAGEIF(Raw!$D:$D,Avg_all!$A42,Raw!AE:AE),"") ->  | V42: =IFERROR(AVERAGEIF(Raw!$D:$D,Avg_all!$A42,Raw!AF:AF),"") ->  | W42: =IFERROR(AVERAGEIF(Raw!$D:$D,Avg_all!$A42,Raw!AG:AG),"") ->  | X42: =IFERROR(AVERAGEIF(Raw!$D:$D,Avg_all!$A42,Raw!AH:AH),"") ->  | Y42: =IFERROR(AVERAGEIF(Raw!$D:$D,Avg_all!$A42,Raw!AI:AI),"") ->  | Z42: =IFERROR(AVERAGEIF(Raw!$D:$D,Avg_all!$A42,Raw!AJ:AJ),"") ->  | AA42: =IFERROR(AVERAGEIF(Raw!$D:$D,Avg_all!$A42,Raw!AK:AK),"") -> 
A43: 跨國投資--亞洲 | B43: 跨國投資--亞洲 | C43: =IFERROR(AVERAGEIF(Raw!$D:$D,Avg_all!$A43,Raw!E:E),"") -> 7.54559322 | D43: =IFERROR(AVERAGEIF(Raw!$D:$D,Avg_all!$A43,Raw!G:G),"") -> 12.2920339 | E43: =IFERROR(AVERAGEIF(Raw!$D:$D,Avg_all!$A43,Raw!I:I),"") -> 13.14534483 | F43: =IFERROR(AVERAGEIF(Raw!$D:$D,Avg_all!$A43,Raw!K:K),"") -> 2.888545455 | G43: =IFERROR(AVERAGEIF(Raw!$D:$D,Avg_all!$A43,Raw!M:M),"") -> -3.926363636 | H43: =IFERROR(AVERAGEIF(Raw!$D:$D,Avg_all!$A43,Raw!O:O),"") -> 24.54690909 | I43: =IFERROR(AVERAGEIF(Raw!$D:$D,Avg_all!$A43,Raw!Q:Q),"") -> 57.62785714 | J43: =IFERROR(AVERAGEIF(Raw!$D:$D,Avg_all!$A43,Raw!S:S),"") -> 7.54559322 | K43: =IFERROR(AVERAGEIF(Raw!$D:$D,Avg_all!$A43,Raw!U:U),"") -> 18.01254237 | L43: =IFERROR(AVERAGEIF(Raw!$D:$D,Avg_all!$A43,Raw!V:V),"") -> -13.86627119 | M43: =IFERROR(AVERAGEIF(Raw!$D:$D,Avg_all!$A43,Raw!W:W),"") -> 69.69966102 | N43: =IFERROR(AVERAGEIF(Raw!$D:$D,Avg_all!$A43,Raw!X:X),"") -> 17.48479455 | O43: =IFERROR(AVERAGEIF(Raw!$D:$D,Avg_all!$A43,Raw!Y:Y),"") -> 0.68592 | P43: =IFERROR(AVERAGEIF(Raw!$D:$D,Avg_all!$A43,Raw!Z:Z),"") -> 0.0301 | Q43: =IFERROR(AVERAGEIF(Raw!$D:$D,Avg_all!$A43,Raw!AA:AA),"") -> -0.3065781818 | R43: =IFERROR(AVERAGEIF(Raw!$D:$D,Avg_all!$A43,Raw!AB:AB),"") -> 0.2589890909 | S43: =IFERROR(AVERAGEIF(Raw!$D:$D,Avg_all!$A43,Raw!AC:AC),"") ->  | T43: =IFERROR(AVERAGEIF(Raw!$D:$D,Avg_all!$A43,Raw!AD:AD),"") -> -0.03564363636 | U43: =IFERROR(AVERAGEIF(Raw!$D:$D,Avg_all!$A43,Raw!AE:AE),"") -> 14.53520172 | V43: =IFERROR(AVERAGEIF(Raw!$D:$D,Avg_all!$A43,Raw!AF:AF),"") -> 0.7994137931 | W43: =IFERROR(AVERAGEIF(Raw!$D:$D,Avg_all!$A43,Raw!AG:AG),"") -> 0.2309827586 | X43: =IFERROR(AVERAGEIF(Raw!$D:$D,Avg_all!$A43,Raw!AH:AH),"") -> -0.4393775862 | Y43: =IFERROR(AVERAGEIF(Raw!$D:$D,Avg_all!$A43,Raw!AI:AI),"") -> 1.30467069 | Z43: =IFERROR(AVERAGEIF(Raw!$D:$D,Avg_all!$A43,Raw!AJ:AJ),"") ->  | AA43: =IFERROR(AVERAGEIF(Raw!$D:$D,Avg_all!$A43,Raw!AK:AK),"") -> -0.1406224138
A44: 跨國投資--美國 | B44: 跨國投資--美國 | C44: =IFERROR(AVERAGEIF(Raw!$D:$D,Avg_all!$A44,Raw!E:E),"") ->  | D44: =IFERROR(AVERAGEIF(Raw!$D:$D,Avg_all!$A44,Raw!G:G),"") ->  | E44: =IFERROR(AVERAGEIF(Raw!$D:$D,Avg_all!$A44,Raw!I:I),"") ->  | F44: =IFERROR(AVERAGEIF(Raw!$D:$D,Avg_all!$A44,Raw!K:K),"") ->  | G44: =IFERROR(AVERAGEIF(Raw!$D:$D,Avg_all!$A44,Raw!M:M),"") ->  | H44: =IFERROR(AVERAGEIF(Raw!$D:$D,Avg_all!$A44,Raw!O:O),"") ->  | I44: =IFERROR(AVERAGEIF(Raw!$D:$D,Avg_all!$A44,Raw!Q:Q),"") ->  | J44: =IFERROR(AVERAGEIF(Raw!$D:$D,Avg_all!$A44,Raw!S:S),"") ->  | K44: =IFERROR(AVERAGEIF(Raw!$D:$D,Avg_all!$A44,Raw!U:U),"") ->  | L44: =IFERROR(AVERAGEIF(Raw!$D:$D,Avg_all!$A44,Raw!V:V),"") ->  | M44: =IFERROR(AVERAGEIF(Raw!$D:$D,Avg_all!$A44,Raw!W:W),"") ->  | N44: =IFERROR(AVERAGEIF(Raw!$D:$D,Avg_all!$A44,Raw!X:X),"") ->  | O44: =IFERROR(AVERAGEIF(Raw!$D:$D,Avg_all!$A44,Raw!Y:Y),"") ->  | P44: =IFERROR(AVERAGEIF(Raw!$D:$D,Avg_all!$A44,Raw!Z:Z),"") ->  | Q44: =IFERROR(AVERAGEIF(Raw!$D:$D,Avg_all!$A44,Raw!AA:AA),"") ->  | R44: =IFERROR(AVERAGEIF(Raw!$D:$D,Avg_all!$A44,Raw!AB:AB),"") ->  | S44: =IFERROR(AVERAGEIF(Raw!$D:$D,Avg_all!$A44,Raw!AC:AC),"") ->  | T44: =IFERROR(AVERAGEIF(Raw!$D:$D,Avg_all!$A44,Raw!AD:AD),"") ->  | U44: =IFERROR(AVERAGEIF(Raw!$D:$D,Avg_all!$A44,Raw!AE:AE),"") ->  | V44: =IFERROR(AVERAGEIF(Raw!$D:$D,Avg_all!$A44,Raw!AF:AF),"") ->  | W44: =IFERROR(AVERAGEIF(Raw!$D:$D,Avg_all!$A44,Raw!AG:AG),"") ->  | X44: =IFERROR(AVERAGEIF(Raw!$D:$D,Avg_all!$A44,Raw!AH:AH),"") ->  | Y44: =IFERROR(AVERAGEIF(Raw!$D:$D,Avg_all!$A44,Raw!AI:AI),"") ->  | Z44: =IFERROR(AVERAGEIF(Raw!$D:$D,Avg_all!$A44,Raw!AJ:AJ),"") ->  | AA44: =IFERROR(AVERAGEIF(Raw!$D:$D,Avg_all!$A44,Raw!AK:AK),"") -> 
A45: 跨國投資--歐洲 | B45: 跨國投資--歐洲 | C45: =IFERROR(AVERAGEIF(Raw!$D:$D,Avg_all!$A45,Raw!E:E),"") -> 10.67333333 | D45: =IFERROR(AVERAGEIF(Raw!$D:$D,Avg_all!$A45,Raw!G:G),"") -> 16.66666667 | E45: =IFERROR(AVERAGEIF(Raw!$D:$D,Avg_all!$A45,Raw!I:I),"") -> 19.87 | F45: =IFERROR(AVERAGEIF(Raw!$D:$D,Avg_all!$A45,Raw!K:K),"") -> 30.505 | G45: =IFERROR(AVERAGEIF(Raw!$D:$D,Avg_all!$A45,Raw!M:M),"") -> 29.62 | H45: =IFERROR(AVERAGEIF(Raw!$D:$D,Avg_all!$A45,Raw!O:O),"") -> 43.95 | I45: =IFERROR(AVERAGEIF(Raw!$D:$D,Avg_all!$A45,Raw!Q:Q),"") -> 39.99 | J45: =IFERROR(AVERAGEIF(Raw!$D:$D,Avg_all!$A45,Raw!S:S),"") -> 10.67333333 | K45: =IFERROR(AVERAGEIF(Raw!$D:$D,Avg_all!$A45,Raw!U:U),"") -> 14.55 | L45: =IFERROR(AVERAGEIF(Raw!$D:$D,Avg_all!$A45,Raw!V:V),"") -> -10.06 | M45: =IFERROR(AVERAGEIF(Raw!$D:$D,Avg_all!$A45,Raw!W:W),"") -> 71.17666667 | N45: =IFERROR(AVERAGEIF(Raw!$D:$D,Avg_all!$A45,Raw!X:X),"") -> 15.99985 | O45: =IFERROR(AVERAGEIF(Raw!$D:$D,Avg_all!$A45,Raw!Y:Y),"") -> 0.7369 | P45: =IFERROR(AVERAGEIF(Raw!$D:$D,Avg_all!$A45,Raw!Z:Z),"") -> 0.24545 | Q45: =IFERROR(AVERAGEIF(Raw!$D:$D,Avg_all!$A45,Raw!AA:AA),"") -> 0.655 | R45: =IFERROR(AVERAGEIF(Raw!$D:$D,Avg_all!$A45,Raw!AB:AB),"") -> 1.5372 | S45: =IFERROR(AVERAGEIF(Raw!$D:$D,Avg_all!$A45,Raw!AC:AC),"") ->  | T45: =IFERROR(AVERAGEIF(Raw!$D:$D,Avg_all!$A45,Raw!AD:AD),"") -> -0.041 | U45: =IFERROR(AVERAGEIF(Raw!$D:$D,Avg_all!$A45,Raw!AE:AE),"") -> 13.8691 | V45: =IFERROR(AVERAGEIF(Raw!$D:$D,Avg_all!$A45,Raw!AF:AF),"") -> 0.8288 | W45: =IFERROR(AVERAGEIF(Raw!$D:$D,Avg_all!$A45,Raw!AG:AG),"") -> 0.3775 | X45: =IFERROR(AVERAGEIF(Raw!$D:$D,Avg_all!$A45,Raw!AH:AH),"") -> 0.03155 | Y45: =IFERROR(AVERAGEIF(Raw!$D:$D,Avg_all!$A45,Raw!AI:AI),"") -> 1.81385 | Z45: =IFERROR(AVERAGEIF(Raw!$D:$D,Avg_all!$A45,Raw!AJ:AJ),"") ->  | AA45: =IFERROR(AVERAGEIF(Raw!$D:$D,Avg_all!$A45,Raw!AK:AK),"") -> -0.0444
A46: 跨國--其他單一國 | B46: 跨國--其他單一國 | C46: =IFERROR(AVERAGEIF(Raw!$D:$D,Avg_all!$A46,Raw!E:E),"") ->  | D46: =IFERROR(AVERAGEIF(Raw!$D:$D,Avg_all!$A46,Raw!G:G),"") ->  | E46: =IFERROR(AVERAGEIF(Raw!$D:$D,Avg_all!$A46,Raw!I:I),"") ->  | F46: =IFERROR(AVERAGEIF(Raw!$D:$D,Avg_all!$A46,Raw!K:K),"") ->  | G46: =IFERROR(AVERAGEIF(Raw!$D:$D,Avg_all!$A46,Raw!M:M),"") ->  | H46: =IFERROR(AVERAGEIF(Raw!$D:$D,Avg_all!$A46,Raw!O:O),"") ->  | I46: =IFERROR(AVERAGEIF(Raw!$D:$D,Avg_all!$A46,Raw!Q:Q),"") ->  | J46: =IFERROR(AVERAGEIF(Raw!$D:$D,Avg_all!$A46,Raw!S:S),"") ->  | K46: =IFERROR(AVERAGEIF(Raw!$D:$D,Avg_all!$A46,Raw!U:U),"") ->  | L46: =IFERROR(AVERAGEIF(Raw!$D:$D,Avg_all!$A46,Raw!V:V),"") ->  | M46: =IFERROR(AVERAGEIF(Raw!$D:$D,Avg_all!$A46,Raw!W:W),"") ->  | N46: =IFERROR(AVERAGEIF(Raw!$D:$D,Avg_all!$A46,Raw!X:X),"") ->  | O46: =IFERROR(AVERAGEIF(Raw!$D:$D,Avg_all!$A46,Raw!Y:Y),"") ->  | P46: =IFERROR(AVERAGEIF(Raw!$D:$D,Avg_all!$A46,Raw!Z:Z),"") ->  | Q46: =IFERROR(AVERAGEIF(Raw!$D:$D,Avg_all!$A46,Raw!AA:AA),"") ->  | R46: =IFERROR(AVERAGEIF(Raw!$D:$D,Avg_all!$A46,Raw!AB:AB),"") ->  | S46: =IFERROR(AVERAGEIF(Raw!$D:$D,Avg_all!$A46,Raw!AC:AC),"") ->  | T46: =IFERROR(AVERAGEIF(Raw!$D:$D,Avg_all!$A46,Raw!AD:AD),"") ->  | U46: =IFERROR(AVERAGEIF(Raw!$D:$D,Avg_all!$A46,Raw!AE:AE),"") ->  | V46: =IFERROR(AVERAGEIF(Raw!$D:$D,Avg_all!$A46,Raw!AF:AF),"") ->  | W46: =IFERROR(AVERAGEIF(Raw!$D:$D,Avg_all!$A46,Raw!AG:AG),"") ->  | X46: =IFERROR(AVERAGEIF(Raw!$D:$D,Avg_all!$A46,Raw!AH:AH),"") ->  | Y46: =IFERROR(AVERAGEIF(Raw!$D:$D,Avg_all!$A46,Raw!AI:AI),"") ->  | Z46: =IFERROR(AVERAGEIF(Raw!$D:$D,Avg_all!$A46,Raw!AJ:AJ),"") ->  | AA46: =IFERROR(AVERAGEIF(Raw!$D:$D,Avg_all!$A46,Raw!AK:AK),"") -> 
A47: 跨國股組合--一般 | B47: 跨國股組合--一般 | C47: =IFERROR(AVERAGEIF(Raw!$D:$D,Avg_all!$A47,Raw!E:E),"") -> 9.884210526 | D47: =IFERROR(AVERAGEIF(Raw!$D:$D,Avg_all!$A47,Raw!G:G),"") -> 14.91526316 | E47: =IFERROR(AVERAGEIF(Raw!$D:$D,Avg_all!$A47,Raw!I:I),"") -> 23.20473684 | F47: =IFERROR(AVERAGEIF(Raw!$D:$D,Avg_all!$A47,Raw!K:K),"") -> 16.19789474 | G47: =IFERROR(AVERAGEIF(Raw!$D:$D,Avg_all!$A47,Raw!M:M),"") -> 20.291875 | H47: =IFERROR(AVERAGEIF(Raw!$D:$D,Avg_all!$A47,Raw!O:O),"") -> 53.56733333 | I47: =IFERROR(AVERAGEIF(Raw!$D:$D,Avg_all!$A47,Raw!Q:Q),"") -> 63.15166667 | J47: =IFERROR(AVERAGEIF(Raw!$D:$D,Avg_all!$A47,Raw!S:S),"") -> 9.884210526 | K47: =IFERROR(AVERAGEIF(Raw!$D:$D,Avg_all!$A47,Raw!U:U),"") -> 12.42526316 | L47: =IFERROR(AVERAGEIF(Raw!$D:$D,Avg_all!$A47,Raw!V:V),"") -> -11.91473684 | M47: =IFERROR(AVERAGEIF(Raw!$D:$D,Avg_all!$A47,Raw!W:W),"") -> 71.08947368 | N47: =IFERROR(AVERAGEIF(Raw!$D:$D,Avg_all!$A47,Raw!X:X),"") -> 14.20705789 | O47: =IFERROR(AVERAGEIF(Raw!$D:$D,Avg_all!$A47,Raw!Y:Y),"") -> 0.6656052632 | P47: =IFERROR(AVERAGEIF(Raw!$D:$D,Avg_all!$A47,Raw!Z:Z),"") -> 0.1684894737 | Q47: =IFERROR(AVERAGEIF(Raw!$D:$D,Avg_all!$A47,Raw!AA:AA),"") -> 0.1924894737 | R47: =IFERROR(AVERAGEIF(Raw!$D:$D,Avg_all!$A47,Raw!AB:AB),"") -> 1.062289474 | S47: =IFERROR(AVERAGEIF(Raw!$D:$D,Avg_all!$A47,Raw!AC:AC),"") ->  | T47: =IFERROR(AVERAGEIF(Raw!$D:$D,Avg_all!$A47,Raw!AD:AD),"") -> -0.007189473684 | U47: =IFERROR(AVERAGEIF(Raw!$D:$D,Avg_all!$A47,Raw!AE:AE),"") -> 10.98134211 | V47: =IFERROR(AVERAGEIF(Raw!$D:$D,Avg_all!$A47,Raw!AF:AF),"") -> 0.6795842105 | W47: =IFERROR(AVERAGEIF(Raw!$D:$D,Avg_all!$A47,Raw!AG:AG),"") -> 0.5769894737 | X47: =IFERROR(AVERAGEIF(Raw!$D:$D,Avg_all!$A47,Raw!AH:AH),"") -> 0.4973210526 | Y47: =IFERROR(AVERAGEIF(Raw!$D:$D,Avg_all!$A47,Raw!AI:AI),"") -> 2.663226316 | Z47: =IFERROR(AVERAGEIF(Raw!$D:$D,Avg_all!$A47,Raw!AJ:AJ),"") ->  | AA47: =IFERROR(AVERAGEIF(Raw!$D:$D,Avg_all!$A47,Raw!AK:AK),"") -> 0.07604210526
A48: 跨國股組合--新興 | B48: 跨國股組合--新興 | C48: =IFERROR(AVERAGEIF(Raw!$D:$D,Avg_all!$A48,Raw!E:E),"") -> 5.54 | D48: =IFERROR(AVERAGEIF(Raw!$D:$D,Avg_all!$A48,Raw!G:G),"") -> 7.57 | E48: =IFERROR(AVERAGEIF(Raw!$D:$D,Avg_all!$A48,Raw!I:I),"") -> 9.105 | F48: =IFERROR(AVERAGEIF(Raw!$D:$D,Avg_all!$A48,Raw!K:K),"") -> 0.165 | G48: =IFERROR(AVERAGEIF(Raw!$D:$D,Avg_all!$A48,Raw!M:M),"") -> -13.63 | H48: =IFERROR(AVERAGEIF(Raw!$D:$D,Avg_all!$A48,Raw!O:O),"") -> 5.285 | I48: =IFERROR(AVERAGEIF(Raw!$D:$D,Avg_all!$A48,Raw!Q:Q),"") -> 1.84 | J48: =IFERROR(AVERAGEIF(Raw!$D:$D,Avg_all!$A48,Raw!S:S),"") -> 5.54 | K48: =IFERROR(AVERAGEIF(Raw!$D:$D,Avg_all!$A48,Raw!U:U),"") -> 9.405 | L48: =IFERROR(AVERAGEIF(Raw!$D:$D,Avg_all!$A48,Raw!V:V),"") -> -9.065 | M48: =IFERROR(AVERAGEIF(Raw!$D:$D,Avg_all!$A48,Raw!W:W),"") -> 11 | N48: =IFERROR(AVERAGEIF(Raw!$D:$D,Avg_all!$A48,Raw!X:X),"") -> 12.012 | O48: =IFERROR(AVERAGEIF(Raw!$D:$D,Avg_all!$A48,Raw!Y:Y),"") -> 0.53815 | P48: =IFERROR(AVERAGEIF(Raw!$D:$D,Avg_all!$A48,Raw!Z:Z),"") -> -0.0043 | Q48: =IFERROR(AVERAGEIF(Raw!$D:$D,Avg_all!$A48,Raw!AA:AA),"") -> -0.36655 | R48: =IFERROR(AVERAGEIF(Raw!$D:$D,Avg_all!$A48,Raw!AB:AB),"") -> -0.02935 | S48: =IFERROR(AVERAGEIF(Raw!$D:$D,Avg_all!$A48,Raw!AC:AC),"") ->  | T48: =IFERROR(AVERAGEIF(Raw!$D:$D,Avg_all!$A48,Raw!AD:AD),"") -> 0 | U48: =IFERROR(AVERAGEIF(Raw!$D:$D,Avg_all!$A48,Raw!AE:AE),"") -> 11.62275 | V48: =IFERROR(AVERAGEIF(Raw!$D:$D,Avg_all!$A48,Raw!AF:AF),"") -> 0.69555 | W48: =IFERROR(AVERAGEIF(Raw!$D:$D,Avg_all!$A48,Raw!AG:AG),"") -> 0.20505 | X48: =IFERROR(AVERAGEIF(Raw!$D:$D,Avg_all!$A48,Raw!AH:AH),"") -> -0.54695 | Y48: =IFERROR(AVERAGEIF(Raw!$D:$D,Avg_all!$A48,Raw!AI:AI),"") -> 0.98935 | Z48: =IFERROR(AVERAGEIF(Raw!$D:$D,Avg_all!$A48,Raw!AJ:AJ),"") ->  | AA48: =IFERROR(AVERAGEIF(Raw!$D:$D,Avg_all!$A48,Raw!AK:AK),"") -> 0
A49: 跨國組合--平衡型 | B49: 跨國組合--平衡型 | C49: =IFERROR(AVERAGEIF(Raw!$D:$D,Avg_all!$A49,Raw!E:E),"") -> 5.253297297 | D49: =IFERROR(AVERAGEIF(Raw!$D:$D,Avg_all!$A49,Raw!G:G),"") -> 11.66945946 | E49: =IFERROR(AVERAGEIF(Raw!$D:$D,Avg_all!$A49,Raw!I:I),"") -> 13.24333333 | F49: =IFERROR(AVERAGEIF(Raw!$D:$D,Avg_all!$A49,Raw!K:K),"") -> 5.523173653 | G49: =IFERROR(AVERAGEIF(Raw!$D:$D,Avg_all!$A49,Raw!M:M),"") -> 4.242937063 | H49: =IFERROR(AVERAGEIF(Raw!$D:$D,Avg_all!$A49,Raw!O:O),"") -> 22.2604 | I49: =IFERROR(AVERAGEIF(Raw!$D:$D,Avg_all!$A49,Raw!Q:Q),"") -> 41.22117647 | J49: =IFERROR(AVERAGEIF(Raw!$D:$D,Avg_all!$A49,Raw!S:S),"") -> 5.253297297 | K49: =IFERROR(AVERAGEIF(Raw!$D:$D,Avg_all!$A49,Raw!U:U),"") -> 9.487891892 | L49: =IFERROR(AVERAGEIF(Raw!$D:$D,Avg_all!$A49,Raw!V:V),"") -> -9.559243243 | M49: =IFERROR(AVERAGEIF(Raw!$D:$D,Avg_all!$A49,Raw!W:W),"") -> 23.82665049 | N49: =IFERROR(AVERAGEIF(Raw!$D:$D,Avg_all!$A49,Raw!X:X),"") -> 10.59697964 | O49: =IFERROR(AVERAGEIF(Raw!$D:$D,Avg_all!$A49,Raw!Y:Y),"") -> 0.5193850299 | P49: =IFERROR(AVERAGEIF(Raw!$D:$D,Avg_all!$A49,Raw!Z:Z),"") -> 0.05428263473 | Q49: =IFERROR(AVERAGEIF(Raw!$D:$D,Avg_all!$A49,Raw!AA:AA),"") -> -0.1722431138 | R49: =IFERROR(AVERAGEIF(Raw!$D:$D,Avg_all!$A49,Raw!AB:AB),"") -> 0.3476401198 | S49: =IFERROR(AVERAGEIF(Raw!$D:$D,Avg_all!$A49,Raw!AC:AC),"") ->  | T49: =IFERROR(AVERAGEIF(Raw!$D:$D,Avg_all!$A49,Raw!AD:AD),"") -> -0.02358982036 | U49: =IFERROR(AVERAGEIF(Raw!$D:$D,Avg_all!$A49,Raw!AE:AE),"") -> 8.648705556 | V49: =IFERROR(AVERAGEIF(Raw!$D:$D,Avg_all!$A49,Raw!AF:AF),"") -> 0.58385 | W49: =IFERROR(AVERAGEIF(Raw!$D:$D,Avg_all!$A49,Raw!AG:AG),"") -> 0.3830561111 | X49: =IFERROR(AVERAGEIF(Raw!$D:$D,Avg_all!$A49,Raw!AH:AH),"") -> -0.08358944444 | Y49: =IFERROR(AVERAGEIF(Raw!$D:$D,Avg_all!$A49,Raw!AI:AI),"") -> 1.687638333 | Z49: =IFERROR(AVERAGEIF(Raw!$D:$D,Avg_all!$A49,Raw!AJ:AJ),"") ->  | AA49: =IFERROR(AVERAGEIF(Raw!$D:$D,Avg_all!$A49,Raw!AK:AK),"") -> -0.03462666667
A50: 跨國--新興市場 | B50: 跨國--新興市場 | C50: =IFERROR(AVERAGEIF(Raw!$D:$D,Avg_all!$A50,Raw!E:E),"") -> 3.605238095 | D50: =IFERROR(AVERAGEIF(Raw!$D:$D,Avg_all!$A50,Raw!G:G),"") -> 8.017619048 | E50: =IFERROR(AVERAGEIF(Raw!$D:$D,Avg_all!$A50,Raw!I:I),"") -> 11.418 | F50: =IFERROR(AVERAGEIF(Raw!$D:$D,Avg_all!$A50,Raw!K:K),"") -> 3.3725 | G50: =IFERROR(AVERAGEIF(Raw!$D:$D,Avg_all!$A50,Raw!M:M),"") -> 1.5205 | H50: =IFERROR(AVERAGEIF(Raw!$D:$D,Avg_all!$A50,Raw!O:O),"") -> 7.367894737 | I50: =IFERROR(AVERAGEIF(Raw!$D:$D,Avg_all!$A50,Raw!Q:Q),"") -> 26.7375 | J50: =IFERROR(AVERAGEIF(Raw!$D:$D,Avg_all!$A50,Raw!S:S),"") -> 3.605238095 | K50: =IFERROR(AVERAGEIF(Raw!$D:$D,Avg_all!$A50,Raw!U:U),"") -> 16.64619048 | L50: =IFERROR(AVERAGEIF(Raw!$D:$D,Avg_all!$A50,Raw!V:V),"") -> -13.56333333 | M50: =IFERROR(AVERAGEIF(Raw!$D:$D,Avg_all!$A50,Raw!W:W),"") -> 28.64095238 | N50: =IFERROR(AVERAGEIF(Raw!$D:$D,Avg_all!$A50,Raw!X:X),"") -> 17.076905 | O50: =IFERROR(AVERAGEIF(Raw!$D:$D,Avg_all!$A50,Raw!Y:Y),"") -> 0.617705 | P50: =IFERROR(AVERAGEIF(Raw!$D:$D,Avg_all!$A50,Raw!Z:Z),"") -> 0.03049 | Q50: =IFERROR(AVERAGEIF(Raw!$D:$D,Avg_all!$A50,Raw!AA:AA),"") -> -0.25752 | R50: =IFERROR(AVERAGEIF(Raw!$D:$D,Avg_all!$A50,Raw!AB:AB),"") -> 0.238835 | S50: =IFERROR(AVERAGEIF(Raw!$D:$D,Avg_all!$A50,Raw!AC:AC),"") ->  | T50: =IFERROR(AVERAGEIF(Raw!$D:$D,Avg_all!$A50,Raw!AD:AD),"") -> -0.03295 | U50: =IFERROR(AVERAGEIF(Raw!$D:$D,Avg_all!$A50,Raw!AE:AE),"") -> 15.184305 | V50: =IFERROR(AVERAGEIF(Raw!$D:$D,Avg_all!$A50,Raw!AF:AF),"") -> 0.81466 | W50: =IFERROR(AVERAGEIF(Raw!$D:$D,Avg_all!$A50,Raw!AG:AG),"") -> 0.21797 | X50: =IFERROR(AVERAGEIF(Raw!$D:$D,Avg_all!$A50,Raw!AH:AH),"") -> -0.5904 | Y50: =IFERROR(AVERAGEIF(Raw!$D:$D,Avg_all!$A50,Raw!AI:AI),"") -> 1.10436 | Z50: =IFERROR(AVERAGEIF(Raw!$D:$D,Avg_all!$A50,Raw!AJ:AJ),"") ->  | AA50: =IFERROR(AVERAGEIF(Raw!$D:$D,Avg_all!$A50,Raw!AK:AK),"") -> -0.03698
A51: 其他市場ETF | B51: 其他市場ETF | C51: =IFERROR(AVERAGEIF(Raw!$D:$D,Avg_all!$A51,Raw!E:E),"") -> 7.3525 | D51: =IFERROR(AVERAGEIF(Raw!$D:$D,Avg_all!$A51,Raw!G:G),"") -> 6.425 | E51: =IFERROR(AVERAGEIF(Raw!$D:$D,Avg_all!$A51,Raw!I:I),"") -> 11.8825 | F51: =IFERROR(AVERAGEIF(Raw!$D:$D,Avg_all!$A51,Raw!K:K),"") -> 2.92 | G51: =IFERROR(AVERAGEIF(Raw!$D:$D,Avg_all!$A51,Raw!M:M),"") -> 3.805 | H51: =IFERROR(AVERAGEIF(Raw!$D:$D,Avg_all!$A51,Raw!O:O),"") -> 15.72 | I51: =IFERROR(AVERAGEIF(Raw!$D:$D,Avg_all!$A51,Raw!Q:Q),"") ->  | J51: =IFERROR(AVERAGEIF(Raw!$D:$D,Avg_all!$A51,Raw!S:S),"") -> 7.3525 | K51: =IFERROR(AVERAGEIF(Raw!$D:$D,Avg_all!$A51,Raw!U:U),"") -> 22.9575 | L51: =IFERROR(AVERAGEIF(Raw!$D:$D,Avg_all!$A51,Raw!V:V),"") -> -17.1125 | M51: =IFERROR(AVERAGEIF(Raw!$D:$D,Avg_all!$A51,Raw!W:W),"") -> 17.825 | N51: =IFERROR(AVERAGEIF(Raw!$D:$D,Avg_all!$A51,Raw!X:X),"") -> 21.612825 | O51: =IFERROR(AVERAGEIF(Raw!$D:$D,Avg_all!$A51,Raw!Y:Y),"") -> 0.5069666667 | P51: =IFERROR(AVERAGEIF(Raw!$D:$D,Avg_all!$A51,Raw!Z:Z),"") -> 0.0706 | Q51: =IFERROR(AVERAGEIF(Raw!$D:$D,Avg_all!$A51,Raw!AA:AA),"") -> 0.1836666667 | R51: =IFERROR(AVERAGEIF(Raw!$D:$D,Avg_all!$A51,Raw!AB:AB),"") -> 1.037833333 | S51: =IFERROR(AVERAGEIF(Raw!$D:$D,Avg_all!$A51,Raw!AC:AC),"") ->  | T51: =IFERROR(AVERAGEIF(Raw!$D:$D,Avg_all!$A51,Raw!AD:AD),"") -> 0.013275 | U51: =IFERROR(AVERAGEIF(Raw!$D:$D,Avg_all!$A51,Raw!AE:AE),"") -> 17.670125 | V51: =IFERROR(AVERAGEIF(Raw!$D:$D,Avg_all!$A51,Raw!AF:AF),"") -> 0.6698666667 | W51: =IFERROR(AVERAGEIF(Raw!$D:$D,Avg_all!$A51,Raw!AG:AG),"") -> 0.311175 | X51: =IFERROR(AVERAGEIF(Raw!$D:$D,Avg_all!$A51,Raw!AH:AH),"") -> -0.386 | Y51: =IFERROR(AVERAGEIF(Raw!$D:$D,Avg_all!$A51,Raw!AI:AI),"") -> 2.2087 | Z51: =IFERROR(AVERAGEIF(Raw!$D:$D,Avg_all!$A51,Raw!AJ:AJ),"") ->  | AA51: =IFERROR(AVERAGEIF(Raw!$D:$D,Avg_all!$A51,Raw!AK:AK),"") -> 0.045425
A52: 美國ETF | B52: 美國ETF | C52: =IFERROR(AVERAGEIF(Raw!$D:$D,Avg_all!$A52,Raw!E:E),"") -> 12.28777778 | D52: =IFERROR(AVERAGEIF(Raw!$D:$D,Avg_all!$A52,Raw!G:G),"") -> 17.52666667 | E52: =IFERROR(AVERAGEIF(Raw!$D:$D,Avg_all!$A52,Raw!I:I),"") -> 27.0725 | F52: =IFERROR(AVERAGEIF(Raw!$D:$D,Avg_all!$A52,Raw!K:K),"") -> 21.07375 | G52: =IFERROR(AVERAGEIF(Raw!$D:$D,Avg_all!$A52,Raw!M:M),"") -> 29.55 | H52: =IFERROR(AVERAGEIF(Raw!$D:$D,Avg_all!$A52,Raw!O:O),"") -> 65.784 | I52: =IFERROR(AVERAGEIF(Raw!$D:$D,Avg_all!$A52,Raw!Q:Q),"") ->  | J52: =IFERROR(AVERAGEIF(Raw!$D:$D,Avg_all!$A52,Raw!S:S),"") -> 12.28777778 | K52: =IFERROR(AVERAGEIF(Raw!$D:$D,Avg_all!$A52,Raw!U:U),"") -> 15.80444444 | L52: =IFERROR(AVERAGEIF(Raw!$D:$D,Avg_all!$A52,Raw!V:V),"") -> -10.98666667 | M52: =IFERROR(AVERAGEIF(Raw!$D:$D,Avg_all!$A52,Raw!W:W),"") -> 90.36 | N52: =IFERROR(AVERAGEIF(Raw!$D:$D,Avg_all!$A52,Raw!X:X),"") -> 16.5004125 | O52: =IFERROR(AVERAGEIF(Raw!$D:$D,Avg_all!$A52,Raw!Y:Y),"") -> 0.6448666667 | P52: =IFERROR(AVERAGEIF(Raw!$D:$D,Avg_all!$A52,Raw!Z:Z),"") -> 0.1652375 | Q52: =IFERROR(AVERAGEIF(Raw!$D:$D,Avg_all!$A52,Raw!AA:AA),"") -> 0.53055 | R52: =IFERROR(AVERAGEIF(Raw!$D:$D,Avg_all!$A52,Raw!AB:AB),"") -> 1.408 | S52: =IFERROR(AVERAGEIF(Raw!$D:$D,Avg_all!$A52,Raw!AC:AC),"") ->  | T52: =IFERROR(AVERAGEIF(Raw!$D:$D,Avg_all!$A52,Raw!AD:AD),"") -> 0.0315875 | U52: =IFERROR(AVERAGEIF(Raw!$D:$D,Avg_all!$A52,Raw!AE:AE),"") -> 12.0531375 | V52: =IFERROR(AVERAGEIF(Raw!$D:$D,Avg_all!$A52,Raw!AF:AF),"") -> 0.59265 | W52: =IFERROR(AVERAGEIF(Raw!$D:$D,Avg_all!$A52,Raw!AG:AG),"") -> 0.562225 | X52: =IFERROR(AVERAGEIF(Raw!$D:$D,Avg_all!$A52,Raw!AH:AH),"") -> 1.033766667 | Y52: =IFERROR(AVERAGEIF(Raw!$D:$D,Avg_all!$A52,Raw!AI:AI),"") -> 3.45675 | Z52: =IFERROR(AVERAGEIF(Raw!$D:$D,Avg_all!$A52,Raw!AJ:AJ),"") ->  | AA52: =IFERROR(AVERAGEIF(Raw!$D:$D,Avg_all!$A52,Raw!AK:AK),"") -> 0.02785
A53: 債券-一般ETF | B53: 債券-一般ETF | C53: =IFERROR(AVERAGEIF(Raw!$D:$D,Avg_all!$A53,Raw!E:E),"") -> 2.940235294 | D53: =IFERROR(AVERAGEIF(Raw!$D:$D,Avg_all!$A53,Raw!G:G),"") -> 8.524939759 | E53: =IFERROR(AVERAGEIF(Raw!$D:$D,Avg_all!$A53,Raw!I:I),"") -> 6.964756098 | F53: =IFERROR(AVERAGEIF(Raw!$D:$D,Avg_all!$A53,Raw!K:K),"") -> 2.55097561 | G53: =IFERROR(AVERAGEIF(Raw!$D:$D,Avg_all!$A53,Raw!M:M),"") -> -1.060246914 | H53: =IFERROR(AVERAGEIF(Raw!$D:$D,Avg_all!$A53,Raw!O:O),"") -> 3.743518519 | I53: =IFERROR(AVERAGEIF(Raw!$D:$D,Avg_all!$A53,Raw!Q:Q),"") ->  | J53: =IFERROR(AVERAGEIF(Raw!$D:$D,Avg_all!$A53,Raw!S:S),"") -> 2.940235294 | K53: =IFERROR(AVERAGEIF(Raw!$D:$D,Avg_all!$A53,Raw!U:U),"") -> 11.39 | L53: =IFERROR(AVERAGEIF(Raw!$D:$D,Avg_all!$A53,Raw!V:V),"") -> -9.142941176 | M53: =IFERROR(AVERAGEIF(Raw!$D:$D,Avg_all!$A53,Raw!W:W),"") -> 5.814470588 | N53: =IFERROR(AVERAGEIF(Raw!$D:$D,Avg_all!$A53,Raw!X:X),"") -> 11.57887195 | O53: =IFERROR(AVERAGEIF(Raw!$D:$D,Avg_all!$A53,Raw!Y:Y),"") ->  | P53: =IFERROR(AVERAGEIF(Raw!$D:$D,Avg_all!$A53,Raw!Z:Z),"") -> 0.06120853659 | Q53: =IFERROR(AVERAGEIF(Raw!$D:$D,Avg_all!$A53,Raw!AA:AA),"") ->  | R53: =IFERROR(AVERAGEIF(Raw!$D:$D,Avg_all!$A53,Raw!AB:AB),"") ->  | S53: =IFERROR(AVERAGEIF(Raw!$D:$D,Avg_all!$A53,Raw!AC:AC),"") ->  | T53: =IFERROR(AVERAGEIF(Raw!$D:$D,Avg_all!$A53,Raw!AD:AD),"") -> -0.02760731707 | U53: =IFERROR(AVERAGEIF(Raw!$D:$D,Avg_all!$A53,Raw!AE:AE),"") -> 10.37896707 | V53: =IFERROR(AVERAGEIF(Raw!$D:$D,Avg_all!$A53,Raw!AF:AF),"") ->  | W53: =IFERROR(AVERAGEIF(Raw!$D:$D,Avg_all!$A53,Raw!AG:AG),"") -> 0.2248646341 | X53: =IFERROR(AVERAGEIF(Raw!$D:$D,Avg_all!$A53,Raw!AH:AH),"") ->  | Y53: =IFERROR(AVERAGEIF(Raw!$D:$D,Avg_all!$A53,Raw!AI:AI),"") ->  | Z53: =IFERROR(AVERAGEIF(Raw!$D:$D,Avg_all!$A53,Raw!AJ:AJ),"") ->  | AA53: =IFERROR(AVERAGEIF(Raw!$D:$D,Avg_all!$A53,Raw!AK:AK),"") -> 0.01583536585
A54: 日本ETF | B54: 日本ETF | C54: =IFERROR(AVERAGEIF(Raw!$D:$D,Avg_all!$A54,Raw!E:E),"") -> 19.66666667 | D54: =IFERROR(AVERAGEIF(Raw!$D:$D,Avg_all!$A54,Raw!G:G),"") -> 24.38 | E54: =IFERROR(AVERAGEIF(Raw!$D:$D,Avg_all!$A54,Raw!I:I),"") -> 42.67666667 | F54: =IFERROR(AVERAGEIF(Raw!$D:$D,Avg_all!$A54,Raw!K:K),"") -> 46.27333333 | G54: =IFERROR(AVERAGEIF(Raw!$D:$D,Avg_all!$A54,Raw!M:M),"") -> 41.18333333 | H54: =IFERROR(AVERAGEIF(Raw!$D:$D,Avg_all!$A54,Raw!O:O),"") -> 86.93333333 | I54: =IFERROR(AVERAGEIF(Raw!$D:$D,Avg_all!$A54,Raw!Q:Q),"") ->  | J54: =IFERROR(AVERAGEIF(Raw!$D:$D,Avg_all!$A54,Raw!S:S),"") -> 19.66666667 | K54: =IFERROR(AVERAGEIF(Raw!$D:$D,Avg_all!$A54,Raw!U:U),"") -> 19.66666667 | L54: =IFERROR(AVERAGEIF(Raw!$D:$D,Avg_all!$A54,Raw!V:V),"") -> -6.52 | M54: =IFERROR(AVERAGEIF(Raw!$D:$D,Avg_all!$A54,Raw!W:W),"") -> 129.4433333 | N54: =IFERROR(AVERAGEIF(Raw!$D:$D,Avg_all!$A54,Raw!X:X),"") -> 14.9411 | O54: =IFERROR(AVERAGEIF(Raw!$D:$D,Avg_all!$A54,Raw!Y:Y),"") -> 0.5924 | P54: =IFERROR(AVERAGEIF(Raw!$D:$D,Avg_all!$A54,Raw!Z:Z),"") -> 0.3778 | Q54: =IFERROR(AVERAGEIF(Raw!$D:$D,Avg_all!$A54,Raw!AA:AA),"") -> 1.1912 | R54: =IFERROR(AVERAGEIF(Raw!$D:$D,Avg_all!$A54,Raw!AB:AB),"") -> 2.75955 | S54: =IFERROR(AVERAGEIF(Raw!$D:$D,Avg_all!$A54,Raw!AC:AC),"") ->  | T54: =IFERROR(AVERAGEIF(Raw!$D:$D,Avg_all!$A54,Raw!AD:AD),"") -> -0.001266666667 | U54: =IFERROR(AVERAGEIF(Raw!$D:$D,Avg_all!$A54,Raw!AE:AE),"") -> 13.84386667 | V54: =IFERROR(AVERAGEIF(Raw!$D:$D,Avg_all!$A54,Raw!AF:AF),"") -> 0.54355 | W54: =IFERROR(AVERAGEIF(Raw!$D:$D,Avg_all!$A54,Raw!AG:AG),"") -> 0.7537666667 | X54: =IFERROR(AVERAGEIF(Raw!$D:$D,Avg_all!$A54,Raw!AH:AH),"") -> 1.96705 | Y54: =IFERROR(AVERAGEIF(Raw!$D:$D,Avg_all!$A54,Raw!AI:AI),"") -> 5.66485 | Z54: =IFERROR(AVERAGEIF(Raw!$D:$D,Avg_all!$A54,Raw!AJ:AJ),"") ->  | AA54: =IFERROR(AVERAGEIF(Raw!$D:$D,Avg_all!$A54,Raw!AK:AK),"") -> 0.0137
A55: 其他市場二倍ETF | B55: 其他市場二倍ETF | C55: =IFERROR(AVERAGEIF(Raw!$D:$D,Avg_all!$A55,Raw!E:E),"") -> -1.973333333 | D55: =IFERROR(AVERAGEIF(Raw!$D:$D,Avg_all!$A55,Raw!G:G),"") -> -3.69 | E55: =IFERROR(AVERAGEIF(Raw!$D:$D,Avg_all!$A55,Raw!I:I),"") -> -10.62 | F55: =IFERROR(AVERAGEIF(Raw!$D:$D,Avg_all!$A55,Raw!K:K),"") -> -23.43333333 | G55: =IFERROR(AVERAGEIF(Raw!$D:$D,Avg_all!$A55,Raw!M:M),"") -> -27.80666667 | H55: =IFERROR(AVERAGEIF(Raw!$D:$D,Avg_all!$A55,Raw!O:O),"") -> -23.98 | I55: =IFERROR(AVERAGEIF(Raw!$D:$D,Avg_all!$A55,Raw!Q:Q),"") ->  | J55: =IFERROR(AVERAGEIF(Raw!$D:$D,Avg_all!$A55,Raw!S:S),"") -> -1.973333333 | K55: =IFERROR(AVERAGEIF(Raw!$D:$D,Avg_all!$A55,Raw!U:U),"") -> 77.07333333 | L55: =IFERROR(AVERAGEIF(Raw!$D:$D,Avg_all!$A55,Raw!V:V),"") -> -38.54333333 | M55: =IFERROR(AVERAGEIF(Raw!$D:$D,Avg_all!$A55,Raw!W:W),"") -> 24.19333333 | N55: =IFERROR(AVERAGEIF(Raw!$D:$D,Avg_all!$A55,Raw!X:X),"") -> 50.63236667 | O55: =IFERROR(AVERAGEIF(Raw!$D:$D,Avg_all!$A55,Raw!Y:Y),"") -> 1.060633333 | P55: =IFERROR(AVERAGEIF(Raw!$D:$D,Avg_all!$A55,Raw!Z:Z),"") -> 0.001533333333 | Q55: =IFERROR(AVERAGEIF(Raw!$D:$D,Avg_all!$A55,Raw!AA:AA),"") -> -1.253433333 | R55: =IFERROR(AVERAGEIF(Raw!$D:$D,Avg_all!$A55,Raw!AB:AB),"") -> -0.3841666667 | S55: =IFERROR(AVERAGEIF(Raw!$D:$D,Avg_all!$A55,Raw!AC:AC),"") ->  | T55: =IFERROR(AVERAGEIF(Raw!$D:$D,Avg_all!$A55,Raw!AD:AD),"") -> -0.0473 | U55: =IFERROR(AVERAGEIF(Raw!$D:$D,Avg_all!$A55,Raw!AE:AE),"") -> 33.97293333 | V55: =IFERROR(AVERAGEIF(Raw!$D:$D,Avg_all!$A55,Raw!AF:AF),"") -> 1.4277 | W55: =IFERROR(AVERAGEIF(Raw!$D:$D,Avg_all!$A55,Raw!AG:AG),"") -> 0.004566666667 | X55: =IFERROR(AVERAGEIF(Raw!$D:$D,Avg_all!$A55,Raw!AH:AH),"") -> -3.676633333 | Y55: =IFERROR(AVERAGEIF(Raw!$D:$D,Avg_all!$A55,Raw!AI:AI),"") -> -0.2312666667 | Z55: =IFERROR(AVERAGEIF(Raw!$D:$D,Avg_all!$A55,Raw!AJ:AJ),"") ->  | AA55: =IFERROR(AVERAGEIF(Raw!$D:$D,Avg_all!$A55,Raw!AK:AK),"") -> -0.2117333333
A56: 其他市場反向ETF | B56: 其他市場反向ETF | C56: =IFERROR(AVERAGEIF(Raw!$D:$D,Avg_all!$A56,Raw!E:E),"") -> 1.27 | D56: =IFERROR(AVERAGEIF(Raw!$D:$D,Avg_all!$A56,Raw!G:G),"") -> -1.853333333 | E56: =IFERROR(AVERAGEIF(Raw!$D:$D,Avg_all!$A56,Raw!I:I),"") -> 5.656666667 | F56: =IFERROR(AVERAGEIF(Raw!$D:$D,Avg_all!$A56,Raw!K:K),"") -> 4.416666667 | G56: =IFERROR(AVERAGEIF(Raw!$D:$D,Avg_all!$A56,Raw!M:M),"") -> 17.47 | H56: =IFERROR(AVERAGEIF(Raw!$D:$D,Avg_all!$A56,Raw!O:O),"") -> -2.046666667 | I56: =IFERROR(AVERAGEIF(Raw!$D:$D,Avg_all!$A56,Raw!Q:Q),"") ->  | J56: =IFERROR(AVERAGEIF(Raw!$D:$D,Avg_all!$A56,Raw!S:S),"") -> 1.27 | K56: =IFERROR(AVERAGEIF(Raw!$D:$D,Avg_all!$A56,Raw!U:U),"") -> 29.67333333 | L56: =IFERROR(AVERAGEIF(Raw!$D:$D,Avg_all!$A56,Raw!V:V),"") -> -28.23666667 | M56: =IFERROR(AVERAGEIF(Raw!$D:$D,Avg_all!$A56,Raw!W:W),"") -> -39.86666667 | N56: =IFERROR(AVERAGEIF(Raw!$D:$D,Avg_all!$A56,Raw!X:X),"") -> 26.34826667 | O56: =IFERROR(AVERAGEIF(Raw!$D:$D,Avg_all!$A56,Raw!Y:Y),"") -> -0.60075 | P56: =IFERROR(AVERAGEIF(Raw!$D:$D,Avg_all!$A56,Raw!Z:Z),"") -> 0.001266666667 | Q56: =IFERROR(AVERAGEIF(Raw!$D:$D,Avg_all!$A56,Raw!AA:AA),"") -> 0.4737 | R56: =IFERROR(AVERAGEIF(Raw!$D:$D,Avg_all!$A56,Raw!AB:AB),"") -> 0.05505 | S56: =IFERROR(AVERAGEIF(Raw!$D:$D,Avg_all!$A56,Raw!AC:AC),"") ->  | T56: =IFERROR(AVERAGEIF(Raw!$D:$D,Avg_all!$A56,Raw!AD:AD),"") -> 0.0596 | U56: =IFERROR(AVERAGEIF(Raw!$D:$D,Avg_all!$A56,Raw!AE:AE),"") -> 18.01026667 | V56: =IFERROR(AVERAGEIF(Raw!$D:$D,Avg_all!$A56,Raw!AF:AF),"") -> -0.8102 | W56: =IFERROR(AVERAGEIF(Raw!$D:$D,Avg_all!$A56,Raw!AG:AG),"") -> -0.0275 | X56: =IFERROR(AVERAGEIF(Raw!$D:$D,Avg_all!$A56,Raw!AH:AH),"") -> 1.30115 | Y56: =IFERROR(AVERAGEIF(Raw!$D:$D,Avg_all!$A56,Raw!AI:AI),"") -> 0.8492 | Z56: =IFERROR(AVERAGEIF(Raw!$D:$D,Avg_all!$A56,Raw!AJ:AJ),"") ->  | AA56: =IFERROR(AVERAGEIF(Raw!$D:$D,Avg_all!$A56,Raw!AK:AK),"") -> 0.1883
A57: 美國反向ETF | B57: 美國反向ETF | C57: =IFERROR(AVERAGEIF(Raw!$D:$D,Avg_all!$A57,Raw!E:E),"") -> -5.963333333 | D57: =IFERROR(AVERAGEIF(Raw!$D:$D,Avg_all!$A57,Raw!G:G),"") -> -17.1 | E57: =IFERROR(AVERAGEIF(Raw!$D:$D,Avg_all!$A57,Raw!I:I),"") -> -19.71666667 | F57: =IFERROR(AVERAGEIF(Raw!$D:$D,Avg_all!$A57,Raw!K:K),"") -> -15.71666667 | G57: =IFERROR(AVERAGEIF(Raw!$D:$D,Avg_all!$A57,Raw!M:M),"") -> -26.95666667 | H57: =IFERROR(AVERAGEIF(Raw!$D:$D,Avg_all!$A57,Raw!O:O),"") -> -56.84333333 | I57: =IFERROR(AVERAGEIF(Raw!$D:$D,Avg_all!$A57,Raw!Q:Q),"") ->  | J57: =IFERROR(AVERAGEIF(Raw!$D:$D,Avg_all!$A57,Raw!S:S),"") -> -5.963333333 | K57: =IFERROR(AVERAGEIF(Raw!$D:$D,Avg_all!$A57,Raw!U:U),"") -> 18.41 | L57: =IFERROR(AVERAGEIF(Raw!$D:$D,Avg_all!$A57,Raw!V:V),"") -> -15.22 | M57: =IFERROR(AVERAGEIF(Raw!$D:$D,Avg_all!$A57,Raw!W:W),"") -> -72.16666667 | N57: =IFERROR(AVERAGEIF(Raw!$D:$D,Avg_all!$A57,Raw!X:X),"") -> 21.41463333 | O57: =IFERROR(AVERAGEIF(Raw!$D:$D,Avg_all!$A57,Raw!Y:Y),"") -> -1.0746 | P57: =IFERROR(AVERAGEIF(Raw!$D:$D,Avg_all!$A57,Raw!Z:Z),"") -> -0.09633333333 | Q57: =IFERROR(AVERAGEIF(Raw!$D:$D,Avg_all!$A57,Raw!AA:AA),"") -> 0.09036666667 | R57: =IFERROR(AVERAGEIF(Raw!$D:$D,Avg_all!$A57,Raw!AB:AB),"") -> 0.5563 | S57: =IFERROR(AVERAGEIF(Raw!$D:$D,Avg_all!$A57,Raw!AC:AC),"") ->  | T57: =IFERROR(AVERAGEIF(Raw!$D:$D,Avg_all!$A57,Raw!AD:AD),"") -> 0.03746666667 | U57: =IFERROR(AVERAGEIF(Raw!$D:$D,Avg_all!$A57,Raw!AE:AE),"") -> 14.42666667 | V57: =IFERROR(AVERAGEIF(Raw!$D:$D,Avg_all!$A57,Raw!AF:AF),"") -> -0.9504333333 | W57: =IFERROR(AVERAGEIF(Raw!$D:$D,Avg_all!$A57,Raw!AG:AG),"") -> -0.4385 | X57: =IFERROR(AVERAGEIF(Raw!$D:$D,Avg_all!$A57,Raw!AH:AH),"") -> -0.1539 | Y57: =IFERROR(AVERAGEIF(Raw!$D:$D,Avg_all!$A57,Raw!AI:AI),"") -> 1.9641 | Z57: =IFERROR(AVERAGEIF(Raw!$D:$D,Avg_all!$A57,Raw!AJ:AJ),"") ->  | AA57: =IFERROR(AVERAGEIF(Raw!$D:$D,Avg_all!$A57,Raw!AK:AK),"") -> 0.0278
A58: 海外債-一般ETF | B58: 海外債-一般ETF | C58: =IFERROR(AVERAGEIF(Raw!$D:$D,Avg_all!$A58,Raw!E:E),"") ->  | D58: =IFERROR(AVERAGEIF(Raw!$D:$D,Avg_all!$A58,Raw!G:G),"") ->  | E58: =IFERROR(AVERAGEIF(Raw!$D:$D,Avg_all!$A58,Raw!I:I),"") ->  | F58: =IFERROR(AVERAGEIF(Raw!$D:$D,Avg_all!$A58,Raw!K:K),"") ->  | G58: =IFERROR(AVERAGEIF(Raw!$D:$D,Avg_all!$A58,Raw!M:M),"") ->  | H58: =IFERROR(AVERAGEIF(Raw!$D:$D,Avg_all!$A58,Raw!O:O),"") ->  | I58: =IFERROR(AVERAGEIF(Raw!$D:$D,Avg_all!$A58,Raw!Q:Q),"") ->  | J58: =IFERROR(AVERAGEIF(Raw!$D:$D,Avg_all!$A58,Raw!S:S),"") ->  | K58: =IFERROR(AVERAGEIF(Raw!$D:$D,Avg_all!$A58,Raw!U:U),"") ->  | L58: =IFERROR(AVERAGEIF(Raw!$D:$D,Avg_all!$A58,Raw!V:V),"") ->  | M58: =IFERROR(AVERAGEIF(Raw!$D:$D,Avg_all!$A58,Raw!W:W),"") ->  | N58: =IFERROR(AVERAGEIF(Raw!$D:$D,Avg_all!$A58,Raw!X:X),"") ->  | O58: =IFERROR(AVERAGEIF(Raw!$D:$D,Avg_all!$A58,Raw!Y:Y),"") ->  | P58: =IFERROR(AVERAGEIF(Raw!$D:$D,Avg_all!$A58,Raw!Z:Z),"") ->  | Q58: =IFERROR(AVERAGEIF(Raw!$D:$D,Avg_all!$A58,Raw!AA:AA),"") ->  | R58: =IFERROR(AVERAGEIF(Raw!$D:$D,Avg_all!$A58,Raw!AB:AB),"") ->  | S58: =IFERROR(AVERAGEIF(Raw!$D:$D,Avg_all!$A58,Raw!AC:AC),"") ->  | T58: =IFERROR(AVERAGEIF(Raw!$D:$D,Avg_all!$A58,Raw!AD:AD),"") ->  | U58: =IFERROR(AVERAGEIF(Raw!$D:$D,Avg_all!$A58,Raw!AE:AE),"") ->  | V58: =IFERROR(AVERAGEIF(Raw!$D:$D,Avg_all!$A58,Raw!AF:AF),"") ->  | W58: =IFERROR(AVERAGEIF(Raw!$D:$D,Avg_all!$A58,Raw!AG:AG),"") ->  | X58: =IFERROR(AVERAGEIF(Raw!$D:$D,Avg_all!$A58,Raw!AH:AH),"") ->  | Y58: =IFERROR(AVERAGEIF(Raw!$D:$D,Avg_all!$A58,Raw!AI:AI),"") ->  | Z58: =IFERROR(AVERAGEIF(Raw!$D:$D,Avg_all!$A58,Raw!AJ:AJ),"") ->  | AA58: =IFERROR(AVERAGEIF(Raw!$D:$D,Avg_all!$A58,Raw!AK:AK),"") -> 
A59: 跨國-中國二倍ETF | B59: 跨國-中國二倍ETF | C59: =IFERROR(AVERAGEIF(Raw!$D:$D,Avg_all!$A59,Raw!E:E),"") -> 8.1 | D59: =IFERROR(AVERAGEIF(Raw!$D:$D,Avg_all!$A59,Raw!G:G),"") -> -9.45 | E59: =IFERROR(AVERAGEIF(Raw!$D:$D,Avg_all!$A59,Raw!I:I),"") -> -22.9 | F59: =IFERROR(AVERAGEIF(Raw!$D:$D,Avg_all!$A59,Raw!K:K),"") -> -30.4125 | G59: =IFERROR(AVERAGEIF(Raw!$D:$D,Avg_all!$A59,Raw!M:M),"") -> -59.4275 | H59: =IFERROR(AVERAGEIF(Raw!$D:$D,Avg_all!$A59,Raw!O:O),"") -> -36.7125 | I59: =IFERROR(AVERAGEIF(Raw!$D:$D,Avg_all!$A59,Raw!Q:Q),"") ->  | J59: =IFERROR(AVERAGEIF(Raw!$D:$D,Avg_all!$A59,Raw!S:S),"") -> 8.1 | K59: =IFERROR(AVERAGEIF(Raw!$D:$D,Avg_all!$A59,Raw!U:U),"") -> 61.2375 | L59: =IFERROR(AVERAGEIF(Raw!$D:$D,Avg_all!$A59,Raw!V:V),"") -> -36.8275 | M59: =IFERROR(AVERAGEIF(Raw!$D:$D,Avg_all!$A59,Raw!W:W),"") -> -5.3 | N59: =IFERROR(AVERAGEIF(Raw!$D:$D,Avg_all!$A59,Raw!X:X),"") -> 48.608275 | O59: =IFERROR(AVERAGEIF(Raw!$D:$D,Avg_all!$A59,Raw!Y:Y),"") -> 0.403 | P59: =IFERROR(AVERAGEIF(Raw!$D:$D,Avg_all!$A59,Raw!Z:Z),"") -> -0.046725 | Q59: =IFERROR(AVERAGEIF(Raw!$D:$D,Avg_all!$A59,Raw!AA:AA),"") -> -0.967175 | R59: =IFERROR(AVERAGEIF(Raw!$D:$D,Avg_all!$A59,Raw!AB:AB),"") -> -3.728975 | S59: =IFERROR(AVERAGEIF(Raw!$D:$D,Avg_all!$A59,Raw!AC:AC),"") ->  | T59: =IFERROR(AVERAGEIF(Raw!$D:$D,Avg_all!$A59,Raw!AD:AD),"") -> 0.040775 | U59: =IFERROR(AVERAGEIF(Raw!$D:$D,Avg_all!$A59,Raw!AE:AE),"") -> 36.68975 | V59: =IFERROR(AVERAGEIF(Raw!$D:$D,Avg_all!$A59,Raw!AF:AF),"") -> 1.320425 | W59: =IFERROR(AVERAGEIF(Raw!$D:$D,Avg_all!$A59,Raw!AG:AG),"") -> -0.159475 | X59: =IFERROR(AVERAGEIF(Raw!$D:$D,Avg_all!$A59,Raw!AH:AH),"") -> -4.131925 | Y59: =IFERROR(AVERAGEIF(Raw!$D:$D,Avg_all!$A59,Raw!AI:AI),"") -> -1.29265 | Z59: =IFERROR(AVERAGEIF(Raw!$D:$D,Avg_all!$A59,Raw!AJ:AJ),"") ->  | AA59: =IFERROR(AVERAGEIF(Raw!$D:$D,Avg_all!$A59,Raw!AK:AK),"") -> 0.15535
A60: 日本二倍ETF | B60: 日本二倍ETF | C60: =IFERROR(AVERAGEIF(Raw!$D:$D,Avg_all!$A60,Raw!E:E),"") -> 38.47 | D60: =IFERROR(AVERAGEIF(Raw!$D:$D,Avg_all!$A60,Raw!G:G),"") -> 40.52 | E60: =IFERROR(AVERAGEIF(Raw!$D:$D,Avg_all!$A60,Raw!I:I),"") -> 92.64 | F60: =IFERROR(AVERAGEIF(Raw!$D:$D,Avg_all!$A60,Raw!K:K),"") -> 105.98 | G60: =IFERROR(AVERAGEIF(Raw!$D:$D,Avg_all!$A60,Raw!M:M),"") -> 102.37 | H60: =IFERROR(AVERAGEIF(Raw!$D:$D,Avg_all!$A60,Raw!O:O),"") -> 202.47 | I60: =IFERROR(AVERAGEIF(Raw!$D:$D,Avg_all!$A60,Raw!Q:Q),"") ->  | J60: =IFERROR(AVERAGEIF(Raw!$D:$D,Avg_all!$A60,Raw!S:S),"") -> 38.47 | K60: =IFERROR(AVERAGEIF(Raw!$D:$D,Avg_all!$A60,Raw!U:U),"") -> 38.47 | L60: =IFERROR(AVERAGEIF(Raw!$D:$D,Avg_all!$A60,Raw!V:V),"") -> -10.66 | M60: =IFERROR(AVERAGEIF(Raw!$D:$D,Avg_all!$A60,Raw!W:W),"") -> 194.45 | N60: =IFERROR(AVERAGEIF(Raw!$D:$D,Avg_all!$A60,Raw!X:X),"") -> 25.0614 | O60: =IFERROR(AVERAGEIF(Raw!$D:$D,Avg_all!$A60,Raw!Y:Y),"") -> 0.9774 | P60: =IFERROR(AVERAGEIF(Raw!$D:$D,Avg_all!$A60,Raw!Z:Z),"") -> 0.4456 | Q60: =IFERROR(AVERAGEIF(Raw!$D:$D,Avg_all!$A60,Raw!AA:AA),"") -> 2.5859 | R60: =IFERROR(AVERAGEIF(Raw!$D:$D,Avg_all!$A60,Raw!AB:AB),"") -> 3.2984 | S60: =IFERROR(AVERAGEIF(Raw!$D:$D,Avg_all!$A60,Raw!AC:AC),"") ->  | T60: =IFERROR(AVERAGEIF(Raw!$D:$D,Avg_all!$A60,Raw!AD:AD),"") ->  | U60: =IFERROR(AVERAGEIF(Raw!$D:$D,Avg_all!$A60,Raw!AE:AE),"") -> 24.1191 | V60: =IFERROR(AVERAGEIF(Raw!$D:$D,Avg_all!$A60,Raw!AF:AF),"") -> 0.8774 | W60: =IFERROR(AVERAGEIF(Raw!$D:$D,Avg_all!$A60,Raw!AG:AG),"") -> 0.8239 | X60: =IFERROR(AVERAGEIF(Raw!$D:$D,Avg_all!$A60,Raw!AH:AH),"") -> 4.1787 | Y60: =IFERROR(AVERAGEIF(Raw!$D:$D,Avg_all!$A60,Raw!AI:AI),"") -> 6.5381 | Z60: =IFERROR(AVERAGEIF(Raw!$D:$D,Avg_all!$A60,Raw!AJ:AJ),"") ->  | AA60: =IFERROR(AVERAGEIF(Raw!$D:$D,Avg_all!$A60,Raw!AK:AK),"") -> 
A61: 日本反向ETF | B61: 日本反向ETF | C61: =IFERROR(AVERAGEIF(Raw!$D:$D,Avg_all!$A61,Raw!E:E),"") -> -15.66 | D61: =IFERROR(AVERAGEIF(Raw!$D:$D,Avg_all!$A61,Raw!G:G),"") -> -17.29 | E61: =IFERROR(AVERAGEIF(Raw!$D:$D,Avg_all!$A61,Raw!I:I),"") -> -30.48 | F61: =IFERROR(AVERAGEIF(Raw!$D:$D,Avg_all!$A61,Raw!K:K),"") -> -36.16 | G61: =IFERROR(AVERAGEIF(Raw!$D:$D,Avg_all!$A61,Raw!M:M),"") -> -39.98 | H61: =IFERROR(AVERAGEIF(Raw!$D:$D,Avg_all!$A61,Raw!O:O),"") -> -57.58 | I61: =IFERROR(AVERAGEIF(Raw!$D:$D,Avg_all!$A61,Raw!Q:Q),"") ->  | J61: =IFERROR(AVERAGEIF(Raw!$D:$D,Avg_all!$A61,Raw!S:S),"") -> -15.66 | K61: =IFERROR(AVERAGEIF(Raw!$D:$D,Avg_all!$A61,Raw!U:U),"") -> 4.13 | L61: =IFERROR(AVERAGEIF(Raw!$D:$D,Avg_all!$A61,Raw!V:V),"") -> -15.66 | M61: =IFERROR(AVERAGEIF(Raw!$D:$D,Avg_all!$A61,Raw!W:W),"") -> -67.95 | N61: =IFERROR(AVERAGEIF(Raw!$D:$D,Avg_all!$A61,Raw!X:X),"") -> 12.0546 | O61: =IFERROR(AVERAGEIF(Raw!$D:$D,Avg_all!$A61,Raw!Y:Y),"") -> -0.4804 | P61: =IFERROR(AVERAGEIF(Raw!$D:$D,Avg_all!$A61,Raw!Z:Z),"") -> -0.5382 | Q61: =IFERROR(AVERAGEIF(Raw!$D:$D,Avg_all!$A61,Raw!AA:AA),"") -> -1.5593 | R61: =IFERROR(AVERAGEIF(Raw!$D:$D,Avg_all!$A61,Raw!AB:AB),"") -> 3.8983 | S61: =IFERROR(AVERAGEIF(Raw!$D:$D,Avg_all!$A61,Raw!AC:AC),"") ->  | T61: =IFERROR(AVERAGEIF(Raw!$D:$D,Avg_all!$A61,Raw!AD:AD),"") ->  | U61: =IFERROR(AVERAGEIF(Raw!$D:$D,Avg_all!$A61,Raw!AE:AE),"") -> 11.1253 | V61: =IFERROR(AVERAGEIF(Raw!$D:$D,Avg_all!$A61,Raw!AF:AF),"") -> -0.4131 | W61: =IFERROR(AVERAGEIF(Raw!$D:$D,Avg_all!$A61,Raw!AG:AG),"") -> -0.9426 | X61: =IFERROR(AVERAGEIF(Raw!$D:$D,Avg_all!$A61,Raw!AH:AH),"") -> -2.2938 | Y61: =IFERROR(AVERAGEIF(Raw!$D:$D,Avg_all!$A61,Raw!AI:AI),"") -> 7.328 | Z61: =IFERROR(AVERAGEIF(Raw!$D:$D,Avg_all!$A61,Raw!AJ:AJ),"") ->  | AA61: =IFERROR(AVERAGEIF(Raw!$D:$D,Avg_all!$A61,Raw!AK:AK),"") -> 
A62: 美國二倍ETF | B62: 美國二倍ETF | C62: =IFERROR(AVERAGEIF(Raw!$D:$D,Avg_all!$A62,Raw!E:E),"") -> 15.46 | D62: =IFERROR(AVERAGEIF(Raw!$D:$D,Avg_all!$A62,Raw!G:G),"") -> 39.12 | E62: =IFERROR(AVERAGEIF(Raw!$D:$D,Avg_all!$A62,Raw!I:I),"") -> 50.71666667 | F62: =IFERROR(AVERAGEIF(Raw!$D:$D,Avg_all!$A62,Raw!K:K),"") -> 15.45 | G62: =IFERROR(AVERAGEIF(Raw!$D:$D,Avg_all!$A62,Raw!M:M),"") -> 38.16666667 | H62: =IFERROR(AVERAGEIF(Raw!$D:$D,Avg_all!$A62,Raw!O:O),"") -> 194.46 | I62: =IFERROR(AVERAGEIF(Raw!$D:$D,Avg_all!$A62,Raw!Q:Q),"") ->  | J62: =IFERROR(AVERAGEIF(Raw!$D:$D,Avg_all!$A62,Raw!S:S),"") -> 15.46 | K62: =IFERROR(AVERAGEIF(Raw!$D:$D,Avg_all!$A62,Raw!U:U),"") -> 32.26 | L62: =IFERROR(AVERAGEIF(Raw!$D:$D,Avg_all!$A62,Raw!V:V),"") -> -31.15666667 | M62: =IFERROR(AVERAGEIF(Raw!$D:$D,Avg_all!$A62,Raw!W:W),"") -> 284.4366667 | N62: =IFERROR(AVERAGEIF(Raw!$D:$D,Avg_all!$A62,Raw!X:X),"") -> 40.77733333 | O62: =IFERROR(AVERAGEIF(Raw!$D:$D,Avg_all!$A62,Raw!Y:Y),"") -> 2.1457 | P62: =IFERROR(AVERAGEIF(Raw!$D:$D,Avg_all!$A62,Raw!Z:Z),"") -> 0.1029666667 | Q62: =IFERROR(AVERAGEIF(Raw!$D:$D,Avg_all!$A62,Raw!AA:AA),"") -> -0.1569 | R62: =IFERROR(AVERAGEIF(Raw!$D:$D,Avg_all!$A62,Raw!AB:AB),"") -> 0.57995 | S62: =IFERROR(AVERAGEIF(Raw!$D:$D,Avg_all!$A62,Raw!AC:AC),"") ->  | T62: =IFERROR(AVERAGEIF(Raw!$D:$D,Avg_all!$A62,Raw!AD:AD),"") -> -0.01553333333 | U62: =IFERROR(AVERAGEIF(Raw!$D:$D,Avg_all!$A62,Raw!AE:AE),"") -> 27.54286667 | V62: =IFERROR(AVERAGEIF(Raw!$D:$D,Avg_all!$A62,Raw!AF:AF),"") -> 1.86695 | W62: =IFERROR(AVERAGEIF(Raw!$D:$D,Avg_all!$A62,Raw!AG:AG),"") -> 0.4523666667 | X62: =IFERROR(AVERAGEIF(Raw!$D:$D,Avg_all!$A62,Raw!AH:AH),"") -> 0.8518 | Y62: =IFERROR(AVERAGEIF(Raw!$D:$D,Avg_all!$A62,Raw!AI:AI),"") -> 2.2289 | Z62: =IFERROR(AVERAGEIF(Raw!$D:$D,Avg_all!$A62,Raw!AJ:AJ),"") ->  | AA62: =IFERROR(AVERAGEIF(Raw!$D:$D,Avg_all!$A62,Raw!AK:AK),"") -> -0.0128
A63: 債券-二倍ETF | B63: 債券-二倍ETF | C63: =IFERROR(AVERAGEIF(Raw!$D:$D,Avg_all!$A63,Raw!E:E),"") -> -8.88 | D63: =IFERROR(AVERAGEIF(Raw!$D:$D,Avg_all!$A63,Raw!G:G),"") -> 11.14 | E63: =IFERROR(AVERAGEIF(Raw!$D:$D,Avg_all!$A63,Raw!I:I),"") -> -24.08 | F63: =IFERROR(AVERAGEIF(Raw!$D:$D,Avg_all!$A63,Raw!K:K),"") -> -54.725 | G63: =IFERROR(AVERAGEIF(Raw!$D:$D,Avg_all!$A63,Raw!M:M),"") -> -57.305 | H63: =IFERROR(AVERAGEIF(Raw!$D:$D,Avg_all!$A63,Raw!O:O),"") -> -56.595 | I63: =IFERROR(AVERAGEIF(Raw!$D:$D,Avg_all!$A63,Raw!Q:Q),"") ->  | J63: =IFERROR(AVERAGEIF(Raw!$D:$D,Avg_all!$A63,Raw!S:S),"") -> -8.88 | K63: =IFERROR(AVERAGEIF(Raw!$D:$D,Avg_all!$A63,Raw!U:U),"") -> 27.11 | L63: =IFERROR(AVERAGEIF(Raw!$D:$D,Avg_all!$A63,Raw!V:V),"") -> -34.83 | M63: =IFERROR(AVERAGEIF(Raw!$D:$D,Avg_all!$A63,Raw!W:W),"") -> -54.565 | N63: =IFERROR(AVERAGEIF(Raw!$D:$D,Avg_all!$A63,Raw!X:X),"") -> 34.465 | O63: =IFERROR(AVERAGEIF(Raw!$D:$D,Avg_all!$A63,Raw!Y:Y),"") ->  | P63: =IFERROR(AVERAGEIF(Raw!$D:$D,Avg_all!$A63,Raw!Z:Z),"") -> -0.28645 | Q63: =IFERROR(AVERAGEIF(Raw!$D:$D,Avg_all!$A63,Raw!AA:AA),"") ->  | R63: =IFERROR(AVERAGEIF(Raw!$D:$D,Avg_all!$A63,Raw!AB:AB),"") ->  | S63: =IFERROR(AVERAGEIF(Raw!$D:$D,Avg_all!$A63,Raw!AC:AC),"") ->  | T63: =IFERROR(AVERAGEIF(Raw!$D:$D,Avg_all!$A63,Raw!AD:AD),"") -> 0 | U63: =IFERROR(AVERAGEIF(Raw!$D:$D,Avg_all!$A63,Raw!AE:AE),"") -> 33.79795 | V63: =IFERROR(AVERAGEIF(Raw!$D:$D,Avg_all!$A63,Raw!AF:AF),"") ->  | W63: =IFERROR(AVERAGEIF(Raw!$D:$D,Avg_all!$A63,Raw!AG:AG),"") -> -0.1984 | X63: =IFERROR(AVERAGEIF(Raw!$D:$D,Avg_all!$A63,Raw!AH:AH),"") ->  | Y63: =IFERROR(AVERAGEIF(Raw!$D:$D,Avg_all!$A63,Raw!AI:AI),"") ->  | Z63: =IFERROR(AVERAGEIF(Raw!$D:$D,Avg_all!$A63,Raw!AJ:AJ),"") ->  | AA63: =IFERROR(AVERAGEIF(Raw!$D:$D,Avg_all!$A63,Raw!AK:AK),"") -> 0
A64: 債券-反向ETF | B64: 債券-反向ETF | C64: =IFERROR(AVERAGEIF(Raw!$D:$D,Avg_all!$A64,Raw!E:E),"") -> 5.2 | D64: =IFERROR(AVERAGEIF(Raw!$D:$D,Avg_all!$A64,Raw!G:G),"") -> -8.07 | E64: =IFERROR(AVERAGEIF(Raw!$D:$D,Avg_all!$A64,Raw!I:I),"") -> 11.39 | F64: =IFERROR(AVERAGEIF(Raw!$D:$D,Avg_all!$A64,Raw!K:K),"") -> 36.26 | G64: =IFERROR(AVERAGEIF(Raw!$D:$D,Avg_all!$A64,Raw!M:M),"") -> 33.99 | H64: =IFERROR(AVERAGEIF(Raw!$D:$D,Avg_all!$A64,Raw!O:O),"") -> 11.87 | I64: =IFERROR(AVERAGEIF(Raw!$D:$D,Avg_all!$A64,Raw!Q:Q),"") ->  | J64: =IFERROR(AVERAGEIF(Raw!$D:$D,Avg_all!$A64,Raw!S:S),"") -> 5.2 | K64: =IFERROR(AVERAGEIF(Raw!$D:$D,Avg_all!$A64,Raw!U:U),"") -> 24.28 | L64: =IFERROR(AVERAGEIF(Raw!$D:$D,Avg_all!$A64,Raw!V:V),"") -> -13.635 | M64: =IFERROR(AVERAGEIF(Raw!$D:$D,Avg_all!$A64,Raw!W:W),"") -> 1.195 | N64: =IFERROR(AVERAGEIF(Raw!$D:$D,Avg_all!$A64,Raw!X:X),"") -> 19.3475 | O64: =IFERROR(AVERAGEIF(Raw!$D:$D,Avg_all!$A64,Raw!Y:Y),"") ->  | P64: =IFERROR(AVERAGEIF(Raw!$D:$D,Avg_all!$A64,Raw!Z:Z),"") -> 0.24485 | Q64: =IFERROR(AVERAGEIF(Raw!$D:$D,Avg_all!$A64,Raw!AA:AA),"") ->  | R64: =IFERROR(AVERAGEIF(Raw!$D:$D,Avg_all!$A64,Raw!AB:AB),"") ->  | S64: =IFERROR(AVERAGEIF(Raw!$D:$D,Avg_all!$A64,Raw!AC:AC),"") ->  | T64: =IFERROR(AVERAGEIF(Raw!$D:$D,Avg_all!$A64,Raw!AD:AD),"") -> 0 | U64: =IFERROR(AVERAGEIF(Raw!$D:$D,Avg_all!$A64,Raw!AE:AE),"") -> 18.092 | V64: =IFERROR(AVERAGEIF(Raw!$D:$D,Avg_all!$A64,Raw!AF:AF),"") ->  | W64: =IFERROR(AVERAGEIF(Raw!$D:$D,Avg_all!$A64,Raw!AG:AG),"") -> 0.1797 | X64: =IFERROR(AVERAGEIF(Raw!$D:$D,Avg_all!$A64,Raw!AH:AH),"") ->  | Y64: =IFERROR(AVERAGEIF(Raw!$D:$D,Avg_all!$A64,Raw!AI:AI),"") ->  | Z64: =IFERROR(AVERAGEIF(Raw!$D:$D,Avg_all!$A64,Raw!AJ:AJ),"") ->  | AA64: =IFERROR(AVERAGEIF(Raw!$D:$D,Avg_all!$A64,Raw!AK:AK),"") -> 0
A65: 海外債-二倍ETF | B65: 海外債-二倍ETF | C65: =IFERROR(AVERAGEIF(Raw!$D:$D,Avg_all!$A65,Raw!E:E),"") ->  | D65: =IFERROR(AVERAGEIF(Raw!$D:$D,Avg_all!$A65,Raw!G:G),"") ->  | E65: =IFERROR(AVERAGEIF(Raw!$D:$D,Avg_all!$A65,Raw!I:I),"") ->  | F65: =IFERROR(AVERAGEIF(Raw!$D:$D,Avg_all!$A65,Raw!K:K),"") ->  | G65: =IFERROR(AVERAGEIF(Raw!$D:$D,Avg_all!$A65,Raw!M:M),"") ->  | H65: =IFERROR(AVERAGEIF(Raw!$D:$D,Avg_all!$A65,Raw!O:O),"") ->  | I65: =IFERROR(AVERAGEIF(Raw!$D:$D,Avg_all!$A65,Raw!Q:Q),"") ->  | J65: =IFERROR(AVERAGEIF(Raw!$D:$D,Avg_all!$A65,Raw!S:S),"") ->  | K65: =IFERROR(AVERAGEIF(Raw!$D:$D,Avg_all!$A65,Raw!U:U),"") ->  | L65: =IFERROR(AVERAGEIF(Raw!$D:$D,Avg_all!$A65,Raw!V:V),"") ->  | M65: =IFERROR(AVERAGEIF(Raw!$D:$D,Avg_all!$A65,Raw!W:W),"") ->  | N65: =IFERROR(AVERAGEIF(Raw!$D:$D,Avg_all!$A65,Raw!X:X),"") ->  | O65: =IFERROR(AVERAGEIF(Raw!$D:$D,Avg_all!$A65,Raw!Y:Y),"") ->  | P65: =IFERROR(AVERAGEIF(Raw!$D:$D,Avg_all!$A65,Raw!Z:Z),"") ->  | Q65: =IFERROR(AVERAGEIF(Raw!$D:$D,Avg_all!$A65,Raw!AA:AA),"") ->  | R65: =IFERROR(AVERAGEIF(Raw!$D:$D,Avg_all!$A65,Raw!AB:AB),"") ->  | S65: =IFERROR(AVERAGEIF(Raw!$D:$D,Avg_all!$A65,Raw!AC:AC),"") ->  | T65: =IFERROR(AVERAGEIF(Raw!$D:$D,Avg_all!$A65,Raw!AD:AD),"") ->  | U65: =IFERROR(AVERAGEIF(Raw!$D:$D,Avg_all!$A65,Raw!AE:AE),"") ->  | V65: =IFERROR(AVERAGEIF(Raw!$D:$D,Avg_all!$A65,Raw!AF:AF),"") ->  | W65: =IFERROR(AVERAGEIF(Raw!$D:$D,Avg_all!$A65,Raw!AG:AG),"") ->  | X65: =IFERROR(AVERAGEIF(Raw!$D:$D,Avg_all!$A65,Raw!AH:AH),"") ->  | Y65: =IFERROR(AVERAGEIF(Raw!$D:$D,Avg_all!$A65,Raw!AI:AI),"") ->  | Z65: =IFERROR(AVERAGEIF(Raw!$D:$D,Avg_all!$A65,Raw!AJ:AJ),"") ->  | AA65: =IFERROR(AVERAGEIF(Raw!$D:$D,Avg_all!$A65,Raw!AK:AK),"") -> 
A66: 海外債-反向ETF | B66: 海外債-反向ETF | C66: =IFERROR(AVERAGEIF(Raw!$D:$D,Avg_all!$A66,Raw!E:E),"") ->  | D66: =IFERROR(AVERAGEIF(Raw!$D:$D,Avg_all!$A66,Raw!G:G),"") ->  | E66: =IFERROR(AVERAGEIF(Raw!$D:$D,Avg_all!$A66,Raw!I:I),"") ->  | F66: =IFERROR(AVERAGEIF(Raw!$D:$D,Avg_all!$A66,Raw!K:K),"") ->  | G66: =IFERROR(AVERAGEIF(Raw!$D:$D,Avg_all!$A66,Raw!M:M),"") ->  | H66: =IFERROR(AVERAGEIF(Raw!$D:$D,Avg_all!$A66,Raw!O:O),"") ->  | I66: =IFERROR(AVERAGEIF(Raw!$D:$D,Avg_all!$A66,Raw!Q:Q),"") ->  | J66: =IFERROR(AVERAGEIF(Raw!$D:$D,Avg_all!$A66,Raw!S:S),"") ->  | K66: =IFERROR(AVERAGEIF(Raw!$D:$D,Avg_all!$A66,Raw!U:U),"") ->  | L66: =IFERROR(AVERAGEIF(Raw!$D:$D,Avg_all!$A66,Raw!V:V),"") ->  | M66: =IFERROR(AVERAGEIF(Raw!$D:$D,Avg_all!$A66,Raw!W:W),"") ->  | N66: =IFERROR(AVERAGEIF(Raw!$D:$D,Avg_all!$A66,Raw!X:X),"") ->  | O66: =IFERROR(AVERAGEIF(Raw!$D:$D,Avg_all!$A66,Raw!Y:Y),"") ->  | P66: =IFERROR(AVERAGEIF(Raw!$D:$D,Avg_all!$A66,Raw!Z:Z),"") ->  | Q66: =IFERROR(AVERAGEIF(Raw!$D:$D,Avg_all!$A66,Raw!AA:AA),"") ->  | R66: =IFERROR(AVERAGEIF(Raw!$D:$D,Avg_all!$A66,Raw!AB:AB),"") ->  | S66: =IFERROR(AVERAGEIF(Raw!$D:$D,Avg_all!$A66,Raw!AC:AC),"") ->  | T66: =IFERROR(AVERAGEIF(Raw!$D:$D,Avg_all!$A66,Raw!AD:AD),"") ->  | U66: =IFERROR(AVERAGEIF(Raw!$D:$D,Avg_all!$A66,Raw!AE:AE),"") ->  | V66: =IFERROR(AVERAGEIF(Raw!$D:$D,Avg_all!$A66,Raw!AF:AF),"") ->  | W66: =IFERROR(AVERAGEIF(Raw!$D:$D,Avg_all!$A66,Raw!AG:AG),"") ->  | X66: =IFERROR(AVERAGEIF(Raw!$D:$D,Avg_all!$A66,Raw!AH:AH),"") ->  | Y66: =IFERROR(AVERAGEIF(Raw!$D:$D,Avg_all!$A66,Raw!AI:AI),"") ->  | Z66: =IFERROR(AVERAGEIF(Raw!$D:$D,Avg_all!$A66,Raw!AJ:AJ),"") ->  | AA66: =IFERROR(AVERAGEIF(Raw!$D:$D,Avg_all!$A66,Raw!AK:AK),"") -> 

Sheet Rank
A1: 基金類型 | B1: Category | C1: ROI3 | D1: ROI6 | E1: ROI12 | F1: ROI24 | G1: ROI36 | H1: ROI60 | I1: ROI_YTD
A2: 不動產證券化 | B2: 不動產證券化 | C2: =IFERROR(SUMIF(Raw!$D:$D,Rank!$A2,Raw!E:E)/AVERAGEIF(Raw!$D:$D,Rank!$A2,Raw!E:E),"") -> 68 | D2: =IFERROR(SUMIF(Raw!$D:$D,Rank!$A2,Raw!G:G)/AVERAGEIF(Raw!$D:$D,Rank!$A2,Raw!G:G),"") -> 68 | E2: =IFERROR(SUMIF(Raw!$D:$D,Rank!$A2,Raw!I:I)/AVERAGEIF(Raw!$D:$D,Rank!$A2,Raw!I:I),"") -> 68 | F2: =IFERROR(SUMIF(Raw!$D:$D,Rank!$A2,Raw!K:K)/AVERAGEIF(Raw!$D:$D,Rank!$A2,Raw!K:K),"") -> 56 | G2: =IFERROR(SUMIF(Raw!$D:$D,Rank!$A2,Raw!M:M)/AVERAGEIF(Raw!$D:$D,Rank!$A2,Raw!M:M),"") -> 47 | H2: =IFERROR(SUMIF(Raw!$D:$D,Rank!$A2,Raw!O:O)/AVERAGEIF(Raw!$D:$D,Rank!$A2,Raw!O:O),"") -> 28 | I2: =IFERROR(SUMIF(Raw!$D:$D,Rank!$A2,Raw!S:S)/AVERAGEIF(Raw!$D:$D,Rank!$A2,Raw!S:S),"") -> 68
A3: 平衡--一般股票型 | B3: 平衡--一般股票型 | C3: =IFERROR(SUMIF(Raw!$D:$D,Rank!$A3,Raw!E:E)/AVERAGEIF(Raw!$D:$D,Rank!$A3,Raw!E:E),"") -> 20 | D3: =IFERROR(SUMIF(Raw!$D:$D,Rank!$A3,Raw!G:G)/AVERAGEIF(Raw!$D:$D,Rank!$A3,Raw!G:G),"") -> 20 | E3: =IFERROR(SUMIF(Raw!$D:$D,Rank!$A3,Raw!I:I)/AVERAGEIF(Raw!$D:$D,Rank!$A3,Raw!I:I),"") -> 19 | F3: =IFERROR(SUMIF(Raw!$D:$D,Rank!$A3,Raw!K:K)/AVERAGEIF(Raw!$D:$D,Rank!$A3,Raw!K:K),"") -> 18 | G3: =IFERROR(SUMIF(Raw!$D:$D,Rank!$A3,Raw!M:M)/AVERAGEIF(Raw!$D:$D,Rank!$A3,Raw!M:M),"") -> 15 | H3: =IFERROR(SUMIF(Raw!$D:$D,Rank!$A3,Raw!O:O)/AVERAGEIF(Raw!$D:$D,Rank!$A3,Raw!O:O),"") -> 15 | I3: =IFERROR(SUMIF(Raw!$D:$D,Rank!$A3,Raw!S:S)/AVERAGEIF(Raw!$D:$D,Rank!$A3,Raw!S:S),"") -> 20
A4: 平衡--價值股票型 | B4: 平衡--價值股票型 | C4: =IFERROR(SUMIF(Raw!$D:$D,Rank!$A4,Raw!E:E)/AVERAGEIF(Raw!$D:$D,Rank!$A4,Raw!E:E),"") -> 4 | D4: =IFERROR(SUMIF(Raw!$D:$D,Rank!$A4,Raw!G:G)/AVERAGEIF(Raw!$D:$D,Rank!$A4,Raw!G:G),"") -> 4 | E4: =IFERROR(SUMIF(Raw!$D:$D,Rank!$A4,Raw!I:I)/AVERAGEIF(Raw!$D:$D,Rank!$A4,Raw!I:I),"") -> 4 | F4: =IFERROR(SUMIF(Raw!$D:$D,Rank!$A4,Raw!K:K)/AVERAGEIF(Raw!$D:$D,Rank!$A4,Raw!K:K),"") -> 4 | G4: =IFERROR(SUMIF(Raw!$D:$D,Rank!$A4,Raw!M:M)/AVERAGEIF(Raw!$D:$D,Rank!$A4,Raw!M:M),"") -> 3 | H4: =IFERROR(SUMIF(Raw!$D:$D,Rank!$A4,Raw!O:O)/AVERAGEIF(Raw!$D:$D,Rank!$A4,Raw!O:O),"") -> 3 | I4: =IFERROR(SUMIF(Raw!$D:$D,Rank!$A4,Raw!S:S)/AVERAGEIF(Raw!$D:$D,Rank!$A4,Raw!S:S),"") -> 4
A5: 平衡--模組操作型 | B5: 平衡--模組操作型 | C5: =IFERROR(SUMIF(Raw!$D:$D,Rank!$A5,Raw!E:E)/AVERAGEIF(Raw!$D:$D,Rank!$A5,Raw!E:E),"") ->  | D5: =IFERROR(SUMIF(Raw!$D:$D,Rank!$A5,Raw!G:G)/AVERAGEIF(Raw!$D:$D,Rank!$A5,Raw!G:G),"") ->  | E5: =IFERROR(SUMIF(Raw!$D:$D,Rank!$A5,Raw!I:I)/AVERAGEIF(Raw!$D:$D,Rank!$A5,Raw!I:I),"") ->  | F5: =IFERROR(SUMIF(Raw!$D:$D,Rank!$A5,Raw!K:K)/AVERAGEIF(Raw!$D:$D,Rank!$A5,Raw!K:K),"") ->  | G5: =IFERROR(SUMIF(Raw!$D:$D,Rank!$A5,Raw!M:M)/AVERAGEIF(Raw!$D:$D,Rank!$A5,Raw!M:M),"") ->  | H5: =IFERROR(SUMIF(Raw!$D:$D,Rank!$A5,Raw!O:O)/AVERAGEIF(Raw!$D:$D,Rank!$A5,Raw!O:O),"") ->  | I5: =IFERROR(SUMIF(Raw!$D:$D,Rank!$A5,Raw!S:S)/AVERAGEIF(Raw!$D:$D,Rank!$A5,Raw!S:S),"") -> 
A6: 投資債--中國大陸 | B6: 投資債--中國大陸 | C6: =IFERROR(SUMIF(Raw!$D:$D,Rank!$A6,Raw!E:E)/AVERAGEIF(Raw!$D:$D,Rank!$A6,Raw!E:E),"") -> 8 | D6: =IFERROR(SUMIF(Raw!$D:$D,Rank!$A6,Raw!G:G)/AVERAGEIF(Raw!$D:$D,Rank!$A6,Raw!G:G),"") -> 8 | E6: =IFERROR(SUMIF(Raw!$D:$D,Rank!$A6,Raw!I:I)/AVERAGEIF(Raw!$D:$D,Rank!$A6,Raw!I:I),"") -> 8 | F6: =IFERROR(SUMIF(Raw!$D:$D,Rank!$A6,Raw!K:K)/AVERAGEIF(Raw!$D:$D,Rank!$A6,Raw!K:K),"") -> 8 | G6: =IFERROR(SUMIF(Raw!$D:$D,Rank!$A6,Raw!M:M)/AVERAGEIF(Raw!$D:$D,Rank!$A6,Raw!M:M),"") -> 8 | H6: =IFERROR(SUMIF(Raw!$D:$D,Rank!$A6,Raw!O:O)/AVERAGEIF(Raw!$D:$D,Rank!$A6,Raw!O:O),"") -> 8 | I6: =IFERROR(SUMIF(Raw!$D:$D,Rank!$A6,Raw!S:S)/AVERAGEIF(Raw!$D:$D,Rank!$A6,Raw!S:S),"") -> 8
A7: 投資債--全球 | B7: 投資債--全球 | C7: =IFERROR(SUMIF(Raw!$D:$D,Rank!$A7,Raw!E:E)/AVERAGEIF(Raw!$D:$D,Rank!$A7,Raw!E:E),"") -> 238 | D7: =IFERROR(SUMIF(Raw!$D:$D,Rank!$A7,Raw!G:G)/AVERAGEIF(Raw!$D:$D,Rank!$A7,Raw!G:G),"") -> 221 | E7: =IFERROR(SUMIF(Raw!$D:$D,Rank!$A7,Raw!I:I)/AVERAGEIF(Raw!$D:$D,Rank!$A7,Raw!I:I),"") -> 203 | F7: =IFERROR(SUMIF(Raw!$D:$D,Rank!$A7,Raw!K:K)/AVERAGEIF(Raw!$D:$D,Rank!$A7,Raw!K:K),"") -> 192 | G7: =IFERROR(SUMIF(Raw!$D:$D,Rank!$A7,Raw!M:M)/AVERAGEIF(Raw!$D:$D,Rank!$A7,Raw!M:M),"") -> 132 | H7: =IFERROR(SUMIF(Raw!$D:$D,Rank!$A7,Raw!O:O)/AVERAGEIF(Raw!$D:$D,Rank!$A7,Raw!O:O),"") -> 24 | I7: =IFERROR(SUMIF(Raw!$D:$D,Rank!$A7,Raw!S:S)/AVERAGEIF(Raw!$D:$D,Rank!$A7,Raw!S:S),"") -> 238
A8: 投資債--全球新興 | B8: 投資債--全球新興 | C8: =IFERROR(SUMIF(Raw!$D:$D,Rank!$A8,Raw!E:E)/AVERAGEIF(Raw!$D:$D,Rank!$A8,Raw!E:E),"") -> 115 | D8: =IFERROR(SUMIF(Raw!$D:$D,Rank!$A8,Raw!G:G)/AVERAGEIF(Raw!$D:$D,Rank!$A8,Raw!G:G),"") -> 115 | E8: =IFERROR(SUMIF(Raw!$D:$D,Rank!$A8,Raw!I:I)/AVERAGEIF(Raw!$D:$D,Rank!$A8,Raw!I:I),"") -> 114 | F8: =IFERROR(SUMIF(Raw!$D:$D,Rank!$A8,Raw!K:K)/AVERAGEIF(Raw!$D:$D,Rank!$A8,Raw!K:K),"") -> 94 | G8: =IFERROR(SUMIF(Raw!$D:$D,Rank!$A8,Raw!M:M)/AVERAGEIF(Raw!$D:$D,Rank!$A8,Raw!M:M),"") -> 76 | H8: =IFERROR(SUMIF(Raw!$D:$D,Rank!$A8,Raw!O:O)/AVERAGEIF(Raw!$D:$D,Rank!$A8,Raw!O:O),"") -> 28 | I8: =IFERROR(SUMIF(Raw!$D:$D,Rank!$A8,Raw!S:S)/AVERAGEIF(Raw!$D:$D,Rank!$A8,Raw!S:S),"") -> 115
A9: 投資債--其他 | B9: 投資債--其他 | C9: =IFERROR(SUMIF(Raw!$D:$D,Rank!$A9,Raw!E:E)/AVERAGEIF(Raw!$D:$D,Rank!$A9,Raw!E:E),"") -> 19 | D9: =IFERROR(SUMIF(Raw!$D:$D,Rank!$A9,Raw!G:G)/AVERAGEIF(Raw!$D:$D,Rank!$A9,Raw!G:G),"") -> 19 | E9: =IFERROR(SUMIF(Raw!$D:$D,Rank!$A9,Raw!I:I)/AVERAGEIF(Raw!$D:$D,Rank!$A9,Raw!I:I),"") -> 19 | F9: =IFERROR(SUMIF(Raw!$D:$D,Rank!$A9,Raw!K:K)/AVERAGEIF(Raw!$D:$D,Rank!$A9,Raw!K:K),"") -> 19 | G9: =IFERROR(SUMIF(Raw!$D:$D,Rank!$A9,Raw!M:M)/AVERAGEIF(Raw!$D:$D,Rank!$A9,Raw!M:M),"") -> 7 | H9: =IFERROR(SUMIF(Raw!$D:$D,Rank!$A9,Raw!O:O)/AVERAGEIF(Raw!$D:$D,Rank!$A9,Raw!O:O),"") -> 5 | I9: =IFERROR(SUMIF(Raw!$D:$D,Rank!$A9,Raw!S:S)/AVERAGEIF(Raw!$D:$D,Rank!$A9,Raw!S:S),"") -> 19
A10: 投資債--美國 | B10: 投資債--美國 | C10: =IFERROR(SUMIF(Raw!$D:$D,Rank!$A10,Raw!E:E)/AVERAGEIF(Raw!$D:$D,Rank!$A10,Raw!E:E),"") -> 30 | D10: =IFERROR(SUMIF(Raw!$D:$D,Rank!$A10,Raw!G:G)/AVERAGEIF(Raw!$D:$D,Rank!$A10,Raw!G:G),"") -> 30 | E10: =IFERROR(SUMIF(Raw!$D:$D,Rank!$A10,Raw!I:I)/AVERAGEIF(Raw!$D:$D,Rank!$A10,Raw!I:I),"") -> 29 | F10: =IFERROR(SUMIF(Raw!$D:$D,Rank!$A10,Raw!K:K)/AVERAGEIF(Raw!$D:$D,Rank!$A10,Raw!K:K),"") -> 20 | G10: =IFERROR(SUMIF(Raw!$D:$D,Rank!$A10,Raw!M:M)/AVERAGEIF(Raw!$D:$D,Rank!$A10,Raw!M:M),"") -> 19 | H10: =IFERROR(SUMIF(Raw!$D:$D,Rank!$A10,Raw!O:O)/AVERAGEIF(Raw!$D:$D,Rank!$A10,Raw!O:O),"") -> 2 | I10: =IFERROR(SUMIF(Raw!$D:$D,Rank!$A10,Raw!S:S)/AVERAGEIF(Raw!$D:$D,Rank!$A10,Raw!S:S),"") -> 30
A11: 投資債--短期 | B11: 投資債--短期 | C11: =IFERROR(SUMIF(Raw!$D:$D,Rank!$A11,Raw!E:E)/AVERAGEIF(Raw!$D:$D,Rank!$A11,Raw!E:E),"") -> 18 | D11: =IFERROR(SUMIF(Raw!$D:$D,Rank!$A11,Raw!G:G)/AVERAGEIF(Raw!$D:$D,Rank!$A11,Raw!G:G),"") -> 8 | E11: =IFERROR(SUMIF(Raw!$D:$D,Rank!$A11,Raw!I:I)/AVERAGEIF(Raw!$D:$D,Rank!$A11,Raw!I:I),"") -> 8 | F11: =IFERROR(SUMIF(Raw!$D:$D,Rank!$A11,Raw!K:K)/AVERAGEIF(Raw!$D:$D,Rank!$A11,Raw!K:K),"") -> 7 | G11: =IFERROR(SUMIF(Raw!$D:$D,Rank!$A11,Raw!M:M)/AVERAGEIF(Raw!$D:$D,Rank!$A11,Raw!M:M),"") -> 7 | H11: =IFERROR(SUMIF(Raw!$D:$D,Rank!$A11,Raw!O:O)/AVERAGEIF(Raw!$D:$D,Rank!$A11,Raw!O:O),"") -> 7 | I11: =IFERROR(SUMIF(Raw!$D:$D,Rank!$A11,Raw!S:S)/AVERAGEIF(Raw!$D:$D,Rank!$A11,Raw!S:S),"") -> 18
A12: 投資債--新興亞洲 | B12: 投資債--新興亞洲 | C12: =IFERROR(SUMIF(Raw!$D:$D,Rank!$A12,Raw!E:E)/AVERAGEIF(Raw!$D:$D,Rank!$A12,Raw!E:E),"") -> 64 | D12: =IFERROR(SUMIF(Raw!$D:$D,Rank!$A12,Raw!G:G)/AVERAGEIF(Raw!$D:$D,Rank!$A12,Raw!G:G),"") -> 64 | E12: =IFERROR(SUMIF(Raw!$D:$D,Rank!$A12,Raw!I:I)/AVERAGEIF(Raw!$D:$D,Rank!$A12,Raw!I:I),"") -> 64 | F12: =IFERROR(SUMIF(Raw!$D:$D,Rank!$A12,Raw!K:K)/AVERAGEIF(Raw!$D:$D,Rank!$A12,Raw!K:K),"") -> 63 | G12: =IFERROR(SUMIF(Raw!$D:$D,Rank!$A12,Raw!M:M)/AVERAGEIF(Raw!$D:$D,Rank!$A12,Raw!M:M),"") -> 63 | H12: =IFERROR(SUMIF(Raw!$D:$D,Rank!$A12,Raw!O:O)/AVERAGEIF(Raw!$D:$D,Rank!$A12,Raw!O:O),"") -> 45 | I12: =IFERROR(SUMIF(Raw!$D:$D,Rank!$A12,Raw!S:S)/AVERAGEIF(Raw!$D:$D,Rank!$A12,Raw!S:S),"") -> 64
A13: 固定收益 | B13: 固定收益 | C13: =IFERROR(SUMIF(Raw!$D:$D,Rank!$A13,Raw!E:E)/AVERAGEIF(Raw!$D:$D,Rank!$A13,Raw!E:E),"") -> 1 | D13: =IFERROR(SUMIF(Raw!$D:$D,Rank!$A13,Raw!G:G)/AVERAGEIF(Raw!$D:$D,Rank!$A13,Raw!G:G),"") -> 1 | E13: =IFERROR(SUMIF(Raw!$D:$D,Rank!$A13,Raw!I:I)/AVERAGEIF(Raw!$D:$D,Rank!$A13,Raw!I:I),"") -> 1 | F13: =IFERROR(SUMIF(Raw!$D:$D,Rank!$A13,Raw!K:K)/AVERAGEIF(Raw!$D:$D,Rank!$A13,Raw!K:K),"") -> 1 | G13: =IFERROR(SUMIF(Raw!$D:$D,Rank!$A13,Raw!M:M)/AVERAGEIF(Raw!$D:$D,Rank!$A13,Raw!M:M),"") -> 1 | H13: =IFERROR(SUMIF(Raw!$D:$D,Rank!$A13,Raw!O:O)/AVERAGEIF(Raw!$D:$D,Rank!$A13,Raw!O:O),"") -> 1 | I13: =IFERROR(SUMIF(Raw!$D:$D,Rank!$A13,Raw!S:S)/AVERAGEIF(Raw!$D:$D,Rank!$A13,Raw!S:S),"") -> 1
A14: 保本型 | B14: 保本型 | C14: =IFERROR(SUMIF(Raw!$D:$D,Rank!$A14,Raw!E:E)/AVERAGEIF(Raw!$D:$D,Rank!$A14,Raw!E:E),"") -> 5 | D14: =IFERROR(SUMIF(Raw!$D:$D,Rank!$A14,Raw!G:G)/AVERAGEIF(Raw!$D:$D,Rank!$A14,Raw!G:G),"") -> 5 | E14: =IFERROR(SUMIF(Raw!$D:$D,Rank!$A14,Raw!I:I)/AVERAGEIF(Raw!$D:$D,Rank!$A14,Raw!I:I),"") -> 5 | F14: =IFERROR(SUMIF(Raw!$D:$D,Rank!$A14,Raw!K:K)/AVERAGEIF(Raw!$D:$D,Rank!$A14,Raw!K:K),"") -> 4 | G14: =IFERROR(SUMIF(Raw!$D:$D,Rank!$A14,Raw!M:M)/AVERAGEIF(Raw!$D:$D,Rank!$A14,Raw!M:M),"") -> 4 | H14: =IFERROR(SUMIF(Raw!$D:$D,Rank!$A14,Raw!O:O)/AVERAGEIF(Raw!$D:$D,Rank!$A14,Raw!O:O),"") -> 2 | I14: =IFERROR(SUMIF(Raw!$D:$D,Rank!$A14,Raw!S:S)/AVERAGEIF(Raw!$D:$D,Rank!$A14,Raw!S:S),"") -> 5
A15: 海外貨幣市場 | B15: 海外貨幣市場 | C15: =IFERROR(SUMIF(Raw!$D:$D,Rank!$A15,Raw!E:E)/AVERAGEIF(Raw!$D:$D,Rank!$A15,Raw!E:E),"") -> 13 | D15: =IFERROR(SUMIF(Raw!$D:$D,Rank!$A15,Raw!G:G)/AVERAGEIF(Raw!$D:$D,Rank!$A15,Raw!G:G),"") -> 13 | E15: =IFERROR(SUMIF(Raw!$D:$D,Rank!$A15,Raw!I:I)/AVERAGEIF(Raw!$D:$D,Rank!$A15,Raw!I:I),"") -> 13 | F15: =IFERROR(SUMIF(Raw!$D:$D,Rank!$A15,Raw!K:K)/AVERAGEIF(Raw!$D:$D,Rank!$A15,Raw!K:K),"") -> 13 | G15: =IFERROR(SUMIF(Raw!$D:$D,Rank!$A15,Raw!M:M)/AVERAGEIF(Raw!$D:$D,Rank!$A15,Raw!M:M),"") -> 13 | H15: =IFERROR(SUMIF(Raw!$D:$D,Rank!$A15,Raw!O:O)/AVERAGEIF(Raw!$D:$D,Rank!$A15,Raw!O:O),"") -> 13 | I15: =IFERROR(SUMIF(Raw!$D:$D,Rank!$A15,Raw!S:S)/AVERAGEIF(Raw!$D:$D,Rank!$A15,Raw!S:S),"") -> 13
A16: 高收債--中國大陸 | B16: 高收債--中國大陸 | C16: =IFERROR(SUMIF(Raw!$D:$D,Rank!$A16,Raw!E:E)/AVERAGEIF(Raw!$D:$D,Rank!$A16,Raw!E:E),"") ->  | D16: =IFERROR(SUMIF(Raw!$D:$D,Rank!$A16,Raw!G:G)/AVERAGEIF(Raw!$D:$D,Rank!$A16,Raw!G:G),"") ->  | E16: =IFERROR(SUMIF(Raw!$D:$D,Rank!$A16,Raw!I:I)/AVERAGEIF(Raw!$D:$D,Rank!$A16,Raw!I:I),"") ->  | F16: =IFERROR(SUMIF(Raw!$D:$D,Rank!$A16,Raw!K:K)/AVERAGEIF(Raw!$D:$D,Rank!$A16,Raw!K:K),"") ->  | G16: =IFERROR(SUMIF(Raw!$D:$D,Rank!$A16,Raw!M:M)/AVERAGEIF(Raw!$D:$D,Rank!$A16,Raw!M:M),"") ->  | H16: =IFERROR(SUMIF(Raw!$D:$D,Rank!$A16,Raw!O:O)/AVERAGEIF(Raw!$D:$D,Rank!$A16,Raw!O:O),"") ->  | I16: =IFERROR(SUMIF(Raw!$D:$D,Rank!$A16,Raw!S:S)/AVERAGEIF(Raw!$D:$D,Rank!$A16,Raw!S:S),"") -> 
A17: 高收債--全球 | B17: 高收債--全球 | C17: =IFERROR(SUMIF(Raw!$D:$D,Rank!$A17,Raw!E:E)/AVERAGEIF(Raw!$D:$D,Rank!$A17,Raw!E:E),"") ->  | D17: =IFERROR(SUMIF(Raw!$D:$D,Rank!$A17,Raw!G:G)/AVERAGEIF(Raw!$D:$D,Rank!$A17,Raw!G:G),"") ->  | E17: =IFERROR(SUMIF(Raw!$D:$D,Rank!$A17,Raw!I:I)/AVERAGEIF(Raw!$D:$D,Rank!$A17,Raw!I:I),"") ->  | F17: =IFERROR(SUMIF(Raw!$D:$D,Rank!$A17,Raw!K:K)/AVERAGEIF(Raw!$D:$D,Rank!$A17,Raw!K:K),"") ->  | G17: =IFERROR(SUMIF(Raw!$D:$D,Rank!$A17,Raw!M:M)/AVERAGEIF(Raw!$D:$D,Rank!$A17,Raw!M:M),"") ->  | H17: =IFERROR(SUMIF(Raw!$D:$D,Rank!$A17,Raw!O:O)/AVERAGEIF(Raw!$D:$D,Rank!$A17,Raw!O:O),"") ->  | I17: =IFERROR(SUMIF(Raw!$D:$D,Rank!$A17,Raw!S:S)/AVERAGEIF(Raw!$D:$D,Rank!$A17,Raw!S:S),"") -> 
A18: 高收債--亞洲 | B18: 高收債--亞洲 | C18: =IFERROR(SUMIF(Raw!$D:$D,Rank!$A18,Raw!E:E)/AVERAGEIF(Raw!$D:$D,Rank!$A18,Raw!E:E),"") ->  | D18: =IFERROR(SUMIF(Raw!$D:$D,Rank!$A18,Raw!G:G)/AVERAGEIF(Raw!$D:$D,Rank!$A18,Raw!G:G),"") ->  | E18: =IFERROR(SUMIF(Raw!$D:$D,Rank!$A18,Raw!I:I)/AVERAGEIF(Raw!$D:$D,Rank!$A18,Raw!I:I),"") ->  | F18: =IFERROR(SUMIF(Raw!$D:$D,Rank!$A18,Raw!K:K)/AVERAGEIF(Raw!$D:$D,Rank!$A18,Raw!K:K),"") ->  | G18: =IFERROR(SUMIF(Raw!$D:$D,Rank!$A18,Raw!M:M)/AVERAGEIF(Raw!$D:$D,Rank!$A18,Raw!M:M),"") ->  | H18: =IFERROR(SUMIF(Raw!$D:$D,Rank!$A18,Raw!O:O)/AVERAGEIF(Raw!$D:$D,Rank!$A18,Raw!O:O),"") ->  | I18: =IFERROR(SUMIF(Raw!$D:$D,Rank!$A18,Raw!S:S)/AVERAGEIF(Raw!$D:$D,Rank!$A18,Raw!S:S),"") -> 
A19: 高收債--新興市場 | B19: 高收債--新興市場 | C19: =IFERROR(SUMIF(Raw!$D:$D,Rank!$A19,Raw!E:E)/AVERAGEIF(Raw!$D:$D,Rank!$A19,Raw!E:E),"") ->  | D19: =IFERROR(SUMIF(Raw!$D:$D,Rank!$A19,Raw!G:G)/AVERAGEIF(Raw!$D:$D,Rank!$A19,Raw!G:G),"") ->  | E19: =IFERROR(SUMIF(Raw!$D:$D,Rank!$A19,Raw!I:I)/AVERAGEIF(Raw!$D:$D,Rank!$A19,Raw!I:I),"") ->  | F19: =IFERROR(SUMIF(Raw!$D:$D,Rank!$A19,Raw!K:K)/AVERAGEIF(Raw!$D:$D,Rank!$A19,Raw!K:K),"") ->  | G19: =IFERROR(SUMIF(Raw!$D:$D,Rank!$A19,Raw!M:M)/AVERAGEIF(Raw!$D:$D,Rank!$A19,Raw!M:M),"") ->  | H19: =IFERROR(SUMIF(Raw!$D:$D,Rank!$A19,Raw!O:O)/AVERAGEIF(Raw!$D:$D,Rank!$A19,Raw!O:O),"") ->  | I19: =IFERROR(SUMIF(Raw!$D:$D,Rank!$A19,Raw!S:S)/AVERAGEIF(Raw!$D:$D,Rank!$A19,Raw!S:S),"") -> 
A20: 國內指數-一般ETF | B20: 國內指數-一般ETF | C20: =IFERROR(SUMIF(Raw!$D:$D,Rank!$A20,Raw!E:E)/AVERAGEIF(Raw!$D:$D,Rank!$A20,Raw!E:E),"") -> 48 | D20: =IFERROR(SUMIF(Raw!$D:$D,Rank!$A20,Raw!G:G)/AVERAGEIF(Raw!$D:$D,Rank!$A20,Raw!G:G),"") -> 45 | E20: =IFERROR(SUMIF(Raw!$D:$D,Rank!$A20,Raw!I:I)/AVERAGEIF(Raw!$D:$D,Rank!$A20,Raw!I:I),"") -> 40 | F20: =IFERROR(SUMIF(Raw!$D:$D,Rank!$A20,Raw!K:K)/AVERAGEIF(Raw!$D:$D,Rank!$A20,Raw!K:K),"") -> 30 | G20: =IFERROR(SUMIF(Raw!$D:$D,Rank!$A20,Raw!M:M)/AVERAGEIF(Raw!$D:$D,Rank!$A20,Raw!M:M),"") -> 23 | H20: =IFERROR(SUMIF(Raw!$D:$D,Rank!$A20,Raw!O:O)/AVERAGEIF(Raw!$D:$D,Rank!$A20,Raw!O:O),"") -> 19 | I20: =IFERROR(SUMIF(Raw!$D:$D,Rank!$A20,Raw!S:S)/AVERAGEIF(Raw!$D:$D,Rank!$A20,Raw!S:S),"") -> 48
A21: 國內指數-二倍ETF | B21: 國內指數-二倍ETF | C21: =IFERROR(SUMIF(Raw!$D:$D,Rank!$A21,Raw!E:E)/AVERAGEIF(Raw!$D:$D,Rank!$A21,Raw!E:E),"") -> 4 | D21: =IFERROR(SUMIF(Raw!$D:$D,Rank!$A21,Raw!G:G)/AVERAGEIF(Raw!$D:$D,Rank!$A21,Raw!G:G),"") -> 4 | E21: =IFERROR(SUMIF(Raw!$D:$D,Rank!$A21,Raw!I:I)/AVERAGEIF(Raw!$D:$D,Rank!$A21,Raw!I:I),"") -> 4 | F21: =IFERROR(SUMIF(Raw!$D:$D,Rank!$A21,Raw!K:K)/AVERAGEIF(Raw!$D:$D,Rank!$A21,Raw!K:K),"") -> 4 | G21: =IFERROR(SUMIF(Raw!$D:$D,Rank!$A21,Raw!M:M)/AVERAGEIF(Raw!$D:$D,Rank!$A21,Raw!M:M),"") -> 4 | H21: =IFERROR(SUMIF(Raw!$D:$D,Rank!$A21,Raw!O:O)/AVERAGEIF(Raw!$D:$D,Rank!$A21,Raw!O:O),"") -> 4 | I21: =IFERROR(SUMIF(Raw!$D:$D,Rank!$A21,Raw!S:S)/AVERAGEIF(Raw!$D:$D,Rank!$A21,Raw!S:S),"") -> 4
A22: 國內指數-反向ETF | B22: 國內指數-反向ETF | C22: =IFERROR(SUMIF(Raw!$D:$D,Rank!$A22,Raw!E:E)/AVERAGEIF(Raw!$D:$D,Rank!$A22,Raw!E:E),"") -> 4 | D22: =IFERROR(SUMIF(Raw!$D:$D,Rank!$A22,Raw!G:G)/AVERAGEIF(Raw!$D:$D,Rank!$A22,Raw!G:G),"") -> 4 | E22: =IFERROR(SUMIF(Raw!$D:$D,Rank!$A22,Raw!I:I)/AVERAGEIF(Raw!$D:$D,Rank!$A22,Raw!I:I),"") -> 4 | F22: =IFERROR(SUMIF(Raw!$D:$D,Rank!$A22,Raw!K:K)/AVERAGEIF(Raw!$D:$D,Rank!$A22,Raw!K:K),"") -> 4 | G22: =IFERROR(SUMIF(Raw!$D:$D,Rank!$A22,Raw!M:M)/AVERAGEIF(Raw!$D:$D,Rank!$A22,Raw!M:M),"") -> 4 | H22: =IFERROR(SUMIF(Raw!$D:$D,Rank!$A22,Raw!O:O)/AVERAGEIF(Raw!$D:$D,Rank!$A22,Raw!O:O),"") -> 4 | I22: =IFERROR(SUMIF(Raw!$D:$D,Rank!$A22,Raw!S:S)/AVERAGEIF(Raw!$D:$D,Rank!$A22,Raw!S:S),"") -> 4
A23: 國內指數-非ETF | B23: 國內指數-非ETF | C23: =IFERROR(SUMIF(Raw!$D:$D,Rank!$A23,Raw!E:E)/AVERAGEIF(Raw!$D:$D,Rank!$A23,Raw!E:E),"") -> 10 | D23: =IFERROR(SUMIF(Raw!$D:$D,Rank!$A23,Raw!G:G)/AVERAGEIF(Raw!$D:$D,Rank!$A23,Raw!G:G),"") -> 10 | E23: =IFERROR(SUMIF(Raw!$D:$D,Rank!$A23,Raw!I:I)/AVERAGEIF(Raw!$D:$D,Rank!$A23,Raw!I:I),"") -> 10 | F23: =IFERROR(SUMIF(Raw!$D:$D,Rank!$A23,Raw!K:K)/AVERAGEIF(Raw!$D:$D,Rank!$A23,Raw!K:K),"") -> 7 | G23: =IFERROR(SUMIF(Raw!$D:$D,Rank!$A23,Raw!M:M)/AVERAGEIF(Raw!$D:$D,Rank!$A23,Raw!M:M),"") -> 7 | H23: =IFERROR(SUMIF(Raw!$D:$D,Rank!$A23,Raw!O:O)/AVERAGEIF(Raw!$D:$D,Rank!$A23,Raw!O:O),"") -> 1 | I23: =IFERROR(SUMIF(Raw!$D:$D,Rank!$A23,Raw!S:S)/AVERAGEIF(Raw!$D:$D,Rank!$A23,Raw!S:S),"") -> 10
A24: 國內貨幣市場 | B24: 國內貨幣市場 | C24: =IFERROR(SUMIF(Raw!$D:$D,Rank!$A24,Raw!E:E)/AVERAGEIF(Raw!$D:$D,Rank!$A24,Raw!E:E),"") -> 36 | D24: =IFERROR(SUMIF(Raw!$D:$D,Rank!$A24,Raw!G:G)/AVERAGEIF(Raw!$D:$D,Rank!$A24,Raw!G:G),"") -> 36 | E24: =IFERROR(SUMIF(Raw!$D:$D,Rank!$A24,Raw!I:I)/AVERAGEIF(Raw!$D:$D,Rank!$A24,Raw!I:I),"") -> 36 | F24: =IFERROR(SUMIF(Raw!$D:$D,Rank!$A24,Raw!K:K)/AVERAGEIF(Raw!$D:$D,Rank!$A24,Raw!K:K),"") -> 36 | G24: =IFERROR(SUMIF(Raw!$D:$D,Rank!$A24,Raw!M:M)/AVERAGEIF(Raw!$D:$D,Rank!$A24,Raw!M:M),"") -> 36 | H24: =IFERROR(SUMIF(Raw!$D:$D,Rank!$A24,Raw!O:O)/AVERAGEIF(Raw!$D:$D,Rank!$A24,Raw!O:O),"") -> 36 | I24: =IFERROR(SUMIF(Raw!$D:$D,Rank!$A24,Raw!S:S)/AVERAGEIF(Raw!$D:$D,Rank!$A24,Raw!S:S),"") -> 36
A25: 開放式一般型 | B25: 開放式一般型 | C25: =IFERROR(SUMIF(Raw!$D:$D,Rank!$A25,Raw!E:E)/AVERAGEIF(Raw!$D:$D,Rank!$A25,Raw!E:E),"") -> 114 | D25: =IFERROR(SUMIF(Raw!$D:$D,Rank!$A25,Raw!G:G)/AVERAGEIF(Raw!$D:$D,Rank!$A25,Raw!G:G),"") -> 114 | E25: =IFERROR(SUMIF(Raw!$D:$D,Rank!$A25,Raw!I:I)/AVERAGEIF(Raw!$D:$D,Rank!$A25,Raw!I:I),"") -> 112 | F25: =IFERROR(SUMIF(Raw!$D:$D,Rank!$A25,Raw!K:K)/AVERAGEIF(Raw!$D:$D,Rank!$A25,Raw!K:K),"") -> 100 | G25: =IFERROR(SUMIF(Raw!$D:$D,Rank!$A25,Raw!M:M)/AVERAGEIF(Raw!$D:$D,Rank!$A25,Raw!M:M),"") -> 89 | H25: =IFERROR(SUMIF(Raw!$D:$D,Rank!$A25,Raw!O:O)/AVERAGEIF(Raw!$D:$D,Rank!$A25,Raw!O:O),"") -> 76 | I25: =IFERROR(SUMIF(Raw!$D:$D,Rank!$A25,Raw!S:S)/AVERAGEIF(Raw!$D:$D,Rank!$A25,Raw!S:S),"") -> 114
A26: 開放式中小型 | B26: 開放式中小型 | C26: =IFERROR(SUMIF(Raw!$D:$D,Rank!$A26,Raw!E:E)/AVERAGEIF(Raw!$D:$D,Rank!$A26,Raw!E:E),"") -> 18 | D26: =IFERROR(SUMIF(Raw!$D:$D,Rank!$A26,Raw!G:G)/AVERAGEIF(Raw!$D:$D,Rank!$A26,Raw!G:G),"") -> 18 | E26: =IFERROR(SUMIF(Raw!$D:$D,Rank!$A26,Raw!I:I)/AVERAGEIF(Raw!$D:$D,Rank!$A26,Raw!I:I),"") -> 18 | F26: =IFERROR(SUMIF(Raw!$D:$D,Rank!$A26,Raw!K:K)/AVERAGEIF(Raw!$D:$D,Rank!$A26,Raw!K:K),"") -> 18 | G26: =IFERROR(SUMIF(Raw!$D:$D,Rank!$A26,Raw!M:M)/AVERAGEIF(Raw!$D:$D,Rank!$A26,Raw!M:M),"") -> 18 | H26: =IFERROR(SUMIF(Raw!$D:$D,Rank!$A26,Raw!O:O)/AVERAGEIF(Raw!$D:$D,Rank!$A26,Raw!O:O),"") -> 17 | I26: =IFERROR(SUMIF(Raw!$D:$D,Rank!$A26,Raw!S:S)/AVERAGEIF(Raw!$D:$D,Rank!$A26,Raw!S:S),"") -> 18
A27: 開放式中概股 | B27: 開放式中概股 | C27: =IFERROR(SUMIF(Raw!$D:$D,Rank!$A27,Raw!E:E)/AVERAGEIF(Raw!$D:$D,Rank!$A27,Raw!E:E),"") -> 4 | D27: =IFERROR(SUMIF(Raw!$D:$D,Rank!$A27,Raw!G:G)/AVERAGEIF(Raw!$D:$D,Rank!$A27,Raw!G:G),"") -> 4 | E27: =IFERROR(SUMIF(Raw!$D:$D,Rank!$A27,Raw!I:I)/AVERAGEIF(Raw!$D:$D,Rank!$A27,Raw!I:I),"") -> 4 | F27: =IFERROR(SUMIF(Raw!$D:$D,Rank!$A27,Raw!K:K)/AVERAGEIF(Raw!$D:$D,Rank!$A27,Raw!K:K),"") -> 4 | G27: =IFERROR(SUMIF(Raw!$D:$D,Rank!$A27,Raw!M:M)/AVERAGEIF(Raw!$D:$D,Rank!$A27,Raw!M:M),"") -> 4 | H27: =IFERROR(SUMIF(Raw!$D:$D,Rank!$A27,Raw!O:O)/AVERAGEIF(Raw!$D:$D,Rank!$A27,Raw!O:O),"") -> 4 | I27: =IFERROR(SUMIF(Raw!$D:$D,Rank!$A27,Raw!S:S)/AVERAGEIF(Raw!$D:$D,Rank!$A27,Raw!S:S),"") -> 4
A28: 開放式科技類 | B28: 開放式科技類 | C28: =IFERROR(SUMIF(Raw!$D:$D,Rank!$A28,Raw!E:E)/AVERAGEIF(Raw!$D:$D,Rank!$A28,Raw!E:E),"") -> 29 | D28: =IFERROR(SUMIF(Raw!$D:$D,Rank!$A28,Raw!G:G)/AVERAGEIF(Raw!$D:$D,Rank!$A28,Raw!G:G),"") -> 28 | E28: =IFERROR(SUMIF(Raw!$D:$D,Rank!$A28,Raw!I:I)/AVERAGEIF(Raw!$D:$D,Rank!$A28,Raw!I:I),"") -> 28 | F28: =IFERROR(SUMIF(Raw!$D:$D,Rank!$A28,Raw!K:K)/AVERAGEIF(Raw!$D:$D,Rank!$A28,Raw!K:K),"") -> 27 | G28: =IFERROR(SUMIF(Raw!$D:$D,Rank!$A28,Raw!M:M)/AVERAGEIF(Raw!$D:$D,Rank!$A28,Raw!M:M),"") -> 26 | H28: =IFERROR(SUMIF(Raw!$D:$D,Rank!$A28,Raw!O:O)/AVERAGEIF(Raw!$D:$D,Rank!$A28,Raw!O:O),"") -> 23 | I28: =IFERROR(SUMIF(Raw!$D:$D,Rank!$A28,Raw!S:S)/AVERAGEIF(Raw!$D:$D,Rank!$A28,Raw!S:S),"") -> 29
A29: 開放式價值型 | B29: 開放式價值型 | C29: =IFERROR(SUMIF(Raw!$D:$D,Rank!$A29,Raw!E:E)/AVERAGEIF(Raw!$D:$D,Rank!$A29,Raw!E:E),"") -> 3 | D29: =IFERROR(SUMIF(Raw!$D:$D,Rank!$A29,Raw!G:G)/AVERAGEIF(Raw!$D:$D,Rank!$A29,Raw!G:G),"") -> 3 | E29: =IFERROR(SUMIF(Raw!$D:$D,Rank!$A29,Raw!I:I)/AVERAGEIF(Raw!$D:$D,Rank!$A29,Raw!I:I),"") -> 3 | F29: =IFERROR(SUMIF(Raw!$D:$D,Rank!$A29,Raw!K:K)/AVERAGEIF(Raw!$D:$D,Rank!$A29,Raw!K:K),"") -> 3 | G29: =IFERROR(SUMIF(Raw!$D:$D,Rank!$A29,Raw!M:M)/AVERAGEIF(Raw!$D:$D,Rank!$A29,Raw!M:M),"") -> 3 | H29: =IFERROR(SUMIF(Raw!$D:$D,Rank!$A29,Raw!O:O)/AVERAGEIF(Raw!$D:$D,Rank!$A29,Raw!O:O),"") -> 3 | I29: =IFERROR(SUMIF(Raw!$D:$D,Rank!$A29,Raw!S:S)/AVERAGEIF(Raw!$D:$D,Rank!$A29,Raw!S:S),"") -> 3
A30: 債券組合--投資級 | B30: 債券組合--投資級 | C30: =IFERROR(SUMIF(Raw!$D:$D,Rank!$A30,Raw!E:E)/AVERAGEIF(Raw!$D:$D,Rank!$A30,Raw!E:E),"") -> 17 | D30: =IFERROR(SUMIF(Raw!$D:$D,Rank!$A30,Raw!G:G)/AVERAGEIF(Raw!$D:$D,Rank!$A30,Raw!G:G),"") -> 17 | E30: =IFERROR(SUMIF(Raw!$D:$D,Rank!$A30,Raw!I:I)/AVERAGEIF(Raw!$D:$D,Rank!$A30,Raw!I:I),"") -> 16 | F30: =IFERROR(SUMIF(Raw!$D:$D,Rank!$A30,Raw!K:K)/AVERAGEIF(Raw!$D:$D,Rank!$A30,Raw!K:K),"") -> 16 | G30: =IFERROR(SUMIF(Raw!$D:$D,Rank!$A30,Raw!M:M)/AVERAGEIF(Raw!$D:$D,Rank!$A30,Raw!M:M),"") -> 16 | H30: =IFERROR(SUMIF(Raw!$D:$D,Rank!$A30,Raw!O:O)/AVERAGEIF(Raw!$D:$D,Rank!$A30,Raw!O:O),"") -> 9 | I30: =IFERROR(SUMIF(Raw!$D:$D,Rank!$A30,Raw!S:S)/AVERAGEIF(Raw!$D:$D,Rank!$A30,Raw!S:S),"") -> 17
A31: 債券組合--複合式 | B31: 債券組合--複合式 | C31: =IFERROR(SUMIF(Raw!$D:$D,Rank!$A31,Raw!E:E)/AVERAGEIF(Raw!$D:$D,Rank!$A31,Raw!E:E),"") -> 73 | D31: =IFERROR(SUMIF(Raw!$D:$D,Rank!$A31,Raw!G:G)/AVERAGEIF(Raw!$D:$D,Rank!$A31,Raw!G:G),"") -> 69 | E31: =IFERROR(SUMIF(Raw!$D:$D,Rank!$A31,Raw!I:I)/AVERAGEIF(Raw!$D:$D,Rank!$A31,Raw!I:I),"") -> 69 | F31: =IFERROR(SUMIF(Raw!$D:$D,Rank!$A31,Raw!K:K)/AVERAGEIF(Raw!$D:$D,Rank!$A31,Raw!K:K),"") -> 66 | G31: =IFERROR(SUMIF(Raw!$D:$D,Rank!$A31,Raw!M:M)/AVERAGEIF(Raw!$D:$D,Rank!$A31,Raw!M:M),"") -> 63 | H31: =IFERROR(SUMIF(Raw!$D:$D,Rank!$A31,Raw!O:O)/AVERAGEIF(Raw!$D:$D,Rank!$A31,Raw!O:O),"") -> 43 | I31: =IFERROR(SUMIF(Raw!$D:$D,Rank!$A31,Raw!S:S)/AVERAGEIF(Raw!$D:$D,Rank!$A31,Raw!S:S),"") -> 73
A32: 跨國--大中華區 | B32: 跨國--大中華區 | C32: =IFERROR(SUMIF(Raw!$D:$D,Rank!$A32,Raw!E:E)/AVERAGEIF(Raw!$D:$D,Rank!$A32,Raw!E:E),"") -> 98 | D32: =IFERROR(SUMIF(Raw!$D:$D,Rank!$A32,Raw!G:G)/AVERAGEIF(Raw!$D:$D,Rank!$A32,Raw!G:G),"") -> 98 | E32: =IFERROR(SUMIF(Raw!$D:$D,Rank!$A32,Raw!I:I)/AVERAGEIF(Raw!$D:$D,Rank!$A32,Raw!I:I),"") -> 98 | F32: =IFERROR(SUMIF(Raw!$D:$D,Rank!$A32,Raw!K:K)/AVERAGEIF(Raw!$D:$D,Rank!$A32,Raw!K:K),"") -> 96 | G32: =IFERROR(SUMIF(Raw!$D:$D,Rank!$A32,Raw!M:M)/AVERAGEIF(Raw!$D:$D,Rank!$A32,Raw!M:M),"") -> 86 | H32: =IFERROR(SUMIF(Raw!$D:$D,Rank!$A32,Raw!O:O)/AVERAGEIF(Raw!$D:$D,Rank!$A32,Raw!O:O),"") -> 81 | I32: =IFERROR(SUMIF(Raw!$D:$D,Rank!$A32,Raw!S:S)/AVERAGEIF(Raw!$D:$D,Rank!$A32,Raw!S:S),"") -> 98
A33: 跨國-中國A股 | B33: 跨國-中國A股 | C33: =IFERROR(SUMIF(Raw!$D:$D,Rank!$A33,Raw!E:E)/AVERAGEIF(Raw!$D:$D,Rank!$A33,Raw!E:E),"") -> 42 | D33: =IFERROR(SUMIF(Raw!$D:$D,Rank!$A33,Raw!G:G)/AVERAGEIF(Raw!$D:$D,Rank!$A33,Raw!G:G),"") -> 42 | E33: =IFERROR(SUMIF(Raw!$D:$D,Rank!$A33,Raw!I:I)/AVERAGEIF(Raw!$D:$D,Rank!$A33,Raw!I:I),"") -> 40 | F33: =IFERROR(SUMIF(Raw!$D:$D,Rank!$A33,Raw!K:K)/AVERAGEIF(Raw!$D:$D,Rank!$A33,Raw!K:K),"") -> 38 | G33: =IFERROR(SUMIF(Raw!$D:$D,Rank!$A33,Raw!M:M)/AVERAGEIF(Raw!$D:$D,Rank!$A33,Raw!M:M),"") -> 38 | H33: =IFERROR(SUMIF(Raw!$D:$D,Rank!$A33,Raw!O:O)/AVERAGEIF(Raw!$D:$D,Rank!$A33,Raw!O:O),"") -> 24 | I33: =IFERROR(SUMIF(Raw!$D:$D,Rank!$A33,Raw!S:S)/AVERAGEIF(Raw!$D:$D,Rank!$A33,Raw!S:S),"") -> 42
A34: 跨國-中國一般ETF | B34: 跨國-中國一般ETF | C34: =IFERROR(SUMIF(Raw!$D:$D,Rank!$A34,Raw!E:E)/AVERAGEIF(Raw!$D:$D,Rank!$A34,Raw!E:E),"") -> 14 | D34: =IFERROR(SUMIF(Raw!$D:$D,Rank!$A34,Raw!G:G)/AVERAGEIF(Raw!$D:$D,Rank!$A34,Raw!G:G),"") -> 14 | E34: =IFERROR(SUMIF(Raw!$D:$D,Rank!$A34,Raw!I:I)/AVERAGEIF(Raw!$D:$D,Rank!$A34,Raw!I:I),"") -> 14 | F34: =IFERROR(SUMIF(Raw!$D:$D,Rank!$A34,Raw!K:K)/AVERAGEIF(Raw!$D:$D,Rank!$A34,Raw!K:K),"") -> 14 | G34: =IFERROR(SUMIF(Raw!$D:$D,Rank!$A34,Raw!M:M)/AVERAGEIF(Raw!$D:$D,Rank!$A34,Raw!M:M),"") -> 14 | H34: =IFERROR(SUMIF(Raw!$D:$D,Rank!$A34,Raw!O:O)/AVERAGEIF(Raw!$D:$D,Rank!$A34,Raw!O:O),"") -> 11 | I34: =IFERROR(SUMIF(Raw!$D:$D,Rank!$A34,Raw!S:S)/AVERAGEIF(Raw!$D:$D,Rank!$A34,Raw!S:S),"") -> 14
A35: 跨國-中國反向ETF | B35: 跨國-中國反向ETF | C35: =IFERROR(SUMIF(Raw!$D:$D,Rank!$A35,Raw!E:E)/AVERAGEIF(Raw!$D:$D,Rank!$A35,Raw!E:E),"") -> 3 | D35: =IFERROR(SUMIF(Raw!$D:$D,Rank!$A35,Raw!G:G)/AVERAGEIF(Raw!$D:$D,Rank!$A35,Raw!G:G),"") -> 3 | E35: =IFERROR(SUMIF(Raw!$D:$D,Rank!$A35,Raw!I:I)/AVERAGEIF(Raw!$D:$D,Rank!$A35,Raw!I:I),"") -> 3 | F35: =IFERROR(SUMIF(Raw!$D:$D,Rank!$A35,Raw!K:K)/AVERAGEIF(Raw!$D:$D,Rank!$A35,Raw!K:K),"") -> 3 | G35: =IFERROR(SUMIF(Raw!$D:$D,Rank!$A35,Raw!M:M)/AVERAGEIF(Raw!$D:$D,Rank!$A35,Raw!M:M),"") -> 3 | H35: =IFERROR(SUMIF(Raw!$D:$D,Rank!$A35,Raw!O:O)/AVERAGEIF(Raw!$D:$D,Rank!$A35,Raw!O:O),"") -> 3 | I35: =IFERROR(SUMIF(Raw!$D:$D,Rank!$A35,Raw!S:S)/AVERAGEIF(Raw!$D:$D,Rank!$A35,Raw!S:S),"") -> 3
A36: 跨國-中國兩倍ETF | B36: 跨國-中國兩倍ETF | C36: =IFERROR(SUMIF(Raw!$D:$D,Rank!$A36,Raw!E:E)/AVERAGEIF(Raw!$D:$D,Rank!$A36,Raw!E:E),"") ->  | D36: =IFERROR(SUMIF(Raw!$D:$D,Rank!$A36,Raw!G:G)/AVERAGEIF(Raw!$D:$D,Rank!$A36,Raw!G:G),"") ->  | E36: =IFERROR(SUMIF(Raw!$D:$D,Rank!$A36,Raw!I:I)/AVERAGEIF(Raw!$D:$D,Rank!$A36,Raw!I:I),"") ->  | F36: =IFERROR(SUMIF(Raw!$D:$D,Rank!$A36,Raw!K:K)/AVERAGEIF(Raw!$D:$D,Rank!$A36,Raw!K:K),"") ->  | G36: =IFERROR(SUMIF(Raw!$D:$D,Rank!$A36,Raw!M:M)/AVERAGEIF(Raw!$D:$D,Rank!$A36,Raw!M:M),"") ->  | H36: =IFERROR(SUMIF(Raw!$D:$D,Rank!$A36,Raw!O:O)/AVERAGEIF(Raw!$D:$D,Rank!$A36,Raw!O:O),"") ->  | I36: =IFERROR(SUMIF(Raw!$D:$D,Rank!$A36,Raw!S:S)/AVERAGEIF(Raw!$D:$D,Rank!$A36,Raw!S:S),"") -> 
A37: 跨國平衡-全球型 | B37: 跨國平衡-全球型 | C37: =IFERROR(SUMIF(Raw!$D:$D,Rank!$A37,Raw!E:E)/AVERAGEIF(Raw!$D:$D,Rank!$A37,Raw!E:E),"") -> 43 | D37: =IFERROR(SUMIF(Raw!$D:$D,Rank!$A37,Raw!G:G)/AVERAGEIF(Raw!$D:$D,Rank!$A37,Raw!G:G),"") -> 42 | E37: =IFERROR(SUMIF(Raw!$D:$D,Rank!$A37,Raw!I:I)/AVERAGEIF(Raw!$D:$D,Rank!$A37,Raw!I:I),"") -> 42 | F37: =IFERROR(SUMIF(Raw!$D:$D,Rank!$A37,Raw!K:K)/AVERAGEIF(Raw!$D:$D,Rank!$A37,Raw!K:K),"") -> 30 | G37: =IFERROR(SUMIF(Raw!$D:$D,Rank!$A37,Raw!M:M)/AVERAGEIF(Raw!$D:$D,Rank!$A37,Raw!M:M),"") -> 27 | H37: =IFERROR(SUMIF(Raw!$D:$D,Rank!$A37,Raw!O:O)/AVERAGEIF(Raw!$D:$D,Rank!$A37,Raw!O:O),"") -> 27 | I37: =IFERROR(SUMIF(Raw!$D:$D,Rank!$A37,Raw!S:S)/AVERAGEIF(Raw!$D:$D,Rank!$A37,Raw!S:S),"") -> 43
A38: 跨國平衡-亞洲 | B38: 跨國平衡-亞洲 | C38: =IFERROR(SUMIF(Raw!$D:$D,Rank!$A38,Raw!E:E)/AVERAGEIF(Raw!$D:$D,Rank!$A38,Raw!E:E),"") -> 38 | D38: =IFERROR(SUMIF(Raw!$D:$D,Rank!$A38,Raw!G:G)/AVERAGEIF(Raw!$D:$D,Rank!$A38,Raw!G:G),"") -> 38 | E38: =IFERROR(SUMIF(Raw!$D:$D,Rank!$A38,Raw!I:I)/AVERAGEIF(Raw!$D:$D,Rank!$A38,Raw!I:I),"") -> 37 | F38: =IFERROR(SUMIF(Raw!$D:$D,Rank!$A38,Raw!K:K)/AVERAGEIF(Raw!$D:$D,Rank!$A38,Raw!K:K),"") -> 37 | G38: =IFERROR(SUMIF(Raw!$D:$D,Rank!$A38,Raw!M:M)/AVERAGEIF(Raw!$D:$D,Rank!$A38,Raw!M:M),"") -> 33 | H38: =IFERROR(SUMIF(Raw!$D:$D,Rank!$A38,Raw!O:O)/AVERAGEIF(Raw!$D:$D,Rank!$A38,Raw!O:O),"") -> 30 | I38: =IFERROR(SUMIF(Raw!$D:$D,Rank!$A38,Raw!S:S)/AVERAGEIF(Raw!$D:$D,Rank!$A38,Raw!S:S),"") -> 38
A39: 跨國平衡-單一國 | B39: 跨國平衡-單一國 | C39: =IFERROR(SUMIF(Raw!$D:$D,Rank!$A39,Raw!E:E)/AVERAGEIF(Raw!$D:$D,Rank!$A39,Raw!E:E),"") -> 21 | D39: =IFERROR(SUMIF(Raw!$D:$D,Rank!$A39,Raw!G:G)/AVERAGEIF(Raw!$D:$D,Rank!$A39,Raw!G:G),"") -> 21 | E39: =IFERROR(SUMIF(Raw!$D:$D,Rank!$A39,Raw!I:I)/AVERAGEIF(Raw!$D:$D,Rank!$A39,Raw!I:I),"") -> 21 | F39: =IFERROR(SUMIF(Raw!$D:$D,Rank!$A39,Raw!K:K)/AVERAGEIF(Raw!$D:$D,Rank!$A39,Raw!K:K),"") -> 21 | G39: =IFERROR(SUMIF(Raw!$D:$D,Rank!$A39,Raw!M:M)/AVERAGEIF(Raw!$D:$D,Rank!$A39,Raw!M:M),"") -> 21 | H39: =IFERROR(SUMIF(Raw!$D:$D,Rank!$A39,Raw!O:O)/AVERAGEIF(Raw!$D:$D,Rank!$A39,Raw!O:O),"") -> 11 | I39: =IFERROR(SUMIF(Raw!$D:$D,Rank!$A39,Raw!S:S)/AVERAGEIF(Raw!$D:$D,Rank!$A39,Raw!S:S),"") -> 21
A40: 跨國--全球股票 | B40: 跨國--全球股票 | C40: =IFERROR(SUMIF(Raw!$D:$D,Rank!$A40,Raw!E:E)/AVERAGEIF(Raw!$D:$D,Rank!$A40,Raw!E:E),"") -> 344 | D40: =IFERROR(SUMIF(Raw!$D:$D,Rank!$A40,Raw!G:G)/AVERAGEIF(Raw!$D:$D,Rank!$A40,Raw!G:G),"") -> 339 | E40: =IFERROR(SUMIF(Raw!$D:$D,Rank!$A40,Raw!I:I)/AVERAGEIF(Raw!$D:$D,Rank!$A40,Raw!I:I),"") -> 334 | F40: =IFERROR(SUMIF(Raw!$D:$D,Rank!$A40,Raw!K:K)/AVERAGEIF(Raw!$D:$D,Rank!$A40,Raw!K:K),"") -> 245 | G40: =IFERROR(SUMIF(Raw!$D:$D,Rank!$A40,Raw!M:M)/AVERAGEIF(Raw!$D:$D,Rank!$A40,Raw!M:M),"") -> 168 | H40: =IFERROR(SUMIF(Raw!$D:$D,Rank!$A40,Raw!O:O)/AVERAGEIF(Raw!$D:$D,Rank!$A40,Raw!O:O),"") -> 114 | I40: =IFERROR(SUMIF(Raw!$D:$D,Rank!$A40,Raw!S:S)/AVERAGEIF(Raw!$D:$D,Rank!$A40,Raw!S:S),"") -> 344
A41: 跨國--全球資源 | B41: 跨國--全球資源 | C41: =IFERROR(SUMIF(Raw!$D:$D,Rank!$A41,Raw!E:E)/AVERAGEIF(Raw!$D:$D,Rank!$A41,Raw!E:E),"") -> 10 | D41: =IFERROR(SUMIF(Raw!$D:$D,Rank!$A41,Raw!G:G)/AVERAGEIF(Raw!$D:$D,Rank!$A41,Raw!G:G),"") -> 9 | E41: =IFERROR(SUMIF(Raw!$D:$D,Rank!$A41,Raw!I:I)/AVERAGEIF(Raw!$D:$D,Rank!$A41,Raw!I:I),"") -> 9 | F41: =IFERROR(SUMIF(Raw!$D:$D,Rank!$A41,Raw!K:K)/AVERAGEIF(Raw!$D:$D,Rank!$A41,Raw!K:K),"") -> 9 | G41: =IFERROR(SUMIF(Raw!$D:$D,Rank!$A41,Raw!M:M)/AVERAGEIF(Raw!$D:$D,Rank!$A41,Raw!M:M),"") -> 9 | H41: =IFERROR(SUMIF(Raw!$D:$D,Rank!$A41,Raw!O:O)/AVERAGEIF(Raw!$D:$D,Rank!$A41,Raw!O:O),"") -> 9 | I41: =IFERROR(SUMIF(Raw!$D:$D,Rank!$A41,Raw!S:S)/AVERAGEIF(Raw!$D:$D,Rank!$A41,Raw!S:S),"") -> 10
A42: 跨國投資--日本 | B42: 跨國投資--日本 | C42: =IFERROR(SUMIF(Raw!$D:$D,Rank!$A42,Raw!E:E)/AVERAGEIF(Raw!$D:$D,Rank!$A42,Raw!E:E),"") ->  | D42: =IFERROR(SUMIF(Raw!$D:$D,Rank!$A42,Raw!G:G)/AVERAGEIF(Raw!$D:$D,Rank!$A42,Raw!G:G),"") ->  | E42: =IFERROR(SUMIF(Raw!$D:$D,Rank!$A42,Raw!I:I)/AVERAGEIF(Raw!$D:$D,Rank!$A42,Raw!I:I),"") ->  | F42: =IFERROR(SUMIF(Raw!$D:$D,Rank!$A42,Raw!K:K)/AVERAGEIF(Raw!$D:$D,Rank!$A42,Raw!K:K),"") ->  | G42: =IFERROR(SUMIF(Raw!$D:$D,Rank!$A42,Raw!M:M)/AVERAGEIF(Raw!$D:$D,Rank!$A42,Raw!M:M),"") ->  | H42: =IFERROR(SUMIF(Raw!$D:$D,Rank!$A42,Raw!O:O)/AVERAGEIF(Raw!$D:$D,Rank!$A42,Raw!O:O),"") ->  | I42: =IFERROR(SUMIF(Raw!$D:$D,Rank!$A42,Raw!S:S)/AVERAGEIF(Raw!$D:$D,Rank!$A42,Raw!S:S),"") -> 
A43: 跨國投資--亞洲 | B43: 跨國投資--亞洲 | C43: =IFERROR(SUMIF(Raw!$D:$D,Rank!$A43,Raw!E:E)/AVERAGEIF(Raw!$D:$D,Rank!$A43,Raw!E:E),"") -> 59 | D43: =IFERROR(SUMIF(Raw!$D:$D,Rank!$A43,Raw!G:G)/AVERAGEIF(Raw!$D:$D,Rank!$A43,Raw!G:G),"") -> 59 | E43: =IFERROR(SUMIF(Raw!$D:$D,Rank!$A43,Raw!I:I)/AVERAGEIF(Raw!$D:$D,Rank!$A43,Raw!I:I),"") -> 58 | F43: =IFERROR(SUMIF(Raw!$D:$D,Rank!$A43,Raw!K:K)/AVERAGEIF(Raw!$D:$D,Rank!$A43,Raw!K:K),"") -> 55 | G43: =IFERROR(SUMIF(Raw!$D:$D,Rank!$A43,Raw!M:M)/AVERAGEIF(Raw!$D:$D,Rank!$A43,Raw!M:M),"") -> 55 | H43: =IFERROR(SUMIF(Raw!$D:$D,Rank!$A43,Raw!O:O)/AVERAGEIF(Raw!$D:$D,Rank!$A43,Raw!O:O),"") -> 55 | I43: =IFERROR(SUMIF(Raw!$D:$D,Rank!$A43,Raw!S:S)/AVERAGEIF(Raw!$D:$D,Rank!$A43,Raw!S:S),"") -> 59
A44: 跨國投資--美國 | B44: 跨國投資--美國 | C44: =IFERROR(SUMIF(Raw!$D:$D,Rank!$A44,Raw!E:E)/AVERAGEIF(Raw!$D:$D,Rank!$A44,Raw!E:E),"") ->  | D44: =IFERROR(SUMIF(Raw!$D:$D,Rank!$A44,Raw!G:G)/AVERAGEIF(Raw!$D:$D,Rank!$A44,Raw!G:G),"") ->  | E44: =IFERROR(SUMIF(Raw!$D:$D,Rank!$A44,Raw!I:I)/AVERAGEIF(Raw!$D:$D,Rank!$A44,Raw!I:I),"") ->  | F44: =IFERROR(SUMIF(Raw!$D:$D,Rank!$A44,Raw!K:K)/AVERAGEIF(Raw!$D:$D,Rank!$A44,Raw!K:K),"") ->  | G44: =IFERROR(SUMIF(Raw!$D:$D,Rank!$A44,Raw!M:M)/AVERAGEIF(Raw!$D:$D,Rank!$A44,Raw!M:M),"") ->  | H44: =IFERROR(SUMIF(Raw!$D:$D,Rank!$A44,Raw!O:O)/AVERAGEIF(Raw!$D:$D,Rank!$A44,Raw!O:O),"") ->  | I44: =IFERROR(SUMIF(Raw!$D:$D,Rank!$A44,Raw!S:S)/AVERAGEIF(Raw!$D:$D,Rank!$A44,Raw!S:S),"") -> 
A45: 跨國投資--歐洲 | B45: 跨國投資--歐洲 | C45: =IFERROR(SUMIF(Raw!$D:$D,Rank!$A45,Raw!E:E)/AVERAGEIF(Raw!$D:$D,Rank!$A45,Raw!E:E),"") -> 3 | D45: =IFERROR(SUMIF(Raw!$D:$D,Rank!$A45,Raw!G:G)/AVERAGEIF(Raw!$D:$D,Rank!$A45,Raw!G:G),"") -> 3 | E45: =IFERROR(SUMIF(Raw!$D:$D,Rank!$A45,Raw!I:I)/AVERAGEIF(Raw!$D:$D,Rank!$A45,Raw!I:I),"") -> 2 | F45: =IFERROR(SUMIF(Raw!$D:$D,Rank!$A45,Raw!K:K)/AVERAGEIF(Raw!$D:$D,Rank!$A45,Raw!K:K),"") -> 2 | G45: =IFERROR(SUMIF(Raw!$D:$D,Rank!$A45,Raw!M:M)/AVERAGEIF(Raw!$D:$D,Rank!$A45,Raw!M:M),"") -> 2 | H45: =IFERROR(SUMIF(Raw!$D:$D,Rank!$A45,Raw!O:O)/AVERAGEIF(Raw!$D:$D,Rank!$A45,Raw!O:O),"") -> 2 | I45: =IFERROR(SUMIF(Raw!$D:$D,Rank!$A45,Raw!S:S)/AVERAGEIF(Raw!$D:$D,Rank!$A45,Raw!S:S),"") -> 3
A46: 跨國--其他單一國 | B46: 跨國--其他單一國 | C46: =IFERROR(SUMIF(Raw!$D:$D,Rank!$A46,Raw!E:E)/AVERAGEIF(Raw!$D:$D,Rank!$A46,Raw!E:E),"") ->  | D46: =IFERROR(SUMIF(Raw!$D:$D,Rank!$A46,Raw!G:G)/AVERAGEIF(Raw!$D:$D,Rank!$A46,Raw!G:G),"") ->  | E46: =IFERROR(SUMIF(Raw!$D:$D,Rank!$A46,Raw!I:I)/AVERAGEIF(Raw!$D:$D,Rank!$A46,Raw!I:I),"") ->  | F46: =IFERROR(SUMIF(Raw!$D:$D,Rank!$A46,Raw!K:K)/AVERAGEIF(Raw!$D:$D,Rank!$A46,Raw!K:K),"") ->  | G46: =IFERROR(SUMIF(Raw!$D:$D,Rank!$A46,Raw!M:M)/AVERAGEIF(Raw!$D:$D,Rank!$A46,Raw!M:M),"") ->  | H46: =IFERROR(SUMIF(Raw!$D:$D,Rank!$A46,Raw!O:O)/AVERAGEIF(Raw!$D:$D,Rank!$A46,Raw!O:O),"") ->  | I46: =IFERROR(SUMIF(Raw!$D:$D,Rank!$A46,Raw!S:S)/AVERAGEIF(Raw!$D:$D,Rank!$A46,Raw!S:S),"") -> 
A47: 跨國股組合--一般 | B47: 跨國股組合--一般 | C47: =IFERROR(SUMIF(Raw!$D:$D,Rank!$A47,Raw!E:E)/AVERAGEIF(Raw!$D:$D,Rank!$A47,Raw!E:E),"") -> 19 | D47: =IFERROR(SUMIF(Raw!$D:$D,Rank!$A47,Raw!G:G)/AVERAGEIF(Raw!$D:$D,Rank!$A47,Raw!G:G),"") -> 19 | E47: =IFERROR(SUMIF(Raw!$D:$D,Rank!$A47,Raw!I:I)/AVERAGEIF(Raw!$D:$D,Rank!$A47,Raw!I:I),"") -> 19 | F47: =IFERROR(SUMIF(Raw!$D:$D,Rank!$A47,Raw!K:K)/AVERAGEIF(Raw!$D:$D,Rank!$A47,Raw!K:K),"") -> 19 | G47: =IFERROR(SUMIF(Raw!$D:$D,Rank!$A47,Raw!M:M)/AVERAGEIF(Raw!$D:$D,Rank!$A47,Raw!M:M),"") -> 16 | H47: =IFERROR(SUMIF(Raw!$D:$D,Rank!$A47,Raw!O:O)/AVERAGEIF(Raw!$D:$D,Rank!$A47,Raw!O:O),"") -> 15 | I47: =IFERROR(SUMIF(Raw!$D:$D,Rank!$A47,Raw!S:S)/AVERAGEIF(Raw!$D:$D,Rank!$A47,Raw!S:S),"") -> 19
A48: 跨國股組合--新興 | B48: 跨國股組合--新興 | C48: =IFERROR(SUMIF(Raw!$D:$D,Rank!$A48,Raw!E:E)/AVERAGEIF(Raw!$D:$D,Rank!$A48,Raw!E:E),"") -> 2 | D48: =IFERROR(SUMIF(Raw!$D:$D,Rank!$A48,Raw!G:G)/AVERAGEIF(Raw!$D:$D,Rank!$A48,Raw!G:G),"") -> 2 | E48: =IFERROR(SUMIF(Raw!$D:$D,Rank!$A48,Raw!I:I)/AVERAGEIF(Raw!$D:$D,Rank!$A48,Raw!I:I),"") -> 2 | F48: =IFERROR(SUMIF(Raw!$D:$D,Rank!$A48,Raw!K:K)/AVERAGEIF(Raw!$D:$D,Rank!$A48,Raw!K:K),"") -> 2 | G48: =IFERROR(SUMIF(Raw!$D:$D,Rank!$A48,Raw!M:M)/AVERAGEIF(Raw!$D:$D,Rank!$A48,Raw!M:M),"") -> 2 | H48: =IFERROR(SUMIF(Raw!$D:$D,Rank!$A48,Raw!O:O)/AVERAGEIF(Raw!$D:$D,Rank!$A48,Raw!O:O),"") -> 2 | I48: =IFERROR(SUMIF(Raw!$D:$D,Rank!$A48,Raw!S:S)/AVERAGEIF(Raw!$D:$D,Rank!$A48,Raw!S:S),"") -> 2
A49: 跨國組合--平衡型 | B49: 跨國組合--平衡型 | C49: =IFERROR(SUMIF(Raw!$D:$D,Rank!$A49,Raw!E:E)/AVERAGEIF(Raw!$D:$D,Rank!$A49,Raw!E:E),"") -> 185 | D49: =IFERROR(SUMIF(Raw!$D:$D,Rank!$A49,Raw!G:G)/AVERAGEIF(Raw!$D:$D,Rank!$A49,Raw!G:G),"") -> 185 | E49: =IFERROR(SUMIF(Raw!$D:$D,Rank!$A49,Raw!I:I)/AVERAGEIF(Raw!$D:$D,Rank!$A49,Raw!I:I),"") -> 180 | F49: =IFERROR(SUMIF(Raw!$D:$D,Rank!$A49,Raw!K:K)/AVERAGEIF(Raw!$D:$D,Rank!$A49,Raw!K:K),"") -> 167 | G49: =IFERROR(SUMIF(Raw!$D:$D,Rank!$A49,Raw!M:M)/AVERAGEIF(Raw!$D:$D,Rank!$A49,Raw!M:M),"") -> 143 | H49: =IFERROR(SUMIF(Raw!$D:$D,Rank!$A49,Raw!O:O)/AVERAGEIF(Raw!$D:$D,Rank!$A49,Raw!O:O),"") -> 100 | I49: =IFERROR(SUMIF(Raw!$D:$D,Rank!$A49,Raw!S:S)/AVERAGEIF(Raw!$D:$D,Rank!$A49,Raw!S:S),"") -> 185
A50: 跨國--新興市場 | B50: 跨國--新興市場 | C50: =IFERROR(SUMIF(Raw!$D:$D,Rank!$A50,Raw!E:E)/AVERAGEIF(Raw!$D:$D,Rank!$A50,Raw!E:E),"") -> 21 | D50: =IFERROR(SUMIF(Raw!$D:$D,Rank!$A50,Raw!G:G)/AVERAGEIF(Raw!$D:$D,Rank!$A50,Raw!G:G),"") -> 21 | E50: =IFERROR(SUMIF(Raw!$D:$D,Rank!$A50,Raw!I:I)/AVERAGEIF(Raw!$D:$D,Rank!$A50,Raw!I:I),"") -> 20 | F50: =IFERROR(SUMIF(Raw!$D:$D,Rank!$A50,Raw!K:K)/AVERAGEIF(Raw!$D:$D,Rank!$A50,Raw!K:K),"") -> 20 | G50: =IFERROR(SUMIF(Raw!$D:$D,Rank!$A50,Raw!M:M)/AVERAGEIF(Raw!$D:$D,Rank!$A50,Raw!M:M),"") -> 20 | H50: =IFERROR(SUMIF(Raw!$D:$D,Rank!$A50,Raw!O:O)/AVERAGEIF(Raw!$D:$D,Rank!$A50,Raw!O:O),"") -> 19 | I50: =IFERROR(SUMIF(Raw!$D:$D,Rank!$A50,Raw!S:S)/AVERAGEIF(Raw!$D:$D,Rank!$A50,Raw!S:S),"") -> 21
A51: 其他市場ETF | B51: 其他市場ETF | C51: =IFERROR(SUMIF(Raw!$D:$D,Rank!$A51,Raw!E:E)/AVERAGEIF(Raw!$D:$D,Rank!$A51,Raw!E:E),"") -> 4 | D51: =IFERROR(SUMIF(Raw!$D:$D,Rank!$A51,Raw!G:G)/AVERAGEIF(Raw!$D:$D,Rank!$A51,Raw!G:G),"") -> 4 | E51: =IFERROR(SUMIF(Raw!$D:$D,Rank!$A51,Raw!I:I)/AVERAGEIF(Raw!$D:$D,Rank!$A51,Raw!I:I),"") -> 4 | F51: =IFERROR(SUMIF(Raw!$D:$D,Rank!$A51,Raw!K:K)/AVERAGEIF(Raw!$D:$D,Rank!$A51,Raw!K:K),"") -> 4 | G51: =IFERROR(SUMIF(Raw!$D:$D,Rank!$A51,Raw!M:M)/AVERAGEIF(Raw!$D:$D,Rank!$A51,Raw!M:M),"") -> 4 | H51: =IFERROR(SUMIF(Raw!$D:$D,Rank!$A51,Raw!O:O)/AVERAGEIF(Raw!$D:$D,Rank!$A51,Raw!O:O),"") -> 3 | I51: =IFERROR(SUMIF(Raw!$D:$D,Rank!$A51,Raw!S:S)/AVERAGEIF(Raw!$D:$D,Rank!$A51,Raw!S:S),"") -> 4
A52: 美國ETF | B52: 美國ETF | C52: =IFERROR(SUMIF(Raw!$D:$D,Rank!$A52,Raw!E:E)/AVERAGEIF(Raw!$D:$D,Rank!$A52,Raw!E:E),"") -> 9 | D52: =IFERROR(SUMIF(Raw!$D:$D,Rank!$A52,Raw!G:G)/AVERAGEIF(Raw!$D:$D,Rank!$A52,Raw!G:G),"") -> 9 | E52: =IFERROR(SUMIF(Raw!$D:$D,Rank!$A52,Raw!I:I)/AVERAGEIF(Raw!$D:$D,Rank!$A52,Raw!I:I),"") -> 8 | F52: =IFERROR(SUMIF(Raw!$D:$D,Rank!$A52,Raw!K:K)/AVERAGEIF(Raw!$D:$D,Rank!$A52,Raw!K:K),"") -> 8 | G52: =IFERROR(SUMIF(Raw!$D:$D,Rank!$A52,Raw!M:M)/AVERAGEIF(Raw!$D:$D,Rank!$A52,Raw!M:M),"") -> 8 | H52: =IFERROR(SUMIF(Raw!$D:$D,Rank!$A52,Raw!O:O)/AVERAGEIF(Raw!$D:$D,Rank!$A52,Raw!O:O),"") -> 5 | I52: =IFERROR(SUMIF(Raw!$D:$D,Rank!$A52,Raw!S:S)/AVERAGEIF(Raw!$D:$D,Rank!$A52,Raw!S:S),"") -> 9
A53: 債券-一般ETF | B53: 債券-一般ETF | C53: =IFERROR(SUMIF(Raw!$D:$D,Rank!$A53,Raw!E:E)/AVERAGEIF(Raw!$D:$D,Rank!$A53,Raw!E:E),"") -> 85 | D53: =IFERROR(SUMIF(Raw!$D:$D,Rank!$A53,Raw!G:G)/AVERAGEIF(Raw!$D:$D,Rank!$A53,Raw!G:G),"") -> 83 | E53: =IFERROR(SUMIF(Raw!$D:$D,Rank!$A53,Raw!I:I)/AVERAGEIF(Raw!$D:$D,Rank!$A53,Raw!I:I),"") -> 82 | F53: =IFERROR(SUMIF(Raw!$D:$D,Rank!$A53,Raw!K:K)/AVERAGEIF(Raw!$D:$D,Rank!$A53,Raw!K:K),"") -> 82 | G53: =IFERROR(SUMIF(Raw!$D:$D,Rank!$A53,Raw!M:M)/AVERAGEIF(Raw!$D:$D,Rank!$A53,Raw!M:M),"") -> 81 | H53: =IFERROR(SUMIF(Raw!$D:$D,Rank!$A53,Raw!O:O)/AVERAGEIF(Raw!$D:$D,Rank!$A53,Raw!O:O),"") -> 54 | I53: =IFERROR(SUMIF(Raw!$D:$D,Rank!$A53,Raw!S:S)/AVERAGEIF(Raw!$D:$D,Rank!$A53,Raw!S:S),"") -> 85
A54: 日本ETF | B54: 日本ETF | C54: =IFERROR(SUMIF(Raw!$D:$D,Rank!$A54,Raw!E:E)/AVERAGEIF(Raw!$D:$D,Rank!$A54,Raw!E:E),"") -> 3 | D54: =IFERROR(SUMIF(Raw!$D:$D,Rank!$A54,Raw!G:G)/AVERAGEIF(Raw!$D:$D,Rank!$A54,Raw!G:G),"") -> 3 | E54: =IFERROR(SUMIF(Raw!$D:$D,Rank!$A54,Raw!I:I)/AVERAGEIF(Raw!$D:$D,Rank!$A54,Raw!I:I),"") -> 3 | F54: =IFERROR(SUMIF(Raw!$D:$D,Rank!$A54,Raw!K:K)/AVERAGEIF(Raw!$D:$D,Rank!$A54,Raw!K:K),"") -> 3 | G54: =IFERROR(SUMIF(Raw!$D:$D,Rank!$A54,Raw!M:M)/AVERAGEIF(Raw!$D:$D,Rank!$A54,Raw!M:M),"") -> 3 | H54: =IFERROR(SUMIF(Raw!$D:$D,Rank!$A54,Raw!O:O)/AVERAGEIF(Raw!$D:$D,Rank!$A54,Raw!O:O),"") -> 3 | I54: =IFERROR(SUMIF(Raw!$D:$D,Rank!$A54,Raw!S:S)/AVERAGEIF(Raw!$D:$D,Rank!$A54,Raw!S:S),"") -> 3
A55: 其他市場二倍ETF | B55: 其他市場二倍ETF | C55: =IFERROR(SUMIF(Raw!$D:$D,Rank!$A55,Raw!E:E)/AVERAGEIF(Raw!$D:$D,Rank!$A55,Raw!E:E),"") -> 3 | D55: =IFERROR(SUMIF(Raw!$D:$D,Rank!$A55,Raw!G:G)/AVERAGEIF(Raw!$D:$D,Rank!$A55,Raw!G:G),"") -> 3 | E55: =IFERROR(SUMIF(Raw!$D:$D,Rank!$A55,Raw!I:I)/AVERAGEIF(Raw!$D:$D,Rank!$A55,Raw!I:I),"") -> 3 | F55: =IFERROR(SUMIF(Raw!$D:$D,Rank!$A55,Raw!K:K)/AVERAGEIF(Raw!$D:$D,Rank!$A55,Raw!K:K),"") -> 3 | G55: =IFERROR(SUMIF(Raw!$D:$D,Rank!$A55,Raw!M:M)/AVERAGEIF(Raw!$D:$D,Rank!$A55,Raw!M:M),"") -> 3 | H55: =IFERROR(SUMIF(Raw!$D:$D,Rank!$A55,Raw!O:O)/AVERAGEIF(Raw!$D:$D,Rank!$A55,Raw!O:O),"") -> 3 | I55: =IFERROR(SUMIF(Raw!$D:$D,Rank!$A55,Raw!S:S)/AVERAGEIF(Raw!$D:$D,Rank!$A55,Raw!S:S),"") -> 3
A56: 其他市場反向ETF | B56: 其他市場反向ETF | C56: =IFERROR(SUMIF(Raw!$D:$D,Rank!$A56,Raw!E:E)/AVERAGEIF(Raw!$D:$D,Rank!$A56,Raw!E:E),"") -> 3 | D56: =IFERROR(SUMIF(Raw!$D:$D,Rank!$A56,Raw!G:G)/AVERAGEIF(Raw!$D:$D,Rank!$A56,Raw!G:G),"") -> 3 | E56: =IFERROR(SUMIF(Raw!$D:$D,Rank!$A56,Raw!I:I)/AVERAGEIF(Raw!$D:$D,Rank!$A56,Raw!I:I),"") -> 3 | F56: =IFERROR(SUMIF(Raw!$D:$D,Rank!$A56,Raw!K:K)/AVERAGEIF(Raw!$D:$D,Rank!$A56,Raw!K:K),"") -> 3 | G56: =IFERROR(SUMIF(Raw!$D:$D,Rank!$A56,Raw!M:M)/AVERAGEIF(Raw!$D:$D,Rank!$A56,Raw!M:M),"") -> 3 | H56: =IFERROR(SUMIF(Raw!$D:$D,Rank!$A56,Raw!O:O)/AVERAGEIF(Raw!$D:$D,Rank!$A56,Raw!O:O),"") -> 3 | I56: =IFERROR(SUMIF(Raw!$D:$D,Rank!$A56,Raw!S:S)/AVERAGEIF(Raw!$D:$D,Rank!$A56,Raw!S:S),"") -> 3
A57: 美國反向ETF | B57: 美國反向ETF | C57: =IFERROR(SUMIF(Raw!$D:$D,Rank!$A57,Raw!E:E)/AVERAGEIF(Raw!$D:$D,Rank!$A57,Raw!E:E),"") -> 3 | D57: =IFERROR(SUMIF(Raw!$D:$D,Rank!$A57,Raw!G:G)/AVERAGEIF(Raw!$D:$D,Rank!$A57,Raw!G:G),"") -> 3 | E57: =IFERROR(SUMIF(Raw!$D:$D,Rank!$A57,Raw!I:I)/AVERAGEIF(Raw!$D:$D,Rank!$A57,Raw!I:I),"") -> 3 | F57: =IFERROR(SUMIF(Raw!$D:$D,Rank!$A57,Raw!K:K)/AVERAGEIF(Raw!$D:$D,Rank!$A57,Raw!K:K),"") -> 3 | G57: =IFERROR(SUMIF(Raw!$D:$D,Rank!$A57,Raw!M:M)/AVERAGEIF(Raw!$D:$D,Rank!$A57,Raw!M:M),"") -> 3 | H57: =IFERROR(SUMIF(Raw!$D:$D,Rank!$A57,Raw!O:O)/AVERAGEIF(Raw!$D:$D,Rank!$A57,Raw!O:O),"") -> 3 | I57: =IFERROR(SUMIF(Raw!$D:$D,Rank!$A57,Raw!S:S)/AVERAGEIF(Raw!$D:$D,Rank!$A57,Raw!S:S),"") -> 3
A58: 海外債-一般ETF | B58: 海外債-一般ETF | C58: =IFERROR(SUMIF(Raw!$D:$D,Rank!$A58,Raw!E:E)/AVERAGEIF(Raw!$D:$D,Rank!$A58,Raw!E:E),"") ->  | D58: =IFERROR(SUMIF(Raw!$D:$D,Rank!$A58,Raw!G:G)/AVERAGEIF(Raw!$D:$D,Rank!$A58,Raw!G:G),"") ->  | E58: =IFERROR(SUMIF(Raw!$D:$D,Rank!$A58,Raw!I:I)/AVERAGEIF(Raw!$D:$D,Rank!$A58,Raw!I:I),"") ->  | F58: =IFERROR(SUMIF(Raw!$D:$D,Rank!$A58,Raw!K:K)/AVERAGEIF(Raw!$D:$D,Rank!$A58,Raw!K:K),"") ->  | G58: =IFERROR(SUMIF(Raw!$D:$D,Rank!$A58,Raw!M:M)/AVERAGEIF(Raw!$D:$D,Rank!$A58,Raw!M:M),"") ->  | H58: =IFERROR(SUMIF(Raw!$D:$D,Rank!$A58,Raw!O:O)/AVERAGEIF(Raw!$D:$D,Rank!$A58,Raw!O:O),"") ->  | I58: =IFERROR(SUMIF(Raw!$D:$D,Rank!$A58,Raw!S:S)/AVERAGEIF(Raw!$D:$D,Rank!$A58,Raw!S:S),"") -> 
A59: 跨國-中國二倍ETF | B59: 跨國-中國二倍ETF | C59: =IFERROR(SUMIF(Raw!$D:$D,Rank!$A59,Raw!E:E)/AVERAGEIF(Raw!$D:$D,Rank!$A59,Raw!E:E),"") -> 4 | D59: =IFERROR(SUMIF(Raw!$D:$D,Rank!$A59,Raw!G:G)/AVERAGEIF(Raw!$D:$D,Rank!$A59,Raw!G:G),"") -> 4 | E59: =IFERROR(SUMIF(Raw!$D:$D,Rank!$A59,Raw!I:I)/AVERAGEIF(Raw!$D:$D,Rank!$A59,Raw!I:I),"") -> 4 | F59: =IFERROR(SUMIF(Raw!$D:$D,Rank!$A59,Raw!K:K)/AVERAGEIF(Raw!$D:$D,Rank!$A59,Raw!K:K),"") -> 4 | G59: =IFERROR(SUMIF(Raw!$D:$D,Rank!$A59,Raw!M:M)/AVERAGEIF(Raw!$D:$D,Rank!$A59,Raw!M:M),"") -> 4 | H59: =IFERROR(SUMIF(Raw!$D:$D,Rank!$A59,Raw!O:O)/AVERAGEIF(Raw!$D:$D,Rank!$A59,Raw!O:O),"") -> 4 | I59: =IFERROR(SUMIF(Raw!$D:$D,Rank!$A59,Raw!S:S)/AVERAGEIF(Raw!$D:$D,Rank!$A59,Raw!S:S),"") -> 4
A60: 日本二倍ETF | B60: 日本二倍ETF | C60: =IFERROR(SUMIF(Raw!$D:$D,Rank!$A60,Raw!E:E)/AVERAGEIF(Raw!$D:$D,Rank!$A60,Raw!E:E),"") -> 1 | D60: =IFERROR(SUMIF(Raw!$D:$D,Rank!$A60,Raw!G:G)/AVERAGEIF(Raw!$D:$D,Rank!$A60,Raw!G:G),"") -> 1 | E60: =IFERROR(SUMIF(Raw!$D:$D,Rank!$A60,Raw!I:I)/AVERAGEIF(Raw!$D:$D,Rank!$A60,Raw!I:I),"") -> 1 | F60: =IFERROR(SUMIF(Raw!$D:$D,Rank!$A60,Raw!K:K)/AVERAGEIF(Raw!$D:$D,Rank!$A60,Raw!K:K),"") -> 1 | G60: =IFERROR(SUMIF(Raw!$D:$D,Rank!$A60,Raw!M:M)/AVERAGEIF(Raw!$D:$D,Rank!$A60,Raw!M:M),"") -> 1 | H60: =IFERROR(SUMIF(Raw!$D:$D,Rank!$A60,Raw!O:O)/AVERAGEIF(Raw!$D:$D,Rank!$A60,Raw!O:O),"") -> 1 | I60: =IFERROR(SUMIF(Raw!$D:$D,Rank!$A60,Raw!S:S)/AVERAGEIF(Raw!$D:$D,Rank!$A60,Raw!S:S),"") -> 1
A61: 日本反向ETF | B61: 日本反向ETF | C61: =IFERROR(SUMIF(Raw!$D:$D,Rank!$A61,Raw!E:E)/AVERAGEIF(Raw!$D:$D,Rank!$A61,Raw!E:E),"") -> 1 | D61: =IFERROR(SUMIF(Raw!$D:$D,Rank!$A61,Raw!G:G)/AVERAGEIF(Raw!$D:$D,Rank!$A61,Raw!G:G),"") -> 1 | E61: =IFERROR(SUMIF(Raw!$D:$D,Rank!$A61,Raw!I:I)/AVERAGEIF(Raw!$D:$D,Rank!$A61,Raw!I:I),"") -> 1 | F61: =IFERROR(SUMIF(Raw!$D:$D,Rank!$A61,Raw!K:K)/AVERAGEIF(Raw!$D:$D,Rank!$A61,Raw!K:K),"") -> 1 | G61: =IFERROR(SUMIF(Raw!$D:$D,Rank!$A61,Raw!M:M)/AVERAGEIF(Raw!$D:$D,Rank!$A61,Raw!M:M),"") -> 1 | H61: =IFERROR(SUMIF(Raw!$D:$D,Rank!$A61,Raw!O:O)/AVERAGEIF(Raw!$D:$D,Rank!$A61,Raw!O:O),"") -> 1 | I61: =IFERROR(SUMIF(Raw!$D:$D,Rank!$A61,Raw!S:S)/AVERAGEIF(Raw!$D:$D,Rank!$A61,Raw!S:S),"") -> 1
A62: 美國二倍ETF | B62: 美國二倍ETF | C62: =IFERROR(SUMIF(Raw!$D:$D,Rank!$A62,Raw!E:E)/AVERAGEIF(Raw!$D:$D,Rank!$A62,Raw!E:E),"") -> 3 | D62: =IFERROR(SUMIF(Raw!$D:$D,Rank!$A62,Raw!G:G)/AVERAGEIF(Raw!$D:$D,Rank!$A62,Raw!G:G),"") -> 3 | E62: =IFERROR(SUMIF(Raw!$D:$D,Rank!$A62,Raw!I:I)/AVERAGEIF(Raw!$D:$D,Rank!$A62,Raw!I:I),"") -> 3 | F62: =IFERROR(SUMIF(Raw!$D:$D,Rank!$A62,Raw!K:K)/AVERAGEIF(Raw!$D:$D,Rank!$A62,Raw!K:K),"") -> 3 | G62: =IFERROR(SUMIF(Raw!$D:$D,Rank!$A62,Raw!M:M)/AVERAGEIF(Raw!$D:$D,Rank!$A62,Raw!M:M),"") -> 3 | H62: =IFERROR(SUMIF(Raw!$D:$D,Rank!$A62,Raw!O:O)/AVERAGEIF(Raw!$D:$D,Rank!$A62,Raw!O:O),"") -> 2 | I62: =IFERROR(SUMIF(Raw!$D:$D,Rank!$A62,Raw!S:S)/AVERAGEIF(Raw!$D:$D,Rank!$A62,Raw!S:S),"") -> 3
A63: 債券-二倍ETF | B63: 債券-二倍ETF | C63: =IFERROR(SUMIF(Raw!$D:$D,Rank!$A63,Raw!E:E)/AVERAGEIF(Raw!$D:$D,Rank!$A63,Raw!E:E),"") -> 2 | D63: =IFERROR(SUMIF(Raw!$D:$D,Rank!$A63,Raw!G:G)/AVERAGEIF(Raw!$D:$D,Rank!$A63,Raw!G:G),"") -> 2 | E63: =IFERROR(SUMIF(Raw!$D:$D,Rank!$A63,Raw!I:I)/AVERAGEIF(Raw!$D:$D,Rank!$A63,Raw!I:I),"") -> 2 | F63: =IFERROR(SUMIF(Raw!$D:$D,Rank!$A63,Raw!K:K)/AVERAGEIF(Raw!$D:$D,Rank!$A63,Raw!K:K),"") -> 2 | G63: =IFERROR(SUMIF(Raw!$D:$D,Rank!$A63,Raw!M:M)/AVERAGEIF(Raw!$D:$D,Rank!$A63,Raw!M:M),"") -> 2 | H63: =IFERROR(SUMIF(Raw!$D:$D,Rank!$A63,Raw!O:O)/AVERAGEIF(Raw!$D:$D,Rank!$A63,Raw!O:O),"") -> 2 | I63: =IFERROR(SUMIF(Raw!$D:$D,Rank!$A63,Raw!S:S)/AVERAGEIF(Raw!$D:$D,Rank!$A63,Raw!S:S),"") -> 2
A64: 債券-反向ETF | B64: 債券-反向ETF | C64: =IFERROR(SUMIF(Raw!$D:$D,Rank!$A64,Raw!E:E)/AVERAGEIF(Raw!$D:$D,Rank!$A64,Raw!E:E),"") -> 2 | D64: =IFERROR(SUMIF(Raw!$D:$D,Rank!$A64,Raw!G:G)/AVERAGEIF(Raw!$D:$D,Rank!$A64,Raw!G:G),"") -> 2 | E64: =IFERROR(SUMIF(Raw!$D:$D,Rank!$A64,Raw!I:I)/AVERAGEIF(Raw!$D:$D,Rank!$A64,Raw!I:I),"") -> 2 | F64: =IFERROR(SUMIF(Raw!$D:$D,Rank!$A64,Raw!K:K)/AVERAGEIF(Raw!$D:$D,Rank!$A64,Raw!K:K),"") -> 2 | G64: =IFERROR(SUMIF(Raw!$D:$D,Rank!$A64,Raw!M:M)/AVERAGEIF(Raw!$D:$D,Rank!$A64,Raw!M:M),"") -> 2 | H64: =IFERROR(SUMIF(Raw!$D:$D,Rank!$A64,Raw!O:O)/AVERAGEIF(Raw!$D:$D,Rank!$A64,Raw!O:O),"") -> 2 | I64: =IFERROR(SUMIF(Raw!$D:$D,Rank!$A64,Raw!S:S)/AVERAGEIF(Raw!$D:$D,Rank!$A64,Raw!S:S),"") -> 2
A65: 海外債-二倍ETF | B65: 海外債-二倍ETF | C65: =IFERROR(SUMIF(Raw!$D:$D,Rank!$A65,Raw!E:E)/AVERAGEIF(Raw!$D:$D,Rank!$A65,Raw!E:E),"") ->  | D65: =IFERROR(SUMIF(Raw!$D:$D,Rank!$A65,Raw!G:G)/AVERAGEIF(Raw!$D:$D,Rank!$A65,Raw!G:G),"") ->  | E65: =IFERROR(SUMIF(Raw!$D:$D,Rank!$A65,Raw!I:I)/AVERAGEIF(Raw!$D:$D,Rank!$A65,Raw!I:I),"") ->  | F65: =IFERROR(SUMIF(Raw!$D:$D,Rank!$A65,Raw!K:K)/AVERAGEIF(Raw!$D:$D,Rank!$A65,Raw!K:K),"") ->  | G65: =IFERROR(SUMIF(Raw!$D:$D,Rank!$A65,Raw!M:M)/AVERAGEIF(Raw!$D:$D,Rank!$A65,Raw!M:M),"") ->  | H65: =IFERROR(SUMIF(Raw!$D:$D,Rank!$A65,Raw!O:O)/AVERAGEIF(Raw!$D:$D,Rank!$A65,Raw!O:O),"") ->  | I65: =IFERROR(SUMIF(Raw!$D:$D,Rank!$A65,Raw!S:S)/AVERAGEIF(Raw!$D:$D,Rank!$A65,Raw!S:S),"") -> 
A66: 海外債-反向ETF | B66: 海外債-反向ETF | C66: =IFERROR(SUMIF(Raw!$D:$D,Rank!$A66,Raw!E:E)/AVERAGEIF(Raw!$D:$D,Rank!$A66,Raw!E:E),"") ->  | D66: =IFERROR(SUMIF(Raw!$D:$D,Rank!$A66,Raw!G:G)/AVERAGEIF(Raw!$D:$D,Rank!$A66,Raw!G:G),"") ->  | E66: =IFERROR(SUMIF(Raw!$D:$D,Rank!$A66,Raw!I:I)/AVERAGEIF(Raw!$D:$D,Rank!$A66,Raw!I:I),"") ->  | F66: =IFERROR(SUMIF(Raw!$D:$D,Rank!$A66,Raw!K:K)/AVERAGEIF(Raw!$D:$D,Rank!$A66,Raw!K:K),"") ->  | G66: =IFERROR(SUMIF(Raw!$D:$D,Rank!$A66,Raw!M:M)/AVERAGEIF(Raw!$D:$D,Rank!$A66,Raw!M:M),"") ->  | H66: =IFERROR(SUMIF(Raw!$D:$D,Rank!$A66,Raw!O:O)/AVERAGEIF(Raw!$D:$D,Rank!$A66,Raw!O:O),"") ->  | I66: =IFERROR(SUMIF(Raw!$D:$D,Rank!$A66,Raw!S:S)/AVERAGEIF(Raw!$D:$D,Rank!$A66,Raw!S:S),"") -> 

Sheet Raw
A1: 2024/03/29
B2: 基金 | C2: 基金全稱 | D2: 類型 | E2: 季ROI | F2: 季ROI排名 | G2: 半年ROI | H2: 半年ROI排名 | I2: 一年ROI | J2: 一年ROI排名 | K2: 二年ROI | L2: 二年ROI排名 | M2: 三年ROI | N2: 三年ROI排名 | O2: 五年ROI | P2: 五年ROI排名 | Q2: 十年ROI | R2: 十年ROI排名 | S2: 自今年以來ROI | T2: 自今年以來ROI排名 | U2: 最佳三個月ROI | V2: 最差三個月ROI | W2: 自成立以來ROI | X2: 年化標準差--24個月 | Y2: beta--24個月 | Z2: Sharpe Index-24個月 | AA2: Jensen Index-24個月 | AB2: Treynor Index-24個月 | AC2: IR--24個月（大分類） | AD2: IR--24個月（細分類） | AE2: 年化標準差--12個月 | AF2: beta--12個月 | AG2: Sharpe Index-12個月 | AH2: Jensen Index-12個月 | AI2: Treynor Index-12個月 | AJ2: IR--12個月（大分類） | AK2: IR--12個月（細分類） | AL2: 基金統編
A3: =IF(AL3="","",AL3) -> 98764389 | B3: 0050 元大台灣50 | C3: 元大台灣卓越50證券投資信託基金 | D3: 國內指數-一般ETF | E3: 19.34 | F3: 6 | G3: 32.6 | H3: 11 | I3: 35.54 | J3: 21 | K3: 23.81 | L3: 22 | M3: 30.52 | N3: 18 | O3: 136.35 | P3: 8 | Q3: 265.46 | R3: 4 | S3: 19.34 | T3: 6 | U3: 21.98 | V3: -16.68 | W3: 751.83 | X3: 24.5143 | Y3: 1.1629 | Z3: 0.1486 | AA3: -0.1311 | AB3: 0.9044 | AD3: -0.1071 | AE3: 16.3364 | AF3: 1.1182 | AG3: 0.5457 | AH3: -0.0697 | AI3: 2.3013 | AK3: -0.0966 | AL3: 98764389
A4: =IF(AL4="","",AL4) -> 48772770 | B4: 0051 元大中型100 | C4: 元大台灣中型 100證券投資信託基金 | D4: 國內指數-一般ETF | E4: 6.01 | F4: 44 | G4: 16.81 | H4: 41 | I4: 40.81 | J4: 17 | K4: 41.52 | L4: 5 | M4: 74.37 | N4: 2 | O4: 190.28 | P4: 3 | Q4: 254.63 | R4: 5 | S4: 6.01 | T4: 44 | U4: 28.27 | V4: -13.19 | W4: 402.21 | X4: 20.1454 | Y4: 0.879 | Z4: 0.2646 | AA4: 0.6444 | AB4: 1.7502 | AD4: 0.1299 | AE4: 18.0301 | AF4: 1.0486 | AG4: 0.5614 | AH4: 0.4433 | AI4: 2.7863 | AK4: 0.0694 | AL4: 48772770
A5: 48790067 | B5: 0052 富邦科技 | C5: 富邦台灣科技指數證券投資信託基金 | D5: 國內指數-一般ETF | E5: 23.69 | F5: 1 | G5: 41.49 | H5: 1 | I5: 51.92 | J5: 5 | K5: 43.22 | L5: 3 | M5: 46.47 | N5: 6 | O5: 261.24 | P5: 2 | Q5: 512.17 | R5: 1 | S5: 23.69 | T5: 1 | U5: 25.65 | V5: -18.68 | W5: 756.4 | X5: 28.9063 | Y5: 1.3643 | Z5: 0.2109 | AA5: 0.3723 | AB5: 1.29 | AD5: 0.2176 | AE5: 19.3167 | AF5: 1.3074 | AG5: 0.6442 | AH5: 0.5022 | AI5: 2.7477 | AK5: 0.41 | AL5: 48790067
A6: 48903196 | B6: 0053 元大電子 | C6: 元大台灣 ETF傘型證券投資信託基金之電子科技證券投資信託基金 | D6: 國內指數-一般ETF | E6: 19.63 | F6: 3 | G6: 34.07 | H6: 7 | I6: 45.19 | J6: 10 | K6: 37.74 | L6: 8 | M6: 42.33 | N6: 10 | O6: 190.26 | P6: 4 | Q6: 342.82 | R6: 2 | S6: 19.63 | T6: 3 | U6: 21.86 | V6: -17.63 | W6: 351.98 | X6: 26.1582 | Y6: 1.2433 | Z6: 0.2034 | AA6: 0.2714 | AB6: 1.2354 | AD6: 0.1978 | AE6: 17.8041 | AF6: 1.2361 | AG6: 0.6191 | AH6: 0.2603 | AI6: 2.5741 | AK6: 0.3229 | AL6: 48903196
A7: 48903175 | B7: 0055 元大MSCI金融 | C7: 元大台灣 ETF傘型證券投資信託基金之金融證券投資信託基金 | D7: 國內指數-一般ETF | E7: 5.02 | F7: 45 | G7: 11.7 | H7: 42 | I7: 19.07 | J7: 39 | K7: 1.19 | L7: 30 | M7: 42.19 | N7: 11 | O7: 73.03 | P7: 17 | Q7: 162.79 | R7: 10 | S7: 5.02 | T7: 45 | U7: 22.26 | V7: -15.12 | W7: 162.88 | X7: 16.8571 | Y7: 0.691 | Z7: 0.0169 | AA7: -0.6208 | AB7: 0.1187 | AD7: -0.3395 | AE7: 12.2696 | AF7: 0.6962 | AG7: 0.4038 | AH7: -0.2151 | AI7: 2.0545 | AK7: -0.5274 | AL7: 48903175
A8: 48966213 | B8: 0056 元大高股息 | C8: 元大台灣高股息證券投資信託基金 | D8: 國內指數-一般ETF | E8: 8.82 | F8: 40 | G8: 20.66 | H8: 33 | I8: 52.57 | J8: 4 | K8: 41.21 | L8: 6 | M8: 45.33 | N8: 8 | O8: 113.17 | P8: 12 | Q8: 200.4 | R8: 9 | S8: 8.82 | T8: 40 | U8: 31.02 | V8: -18.19 | W8: 276.77 | X8: 21.2117 | Y8: 0.8875 | Z8: 0.2531 | AA8: 0.6468 | AB8: 1.7459 | AD8: 0.1183 | AE8: 18.1138 | AF8: 0.9741 | AG8: 0.6908 | AH8: 1.3097 | AI8: 3.7081 | AK8: 0.2971 | AL8: 48966213
A9: 48975156 | B9: 0057 富邦摩台 | C9: 富邦台灣 ETF傘型證券投資信託基金之富邦台灣摩根指數股票型基金 | D9: 國內指數-一般ETF | E9: 17.21 | F9: 11 | G9: 30.23 | H9: 19 | I9: 33.01 | J9: 28 | K9: 20.66 | L9: 24 | M9: 28.58 | N9: 20 | O9: 132.15 | P9: 11 | Q9: 234.32 | R9: 7 | S9: 17.21 | T9: 11 | U9: 20.71 | V9: -16.83 | W9: 308.32 | X9: 23.9238 | Y9: 1.1414 | Z9: 0.1351 | AA9: -0.2277 | AB9: 0.8176 | AD9: -0.2399 | AE9: 16.0769 | AF9: 1.1213 | AG9: 0.5192 | AH9: -0.2403 | AI9: 2.1492 | AK9: -0.2621 | AL9: 48975156
A10: 25610486 | B10: 0061 元大寶滬深 | C10: 元大標智滬深300 證券投資信託基金 | D10: 跨國-中國一般ETF | E10: 5.01 | F10: 5 | G10: -4.23 | H10: 5 | I10: -12.93 | J10: 7 | K10: -17.5 | L10: 10 | M10: -27.51 | N10: 8 | O10: -8.17 | P10: 5 | Q10: 49.38 | R10: 4 | S10: 5.01 | T10: 5 | U10: 20.11 | V10: -16.28 | W10: -15.15 | X10: 20.3934 | Y10: 0.1403 | Z10: -0.1213 | AA10: -0.8058 | AB10: -5.0919 | AD10: -0.0326 | AE10: 17.8202 | AF10: 0.5344 | AG10: -0.2176 | AH10: -2.068 | AI10: -2.0943 | AK10: 0.0536 | AL10: 25610486
A11: 26282102 | B11: 006201 元大富櫃50 | C11: 元大櫃買 ETF傘型證券投資信託基金之富櫃50證券投資信託基金 | D11: 國內指數-一般ETF | E11: 10.05 | F11: 38 | G11: 23.79 | H11: 30 | I11: 23.86 | J11: 35 | K11: 12.15 | L11: 28 | M11: 24.43 | N11: 22 | O11: 106.59 | P11: 14 | Q11: 124.71 | R11: 11 | S11: 10.05 | T11: 38 | U11: 24.14 | V11: -24.86 | W11: 109.28 | X11: 30.5438 | Y11: 1.3335 | Z11: 0.0889 | AA11: -0.5729 | AB11: 0.5875 | AD11: -0.1078 | AE11: 15.0214 | AF11: 0.8745 | AG11: 0.4131 | AH11: -0.2758 | AI11: 2.0482 | AK11: -0.3353 | AL11: 26282102
A12: 26306553 | B12: 006203 元大MSCI台灣 | C12: 元大摩臺證券投資信託基金 | D12: 國內指數-一般ETF | E12: 17.04 | F12: 13 | G12: 30.52 | H12: 18 | I12: 34.5 | J12: 25 | K12: 23.81 | L12: 21 | M12: 32.3 | N12: 15 | O12: 141 | P12: 6 | Q12: 254.28 | R12: 6 | S12: 17.04 | T12: 13 | U12: 21.19 | V12: -16.7 | W12: 280.98 | X12: 23.9504 | Y12: 1.143 | Z12: 0.1507 | AA12: -0.1207 | AB12: 0.9115 | AD12: -0.1507 | AE12: 16.001 | AF12: 1.1182 | AG12: 0.5421 | AH12: -0.1387 | AI12: 2.2395 | AK12: -0.1953 | AL12: 26306553
A13: 26332314 | B13: 006204 永豐臺灣加權 | C13: 永豐臺灣加權 ETF證券投資信託基金 | D13: 國內指數-一般ETF | E13: 13.36 | F13: 23 | G13: 24.17 | H13: 29 | I13: 33.33 | J13: 27 | K13: 24.9 | L13: 19 | M13: 42.95 | N13: 9 | O13: 132.45 | P13: 10 | Q13: 226.56 | R13: 8 | S13: 13.36 | T13: 23 | U13: 17.75 | V13: -15.29 | W13: 309.9 | X13: 20.7297 | Y13: 0.9922 | Z13: 0.1708 | AA13: 0.0128 | AB13: 1.0301 | AD13: -0.2541 | AE13: 14.3936 | AF13: 1.0196 | AG13: 0.5803 | AH13: 0.0012 | AI13: 2.3647 | AK13: -0.4443 | AL13: 26332314
A14: 26334740 | B14: 006205 富邦上証 | C14: 富邦上証 180證券投資信託基金 | D14: 跨國-中國一般ETF | E14: 6.55 | F14: 2 | G14: -3.72 | H14: 3 | I14: -8.64 | J14: 4 | K14: -13.98 | L14: 4 | M14: -23.17 | N14: 4 | O14: -8.9 | P14: 6 | Q14: 62.58 | R14: 3 | S14: 6.55 | T14: 2 | U14: 18.21 | V14: -15.22 | W14: 46.4 | X14: 19.9167 | Y14: 0.1134 | Z14: -0.0954 | AA14: -0.6226 | AB14: -4.8362 | AD14: 0.0624 | AE14: 18.5526 | AF14: 0.474 | AG14: -0.1331 | AH14: -1.5544 | AI14: -1.5035 | AK14: 0.2051 | AL14: 26334740
A15: 31830488 | B15: 006206 元大上證50 | C15: 元大中國傘型證券投資信託基金之上證50證券投資信託基金 | D15: 跨國-中國一般ETF | E15: 5.73 | F15: 3 | G15: -4.26 | H15: 6 | I15: -8.02 | J15: 3 | K15: -15.11 | L15: 5 | M15: -28.04 | N15: 9 | O15: -15 | P15: 9 | Q15: 64.72 | R15: 2 | S15: 5.73 | T15: 3 | U15: 22.68 | V15: -17.77 | W15: 39.35 | X15: 21.9654 | Y15: 0.0517 | Z15: -0.0896 | AA15: -0.6019 | AB15: -10.9953 | AD15: 0.04 | AE15: 18.5454 | AF15: 0.445 | AG15: -0.1226 | AH15: -1.4465 | AI15: -1.4747 | AK15: 0.1917 | AL15: 31830488
A16: 31835478 | B16: 006207 復華滬深 | C16: 復華滬深300 A股證券投資信託基金 | D16: 跨國-中國一般ETF | E16: 5.38 | F16: 4 | G16: -4.7 | H16: 8 | I16: -12.58 | J16: 6 | K16: -16.29 | L16: 7 | M16: -27.04 | N16: 7 | O16: -7.77 | P16: 4 | Q16: 69.14 | R16: 1 | S16: 5.38 | T16: 4 | U16: 19.61 | V16: -16.52 | W16: 48.73 | X16: 20.8954 | Y16: 0.1298 | Z16: -0.1071 | AA16: -0.7305 | AB16: -4.9745 | AD16: 0.0186 | AE16: 18.9877 | AF16: 0.5432 | AG16: -0.1953 | AH16: -2.0348 | AI16: -1.9701 | AK16: 0.0994 | AL16: 31835478
A17: 31840182 | B17: 006208 富邦台50 | C17: 富邦台灣釆吉50 證券投資信託基金 | D17: 國內指數-一般ETF | E17: 19.45 | F17: 5 | G17: 32.76 | H17: 10 | I17: 35.83 | J17: 20 | K17: 24.24 | L17: 20 | M17: 31.34 | N17: 17 | O17: 138.42 | P17: 7 | Q17: 268.51 | R17: 3 | S17: 19.45 | T17: 5 | U17: 21.97 | V17: -16.64 | W17: 362.53 | X17: 24.5122 | Y17: 1.1625 | Z17: 0.1507 | AA17: -0.1161 | AB17: 0.9172 | AD17: -0.0973 | AE17: 16.3776 | AF17: 1.1199 | AG17: 0.5483 | AH17: -0.0549 | AI17: 2.3145 | AK17: -0.084 | AL17: 31840182
A18: 38619904 | B18: 00631L 元大台灣50正2 | C18: 元大 ETF傘型證券投資信託基金之台灣50單日正向 2倍證券投資信託基金 | D18: 國內指數-二倍ETF | E18: 28.67 | F18: 1 | G18: 52.35 | H18: 1 | I18: 66 | J18: 2 | K18: 42.4 | L18: 4 | M18: 70.31 | N18: 4 | O18: 419.34 | P18: 2 | S18: 28.67 | T18: 1 | U18: 41.25 | V18: -28.06 | W18: 873.5 | X18: 41.9983 | Y18: 2.0115 | Z18: 0.1727 | AA18: 0.0482 | AB18: 1.0411 | AD18: -0.2091 | AE18: 28.4221 | AF18: 2.017 | AG18: 0.5503 | AH18: -0.2523 | AI18: 2.2385 | AK18: 0.0963 | AL18: 38619904
A19: 38619910 | B19: 00632R 元大台灣50反1 | C19: 元大 ETF傘型證券投資信託基金之台灣50單日反向 1倍證券投資信託基金 | D19: 國內指數-反向ETF | E19: -12.69 | F19: 4 | G19: -20.33 | H19: 4 | I19: -24.76 | J19: 3 | K19: -24.62 | L19: 2 | M19: -35.74 | N19: 2 | O19: -67.5 | P19: 3 | S19: -12.69 | T19: 4 | U19: 15.58 | V19: -17.05 | W19: -80.4 | X19: 20.1225 | Y19: -0.9646 | Z19: -0.1872 | AA19: -0.106 | AB19: 1.1271 | AD19: -0.0467 | AE19: 13.0778 | AF19: -0.9267 | AG19: -0.6272 | AH19: -0.1774 | AI19: 2.555 | AK19: -0.1584 | AL19: 38619910
A20: 38633011 | B20: 00633L 富邦上証正2 | C20: 富邦中國 ETF傘型證券投資信託基金之富邦上証 180單日正向兩倍證券投資信託基金 | D20: 跨國-中國二倍ETF | E20: 12.92 | F20: 2 | G20: -6.8 | H20: 1 | I20: -16.5 | J20: 2 | K20: -21.24 | L20: 2 | M20: -50.94 | N20: 2 | O20: -24.17 | P20: 2 | S20: 12.92 | T20: 2 | U20: 44.59 | V20: -32.89 | W20: 65.2 | X20: 41.3954 | Y20: 0.0758 | Z20: -0.0331 | AA20: -0.4447 | AB20: -5.2133 | AD20: 0.1063 | AE20: 32.7965 | AF20: 1.0054 | AG20: -0.1252 | AH20: -2.9704 | AI20: -1.1789 | AK20: 0.3378 | AL20: 38633011
A21: 38633027 | B21: 00634R 富邦上証反1 | C21: 富邦中國 ETF傘型證券投資信託基金之富邦上証 180單日反向一倍證券投資信託基金 | D21: 跨國-中國反向ETF | E21: -4.66 | F21: 3 | G21: 0.64 | H21: 1 | I21: 6.8 | J21: 1 | K21: 6.56 | L21: 1 | M21: 18.64 | N21: 3 | O21: -26.98 | P21: 3 | S21: -4.66 | T21: 3 | U21: 24.14 | V21: -22.22 | W21: -76.45 | X21: 22.2268 | Y21: -0.1755 | Z21: 0.0598 | AA21: 0.4986 | AB21: -2.1876 | AD21: 0.0507 | AE21: 15.7727 | AF21: -0.6321 | AG21: 0.1217 | AH21: 1.6764 | AI21: -0.8766 | AK21: 0.0667 | AL21: 38633027
A22: 42260528 | B22: 00636 國泰中國A50 | C22: 國泰富時中國 A50證券投資信託基金 | D22: 跨國-中國一般ETF | E22: 7.2 | F22: 1 | G22: -2.9 | H22: 2 | I22: -7.46 | J22: 2 | K22: -11.34 | L22: 2 | M22: -26.27 | N22: 6 | O22: -5.55 | P22: 3 | S22: 7.2 | T22: 1 | U22: 23.81 | V22: -18.7 | W22: 0.5 | X22: 22.7634 | Y22: 0.0187 | Z22: -0.0568 | AA22: -0.3855 | AB22: -19.9806 | AD22: 0.1201 | AE22: 19.3074 | AF22: 0.5214 | AG22: -0.1069 | AH22: -1.5215 | AI22: -1.1423 | AK22: 0.258 | AL22: 42260528
A23: 42300253 | B23: 00637L 元大滬深300正2 | C23: 元大滬深 300傘型證券投資信託基金之滬深 300單日正向 2倍證券投資信託基金 | D23: 跨國-中國二倍ETF | E23: 13.93 | F23: 1 | G23: -6.86 | H23: 2 | I23: -15.52 | J23: 1 | K23: -20.81 | L23: 1 | M23: -50.25 | N23: 1 | O23: -20.42 | P23: 1 | S23: 13.93 | T23: 1 | U23: 45.33 | V23: -33.08 | W23: -34.15 | X23: 41.8349 | Y23: 0.0724 | Z23: -0.0297 | AA23: -0.4058 | AB23: -4.9556 | AD23: 0.1194 | AE23: 33.3817 | AF23: 0.9734 | AG23: -0.1117 | AH23: -2.8044 | AI23: -1.1056 | AK23: 0.3757 | AL23: 42300253
A24: 42300232 | B24: 00638R 元大滬深300反1 | C24: 元大滬深 300傘型證券投資信託基金之滬深 300單日反向 1倍證券投資信託基金 | D24: 跨國-中國反向ETF | E24: -4.47 | F24: 1 | G24: -1.11 | H24: 3 | I24: 6.27 | J24: 3 | K24: 6.04 | L24: 2 | M24: 22.88 | N24: 1 | O24: -25.13 | P24: 1 | S24: -4.47 | T24: 1 | U24: 25.81 | V24: -24.4 | W24: -50.83 | X24: 23.1831 | Y24: -0.239 | Z24: 0.057 | AA24: 0.5378 | AB24: -1.5975 | AD24: 0.037 | AE24: 15.4776 | AF24: -0.7034 | AG24: 0.1138 | AH24: 1.7572 | AI24: -0.7229 | AK24: -0.1151 | AL24: 42300232
A25: 42302273 | B25: 00639 富邦深100 | C25: 富邦深証100 證券投資信託基金 | D25: 跨國-中國一般ETF | E25: 3.26 | F25: 8 | G25: -7.11 | H25: 11 | I25: -20.59 | J25: 12 | K25: -25.46 | L25: 12 | M25: -35.33 | N25: 11 | O25: -3.06 | P25: 2 | S25: 3.26 | T25: 8 | U25: 20.19 | V25: -18.39 | W25: -30.33 | X25: 24.5207 | Y25: 0.1856 | Z25: -0.15 | AA25: -1.1832 | AB25: -5.7234 | AD25: -0.2016 | AE25: 23.2654 | AF25: 0.7066 | AG25: -0.2667 | AH25: -3.0458 | AI25: -2.5348 | AK25: -0.5502 | AL25: 42302273
A26: 42319561 | B26: 00640L 富邦日本正2 | C26: 富邦日本 ETF傘型證券投資信託基金之富邦日本東証單日正向兩倍證券投資信託基金 | D26: 日本二倍ETF | E26: 38.47 | F26: 1 | G26: 40.52 | H26: 1 | I26: 92.64 | J26: 1 | K26: 105.98 | L26: 1 | M26: 102.37 | N26: 1 | O26: 202.47 | P26: 1 | S26: 38.47 | T26: 1 | U26: 38.47 | V26: -10.66 | W26: 194.45 | X26: 25.0614 | Y26: 0.9774 | Z26: 0.4456 | AA26: 2.5859 | AB26: 3.2984 | AE26: 24.1191 | AF26: 0.8774 | AG26: 0.8239 | AH26: 4.1787 | AI26: 6.5381 | AL26: 42319561
A27: 42319582 | B27: 00641R 富邦日本反1 | C27: 富邦日本 ETF傘型證券投資信託基金之富邦日本東証單日反向一倍證券投資信託基金 | D27: 日本反向ETF | E27: -15.66 | F27: 1 | G27: -17.29 | H27: 1 | I27: -30.48 | J27: 1 | K27: -36.16 | L27: 1 | M27: -39.98 | N27: 1 | O27: -57.58 | P27: 1 | S27: -15.66 | T27: 1 | U27: 4.13 | V27: -15.66 | W27: -67.95 | X27: 12.0546 | Y27: -0.4804 | Z27: -0.5382 | AA27: -1.5593 | AB27: 3.8983 | AE27: 11.1253 | AF27: -0.4131 | AG27: -0.9426 | AH27: -2.2938 | AI27: 7.328 | AL27: 42319582
A28: 42323777 | B28: 00643 群益深証中小 | C28: 群益深証中小 100證券投資信託基金 | D28: 跨國-中國一般ETF | E28: -1.55 | F28: 13 | G28: -10.34 | H28: 13 | I28: -25.52 | J28: 13 | K28: -30.46 | L28: 13 | M28: -33.91 | N28: 10 | O28: -14.18 | P28: 8 | S28: -1.55 | T28: 13 | U28: 12.79 | V28: -20.87 | W28: -42.83 | X28: 23.9779 | Y28: 0.2491 | Z28: -0.1955 | AA28: -1.5161 | AB28: -5.4331 | AD28: -0.2595 | AE28: 25.4117 | AF28: 0.7031 | AG28: -0.3095 | AH28: -3.5183 | AI28: -3.2288 | AK28: -0.469 | AL28: 42323777
A29: 42328908 | B29: 00645 富邦日本 | C29: 富邦日本東証證券投資信託基金 | D29: 日本ETF | E29: 18.24 | F29: 3 | G29: 19.54 | H29: 3 | I29: 41.73 | J29: 3 | K29: 47.87 | L29: 1 | M29: 49.55 | N29: 1 | O29: 86.81 | P29: 2 | S29: 18.24 | T29: 3 | U29: 18.24 | V29: -4.98 | W29: 91.2 | X29: 12.6487 | Y29: 0.4906 | Z29: 0.4457 | AA29: 1.3072 | AB29: 3.3176 | AD29: 0.018 | AE29: 11.8912 | AF29: 0.4228 | AG29: 0.8478 | AH29: 2.1595 | AI29: 6.8827 | AK29: -0.0591 | AL29: 42328908
A30: 42333613 | B30: 00646 元大S&P500 | C30: 元大標普 500傘型證券投資信託基金之標普 500證券投資信託基金 | D30: 美國ETF | E30: 15.34 | F30: 3 | G30: 21.45 | H30: 4 | I30: 34.72 | J30: 3 | K30: 31.23 | L30: 3 | M30: 50.89 | N30: 2 | O30: 97.54 | P30: 2 | S30: 15.34 | T30: 3 | U30: 15.34 | V30: -12.96 | W30: 161.35 | X30: 16.6834 | Y30: 0.7684 | Z30: 0.2428 | AA30: 0.6679 | AB30: 1.5219 | AD30: 0.2706 | AE30: 11.765 | AF30: 0.717 | AG30: 0.7286 | AH30: 1.2014 | AI30: 3.4511 | AK30: 0.4909 | AL30: 42333613
A31: 42333579 | B31: 00647L 元大S&P500正2 | C31: 元大標普 500傘型證券投資信託基金之標普 500單日正向 2倍證券投資信託基金 | D31: 美國二倍ETF | E31: 21.05 | F31: 1 | G31: 41.4 | H31: 2 | I31: 51.68 | J31: 2 | K31: 16.49 | L31: 2 | M31: 48.81 | N31: 1 | O31: 151 | P31: 2 | S31: 21.05 | T31: 1 | U31: 27.85 | V31: -30.72 | W31: 320.51 | X31: 37.2675 | Y31: 1.9228 | Z31: 0.1041 | AA31: -0.1354 | AB31: 0.5824 | AD31: -0.0599 | AE31: 26.258 | AF31: 1.8427 | AG31: 0.4878 | AH31: 0.4258 | AI31: 2.0066 | AK31: 0.0381 | AL31: 42333579
A32: 42333563 | B32: 00648R 元大S&P500反1 | C32: 元大標普 500傘型證券投資信託基金之標普 500單日反向 1倍證券投資信託基金 | D32: 美國反向ETF | E32: -7.62 | F32: 3 | G32: -17.51 | H32: 2 | I32: -19.49 | J32: 2 | K32: -13.77 | L32: 2 | M32: -27.3 | N32: 2 | O32: -55.43 | P32: 2 | S32: -7.62 | T32: 3 | U32: 18.15 | V32: -13.9 | W32: -71.5 | X32: 20.5567 | Y32: -1.0853 | Z32: -0.0888 | AA32: 0.1813 | AB32: 0.4858 | AD32: 0.1409 | AE32: 14.0367 | AF32: -0.9961 | AG32: -0.4456 | AH32: -0.0371 | AI32: 1.8128 | AK32: 0.0602 | AL32: 42333563
A33: 42329863 | B33: 00650L 復華香港正 2 | C33: 復華香港 ETF傘型證券投資信託基金之復華恒生單日正向二倍證券投資信託基金 | D33: 其他市場二倍ETF | E33: -7.9 | F33: 3 | G33: -15.23 | H33: 3 | I33: -38.31 | J33: 3 | K33: -50.4 | L33: 3 | M33: -70.88 | N33: 2 | O33: -73.85 | P33: 2 | S33: -7.9 | T33: 3 | U33: 104.41 | V33: -47.17 | W33: -42.47 | X33: 60.157 | Y33: 1.1494 | Z33: -0.093 | AA33: -2.3661 | AB33: -1.4058 | AD33: -0.1735 | AE33: 38.2538 | AF33: 1.6217 | AG33: -0.3134 | AH33: -6.3405 | AI33: -2.1343 | AK33: -0.8079 | AL33: 42329863
A34: 42329879 | B34: 00651R 復華香港反 1 | C34: 復華香港 ETF傘型證券投資信託基金之復華恒生單日反向一倍證券投資信託基金 | D34: 其他市場反向ETF | E34: 3.76 | F34: 1 | G34: 2.88 | H34: 1 | I34: 18.38 | J34: 1 | K34: 16.95 | L34: 1 | M34: 36.63 | N34: 2 | O34: 19.11 | P34: 2 | S34: 3.76 | T34: 1 | U34: 37.08 | V34: -35.59 | W34: -35.6 | X34: 30.9242 | Z34: 0.1085 | AD34: 0.2093 | AE34: 20.4104 | AG34: 0.2512 | AK34: 0.6983 | AL34: 42329879
A35: 42376963 | B35: 00652 富邦印度 | C35: 富邦印度 ETF傘型證券投資信託基金之富邦印度 NIFTY證券投資信託基金 | D35: 其他市場ETF | E35: 5.38 | F35: 3 | G35: 11.13 | H35: 2 | I35: 28.84 | J35: 1 | K35: 24.87 | L35: 2 | M35: 41.72 | N35: 1 | O35: 48.53 | P35: 1 | S35: 5.38 | T35: 3 | U35: 12.55 | V35: -9.76 | W35: 82.25 | X35: 13.1304 | Y35: 0.3351 | Z35: 0.2424 | AA35: 0.6998 | AB35: 2.7411 | AD35: 0.1668 | AE35: 8.3199 | AF35: 0.3318 | AG35: 0.8612 | AH35: 1.4793 | AI35: 6.2335 | AK35: 0.3408 | AL35: 42376963
A36: 42376990 | B36: 00653L 富邦印度正2 | C36: 富邦印度 ETF傘型證券投資信託基金－富邦印度 NIFTY單日正向兩倍證券投資信託基金 | D36: 其他市場二倍ETF | E36: 2.34 | F36: 1 | G36: 18.66 | H36: 1 | I36: 42.74 | J36: 1 | K36: 30.45 | L36: 1 | M36: 65.4 | N36: 1 | O36: 82.95 | P36: 1 | S36: 2.34 | T36: 1 | U36: 23.62 | V36: -19.63 | W36: 187.05 | X36: 26.5349 | Y36: 0.8945 | Z36: 0.1706 | AA36: 0.7225 | AB36: 1.4605 | AD36: 0.1379 | AE36: 18.8619 | AF36: 0.952 | AG36: 0.5602 | AH36: 1.3598 | AI36: 3.2038 | AK36: 0.5362 | AL36: 42376990
A37: 42376984 | B37: 00654R 富邦印度反1 | C37: 富邦印度 ETF傘型證券投資信託基金－富邦印度 NIFTY單日反向一倍證券投資信託基金 | D37: 其他市場反向ETF | E37: -0.44 | F37: 3 | G37: -9.99 | H37: 3 | I37: -17.37 | J37: 3 | K37: -16.77 | L37: 3 | M37: -30.46 | N37: 3 | O37: -50.25 | P37: 3 | S37: -0.44 | T37: 3 | U37: 10.57 | V37: -11.35 | W37: -65.75 | X37: 13.4487 | Y37: -0.5201 | Z37: -0.1977 | AA37: -0.428 | AB37: 1.4757 | AD37: -0.1705 | AE37: 10.5056 | AF37: -0.5494 | AG37: -0.5363 | AH37: -0.6509 | AI37: 2.9604 | AK37: -0.52 | AL37: 42376984
A38: 42385148 | B38: 00655L 國泰中國A50正2 | C38: 國泰 A50傘型證券投資信託基金之富時中國 A50單日正向 2倍證券投資信託基金 | D38: 跨國-中國二倍ETF | E38: 10.56 | F38: 3 | G38: -7.53 | H38: 3 | I38: -18.71 | J38: 3 | K38: -26.35 | L38: 3 | M38: -54.51 | N38: 3 | O38: -27.34 | P38: 3 | S38: 10.56 | T38: 3 | U38: 48.07 | V38: -33.55 | W38: 13.6 | X38: 42.2098 | Y38: 0.1767 | Z38: -0.0529 | AA38: -0.7593 | AB38: -3.6448 | AD38: 0.0271 | AE38: 32.3212 | AF38: 1.0557 | AG38: -0.1517 | AH38: -3.2897 | AI38: -1.3405 | AK38: 0.2328 | AL38: 42385148
A39: 42385127 | B39: 00656R 國泰中國A50反1 | C39: 國泰 A50傘型證券投資信託基金之富時中國 A50單日反向 1倍證券投資信託基金 | D39: 跨國-中國反向ETF | E39: -4.64 | F39: 2 | G39: -0.11 | H39: 2 | I39: 6.76 | J39: 2 | K39: 5.36 | L39: 3 | M39: 20.6 | N39: 2 | O39: -26.52 | P39: 2 | S39: -4.64 | T39: 2 | U39: 24.12 | V39: -23.14 | W39: -55.8 | X39: 22.595 | Y39: -0.1884 | Z39: 0.0527 | AA39: 0.467 | AB39: -1.8254 | AD39: -0.1693 | AE39: 15.5533 | AF39: -0.674 | AG39: 0.1221 | AH39: 1.745 | AI39: -0.8135 | AK39: 0.0914 | AL39: 42385127
A40: 42389475 | B40: 00657 國泰日經225 | C40: 國泰日本 ETF傘型證券投資信託基金之日經 225證券投資信託基金 | D40: 日本ETF | E40: 20.21 | F40: 2 | G40: 26.29 | H40: 2 | I40: 42.03 | J40: 2 | K40: 43.14 | L40: 3 | M40: 32.99 | N40: 3 | O40: 81.25 | P40: 3 | S40: 20.21 | T40: 2 | U40: 20.21 | V40: -7.81 | W40: 138.25 | X40: 16.0422 | Y40: 0.6942 | Z40: 0.33 | AA40: 1.0752 | AB40: 2.2015 | AD40: -0.1204 | AE40: 14.5614 | AF40: 0.6643 | AG40: 0.7027 | AH40: 1.7746 | AI40: 4.447 | AK40: -0.0529 | AL40: 42389475
A41: 42398684 | B41: 00660 元大歐洲50 | C41: 元大已開發國家傘型證券投資信託基金之元大歐洲50證券投資信託基金 | D41: 跨國-區域一般ETF | E41: 11.54 | F41: 1 | G41: 20.66 | H41: 1 | I41: 16.97 | J41: 1 | K41: 31.98 | L41: 1 | M41: 33.12 | N41: 1 | O41: 60.8 | P41: 1 | S41: 11.54 | T41: 1 | U41: 15.32 | V41: -9.98 | W41: 93.88 | X41: 18.5705 | Y41: 0.9161 | Z41: 0.2275 | AA41: 0.6215 | AB41: 1.3312 | AD41: 0.2277 | AE41: 13.2359 | AF41: 0.9017 | AG41: 0.3373 | AH41: -0.3121 | AI41: 1.4294 | AK41: 0.1433 | AL41: 42398684
A42: 42398663 | B42: 00661 元大日經225 | C42: 元大已開發國家傘型證券投資信託基金之元大日經 225證券投資信託基金 | D42: 日本ETF | E42: 20.55 | F42: 1 | G42: 27.31 | H42: 1 | I42: 44.27 | J42: 1 | K42: 47.81 | L42: 2 | M42: 41.01 | N42: 2 | O42: 92.74 | P42: 1 | S42: 20.55 | T42: 1 | U42: 20.55 | V42: -6.77 | W42: 158.88 | X42: 16.1324 | Z42: 0.3577 | AD42: 0.0986 | AE42: 15.079 | AG42: 0.7108 | AK42: 0.1531 | AL42: 42398663
A43: 42399305 | B43: 00662 富邦NASDAQ | C43: 富邦NASDAQ-100證券投資信託基金 | D43: 美國ETF | E43: 13.5 | F43: 4 | G43: 23.11 | H43: 2 | I43: 45.24 | J43: 1 | K43: 37.52 | L43: 1 | M43: 56.31 | N43: 1 | O43: 140.73 | P43: 1 | S43: 13.5 | T43: 4 | U43: 21.54 | V43: -19.38 | W43: 275.3 | X43: 21.8803 | Y43: 0.9494 | Z43: 0.2292 | AA43: 0.8282 | AB43: 1.5251 | AD43: 0.1805 | AE43: 13.1119 | AF43: 0.6763 | AG43: 0.8273 | AH43: 1.9309 | AI43: 4.6308 | AK43: 0.5034 | AL43: 42399305
A44: 42404264 | B44: 00663L 國泰臺灣加權正2 | C44: 國泰臺指 ETF傘型證券投資信託基金之臺灣加權指數單日正向 2倍證券投資信託基金 | D44: 國內指數-二倍ETF | E44: 28.03 | F44: 2 | G44: 51.11 | H44: 3 | I44: 65.54 | J44: 4 | K44: 44.4 | L44: 3 | M44: 75.48 | N44: 3 | O44: 415.63 | P44: 4 | S44: 28.03 | T44: 2 | U44: 40.61 | V44: -27.79 | W44: 795.4 | X44: 41.3327 | Y44: 1.9803 | Z44: 0.1787 | AA44: 0.1178 | AB44: 1.0766 | AD44: -0.1378 | AE44: 28.1752 | AF44: 1.9997 | AG44: 0.5515 | AH44: -0.2405 | AI44: 2.2433 | AK44: -0.1458 | AL44: 42404264
A45: 42404258 | B45: 00664R 國泰臺灣加權反1 | C45: 國泰臺指 ETF傘型證券投資信託基金之臺灣加權指數單日反向 1倍證券投資信託基金 | D45: 國內指數-反向ETF | E45: -12.08 | F45: 1 | G45: -19.71 | H45: 2 | I45: -24.49 | J45: 2 | K45: -24.62 | L45: 3 | M45: -35.93 | N45: 4 | O45: -67.5 | P45: 4 | S45: -12.08 | T45: 1 | U45: 15.45 | V45: -16.98 | W45: -77.8 | X45: 19.9458 | Y45: -0.9561 | Z45: -0.1894 | AA45: -0.1179 | AB45: 1.1405 | AD45: -0.0943 | AE45: 12.9934 | AF45: -0.9222 | AG45: -0.6237 | AH45: -0.1598 | AI45: 2.5368 | AK45: 0.1314 | AL45: 42404258
A46: 42404573 | B46: 00665L 富邦恆生國企正2 | C46: 富邦恒生國企 ETF傘型證券投資信託基金之富邦恒生國企單日正向兩倍證券投資信託基金 | D46: 其他市場二倍ETF | E46: -0.36 | F46: 2 | G46: -14.5 | H46: 2 | I46: -36.29 | J46: 2 | K46: -50.35 | L46: 2 | M46: -77.94 | N46: 3 | O46: -81.04 | P46: 3 | S46: -0.36 | T46: 2 | U46: 103.19 | V46: -48.83 | W46: -72 | X46: 65.2052 | Y46: 1.138 | Z46: -0.073 | AA46: -2.1167 | AB46: -1.2072 | AD46: -0.1063 | AE46: 44.8031 | AF46: 1.7094 | AG46: -0.2331 | AH46: -6.0492 | AI46: -1.7633 | AK46: -0.3635 | AL46: 42404573
A47: 42404567 | B47: 00666R 富邦恆生國企反1 | C47: 富邦恒生國企 ETF傘型證券投資信託基金之富邦恒生國企單日反向一倍證券投資信託基金 | D47: 其他市場反向ETF | E47: 0.49 | F47: 2 | G47: 1.55 | H47: 2 | I47: 15.96 | J47: 2 | K47: 13.07 | L47: 2 | M47: 46.24 | N47: 1 | O47: 25 | P47: 1 | S47: 0.49 | T47: 2 | U47: 41.37 | V47: -37.77 | W47: -18.25 | X47: 34.6719 | Y47: -0.6814 | Z47: 0.093 | AA47: 1.3754 | AB47: -1.3656 | AD47: 0.14 | AE47: 23.1148 | AF47: -1.071 | AG47: 0.2026 | AH47: 3.2532 | AI47: -1.262 | AK47: 0.3866 | AL47: 42404567
A48: 42443225 | B48: 00668 國泰美國道瓊 | C48: 國泰美國 ETF傘型證券投資信託基金之道瓊工業平均指數證券投資信託基金 | D48: 美國ETF | E48: 9.94 | F48: 6 | G48: 17.18 | H48: 5 | I48: 25.48 | J48: 5 | K48: 28.23 | L48: 4 | M48: 35.8 | N48: 4 | O48: 64.67 | P48: 3 | S48: 9.94 | T48: 6 | U48: 13.59 | V48: -7.9 | W48: 131.2 | X48: 16.1687 | Y48: 0.6546 | Z48: 0.2276 | AA48: 0.635 | AB48: 1.6229 | AD48: 0.0907 | AE48: 10.3877 | AF48: 0.6451 | AG48: 0.6198 | AH48: 0.7131 | AI48: 2.8809 | AK48: -0.1135 | AL48: 42443225
A49: 42443203 | B49: 00669R 國泰美國道瓊反1 | C49: 國泰美國 ETF傘型證券投資信託基金之道瓊工業平均指數單日反向 1倍證券投資信託基金 | D49: 美國反向ETF | E49: -2.93 | F49: 1 | G49: -14.91 | H49: 1 | I49: -13.11 | J49: 1 | K49: -10.77 | L49: 1 | M49: -18.21 | N49: 1 | O49: -45.71 | P49: 1 | S49: -2.93 | T49: 1 | U49: 11.41 | V49: -14.34 | W49: -65.2 | X49: 18.7647 | Y49: -0.934 | Z49: -0.0757 | AA49: 0.1994 | AB49: 0.4393 | AD49: 0.092 | AE49: 14.0628 | AF49: -0.9675 | AG49: -0.2903 | AH49: 0.5395 | AI49: 1.2179 | AK49: 0.4169 | AL49: 42443203
A50: 42441710 | B50: 00670L 富邦NASDAQ正2 | C50: 富邦NASDAQ-100 ETF傘型證券投資信託基金之富邦NASDAQ-100單日正向兩倍證券投資信託基金 | D50: 美國二倍ETF | E50: 13.51 | F50: 2 | G50: 43.07 | H50: 1 | I50: 66.59 | J50: 1 | K50: 11.13 | L50: 3 | M50: 35.41 | N50: 2 | O50: 237.92 | P50: 1 | S50: 13.51 | T50: 2 | U50: 39.77 | V50: -42.75 | W50: 465 | X50: 49.6848 | Y50: 2.3686 | Z50: 0.0954 | AA50: -0.1784 | AB50: 0.5775 | AD50: 0.0308 | AE50: 32.2824 | AF50: 1.8912 | AG50: 0.4974 | AH50: 1.2778 | AI50: 2.4512 | AK50: 0.2491 | AL50: 42441710
A51: 42441704 | B51: 00671R 富邦NASDAQ反1 | C51: 富邦NASDAQ-100 ETF傘型證券投資信託基金之富邦NASDAQ-100單日反向一倍證券投資信託基金 | D51: 美國反向ETF | E51: -7.34 | F51: 2 | G51: -18.88 | H51: 3 | I51: -26.55 | J51: 3 | K51: -22.61 | L51: 3 | M51: -35.36 | N51: 3 | O51: -69.39 | P51: 3 | S51: -7.34 | T51: 2 | U51: 25.67 | V51: -17.42 | W51: -79.8 | X51: 24.9225 | Y51: -1.2045 | Z51: -0.1245 | AA51: -0.1096 | AB51: 0.7438 | AD51: -0.1205 | AE51: 15.1805 | AF51: -0.8877 | AG51: -0.5796 | AH51: -0.9641 | AI51: 2.8616 | AK51: -0.3937 | AL51: 42441704
A52: 42450837 | B52: 00675L 富邦臺灣加權正2 | C52: 富邦臺灣加權 ETF傘型證券投資信託基金之富邦臺灣加權單日正向兩倍證券投資信託基金 | D52: 國內指數-二倍ETF | E52: 27.75 | F52: 3 | G52: 51.05 | H52: 4 | I52: 65.54 | J52: 3 | K52: 46.17 | L52: 2 | M52: 78.55 | N52: 2 | O52: 419.06 | P52: 3 | S52: 27.75 | T52: 3 | U52: 40.47 | V52: -27.43 | W52: 681.7 | X52: 41.2676 | Y52: 1.9773 | Z52: 0.183 | AA52: 0.1691 | AB52: 1.1026 | AD52: 0.294 | AE52: 28.0681 | AF52: 1.993 | AG52: 0.5534 | AH52: -0.2266 | AI52: 2.2498 | AK52: -0.2024 | AL52: 42450837
A53: 42450843 | B53: 00676R 富邦臺灣加權反1 | C53: 富邦臺灣加權 ETF傘型證券投資信託基金之富邦臺灣加權單日反向一倍證券投資信託基金 | D53: 國內指數-反向ETF | E53: -12.5 | F53: 3 | G53: -19.67 | H53: 1 | I53: -24.38 | J53: 1 | K53: -23.91 | L53: 1 | M53: -35.19 | N53: 1 | O53: -66.94 | P53: 1 | S53: -12.5 | T53: 3 | U53: 15.53 | V53: -16.71 | W53: -75.5 | X53: 19.9929 | Y53: -0.9573 | Z53: -0.1822 | AA53: -0.0779 | AB53: 1.0985 | AD53: 0.2355 | AE53: 12.977 | AF53: -0.919 | AG53: -0.6214 | AH53: -0.1558 | AI53: 2.5331 | AK53: 0.1533 | AL53: 42450843
A54: 42465424 | B54: 00678 群益那斯達克生技 | C54: 群益那斯達克生技證券投資信託基金 | D54: 指數股票型-產業 | E54: 5.37 | F54: 19 | G54: 9.87 | H54: 22 | I54: 11.56 | J54: 22 | K54: 16 | L54: 12 | M54: 2.2 | N54: 11 | O54: 23.93 | P54: 6 | S54: 5.37 | T54: 19 | U54: 15.45 | V54: -20 | W54: 41.4 | X54: 15.1433 | Z54: 0.1444 | AD54: -0.0275 | AE54: 14.2667 | AG54: 0.2185 | AK54: -0.2534 | AL54: 42465424
A55: 42461573 | B55: 00679B 元大美債20年 | C55: 元大美國政府20年期(以上)債券 ETF傘型基金之元大美國政府20年期(以上)債券證券投資信託基金 | D55: 債券-一般ETF | E55: 0.77 | F55: 77 | G55: 7.85 | H55: 58 | I55: -3.2 | J55: 79 | K55: -15.36 | L55: 80 | M55: -15.67 | N55: 77 | O55: -13.97 | P55: 52 | S55: 0.77 | T55: 77 | U55: 12.51 | V55: -13.06 | W55: -9.41 | X55: 13.5396 | Z55: -0.1786 | AD55: -0.454 | AE55: 13.5689 | AG55: -0.0747 | AK55: -0.5192 | AL55: 42461573
A56: 42461567 | B56: 00680L 元大美債20正2 | C56: 元大美國政府20年期(以上)債券 ETF傘型基金之元大美國政府20年期(以上)債券單日正向 2倍證券投資信託基金 | D56: 債券-二倍ETF | E56: -8.85 | F56: 1 | G56: 11.04 | H56: 2 | I56: -24.14 | J56: 2 | K56: -54.69 | L56: 1 | M56: -57.19 | N56: 1 | O56: -56.09 | P56: 1 | S56: -8.85 | T56: 1 | U56: 27.01 | V56: -34.6 | W56: -54.42 | X56: 34.3196 | Z56: -0.2878 | AD56: -0.0119 | AE56: 33.7339 | AG56: -0.1996 | AK56: -0.1622 | AL56: 42461567
A57: 42461588 | B57: 00681R 元大美債20反1 | C57: 元大美國政府20年期(以上)債券 ETF傘型基金之元大美國政府20年期(以上)債券單日反向 1倍證券投資信託基金 | D57: 債券-反向ETF | E57: 5.26 | F57: 1 | G57: -7.94 | H57: 1 | I57: 11.41 | J57: 1 | K57: 37.07 | L57: 1 | M57: 35.02 | N57: 1 | O57: 10.99 | P57: 2 | S57: 5.26 | T57: 1 | U57: 24.32 | V57: -13.47 | W57: -0.57 | X57: 19.2938 | Z57: 0.2499 | AD57: 0.2603 | AE57: 17.9757 | AG57: 0.1808 | AK57: -0.0032 | AL57: 42461588
A58: 42481276 | B58: 00685L 群益臺灣加權正2 | C58: 群益臺灣加權指數 ETF傘型證券投資信託基金之群益臺灣加權指數單日正向2倍證券投資信託基金 | D58: 國內指數-二倍ETF | E58: 27.73 | F58: 4 | G58: 51.25 | H58: 2 | I58: 66.05 | J58: 1 | K58: 46.81 | L58: 1 | M58: 80.44 | N58: 1 | O58: 425.38 | P58: 1 | S58: 27.73 | T58: 4 | U58: 40.26 | V58: -27.29 | W58: 595.6 | X58: 41.1718 | Y58: 1.9729 | Z58: 0.1848 | AA58: 0.1891 | AB58: 1.113 | AD58: 0.3729 | AE58: 28.0727 | AF58: 1.9937 | AG58: 0.5566 | AH58: -0.2015 | AI58: 2.2625 | AK58: 0.1333 | AL58: 42481276
A59: 42481260 | B59: 00686R 群益臺灣加權反1 | C59: 群益臺灣加權指數 ETF傘型證券投資信託基金－群益臺灣加權指數單日反向1倍證券投資信託基金 | D59: 國內指數-反向ETF | E59: -12.29 | F59: 2 | G59: -20 | H59: 3 | I59: -24.79 | J59: 4 | K59: -24.79 | L59: 4 | M59: -35.92 | N59: 3 | O59: -67.33 | P59: 2 | S59: -12.29 | T59: 2 | U59: 15.38 | V59: -16.55 | W59: -73.6 | X59: 20.041 | Y59: -0.9594 | Z59: -0.1899 | AA59: -0.1225 | AB59: 1.1449 | AD59: -0.1477 | AE59: 13.075 | AF59: -0.9283 | AG59: -0.6281 | AH59: -0.1764 | AI59: 2.5536 | AK59: -0.2112 | AL59: 42481260
A60: 42482726 | B60: 00687B 國泰20年美債 | C60: 國泰美國債券 ETF傘型證券投資信託基金之20年期(以上)美國公債指數證券投資信託基金 | D60: 債券-一般ETF | E60: 0.25 | F60: 81 | G60: 7.78 | H60: 59 | I60: -3.04 | J60: 78 | K60: -15.17 | L60: 79 | M60: -15.95 | N60: 78 | O60: -13.29 | P60: 51 | S60: 0.25 | T60: 81 | U60: 12.49 | V60: -13 | W60: -5.97 | X60: 13.9598 | Z60: -0.1698 | AD60: -0.4319 | AE60: 13.8104 | AG60: -0.0693 | AK60: -0.4701 | AL60: 42482726
A61: 42482747 | B61: 00688L 國泰20年美債正2 | C61: 國泰美國債券 ETF傘型證券投資信託基金之20年期(以上)美國公債指數單日正向2倍證券投資信託基金 | D61: 債券-二倍ETF | E61: -8.91 | F61: 2 | G61: 11.24 | H61: 1 | I61: -24.02 | J61: 1 | K61: -54.76 | L61: 2 | M61: -57.42 | N61: 2 | O61: -57.1 | P61: 2 | S61: -8.91 | T61: 2 | U61: 27.21 | V61: -35.06 | W61: -54.71 | X61: 34.6104 | Z61: -0.2851 | AD61: 0.0119 | AE61: 33.862 | AG61: -0.1972 | AK61: 0.1622 | AL61: 42482747
A62: 42482731 | B62: 00689R 國泰20年美債反1 | C62: 國泰美國債券 ETF傘型證券投資信託基金之20年期(以上)美國公債指數單日反向1倍證券投資信託基金 | D62: 債券-反向ETF | E62: 5.14 | F62: 2 | G62: -8.2 | H62: 2 | I62: 11.37 | J62: 2 | K62: 35.45 | L62: 2 | M62: 32.96 | N62: 2 | O62: 12.75 | P62: 1 | S62: 5.14 | T62: 2 | U62: 24.24 | V62: -13.8 | W62: 2.96 | X62: 19.4012 | Z62: 0.2398 | AD62: -0.2603 | AE62: 18.2083 | AG62: 0.1786 | AK62: 0.0032 | AL62: 42482731
A63: 42482107 | B63: 00690 兆豐臺灣藍籌30 | C63: 兆豐臺灣藍籌30ETF傘型證券投資信託基金之兆豐臺灣藍籌30ETF證券投資信託基金 | D63: 國內指數-一般ETF | E63: 12.67 | F63: 27 | G63: 27.66 | H63: 25 | I63: 28.9 | J63: 31 | K63: 20.02 | L63: 25 | M63: 27.78 | N63: 21 | O63: 102.62 | P63: 15 | S63: 12.67 | T63: 27 | U63: 20.48 | V63: -14.89 | W63: 135.76 | X63: 22.332 | Y63: 1.0468 | Z63: 0.1364 | AA63: -0.1854 | AB63: 0.84 | AD63: -0.2161 | AE63: 14.4964 | AF63: 0.955 | AG63: 0.5075 | AH63: -0.1333 | AI63: 2.2239 | AK63: -0.3455 | AL63: 42482107
A64: 42482423 | B64: 00692 富邦公司治理 | C64: 富邦臺灣公司治理100證券投資信託基金 | D64: 國內指數-一般ETF | E64: 16.66 | F64: 15 | G64: 28.57 | H64: 22 | I64: 33.44 | J64: 26 | K64: 23.2 | L64: 23 | M64: 35.42 | N64: 14 | O64: 133.86 | P64: 9 | S64: 16.66 | T64: 15 | U64: 19.46 | V64: -15.62 | W64: 168.22 | X64: 22.5073 | Y64: 1.0742 | Z64: 0.1531 | AA64: -0.0981 | AB64: 0.9258 | AD64: -0.2146 | AE64: 15.3032 | AF64: 1.069 | AG64: 0.5497 | AH64: -0.0983 | AI64: 2.2716 | AK64: -0.2622 | AL64: 42482423
A65: 42519239 | B65: 00694B 富邦美債1-3 | C65: 富邦美國政府債券 ETF傘型證券投資信託基金之富邦美國政府債券 1-3年期證券投資信託基金 | D65: 債券-一般ETF | E65: 4.75 | F65: 17 | G65: 1.76 | H65: 78 | I65: 7.7 | J65: 41 | K65: 14.78 | L65: 12 | M65: 11.76 | N65: 14 | O65: 8.02 | P65: 17 | S65: 4.75 | T65: 17 | U65: 5.83 | V65: -5.6 | W65: 13.28 | X65: 5.8172 | Z65: 0.304 | AD65: 0.1133 | AE65: 4.8547 | AG65: 0.3834 | AK65: 0.0071 | AL65: 42519239
A66: 42519245 | B66: 00695B 富邦美債7-10 | C66: 富邦美國政府債券 ETF傘型證券投資信託基金之富邦美國政府債券7-10年期證券投資信託基金 | D66: 債券-一般ETF | E66: 3.09 | F66: 36 | G66: 3.98 | H66: 69 | I66: 2.93 | J66: 72 | K66: 2.91 | L66: 33 | M66: -1.08 | N66: 28 | O66: -1.11 | P66: 41 | S66: 3.09 | T66: 36 | U66: 4.65 | V66: -4.43 | W66: 2.77 | X66: 6.1902 | Z66: 0.0312 | AD66: -0.0075 | AE66: 5.121 | AG66: 0.1078 | AK66: -0.2065 | AL66: 42519245
A67: 42519250 | B67: 00696B 富邦美債20年 | C67: 富邦美國政府債券 ETF傘型證券投資信託基金之富邦美國政府債券20年期以上證券投資信託基金 | D67: 債券-一般ETF | E67: 0.62 | F67: 80 | G67: 7.99 | H67: 56 | I67: -3.01 | J67: 77 | K67: -14.67 | L67: 77 | M67: -14.96 | N67: 75 | O67: -12.93 | P67: 50 | S67: 0.62 | T67: 80 | U67: 12.57 | V67: -12.99 | W67: -5.46 | X67: 13.5862 | Z67: -0.1694 | AD67: -0.4215 | AE67: 13.6959 | AG67: -0.0696 | AK67: -0.4852 | AL67: 42519250
A68: =IF(AL68="","",AL68) -> 42469744 | B68: 00697B 元大美債7-10 | C68: 元大美國政府 7至10年期債券 ETF傘型證券投資信託基金之元大美國政府 7至10年期債券證券投資信託基金 | D68: 債券-一般ETF | E68: 3.1 | F68: 35 | G68: 3.97 | H68: 70 | I68: 2.85 | J68: 73 | K68: 2.63 | L68: 38 | M68: -1.55 | N68: 31 | O68: -1.62 | P68: 42 | S68: 3.1 | T68: 35 | U68: 4.69 | V68: -4.44 | W68: 2.09 | X68: 5.9439 | Z68: 0.0251 | AD68: -0.0139 | AE68: 5.1145 | AG68: 0.1032 | AK68: -0.2148 | AL68: 42469744
A69: 42464918 | B69: 00700 富邦恆生國企 | C69: 富邦恒生國企ETF 證券投資信託基金 | D69: 其他市場ETF | E69: 3.63 | F69: 4 | G69: -5.22 | H69: 4 | I69: -13.54 | J69: 4 | K69: -15.33 | L69: 3 | M69: -42.48 | N69: 4 | O69: -46.54 | P69: 3 | S69: 3.63 | T69: 4 | U69: 42.87 | V69: -24.56 | W69: -42.85 | X69: 31.9638 | Y69: 0.4095 | Z69: -0.0407 | AA69: -0.6425 | AB69: -0.9164 | AD69: -0.0761 | AE69: 24.7281 | AF69: 0.8348 | AG69: -0.1494 | AH69: -2.5488 | AI69: -1.2779 | AK69: -0.4456 | AL69: 42464918
A70: 42530591 | B70: 00701 國泰股利精選30 | C70: 國泰低波動 ETF傘型證券投資信託基金之臺灣低波動股利精選30證券投資信託基金 | D70: 國內指數-一般ETF | E70: 4.26 | F70: 46 | G70: 8.34 | H70: 45 | I70: 21.76 | J70: 37 | K70: 6.84 | L70: 29 | M70: 35.59 | N70: 13 | O70: 59.45 | P70: 19 | S70: 4.26 | T70: 46 | U70: 18.77 | V70: -12.23 | W70: 78.26 | X70: 14.2505 | Y70: 0.5729 | Z70: 0.0677 | AA70: -0.3043 | AB70: 0.486 | AD70: -0.2596 | AE70: 12.9987 | AF70: 0.7444 | AG70: 0.4332 | AH70: -0.1338 | AI70: 2.1838 | AK70: -0.4633 | AL70: 42530591
A71: 42530608 | B71: 00702 國泰標普低波高息 | C71: 國泰低波動 ETF傘型證券投資信託基金之美國標普 500低波動高股息證券投資信託基金 | D71: 美國ETF | E71: 9.85 | F71: 7 | G71: 13.91 | H71: 7 | I71: 14.27 | J71: 8 | K71: 11.02 | L71: 5 | M71: 24.73 | N71: 5 | O71: 25.26 | P71: 4 | S71: 9.85 | T71: 7 | U71: 16.56 | V71: -7.44 | W71: 38.13 | X71: 15.1234 | Z71: 0.1025 | AD71: -0.1422 | AE71: 13.6419 | AG71: 0.2785 | AK71: -0.3741 | AL71: 42530608
A72: 42528997 | B72: 00703 台新MSCI中國 | C72: 台新MSCI新興市場國家傘型 ETF證券投資信託基金之台新MSCI中國證券投資信託基金 | D72: 跨國-中國一般ETF | E72: 0.79 | F72: 10 | G72: -6.18 | H72: 10 | I72: -15.03 | J72: 10 | K72: -16.71 | L72: 8 | M72: -45.28 | N72: 13 | O72: -33.68 | P72: 11 | S72: 0.79 | T72: 10 | U72: 44.06 | V72: -25 | W72: -30.2 | X72: 31.6713 | Z72: -0.0492 | AD72: 0.0492 | AE72: 23.1798 | AG72: -0.1849 | AK72: -0.0163 | AL72: 42528997
A73: 42529243 | B73: 00709 富邦歐洲 | C73: 富邦富時歐洲 ETF證券投資信託基金 | D73: 其他市場ETF | E73: 9.58 | F73: 2 | G73: 16.67 | H73: 1 | I73: 18.57 | J73: 2 | K73: 26.21 | L73: 1 | M73: 29.92 | N73: 2 | O73: 45.17 | P73: 2 | S73: 9.58 | T73: 2 | U73: 14.96 | V73: -11.94 | W73: 45.9 | X73: 16.2395 | Y73: 0.7763 | Z73: 0.2134 | AA73: 0.4937 | AB73: 1.2888 | AD73: 0.214 | AE73: 13.5871 | AF73: 0.843 | AG73: 0.359 | AH73: -0.0885 | AI73: 1.6705 | AK73: 0.2091 | AL73: 42529243
A74: 42529932 | B74: 00710B 復華彭博非投等債 | C74: 復華全球收益 ETF傘型證券投資信託基金之復華 1至 5年期非投資等級債券證券投資信託基金 | D74: 債券-一般ETF | E74: 6.04 | F74: 1 | G74: 5.78 | H74: 65 | I74: 14.63 | J74: 1 | K74: 21.32 | L74: 1 | M74: 21.85 | N74: 1 | O74: 23.35 | P74: 2 | S74: 6.04 | T74: 1 | U74: 7.36 | V74: -3.47 | W74: 34.85 | X74: 6.7873 | Z74: 0.3815 | AD74: 0.2187 | AE74: 3.876 | AG74: 0.9459 | AK74: 0.212 | AL74: 42529932
A75: 42529953 | B75: 00711B 復華彭博新興債 | C75: 復華全球收益 ETF傘型證券投資信託基金之復華新興市場10年期以上債券證券投資信託基金 | D75: 債券-一般ETF | E75: 2.82 | F75: 43 | G75: 9.38 | H75: 45 | I75: 7.19 | J75: 45 | K75: 1.26 | L75: 45 | M75: -6.67 | N75: 61 | O75: -0.17 | P75: 39 | S75: 2.82 | T75: 43 | U75: 10.57 | V75: -11.63 | W75: 8.18 | X75: 11.9179 | Z75: 0.0086 | AD75: -0.0312 | AE75: 11.2541 | AG75: 0.1652 | AK75: 0.024 | AL75: 42529953
A76: 42529948 | B76: 00712 復華富時不動產 | C76: 復華全球收益 ETF傘型證券投資信託基金之復華富時不動產證券化證券投資信託基金 | D76: 指數股票型-產業 | E76: 2.53 | F76: 23 | G76: 5.83 | H76: 24 | I76: 18.67 | J76: 17 | K76: -8.94 | L76: 17 | M76: -12.15 | N76: 13 | O76: -21.59 | P76: 8 | S76: 2.53 | T76: 23 | U76: 18.3 | V76: -15.5 | W76: -18.43 | X76: 31.3577 | Y76: 1.4054 | Z76: -0.0076 | AA76: -0.9866 | AB76: -0.0493 | AD76: -0.1523 | AE76: 23.1189 | AF76: 1.4072 | AG76: 0.2318 | AH76: -0.9516 | AI76: 1.0992 | AK76: -0.1262 | AL76: 42529948
A77: 42540916 | B77: 00713 元大台灣高息低波 | C77: 元大台灣高股息低波動 ETF證券投資信託基金 | D77: 國內指數-一般ETF | E77: 10.67 | F77: 35 | G77: 20.57 | H77: 34 | I77: 45.61 | J77: 9 | K77: 42.24 | L77: 4 | M77: 70.49 | N77: 3 | O77: 146.86 | P77: 5 | S77: 10.67 | T77: 35 | U77: 28.5 | V77: -11.17 | W77: 167.5 | X77: 15.0707 | Y77: 0.6509 | Z77: 0.3424 | AA77: 0.8274 | AB77: 2.2883 | AD77: 0.0912 | AE77: 12.3846 | AF77: 0.7809 | AG77: 0.8798 | AH77: 1.2998 | AI77: 4.028 | AK77: 0.2189 | AL77: 42540916
A78: 42543131 | B78: 00714 群益道瓊美國地產 | C78: 群益道瓊美國地產 ETF證券投資信託基金 | D78: 指數股票型-產業 | E78: 2.57 | F78: 22 | G78: 14.78 | H78: 19 | I78: 12.16 | J78: 20 | K78: -5.4 | L78: 14 | M78: 12.21 | N78: 10 | O78: 11.34 | P78: 7 | S78: 2.57 | T78: 22 | U78: 15.43 | V78: -11.55 | W78: 24.83 | X78: 18.4311 | Y78: 0.8342 | Z78: -0.0329 | AA78: -0.7198 | AB78: -0.21 | AD78: -0.2555 | AE78: 16.4701 | AF78: 1.1104 | AG78: 0.2044 | AH78: -0.9998 | AI78: 0.8751 | AK78: -0.3316 | AL78: 42543131
A79: 42546448 | B79: 00717 富邦美國特別股 | C79: 富邦標普美國特別股 ETF證券投資信託基金 | D79: 美國ETF | E79: 9.77 | F79: 8 | G79: 9.65 | H79: 9 | I79: 15.85 | J79: 7 | K79: 10.74 | L79: 6 | M79: 5.95 | N79: 7 | O79: 0.72 | P79: 5 | S79: 9.77 | T79: 8 | U79: 10.5 | V79: -6.1 | W79: 4 | X79: 12.5575 | Y79: 0.3734 | Z79: 0.1127 | AA79: 0.1649 | AB79: 1.0944 | AD79: -0.1462 | AE79: 9.6975 | AF79: 0.4145 | AG79: 0.4206 | AH79: 0.4415 | AI79: 2.8406 | AK79: -0.4651 | AL79: 42546448
A80: 42550548 | B80: 00718B 富邦中國政策債 | C80: 富邦中國政策金融債券 ETF證券投資信託基金 | D80: 債券-一般ETF | E80: 3.88 | F80: 24 | G80: 2.62 | H80: 75 | I80: 4.02 | J80: 70 | K80: 5.38 | L80: 25 | M80: 14.83 | N80: 8 | O80: 16.13 | P80: 5 | S80: 3.88 | T80: 24 | U80: 4.2 | V80: -2.38 | W80: 26.39 | X80: 5.2182 | Z80: 0.0998 | AD80: 0.025 | AE80: 4.3782 | AG80: 0.1935 | AK80: -0.0895 | AL80: 42550548
A81: 42552659 | B81: 00719B 元大美債1-3 | C81: 元大多元債券 ETF傘型證券投資信託基金之元大美國政府1至3年期債券 ETF證券投資信託基金 | D81: 債券-一般ETF | E81: 4.83 | F81: 14 | G81: 1.82 | H81: 77 | I81: 7.55 | J81: 43 | K81: 14.71 | L81: 13 | M81: 11.8 | N81: 13 | O81: 8.81 | P81: 14 | S81: 4.83 | T81: 14 | U81: 5.6 | V81: -5.42 | W81: 16.98 | X81: 5.7196 | Z81: 0.3073 | AD81: 0.1128 | AE81: 4.837 | AG81: 0.3766 | AK81: 0.0038 | AL81: 42552659
A82: 42552623 | B82: 00720B 元大投資級公司債 | C82: 元大多元債券 ETF傘型證券投資信託基金之元大20年期以上 BBB級美元公司債券ETF證券投資信託基金 | D82: 債券-一般ETF | E82: 2.54 | F82: 52 | G82: 12.22 | H82: 11 | I82: 9.08 | J82: 30 | K82: 1.78 | L82: 41 | M82: -2.14 | N82: 36 | O82: 11.03 | P82: 12 | S82: 2.54 | T82: 52 | U82: 16.15 | V82: -11.52 | W82: 15.44 | X82: 14.9473 | Z82: 0.0193 | AD82: 0.008 | AE82: 13.9981 | AG82: 0.1753 | AK82: 0.1233 | AL82: 42552623
A83: 42552638 | B83: 00721B 元大中國債3-5 | C83: 元大多元債券 ETF傘型證券投資信託基金之元大中國國債及政策性金融債3至5年期債券 ETF證券投資信託基金 | D83: 債券-一般ETF | E83: 3.11 | F83: 34 | G83: 1.58 | H83: 81 | I83: 2.69 | J83: 74 | K83: 3.61 | L83: 29 | M83: 12.53 | N83: 10 | O83: 13.06 | P83: 9 | S83: 3.11 | T83: 34 | U83: 4.26 | V83: -2.11 | W83: 22.71 | X83: 5.0124 | Z83: 0.0543 | AD83: 0.0026 | AE83: 4.2957 | AG83: 0.1104 | AK83: -0.1252 | AL83: 42552638
A84: 42553637 | B84: 00722B 群益投資級電信債 | C84: 群益產業型投資等級公司債 ETF傘型證券投資信託基金－群益15年期以上電信業公司債 ETF證券投資信託基金 | D84: 債券-一般ETF | E84: 2.97 | F84: 39 | G84: 14.09 | H84: 1 | I84: 8.96 | J84: 31 | K84: 1.62 | L84: 43 | M84: -0.72 | N84: 27 | O84: 13.89 | P84: 8 | S84: 2.97 | T84: 39 | U84: 17.13 | V84: -10.66 | W84: 25.96 | X84: 15.3123 | Z84: 0.0183 | AD84: 0.0058 | AE84: 13.901 | AG84: 0.174 | AK84: 0.112 | AL84: 42553637
A85: 42553643 | B85: 00723B 群益投資級科技債 | C85: 群益產業型投資等級公司債 ETF傘型證券投資信託基金－群益15年期以上科技業公司債 ETF證券投資信託基金 | D85: 債券-一般ETF | E85: 2.11 | F85: 55 | G85: 10.6 | H85: 22 | I85: 7.48 | J85: 44 | K85: 0.03 | L85: 52 | M85: -4.41 | N85: 46 | O85: 3.33 | P85: 28 | S85: 2.11 | T85: 55 | U85: 14.63 | V85: -11.97 | W85: 7.69 | X85: 15.182 | Z85: 0.0032 | AD85: -0.0336 | AE85: 13.2329 | AG85: 0.1511 | AK85: 0.0472 | AL85: 42553643
A86: 42553664 | B86: 00724B 群益投資級金融債 | C86: 群益產業型投資等級公司債 ETF傘型證券投資信託基金－群益10年期以上金融債 ETF證券投資信託基金 | D86: 債券-一般ETF | E86: 4.41 | F86: 19 | G86: 12.65 | H86: 5 | I86: 11.66 | J86: 5 | K86: 3.66 | L86: 28 | M86: -1.33 | N86: 29 | O86: 10 | P86: 13 | S86: 4.41 | T86: 19 | U86: 14.95 | V86: -10.49 | W86: 12.46 | X86: 14.114 | Z86: 0.0369 | AD86: 0.0522 | AE86: 11.604 | AG86: 0.2634 | AK86: 0.4234 | AL86: 42553664
A87: 72939309 | B87: 00725B 國泰投資級公司債 | C87: 國泰息收 ETF傘型證券投資信託基金之10年期(以上) BBB美元息收公司債券證券投資信託基金 | D87: 債券-一般ETF | E87: 2.68 | F87: 47 | G87: 11.07 | H87: 20 | I87: 10.49 | J87: 11 | K87: 5.74 | L87: 22 | M87: 1.79 | N87: 22 | O87: 14.5 | P87: 7 | S87: 2.68 | T87: 47 | U87: 13.96 | V87: -10.15 | W87: 21.85 | X87: 13.2787 | Z87: 0.0584 | AD87: 0.1301 | AE87: 11.669 | AG87: 0.2359 | AK87: 0.3024 | AL87: 72939309
A88: 72939321 | B88: 00726B 國泰5Y+新興債 | C88: 國泰息收 ETF傘型證券投資信託基金新興市場 5年期(以上)美元息收投資等級債券證券投資信託基金 | D88: 債券-一般ETF | E88: 3.59 | F88: 30 | G88: 7.53 | H88: 62 | I88: 9.9 | J88: 23 | K88: 8.36 | L88: 18 | M88: -3.74 | N88: 43 | O88: 1.99 | P88: 32 | S88: 3.59 | T88: 30 | U88: 7.3 | V88: -12.72 | W88: 13.59 | X88: 8.1625 | Z88: 0.1199 | AD88: 0.1778 | AE88: 7.0077 | AG88: 0.3542 | AK88: 0.2291 | AL88: 72939321
A89: 72939315 | B89: 00727B 國泰1-5Y非投等債 | C89: 國泰息收 ETF傘型證券投資信託基金之優選 1-5年美元非投資等級債券證券投資信託基金 | D89: 債券-一般ETF | E89: 5.35 | F89: 8 | G89: 5.4 | H89: 66 | I89: 13.44 | J89: 2 | K89: 20.37 | L89: 2 | M89: 20.58 | N89: 2 | O89: 20.17 | P89: 4 | S89: 5.35 | T89: 8 | U89: 7.1 | V89: -3.62 | W89: 37.07 | X89: 6.4422 | Z89: 0.3833 | AD89: 0.2107 | AE89: 3.5367 | AG89: 0.9496 | AK89: 0.1744 | AL89: 72939315
A90: 72949242 | B90: 00728 第一金工業30 | C90: 第一金臺灣工業菁英30 ETF傘型證券投資信託基金－第一金臺灣工業菁英30 ETF證券投資信託基金 | D90: 國內指數-一般ETF | E90: 13.22 | F90: 24 | G90: 32.58 | H90: 12 | I90: 34.68 | J90: 24 | K90: 26.18 | L90: 18 | M90: 29.95 | N90: 19 | O90: 112.01 | P90: 13 | S90: 13.22 | T90: 24 | U90: 20.53 | V90: -16.5 | W90: 112.34 | X90: 24.6371 | Y90: 1.1411 | Z90: 0.1595 | AA90: -0.0259 | AB90: 0.9944 | AD90: -0.0421 | AE90: 16.9441 | AF90: 1.0624 | AG90: 0.5164 | AH90: 0.0151 | AI90: 2.3777 | AK90: -0.0854 | AL90: 72949242
A91: 72949931 | B91: 00730 富邦臺灣優質高息 | C91: 富邦道瓊臺灣優質高息30 ETF證券投資信託基金 | D91: 國內指數-一般ETF | E91: 12.81 | F91: 26 | G91: 27.58 | H91: 26 | I91: 28.93 | J91: 30 | K91: 31.29 | L91: 14 | M91: 31.74 | N91: 16 | O91: 62.93 | P91: 18 | S91: 12.81 | T91: 26 | U91: 20.14 | V91: -15.6 | W91: 60.96 | X91: 17.8345 | Y91: 0.7726 | Z91: 0.2308 | AA91: 0.4025 | AB91: 1.5382 | AD91: -0.0105 | AE91: 14.0901 | AF91: 0.876 | AG91: 0.5218 | AH91: 0.0521 | AI91: 2.423 | AK91: -0.3301 | AL91: 72949931
A92: 72957164 | B92: 00731 復華富時高息低波 | C92: 復華富時台灣高股息低波動證券投資信託基金 | D92: 國內指數-一般ETF | E92: 10.36 | F92: 37 | G92: 19.1 | H92: 37 | I92: 40.96 | J92: 16 | K92: 33.6 | L92: 12 | M92: 64.07 | N92: 4 | O92: 100.9 | P92: 16 | S92: 10.36 | T92: 37 | U92: 22.18 | V92: -9.48 | W92: 108.05 | X92: 16.6101 | Y92: 0.628 | Z92: 0.2592 | AA92: 0.6041 | AB92: 1.9792 | AD92: 0.007 | AE92: 17.8223 | AF92: 0.9819 | AG92: 0.5692 | AH92: 0.6077 | AI92: 2.9824 | AK92: 0.0674 | AL92: 72957164
A93: 72960132 | B93: 00733 富邦臺灣中小 | C93: 富邦臺灣中小A級動能50 ETF證券投資信託基金 | D93: 國內指數-一般ETF | E93: 12.15 | F93: 29 | G93: 17.11 | H93: 39 | I93: 79.78 | J93: 1 | K93: 70.26 | L93: 1 | M93: 110.09 | N93: 1 | O93: 340.85 | P93: 1 | S93: 12.15 | T93: 29 | U93: 74.93 | V93: -16.67 | W93: 287.51 | X93: 30.9673 | Y93: 1.1841 | Z93: 0.2829 | AA93: 1.3242 | AB93: 2.1354 | AD93: 0.2446 | AE93: 31.9012 | AF93: 1.5956 | AG93: 0.5742 | AH93: 1.5167 | AI93: 3.3141 | AK93: 0.3774 | AL93: 72960132
A94: 72959748 | B94: 00734B 台新JPM新興債 | C94: 台新摩根大通新興市場投資等級美元債券 ETF證券投資信託基金 | D94: 債券-一般ETF | E94: 2.79 | F94: 44 | G94: 7.14 | H94: 64 | I94: 8.06 | J94: 38 | K94: 4.12 | L94: 26 | M94: -5.94 | N94: 57 | O94: -10.57 | P94: 48 | S94: 2.79 | T94: 44 | U94: 6.52 | V94: -11 | W94: -3.19 | X94: 9.1273 | Z94: 0.0465 | AD94: 0.0478 | AE94: 7.0937 | AG94: 0.281 | AK94: 0.0682 | AL94: 72959748
A95: 72962758 | B95: 00735 國泰臺韓科技 | C95: 國泰趨勢 ETF傘型證券投資信託基金之臺韓科技證券投資信託基金 | D95: 指數股票型-產業 | E95: 15.11 | F95: 12 | G95: 29.87 | H95: 10 | I95: 37.96 | J95: 11 | K95: 27.02 | L95: 11 | M95: 17.26 | N95: 9 | O95: 136.78 | P95: 4 | S95: 15.11 | T95: 12 | U95: 18.72 | V95: -18.85 | W95: 116.35 | X95: 25.455 | Y95: 1.1792 | Z95: 0.1611 | AA95: 0.414 | AB95: 1.0039 | AD95: 0.1061 | AE95: 19.842 | AF95: 0.9565 | AG95: 0.484 | AH95: 1.0739 | AI95: 2.8983 | AK95: 0.2037 | AL95: 72962758
A96: 72962770 | B96: 00736 國泰新興市場 | C96: 國泰趨勢 ETF傘型證券投資信託基金之富時新興市場證券投資信託基金 | D96: 跨國-區域一般ETF | E96: 6.44 | F96: 2 | G96: 8.89 | H96: 2 | I96: 11.8 | J96: 2 | K96: 5.23 | L96: 2 | M96: -2.79 | N96: 2 | O96: 18.05 | P96: 2 | S96: 6.44 | T96: 2 | U96: 14.39 | V96: -9.29 | W96: 18.71 | X96: 15.3199 | Z96: 0.051 | AD96: -0.2277 | AE96: 13.3418 | AG96: 0.2362 | AK96: -0.1433 | AL96: 72962770
A97: 72962743 | B97: 00737 國泰AI+Robo | C97: 國泰趨勢 ETF傘型證券投資信託基金之納斯達克全球人工智慧及機器人證券投資信託基金 | D97: 指數股票型-產業 | E97: 3.42 | F97: 20 | G97: 11.53 | H97: 20 | I97: 12.24 | J97: 19 | K97: 5.45 | L97: 13 | M97: -2.28 | N97: 12 | O97: 47.6 | P97: 5 | S97: 3.42 | T97: 20 | U97: 18.11 | V97: -18.75 | W97: 58.6 | X97: 23.2489 | Y97: 1.0651 | Z97: 0.0532 | AA97: -0.3381 | AB97: 0.3354 | AD97: -0.2395 | AE97: 20.9889 | AF97: 1.1798 | AG97: 0.172 | AH97: -1.0525 | AI97: 0.8834 | AK97: -0.6266 | AL97: 72962743
A98: 72963026 | B98: 00739 元大MSCI A股 | C98: 元大MSCI中國A股國際通ETF證券投資信託基金 | D98: 跨國-中國一般ETF | E98: 4.4 | F98: 6 | G98: -4.45 | H98: 7 | I98: -13.17 | J98: 8 | K98: -16.84 | L98: 9 | M98: -24.03 | N98: 5 | O98: -1.05 | P98: 1 | S98: 4.4 | T98: 6 | U98: 16.66 | V98: -15.13 | W98: 6.07 | X98: 20.255 | Y98: 0.1441 | Z98: -0.1169 | AA98: -0.7779 | AB98: -4.7467 | AD98: -0.0102 | AE98: 19.2542 | AF98: 0.5547 | AG98: -0.2021 | AH98: -2.1079 | AI98: -2.0247 | AK98: 0.068 | AL98: 72963026
A99: 72963546 | B99: 00740B 富邦全球投等債 | C99: 富邦全方位入息 ETF傘型證券投資信託基金之富邦彭博10年期(以上)BBB美元息收公司債券 ETF證券投資信託基金 | D99: 債券-一般ETF | E99: 3.12 | F99: 33 | G99: 11.13 | H99: 19 | I99: 10.14 | J99: 19 | K99: 5.95 | L99: 21 | M99: 1.75 | N99: 23 | O99: 16.09 | P99: 6 | S99: 3.12 | T99: 33 | U99: 13.87 | V99: -10.21 | W99: 27.34 | X99: 13.1448 | Z99: 0.0608 | AD99: 0.139 | AE99: 11.5206 | AG99: 0.2305 | AK99: 0.2844 | AL99: 72963546
A100: 72963525 | B100: 00741B 富邦全球非投等債 | C100: 富邦全方位入息 ETF傘型證券投資信託基金之富邦彭博優選 1-5年非投資等級債券 ETF證券投資信託基金 | D100: 債券-一般ETF | E100: 5.56 | F100: 3 | G100: 5.19 | H100: 67 | I100: 13.1 | J100: 3 | K100: 19.79 | L100: 3 | M100: 19.51 | N100: 3 | O100: 21.35 | P100: 3 | S100: 5.56 | T100: 3 | U100: 7.8 | V100: -4.13 | W100: 29.39 | X100: 6.8723 | Z100: 0.3501 | AD100: 0.1954 | AE100: 3.7608 | AG100: 0.8699 | AK100: 0.1663 | AL100: 72963525
A101: 73626500 | B101: 00746B 富邦A級公司債 | C101: 富邦多元收益 ETF傘型證券投資信託基金之富邦彭博9-35年 A級美元息收公司債券 ETF證券投資信託基金 | D101: 債券-一般ETF | E101: 2.57 | F101: 49 | G101: 9.27 | H101: 47 | I101: 6.66 | J101: 50 | K101: 0.75 | L101: 49 | M101: -3.22 | N101: 40 | O101: 5.25 | P101: 25 | S101: 2.57 | T101: 49 | U101: 12.46 | V101: -9.05 | W101: 11.9 | X101: 12.7807 | Z101: 0.0046 | AD101: -0.0551 | AE101: 11.1626 | AG101: 0.1534 | AK101: -0.0265 | AL101: 73626500
A102: 73658930 | B102: 00749B 凱基新興債10+ | C102: 凱基10年期以上新興市場BBB美元主權債及類主權債券ETF證券投資信託基金 | D102: 債券-一般ETF | E102: 2.55 | F102: 50 | G102: 9.69 | H102: 39 | I102: 8.43 | J102: 36 | K102: 2.76 | L102: 36 | M102: -11.2 | N102: 73 | O102: -5.65 | P102: 47 | S102: 2.55 | T102: 50 | U102: 10.13 | V102: -16.73 | W102: 0.6 | X102: 12.9718 | Z102: 0.0272 | AD102: 0.0199 | AE102: 11.3628 | AG102: 0.1933 | AK102: 0.115 | AL102: 73658930
A103: 73658988 | B103: 00750B 凱基科技債10+ | C103: 凱基10年期以上科技業公司債券ETF證券投資信託基金 | D103: 債券-一般ETF | E103: 2.63 | F103: 48 | G103: 10.44 | H103: 24 | I103: 8.15 | J103: 37 | K103: 1.71 | L103: 42 | M103: -3.48 | N103: 42 | O103: 4.1 | P103: 26 | S103: 2.63 | T103: 48 | U103: 13.5 | V103: -11.48 | W103: 10.1 | X103: 13.8917 | Z103: 0.0171 | AD103: -0.0013 | AE103: 12.0838 | AG103: 0.1773 | AK103: 0.1018 | AL103: 73658988
A104: 73656187 | B104: 00751B 元大AAA至A公司債 | C104: 元大20年期以上AAA至A級美元公司債券 ETF證券投資信託基金 | D104: 債券-一般ETF | E104: 1.37 | F104: 72 | G104: 10.19 | H104: 28 | I104: 4.99 | J104: 64 | K104: -4.06 | L104: 72 | M104: -7 | N104: 64 | O104: 0.33 | P104: 37 | S104: 1.37 | T104: 72 | U104: 14.83 | V104: -12 | W104: 7.34 | X104: 15.3287 | Z104: -0.0357 | AD104: -0.1332 | AE104: 14.2865 | AG104: 0.095 | AK104: -0.0745 | AL104: 73656187
A105: 73680588 | B105: 00752 中信中國50 | C105: 中國信託MSCI中國外資自由投資50不含A及B股ETF證券投資信託基金 | D105: 跨國-中國一般ETF | E105: 1.6 | F105: 9 | G105: -5.98 | H105: 9 | I105: -13.88 | J105: 9 | K105: -12.74 | L105: 3 | M105: -44.99 | N105: 12 | O105: -30.69 | P105: 10 | S105: 1.6 | T105: 9 | U105: 50.15 | V105: -26 | W105: -17.45 | X105: 34.5508 | Z105: -0.0183 | AD105: 0.0903 | AE105: 24.5889 | AG105: -0.1553 | AK105: 0.0319 | AL105: 73680588
A106: 73680567 | B106: 00753L 中信中國50正2 | C106: 中國信託MSCI中國外資自由投資50不含A及B股單日正向2倍ETF證券投資信託基金 | D106: 跨國-中國二倍ETF | E106: -5.01 | F106: 4 | G106: -16.61 | H106: 4 | I106: -40.87 | J106: 4 | K106: -53.25 | L106: 4 | M106: -82.01 | N106: 4 | O106: -74.92 | P106: 4 | S106: -5.01 | T106: 4 | U106: 106.96 | V106: -47.79 | W106: -65.85 | X106: 68.993 | Y106: 1.2871 | Z106: -0.0712 | AA106: -2.2589 | AB106: -1.1022 | AD106: -0.0897 | AE106: 48.2596 | AF106: 2.2472 | AG106: -0.2493 | AH106: -7.4632 | AI106: -1.5456 | AK106: -0.3249 | AL106: 73680567
A107: 73682050 | B107: 00754B 群益AAA-AA公司債 | C107: 群益15年期以上高評等公司債ETF證券投資信託基金 | D107: 債券-一般ETF | E107: 1.89 | F107: 64 | G107: 9.39 | H107: 44 | I107: 4.62 | J107: 67 | K107: -3.52 | L107: 69 | M107: -5.61 | N107: 53 | O107: 1.16 | P107: 35 | S107: 1.89 | T107: 64 | U107: 13.29 | V107: -11.23 | W107: 10.45 | X107: 14.9816 | Z107: -0.0322 | AD107: -0.1313 | AE107: 12.977 | AG107: 0.0931 | AK107: -0.1333 | AL107: 73682050
A108: 73682045 | B108: 00755B 群益投資級公用債 | C108: 群益15年期以上公用事業公司債ETF證券投資信託基金 | D108: 債券-一般ETF | E108: 2.54 | F108: 51 | G108: 10.5 | H108: 23 | I108: 6.29 | J108: 52 | K108: -1.7 | L108: 59 | M108: -5.74 | N108: 55 | O108: 0.25 | P108: 38 | S108: 2.54 | T108: 51 | U108: 14.37 | V108: -11.62 | W108: 6.05 | X108: 13.5469 | Z108: -0.0198 | AD108: -0.1222 | AE108: 12.5174 | AG108: 0.1321 | AK108: -0.0316 | AL108: 73682045
A109: 73682158 | B109: 00756B 群益投等新興公債 | C109: 群益15年期以上新興市場主權債ETF證券投資信託基金 | D109: 債券-一般ETF | E109: 0.72 | F109: 78 | G109: 11.36 | H109: 16 | I109: 9.15 | J109: 29 | K109: 2.27 | L109: 39 | M109: -10.93 | N109: 72 | O109: -5.46 | P109: 46 | S109: 0.72 | T109: 78 | U109: 11.34 | V109: -16.27 | W109: 4.22 | X109: 14.0411 | Z109: 0.0228 | AD109: 0.0119 | AE109: 12.9433 | AG109: 0.1884 | AK109: 0.1146 | AL109: 73682158
A110: 73692389 | B110: 00757 統一FANG+ | C110: 統一NYSE FANG+ ETF證券投資信託基金 | D110: 指數股票型-產業 | E110: 19.16 | F110: 8 | G110: 34.43 | H110: 4 | I110: 67.95 | J110: 2 | K110: 66.03 | L110: 1 | M110: 68.21 | N110: 2 | O110: 274.83 | P110: 1 | S110: 19.16 | T110: 8 | U110: 37.78 | V110: -22.6 | W110: 284.95 | X110: 29.566 | Y110: 1.0835 | Z110: 0.2813 | AA110: 1.6937 | AB110: 2.216 | AD110: 0.3531 | AE110: 21.6265 | AF110: 0.7765 | AG110: 0.7196 | AH110: 3.1139 | AI110: 5.7855 | AK110: 0.6348 | AL110: 73692389
A111: 73688977 | B111: 00758B 復華能源債 | C111: 復華15年期以上能源業債券 ETF證券投資信託基金 | D111: 債券-一般ETF | E111: 3.41 | F111: 32 | G111: 11.2 | H111: 18 | I111: 9.31 | J111: 28 | K111: 3.14 | L111: 30 | M111: 1.81 | N111: 21 | O111: 1.98 | P111: 33 | S111: 3.41 | T111: 32 | U111: 13.32 | V111: -9.79 | W111: 12.38 | X111: 13.3087 | Z111: 0.0313 | AD111: 0.0421 | AE111: 11.9398 | AG111: 0.2051 | AK111: 0.1926 | AL111: 73688977
A112: 73688934 | B112: 00759B 復華製藥債 | C112: 復華15年期以上製藥業債券 ETF證券投資信託基金 | D112: 債券-一般ETF | E112: 2.36 | F112: 54 | G112: 9.58 | H112: 41 | I112: 5.54 | J112: 60 | K112: -0.53 | L112: 55 | M112: -5.02 | N112: 51 | O112: 7.51 | P112: 19 | S112: 2.36 | T112: 54 | U112: 13.66 | V112: -9.84 | W112: 17.81 | X112: 14.0581 | Z112: -0.0056 | AD112: -0.0677 | AE112: 12.821 | AG112: 0.1136 | AK112: -0.0759 | AL112: 73688934
A113: 73689048 | B113: 00760B 復華新興企業債 | C113: 復華新興市場企業債券 ETF證券投資信託基金 | D113: 債券-一般ETF | E113: 4.17 | F113: 21 | G113: 10.3 | H113: 26 | I113: 10.2 | J113: 17 | K113: 5.47 | L113: 23 | M113: -1.44 | N113: 30 | O113: 6.02 | P113: 23 | S113: 4.17 | T113: 21 | U113: 10.17 | V113: -10.31 | W113: 16.21 | X113: 11.2206 | Z113: 0.0597 | AD113: 0.1008 | AE113: 9.4432 | AG113: 0.2769 | AK113: 0.3394 | AL113: 73689048
A114: 73701726 | B114: 00761B 國泰A級公司債 | C114: 國泰10年期以上A等級美元公司債券ETF證券投資信託基金 | D114: 債券-一般ETF | E114: 1.62 | F114: 68 | G114: 9.45 | H114: 43 | I114: 5.6 | J114: 59 | K114: -1.76 | L114: 60 | M114: -5.42 | N114: 52 | O114: 2.08 | P114: 30 | S114: 1.62 | T114: 68 | U114: 13.42 | V114: -9.97 | W114: 12.3 | X114: 14.3417 | Z114: -0.0172 | AD114: -0.0998 | AE114: 12.7039 | AG114: 0.1157 | AK114: -0.077 | AL114: 73701726
A115: 73694555 | B115: 00762 元大全球AI | C115: 元大全球人工智慧 ETF證券投資信託基金 | D115: 指數股票型-產業 | E115: 21.22 | F115: 6 | G115: 33.41 | H115: 6 | I115: 59.75 | J115: 6 | K115: 48.98 | L115: 3 | M115: 59.75 | N115: 4 | O115: 164.98 | P115: 2 | S115: 21.22 | T115: 6 | U115: 29.19 | V115: -23.54 | W115: 199.45 | X115: 25.9054 | Y115: 1.1125 | Z115: 0.2489 | AA115: 1.1347 | AB115: 1.6728 | AD115: 0.3597 | AE115: 19.5263 | AF115: 0.7922 | AG115: 0.7148 | AH115: 2.6228 | AI115: 5.0864 | AK115: 0.635 | AL115: 73694555
A116: 73709430 | B116: 00764B 群益25年美債 | C116: 群益25年期以上美國政府債券ETF證券投資信託基金 | D116: 債券-一般ETF | E116: -0.01 | F116: 85 | G116: 7.72 | H116: 60 | I116: -4.02 | J116: 82 | K116: -17.43 | L116: 82 | M116: -17 | N116: 79 | O116: -14.53 | P116: 53 | S116: -0.01 | T116: 85 | U116: 12.89 | V116: -13.88 | W116: -11.17 | X116: 15.073 | Z116: -0.18 | AD116: -0.4179 | AE116: 14.4782 | AG116: -0.0846 | AK116: -0.4681 | AL116: 73709430
A117: 74424708 | B117: 00768B 復華20年美債 | C117: 復華美國20年期以上公債ETF證券投資信託基金 | D117: 債券-一般ETF | E117: 0.66 | F117: 79 | G117: 8.04 | H117: 54 | I117: -2.95 | J117: 76 | K117: -14.76 | L117: 78 | M117: -15.52 | N117: 76 | O117: -12.89 | P117: 49 | S117: 0.66 | T117: 79 | U117: 12.63 | V117: -13.22 | W117: -7.53 | X117: 13.7224 | Z117: -0.1684 | AD117: -0.4363 | AE117: 13.709 | AG117: -0.0682 | AK117: -0.4853 | AL117: 74424708
A118: 74702435 | B118: 00770 國泰北美科技 | C118: 國泰標普北美科技 ETF證券投資信託基金 | D118: 指數股票型-產業 | E118: 20.51 | F118: 7 | G118: 34.25 | H118: 5 | I118: 60.71 | J118: 3 | K118: 48.75 | L118: 4 | M118: 63.54 | N118: 3 | O118: 157.3 | P118: 3 | S118: 20.51 | T118: 7 | U118: 24.23 | V118: -21.02 | W118: 187.54 | X118: 24.4331 | Y118: 1.085 | Z118: 0.259 | AA118: 1.1188 | AB118: 1.6839 | AD118: 0.4013 | AE118: 15.9266 | AF118: 0.7857 | AG118: 0.8777 | AH118: 2.6406 | AI118: 5.1365 | AK118: 0.7501 | AL118: 74702435
A119: 74705236 | B119: 00771 元大US高息特別股 | C119: 元大標普美國高息特別股 ETF證券投資信託基金 | D119: 美國ETF | E119: 10.54 | F119: 5 | G119: 9.8 | H119: 8 | I119: 17 | J119: 6 | K119: 9.27 | L119: 7 | M119: 3.53 | N119: 8 | S119: 10.54 | T119: 5 | U119: 11.22 | V119: -7.69 | W119: 6.97 | X119: 13.8841 | Y119: 0.3368 | Z119: 0.0916 | AA119: 0.1472 | AB119: 1.09 | AD119: -0.137 | AE119: 10.4242 | AF119: 0.3806 | AG119: 0.4209 | AH119: 0.5907 | AI119: 3.3274 | AK119: -0.3536 | AL119: 74705236
A120: 74707446 | B120: 00772B 中信高評級公司債 | C120: 中國信託10年期以上高評級美元公司債券ETF證券投資信託基金 | D120: 債券-一般ETF | E120: 1.36 | F120: 73 | G120: 10.06 | H120: 31 | I120: 6.24 | J120: 54 | K120: -0.93 | L120: 57 | M120: -4.59 | N120: 48 | O120: 3.43 | P120: 27 | S120: 1.36 | T120: 73 | U120: 13 | V120: -10.34 | W120: 9.21 | X120: 13.885 | Z120: -0.0103 | AD120: -0.0862 | AE120: 12.6208 | AG120: 0.1302 | AK120: -0.034 | AL120: 74707446
A121: 74707494 | B121: 00773B 中信優先金融債 | C121: 中國信託10年期以上優先順位金融債券ETF證券投資信託基金 | D121: 債券-一般ETF | E121: 3.06 | F121: 37 | G121: 12.25 | H121: 9 | I121: 9.75 | J121: 26 | K121: 1.6 | L121: 44 | M121: -2.84 | N121: 39 | O121: 6.82 | P121: 20 | S121: 3.06 | T121: 37 | U121: 14.16 | V121: -10.52 | W121: 12.97 | X121: 14.2282 | Z121: 0.0165 | AD121: -0.0016 | AE121: 12.104 | AG121: 0.2123 | AK121: 0.2303 | AL121: 74707494
A122: 74708894 | B122: 00775B 新光投等債15+ | C122: 新光全方位收益 ETF傘型證券投資信託基金之新光富時15年以上特選產業美元投資等級債券 ETF證券投資信託基金 | D122: 債券-一般ETF | E122: 1.71 | F122: 66 | G122: 9.75 | H122: 35 | I122: 6.19 | J122: 55 | K122: -2.4 | L122: 63 | M122: -6.68 | N122: 62 | O122: -1.95 | P122: 43 | S122: 1.71 | T122: 66 | U122: 14.67 | V122: -11 | W122: 0.7 | X122: 13.921 | Z122: -0.0256 | AD122: -0.1299 | AE122: 13.2477 | AG122: 0.1245 | AK122: -0.0275 | AL122: 74708894
A123: 74712291 | B123: 00777B 凱基AAA至A公司債 | C123: 凱基15年期以上AAA至A級美元公司債券 ETF證券投資信託基金 | D123: 債券-一般ETF | E123: 1.9 | F123: 63 | G123: 9.93 | H123: 33 | I123: 5.38 | J123: 63 | K123: -2.19 | L123: 62 | M123: -5.7 | N123: 54 | O123: 0.88 | P123: 36 | S123: 1.9 | T123: 63 | U123: 14.19 | V123: -10.67 | W123: 5.41 | X123: 14.6192 | Z123: -0.0204 | AD123: -0.1051 | AE123: 13.2941 | AG123: 0.1076 | AK123: -0.0757 | AL123: 74712291
A124: 74712308 | B124: 00778B 凱基金融債20+ | C124: 凱基20年期以上美元金融債券 ETF證券投資信託基金 | D124: 債券-一般ETF | E124: 3.63 | F124: 29 | G124: 13.18 | H124: 4 | I124: 10.17 | J124: 18 | K124: 0.21 | L124: 51 | M124: -4.56 | N124: 47 | O124: 6.2 | P124: 22 | S124: 3.63 | T124: 29 | U124: 16.6 | V124: -11.66 | W124: 11.43 | X124: 16.2256 | Z124: 0.0074 | AD124: -0.0167 | AE124: 13.7809 | AG124: 0.1986 | AK124: 0.1881 | AL124: 74712308
